Workbook

Sheet menu
L5: www.info-guruku.com | O5: www.berkasdownload.info
D15: http://wikieducation.info-gurku.com | H15: http://gurugalery.blogspot.com | L15: http://exitcloudfile.blogspot.com/
A16: Product by nur prijantono : noerprijantono@gmail.com PIN BB : 7C36D9BC WA : 081 333 651 685_Pengajar SD KARTIKA IV-7 MALANG
A17: http://unduhfile-guru.blogspot.com

Sheet dtsiswa
A1: DATA SISWA
A3: NO | B3: NIS | C3: NISN | D3: NAMA PESERTA DIDIK | E3: TEMPAT LAHIR | F3: TANGGAL LAHIR | G3: JENIS KELAMIN | H3: AGAMA | I3: PENDIDIKAN SEBELUMNYA | J3: ALAMAT PESERTA DIDIK | K3: ORANG TUA | T3: WALI PESERTA DIDIK
K4: NAMA AYAH | L4: NAMA IBU | M4: PEKERJAAN AYAH | N4: PEKERJAAN IBU | O4: ALAMAT ORANG TUA
O5: JALAN | P5: KELURAHAN/ DESA | Q5: KECAMATAN | R5: KAB./KOTA | S5: PROPINSI | T5: NAMA WALI | U5: PEKERJAAN | V5: ALAMAT WALI | W5: NOMOR TELEPHON
A6: 1 | B6: 2 | C6: 3 | D6: 4 | E6: 5 | F6: 6 | G6: 7 | H6: 8 | I6: 9 | J6: 10 | K6: 11 | L6: 12 | M6: 13 | N6: 14 | O6: 15 | P6: 16 | Q6: 17 | R6: 18 | S6: 19 | T6: 20 | U6: 21 | V6: 22 | W6: 23
A7: 1 | B7: 2522 | C7: 0050973519 | D7: Achmad Zacky | E7: Malang | F7: 2005-03-21 | G7: Laki | H7: Islam | I7: TK | J7: Kluweh II/04 | K7: Mahmud Eri | L7: Ika Rahmananing Rahayu | M7: Karyawan Swasta | N7: Karyawan Swasta | O7: Kluweh II/04 | P7: Bumiayu | Q7: Kedungkandang | R7: Kota Malang | S7: Jawa Timur
A8: 2 | B8: 2523 | C8: 0050973518 | D8: Angelia Vabel R | E8: Malang | F8: 2005-03-14 | G8: Perempuan | H8: Islam | I8: TK | J8: Kunta Bhaswara VI/1 | K8: Rudiyanto | L8: Kiki Iriyanti | M8: Swasta | N8: Ibu Rumah Tangga | O8: Kunta Bhaswara VI/1 | P8: Polehan | Q8: Blimbing | R8: Kota Malang | S8: Jawa Timur
A9: 3 | B9: 2524 | C9: 0050973528 | D9: Anggun Dwi P.I | E9: Malang | F9: 2005-08-04 | G9: Perempuan | H9: Islam | I9: TK | J9: LA Sucipto VII B/7 | K9: Susilo Priyo Utomo | L9: Maria Ismawati | M9: Karyawan Swasta | N9: Karyawan Swasta | O9: LA Sucipto VII B/7 | P9: Blimbing | Q9: Blimbing | R9: Kota Malang | S9: Jawa Timur
A10: 4 | B10: 2525 | C10: 0044914651 | D10: Antonio Permata A | E10: Malang | F10: 4 November 2004 | G10: Perempuan | H10: Islam | I10: TK | J10: Kesatrian E4 | K10: Jatnomojo | L10: Nunuk Siti Asiah | M10: Pensiunan | N10: Ibu Rumah Tangga | O10: Kesatrian E4 | P10: Kesatrian | Q10: Blimbing | R10: Kota Malang | S10: Jawa Timur
A11: 5 | B11: 2526 | C11: 0050973529 | D11: Arya Pratama G | E11: Malang | F11: 2005-08-11 | G11: Perempuan | H11: Islam | I11: TK | J11: Kesatrian E38 | K11: Cahyo Crysdian | L11: Rr Ariana Listuhayu Wahyuni | M11: Swasta | N11: Swasta | O11: Kesatrian E38 | P11: Kesatrian | Q11: Blimbing | R11: Kota Malang | S11: Jawa Timur
A12: 6 | B12: 2529 | C12: 0050973524 | D12: Asyam Hanif Ihsan H | E12: Malang | F12: 2005-05-06 | G12: Laki | H12: Islam | I12: TK | J12: Narotama H-52 | K12: Sudarmaji | L12: Widyanti | M12: Karyawan Swasta | N12: Karyawan Swasta | O12: Narotama H-52 | P12: Kesatrian | Q12: Blimbing | R12: Kota Malang | S12: Jawa Timur
A13: 7 | B13: 2530 | C13: 00580973533 | D13: Athaya Salsabilla Z | E13: Malang | F13: 2005-10-15 | G13: Perempuan | H13: Islam | I13: TK | J13: Locari 5A | K13: Wahyu Edy Laksono | L13: Elok Khayumah | M13: Karyawan Swasta | N13: Karyawan Swasta | O13: Locari 5A | P13: Sekarpuro | Q13: Pakis | R13: Kabupaten Malang | S13: Jawa Timur
A14: 8 | B14: 2531 | C14: 0050973530 | D14: Aulia Dea Rosalinda | E14: Denpasar | F14: 2005-08-28 | G14: Perempuan | H14: Islam | I14: TK | J14: Narotama K 96 | K14: Irman Buchari | L14: Farida Yuli Astuti | M14: TNI | N14: Ibu Rumah Tangga | O14: Narotama K 96 | P14: Kesatrian | Q14: Blimbing | R14: Kota Malang | S14: Jawa Timur
A15: 9 | B15: 2532 | C15: 0050973532 | D15: Claudia Gabriella L | E15: Malang | F15: 2005-10-13 | G15: Perempuan | H15: Islam | I15: TK | J15: Hamid Rusdi G-100 | K15: Djoko Basuki | L15: Ida Hernaningsih | M15: Wiraswasta | N15: Ibu Rumah Tangga | O15: Hamid Rusdi G-100 | P15: Bunulrejo | Q15: Blimbing | R15: Kota Malang | S15: Jawa Timur
A16: 10 | B16: 2533 | C16: 0044914646 | D16: Deco Badarus Zaman | E16: Malang | F16: 2004-06-24 | G16: Laki | H16: Islam | I16: TK | J16: Narotama Barat 5A | K16: Hengky Wijaya | L16: Rini Rahayuningtyas | M16: Karyawan Swasta | N16: Ibu Rumah Tangga | O16: Narotama Barat 5A | P16: Kesatrian | Q16: Blimbing | R16: Kota Malang | S16: Jawa Timur
A17: 11 | B17: 2535 | C17: 0044914650 | D17: Fania Mutiara Felichia | E17: Malang | F17: 2004-09-21 | G17: Perempuan | H17: Islam | I17: TK | J17: Kalimosodo II/14B | K17: Lucky Handoyo | L17: Sri Handayani | M17: Karyawan Swasta | N17: Karyawan Swasta | O17: Kalimosodo II/14B | P17: Polehan | Q17: Blimbing | R17: Kota Malang | S17: Jawa Timur
A18: 12 | B18: 2536 | C18: 0044914645 | D18: Intan Dyah Nowari | E18: Malang | F18: 2004-06-08 | G18: Perempuan | H18: Islam | I18: TK | J18: Kalimosodo I/16 | K18: Rizal Jatnika | L18: Lely Oktaviani | M18: Karyawan Swasta | N18: Karyawan Swasta | O18: Kalimosodo I/16 | P18: Polehan | Q18: Blimbing | R18: Kota Malang | S18: Jawa Timur
A19: 13 | B19: 2540 | C19: 0050973534 | D19: Misyanita Nurfitri S | E19: Malang | F19: 2005-10-27 | G19: Perempuan | H19: Islam | I19: TK | J19: Danau Bratan IV Blok G5C/6 | K19: Mundiarto | L19: Yuyun Perbawati | M19: Pensiunan | N19: Karyawan Swasta | O19: Danau Bratan IV Blok G5C/6 | P19: Sawojajar | Q19: Kedungkandang | R19: Kota Malang | S19: Jawa Timur
A20: 14 | B20: 2541 | C20: 0050973517 | D20: Moch Zidane Hita L. U | E20: Malang | F20: 2005-05-06 | G20: Perempuan | H20: Islam | I20: TK | J20: Kesatrian Dalam H 11 | K20: Oto Wijanarko | L20: Wulandari | M20: Karyawan Swasta | N20: Ibu Rumah Tangga | O20: Kesatrian Dalam H 11 | P20: Kesatrian | Q20: Blimbing | R20: Kota Malang | S20: Jawa Timur
A21: 15 | B21: 2542 | C21: 0050973523 | D21: Muhammad Ibra Maulana | E21: Malang | F21: 2005-04-28 | G21: Perempuan | H21: Islam | I21: TK | J21: Ir H Juanda I/23 | K21: Soleh Gatot | L21: Mujiati | M21: Wiraswasta | N21: Ibu Rumah Tangga | O21: Ir H Juanda I/23 | P21: Jodipan | Q21: Blimbing | R21: Kota Malang | S21: Jawa Timur
A22: 16 | B22: 2544 | C22: 0044914642 | D22: Nabilla Shiva Putri | E22: Malang | F22: 2004-05-04 | G22: Laki | H22: Islam | I22: TK | J22: Sawojajar V/55 | K22: Dody Wicaksono | L22: Sulistyowati | M22: Karyawan Swasta | N22: Karyawan Swasta | O22: Sawojajar V/55 | P22: Sawojajar | Q22: Kedungkandang | R22: Kota Malang | S22: Jawa Timur
A23: 17 | B23: 2545 | C23: 0044914644 | D23: Naufal Falih F | E23: Malang | F23: 2004-06-05 | G23: Laki | H23: Islam | I23: TK | J23: Lesanpuro 2 | K23: Mastur Kambali | L23: Devi Norma Yunita | M23: Wiraswasta | N23: Ibu Rumah Tangga | O23: Lesanpuro 2 | P23: Lesanpuro | Q23: Kedungkandang | R23: Kota Malang | S23: Jawa Timur
A24: 18 | B24: 2546 | C24: 0047071513 | D24: Nayla Annora Nobel W | E24: Malang | F24: 2004-08-08 | G24: Laki | H24: Islam | I24: TK | J24: Mayjen Sungkono VI | K24: Supriyanto | L24: Tatik Rahayu | M24: Karyawan Swasta | N24: Ibu Rumah Tangga | O24: Mayjen Sungkono VI | P24: Buring | Q24: Kedungkandang | R24: Kota Malang | S24: Jawa Timur
A25: 19 | B25: 2547 | C25: 0050973531 | D25: Raihan Danang P | E25: Tangerang | F25: 2005-09-28 | G25: Laki | H25: Islam | I25: TK | J25: Danau Laut Tawar G4/H17 | K25: Abdurachman Dirgantara Wiwing | L25: Herlina Anita Lutters | M25: Seniman | N25: Ibu Rumah Tangga | O25: Danau Laut Tawar G4/H17 | P25: Sawojajar | Q25: Kedungkandang | R25: Kota Malang | S25: Jawa Timur
A26: 20 | B26: 2548 | C26: 0050973527 | D26: Roby Ardiyansyah | E26: Malang | F26: 2005-06-30 | G26: Perempuan | H26: Islam | I26: TK | J26: Hamid Rusdi Timur V/350 | K26: Sujatni | L26: Lilien Soeprijandari | M26: Karyawan Swasta | N26: Ibu Rumah Tangga | O26: Hamid Rusdi Timur V/350 | P26: Bunulrejo | Q26: Blimbing | R26: Kota Malang | S26: Jawa Timur
A27: 21 | B27: 2549 | C27: 0044914647 | D27: Rojalingga Prana A | E27: Medan | F27: 2004-07-20 | G27: Laki | H27: Islam | I27: TK | J27: Perum Griya Telaga Permai H 12 | K27: Djoko Sungkowo Tri Husodo | L27: Ratni Timur Kurniasih | M27: TNI | N27: TNI | O27: Perum Griya Telaga Permai H 12 | P27: Wonokoyo | Q27: Kedungkandang | R27: Kota Malang | S27: Jawa Timur
A28: 22 | B28: 2558 | C28: 0050973521 | D28: Sally Savista A | E28: Malang | F28: 2005-04-22 | G28: Laki | H28: Hindhu | I28: TK | J28: Kesatrian Terusan 1 | K28: Komang Adipta | L28: Kadek Budianing | M28: TNI | N28: Ibu Rumah Tangga | O28: Kesatrian Terusan 1 | P28: Kesatrian | Q28: Blimbing | R28: Kota Malang | S28: Jawa Timur
A29: 23 | B29: 2559 | C29: 0057615812 | D29: Tania Kaori Angelita | E29: Tangerang | F29: 2005-02-09 | G29: Perempuan | H29: Islam | I29: TK | J29: Ki Ageng Gribig | K29: Rio Iskandar | L29: Hafida Nuril Fitria | M29: Karyawan Swasta | N29: Karyawan Swasta | O29: Ki Ageng Gribig | P29: Madyopuro | Q29: Kedungkandang | R29: Kota Malang | S29: Jawa Timur
A30: 24 | B30: 2561 | C30: 0053157760 | D30: Romzy Oka Ramadhani P | E30: Malang | F30: 2005-07-09 | G30: Perempuan | H30: Islam | I30: TK | J30: Hamid Rusdi Timur VI/12 | K30: Agung Hari Prijadi | L30: Rina Wulandari | M30: Karyawan Swasta | N30: Karyawan Swasta | O30: Hamid Rusdi Timur VI/12 | P30: Bunulrejo | Q30: Blimbing | R30: Kota Malang | S30: Jawa Timur
A31: 25 | B31: 2632 | C31: 0048561899 | D31: Larasati Jagadhita P | E31: Malang | F31: 2005-05-10 | G31: Laki | H31: Islam | I31: TK | J31: Jaya Srani 7F/20 | K31: Tiyok Pristiwantyo | L31: Sri Kusdari | M31: Swasta | N31: Wiraswasta | O31: Jaya Srani 7F/20 | P31: Sekarpuro | Q31: Pakis | R31: Kabupaten Malang | S31: Jawa Timur
A32: 26 | B32: 2631 | C32: 0042870264 | D32: Meliana Citra A | E32: Malang | F32: 2004-08-15 | G32: Laki | H32: Islam | I32: TK | J32: S Supriyadi No 37 | K32: Wahyu Afiludin | L32: Sri Susilowati | M32: TNI | N32: Ibu Rumah Tangga | O32: S Supriyadi No 37 | P32: Bandungrejosari | Q32: Sukun | R32: Kota Malang | S32: Jawa Timur
A33: 27 | B33: 2643 | C33: 0050973520 | D33: Mohammad Rizky | E33: Malang | F33: 2005-03-26 | G33: Laki | H33: Islam | I33: TK | J33: Raya Ampeldento | K33: Abdul Rasyid Ridho | L33: Hana Indriana | M33: Wiraswasta | N33: Ibu Rumah Tangga | O33: Raya Ampeldento | P33: Ampeldento | Q33: Pakis | R33: Kabupaten Malang | S33: Jawa Timur
A34: 27
A35: 27
A36: 27
A37: 27
A38: 27
A39: 27
A40: 27
A41: 27
A42: 27
A43: 27
A44: 27
A45: 27
A46: 27
A47: 27
A48: 27
A49: 27
A50: 27
A51: 27
A52: 27
A53: 27
A54: 27
A55: 27
A56: 27

Sheet dtsekolah
A1: DATA SEKOLAH | E1: DATA KEPALA SEKOLAH & GURU KELAS
A3: 1 | B3: Nama Sekolah | C3: SDN SIRNABAKTI 01 | E3: 1 | F3: Nama Kepala Sekolah | G3: Yusuf Nur Ikhsan , S.Pd
A4: 2 | B4: NISN/ NIS/ NDSN | C4: 201291872 | E4: 2 | F4: NIP Kepala Sekolah | G4: NIP. 196004051979121009
A5: 3 | B5: Alamat Sekolah | C5: Jl.Miramare | E5: 3 | F5: Nama Wali Kelas | G5: Ahmad, S.Pd
A6: 4 | B6: Kode Pos | C6: 44175 | E6: 4 | F6: NIP Wali Kelas | G6: 19671892127181021
A7: 5 | B7: Telepon | C7: 0262 521 183 | E7: 5 | F7: Kelas | G7: 4 ( empat )
A8: 6 | B8: Kelurahan/ Desa | C8: Paas | E8: 6 | F8: Semester | G8: 2 ( Dua )
A9: 7 | B9: Kecamatan | C9: Pameungpeuk | E9: 7 | F9: Tahun Ajaran | G9: 2015/ 2016
A10: 8 | B10: Kabupaten/ Kota | C10: Garut
A11: 9 | B11: Provinsi | C11: Jawa Barat
A12: 10 | B12: Website | C12: www.atirta13.com
A13: 11 | B13: Email | C13: kartika_47@yahoo.com

Sheet dtesku
A6: 1 | B6: 2 | C6: 3 | D6: 4 | E6: 5 | F6: 6 | G6: 7 | H6: 8 | I6: 9 | J6: 10 | K6: 11 | L6: 12 | M6: 13 | N6: 14 | O6: 15 | P6: 16 | Q6: 17 | R6: 18 | S6: 19
A7: No. | B7: Nama | C7: Tinggi | E7: Berat Badan | G7: Kondisi Kesehatan | K7: KEHADIRAN | N7: KEGIATAN EKTRAKURIKULER | S7: SARAN - SARAN
A8: 1 | C8: Semester 1 | D8: Semester 2 | E8: Semester 1 | F8: Semester 2 | G8: Pendengaran | H8: Penglihatan | I8: Gigi | J8: Lainnya | K8: S | L8: I | M8: A | N8: Diniyah | O8: Pramuka | P8: Tari | Q8: Komputer | R8: Karate | S8: SARAN 1
A9: 1 | B9: ='[2]2. Siswa'!D7 -> Aan Rachmadani | C9: 132 | E9: 26 | G9: Baik | H9: Baik | I9: Berlubang | J9: - | K9: 6 | L9: 1 | M9: 1 | N9: A | O9: A | P9: A | Q9: - | R9: - | S9: Rajin belajar agar dapat berprestasi dengan baik, dan perlu diperhatikan tulisannya lebih rapi dan rajin.
A10: 2 | B10: ='[2]2. Siswa'!D8 -> Amelya Ratu Airin | C10: 145 | E10: 50 | G10: - | H10: - | I10: - | J10: - | K10: - | L10: - | M10: - | N10: A | O10: A | P10: A | Q10: - | R10: -
A11: 3 | B11: ='[2]2. Siswa'!D9 -> Aulia Hikma Ayu P | C11: 143 | E11: 40 | G11: - | H11: - | I11: - | J11: - | K11: 2 | L11: 1 | M11: - | N11: A | O11: A | P11: A | Q11: - | R11: -
A12: 4 | B12: ='[2]2. Siswa'!D10 -> Ayudha Shenny R | C12: 143 | E12: 29 | G12: - | H12: - | I12: - | J12: - | K12: 5 | L12: - | M12: - | N12: A | O12: A | P12: A | Q12: - | R12: -
A13: 5 | B13: ='[2]2. Siswa'!D11 -> Citra Dewi Cassimira Cahyanti | C13: 135 | E13: 28 | G13: - | H13: - | I13: - | J13: - | K13: - | L13: - | M13: - | N13: A | O13: A | P13: A | Q13: - | R13: -
A14: 6 | B14: ='[2]2. Siswa'!D12 -> Darmawan Afifuddin | C14: 142 | E14: 39 | G14: - | H14: - | I14: - | J14: - | K14: - | L14: - | M14: - | N14: A | O14: A | P14: A | Q14: - | R14: -
A15: 7 | B15: ='[2]2. Siswa'!D13 -> Estevania Ramadhanti Aulia Laksono | C15: 144 | E15: 46 | G15: - | H15: - | I15: - | J15: - | K15: 1 | L15: - | M15: - | N15: A | O15: A | P15: A | Q15: - | R15: -
A16: 8 | B16: ='[2]2. Siswa'!D14 -> Fahaema Noora Bahaudina | C16: 152 | E16: 45 | G16: - | H16: - | I16: - | J16: - | K16: 2 | L16: - | M16: - | N16: A | O16: A | P16: A | Q16: - | R16: -
A17: 9 | B17: ='[2]2. Siswa'!D15 -> Fatia Salma | C17: 139 | E17: 34 | G17: - | H17: - | I17: - | J17: - | K17: 1 | L17: - | M17: - | N17: A | O17: A | P17: A | Q17: - | R17: -
A18: 10 | B18: ='[2]2. Siswa'!D16 -> Irvan Afandy | C18: 129 | E18: 28 | G18: - | H18: - | I18: - | J18: - | K18: - | L18: - | M18: - | N18: A | O18: A | P18: A | Q18: - | R18: -
A19: 11 | B19: ='[2]2. Siswa'!D17 -> Masayu Fadila Septiana | C19: 151 | E19: 52 | G19: - | H19: - | I19: - | J19: - | K19: - | L19: - | M19: - | N19: A | O19: A | P19: A | Q19: - | R19: -
A20: 12 | B20: ='[2]2. Siswa'!D18 -> Masha Adelia Putri Jatnika | C20: 149 | E20: 63 | G20: - | H20: - | I20: - | J20: - | K20: 1 | L20: 1 | M20: - | N20: A | O20: A | P20: A | Q20: - | R20: -
A21: 13 | B21: ='[2]2. Siswa'!D19 -> Mutia Zufinda | C21: 145 | E21: 45 | G21: - | H21: - | I21: - | J21: - | K21: - | L21: - | M21: - | N21: A | O21: A | P21: A | Q21: - | R21: -
A22: 14 | B22: ='[2]2. Siswa'!D20 -> Natasya Mutia Rizqiana | C22: 136 | E22: 25 | G22: - | H22: - | I22: - | J22: - | K22: - | L22: 1 | M22: - | N22: A | O22: A | P22: A | Q22: - | R22: -
A23: 15 | B23: ='[2]2. Siswa'!D21 -> Naurah Atikah Rabbani | C23: 132 | E23: 25 | G23: - | H23: - | I23: - | J23: - | K23: - | L23: 3 | M23: - | N23: A | O23: A | P23: A | Q23: - | R23: -
A24: 16 | B24: ='[2]2. Siswa'!D22 -> Rendra Prasetiya Danadyaksa | C24: 129 | E24: 27 | G24: - | H24: - | I24: - | J24: - | K24: 2 | M24: - | N24: A | O24: A | P24: A | Q24: - | R24: -
A25: 17 | B25: ='[2]2. Siswa'!D23 -> Rizal Ilham Pratama | C25: 134 | E25: 29 | G25: - | H25: - | I25: - | J25: - | K25: 6 | L25: 8 | M25: - | N25: A | O25: A | P25: A | Q25: - | R25: -
A26: 18 | B26: ='[2]2. Siswa'!D24 -> Satriya Dwisetya Nugraha | C26: 148 | E26: 64 | G26: - | H26: - | I26: - | J26: - | M26: - | N26: A | O26: A | P26: A | Q26: - | R26: -
A27: 19 | B27: ='[2]2. Siswa'!D25 -> Shahbaz Faiz Rheznandiya | C27: 136 | E27: 27 | G27: - | H27: - | I27: - | J27: - | K27: 3 | L27: 1 | M27: - | N27: A | O27: A | P27: A | Q27: - | R27: -
A28: 20 | B28: ='[2]2. Siswa'!D26 -> Shinta Amelya Jatlieno | C28: 145 | E28: 45 | G28: - | H28: - | I28: - | J28: - | K28: 3 | M28: - | N28: A | O28: A | P28: A | Q28: - | R28: -
A29: 21 | B29: ='[2]2. Siswa'!D27 -> Wisnu Anggara | C29: 141 | E29: 44 | G29: - | H29: - | I29: - | J29: - | K29: - | L29: - | M29: - | N29: A | O29: A | P29: A | Q29: - | R29: -
A30: 22 | B30: ='[2]2. Siswa'!D28 -> I Kadek Afrisa Diana Dipta | G30: - | H30: - | I30: - | J30: - | K30: - | L30: - | M30: - | N30: A | O30: A | P30: A | Q30: - | R30: -
A31: 23 | B31: ='[2]2. Siswa'!D29 -> Khayla Rifi Athalillah | C31: 140 | E31: 34 | G31: - | H31: - | I31: - | J31: - | K31: - | L31: - | M31: - | N31: A | O31: A | P31: A | Q31: - | R31: -
A32: 24 | B32: ='[2]2. Siswa'!D30 -> Bulan Kaniya Putri Rahmadani | C32: 132 | E32: 25 | G32: - | H32: - | I32: - | J32: - | K32: 1 | L32: 1 | M32: - | N32: A | O32: A | P32: A | Q32: - | R32: -
A33: 25 | B33: ='[2]2. Siswa'!D31 -> Yekza Adikustiyanata | C33: 140 | E33: 35 | G33: - | H33: - | I33: - | J33: - | L33: 1 | M33: - | N33: A | O33: A | P33: A | Q33: - | R33: -
A34: 26 | B34: ='[2]2. Siswa'!D32 -> Rico David Afiludin | C34: 135 | E34: 30 | G34: - | H34: - | I34: - | J34: - | K34: 1 | L34: 1 | M34: - | N34: A | O34: A | P34: A | Q34: - | R34: -
A35: 27 | B35: ='[2]2. Siswa'!D33 -> Muhammad Dava Maulana Rasyid | C35: 133 | E35: 30 | G35: - | H35: - | I35: - | J35: - | K35: - | L35: 5 | M35: - | N35: A | O35: A | P35: A | Q35: - | R35: -
A36: 28 | B36: ='[2]2. Siswa'!D34 -> Azwan Syahril Ramadhan | C36: 142 | E36: 37 | G36: - | H36: - | I36: - | J36: - | K36: 1 | L36: - | M36: - | N36: A | O36: A | P36: A | Q36: - | R36: -
A37: 29 | B37: ='[2]2. Siswa'!D35 -> Harits Imtiyaaz Tresna Putra | C37: 144 | E37: 45 | G37: - | H37: - | I37: - | J37: - | K37: - | L37: 1 | M37: - | N37: A | O37: A | P37: A | Q37: - | R37: -
A38: 30 | B38: ='[2]2. Siswa'!D36 -> Zafienna Kyla Syam | C38: 158 | E38: 57 | G38: - | H38: - | I38: - | J38: - | K38: 3 | M38: - | N38: A | O38: A | P38: A | Q38: - | R38: -
A39: 31 | B39: ='[2]2. Siswa'!D37 -> Adinda Putri Junaidi | C39: 139 | E39: 27 | G39: - | H39: - | I39: - | J39: - | K39: - | L39: - | M39: - | N39: A | O39: A | P39: A | Q39: - | R39: -
A40: 32 | Q40: - | R40: -
A41: 33 | Q41: - | R41: -
A42: 34 | Q42: - | R42: -
A43: 35 | Q43: - | R43: -
A44: 36 | Q44: - | R44: -
A45: 37 | Q45: - | R45: -
A46: 38 | Q46: - | R46: -
A47: 39 | Q47: - | R47: -
A48: 40 | Q48: - | R48: -
A49: 41 | Q49: - | R49: -
A50: 42 | Q50: - | R50: -
A51: 43 | Q51: - | R51: -
A52: 44 | Q52: - | R52: -
A53: 45 | Q53: - | R53: -
A54: 46 | Q54: - | R54: -
A55: 47 | Q55: - | R55: -
A56: 48 | Q56: - | R56: -
A57: 49 | Q57: - | R57: -
A58: 50 | Q58: - | R58: -

Sheet UTagm (hidden)
A3: DATA NILAI SEMESTER 2
A4: KI-3 DAN KI-4 KELAS :41 / AGAMA
A5: 1 | B5: 2 | C5: 3 | D5: 4 | E5: 5 | F5: 6 | G5: 7 | H5: 8 | I5: 9 | J5: 10 | K5: 11 | L5: 12 | M5: 13 | N5: 14 | O5: 15 | P5: 16 | Q5: 17 | R5: 18 | S5: 19 | T5: 20 | U5: 21 | V5: 22 | W5: 23 | X5: 24 | Y5: 25 | Z5: 26 | AA5: 27 | AB5: 28 | AC5: 29 | AD5: 30 | AE5: 31 | AF5: 32 | AG5: 33 | AH5: 34 | AI5: 35 | AJ5: 36 | AK5: 37 | AL5: 38 | AM5: 39 | AN5: 40 | AO5: 41 | AP5: 42 | AQ5: 43 | AR5: 44 | AS5: 45 | AT5: 46 | AU5: 47 | AV5: 48 | AW5: 49 | AX5: 50 | AY5: 51 | AZ5: 52 | BA5: 53 | BB5: 54 | BC5: 55 | BD5: 56 | BE5: 57 | BF5: 58 | BG5: 59 | BH5: 60 | BI5: 61 | BJ5: 62 | BK5: 63 | BL5: 64 | BM5: 65 | BN5: 66
A6: NO | B6: NAMA | C6: L/P | D6: Tema 6 | I6: Tema 7 | L6: Tema 8 | Q6: Tema 9 | U6: Tema 10 | X6: RERATA ( KI-3 ) | AD6: R.TUGAS | AE6: RERATA ( KI-4 ) | AN6: r.tugas | AO6: nilai ulhar + tugas per KD | AU6: RTH | AV6: ASPEK KETRAMPILAN ( KI-4 ) | BH6: ASPEK PENGETAHUAN ( KI-3)
D7: tugas | G7: Ulhar | I7: tugas | J7: ulhar | L7: tugas | N7: ulhar | Q7: tugas | S7: ulhar | U7: tugas | V7: ulhar | X7: rata - rata ulhar per-KD | AE7: rata-rata tugas per KD | AV7: P.6 | AZ7: P.7 | BA7: P.8 | BD7: P.9 | BG7: P.10 | BH7: P.6 | BI7: P.7 | BJ7: P.8 | BM7: P.9 | BN7: P.10
D8: 4.6.1 | E8: 4.6.2 | F8: 4.6.3 | G8: 3.6 | I8: 4.2 | J8: 3.2 | L8: 4.8 | M8: 4.9 | N8: 3.8 | O8: 3.9 | Q8: 4.5.1 | R8: 4.5.2 | S8: 3.5 | U8: 4.14 | V8: 3.10 | X8: 3.2 | Y8: 3.5 | Z8: 3.6 | AA8: 3.8 | AB8: 3.9 | AC8: 3.10 | AE8: 4.2 | AF8: 4.5.1 | AG8: 4.5.2 | AH8: 4.6.1 | AI8: 4.6.2 | AJ8: 4.6.3 | AK8: 4.8 | AL8: 4.9 | AM8: 4.14 | AO8: 3.2 | AP8: 3.5 | AQ8: 3.6 | AR8: 3.8 | AS8: 3.9 | AT8: 3.10 | AV8: 4.6.1 | AW8: 4.6.2 | AX8: 4.6.3 | AY8: rt | AZ8: 4.2 | BA8: 4.8 | BB8: 4.9 | BD8: 4.5.1 | BE8: 4.5.2 | BG8: 4.14 | BH8: 3.6 | BI8: 3.2 | BJ8: 3.8 | BK8: 3.9 | BM8: 3.5 | BN8: 3.10
A9: 1 | B9: =dtsiswa!D7 -> Achmad Zacky | C9: L | D9: 76 | E9: 80 | F9: 80 | G9: 70 | H9: =IFERROR(AVERAGE(D9:G9)," ") -> 76.5 | I9: 56 | J9: 78 | K9: =IFERROR(AVERAGE(I9:J9)," ") -> 67 | L9: 90 | M9: 68 | N9: 81 | O9: 79 | P9: =IFERROR(AVERAGE(L9:O9)," ") -> 79.5 | Q9: 56 | R9: 90 | S9: 68 | T9: =IFERROR(AVERAGE(Q9:S9)," ") -> 71.33333333 | U9: 75 | V9: 75 | W9: =IFERROR(AVERAGE(U9:V9)," ") -> 75 | X9: =J9 -> 78 | Y9: =S9 -> 68 | Z9: =G9 -> 70 | AA9: =N9 -> 81 | AB9: =O9 -> 79 | AC9: =V9 -> 75 | AD9: =IFERROR(AVERAGE(X9:AC9)," ") -> 75.16666667 | AE9: =I9 -> 56 | AF9: =Q9 -> 56 | AG9: =R9 -> 90 | AH9: =D9 -> 76 | AI9: =E9 -> 80 | AJ9: 80 | AK9: =L9 -> 90 | AL9: =M9 -> 68 | AM9: =U9 -> 75 | AN9: =IFERROR(AVERAGE(AE9:AM9)," ") -> 74.55555556 | AO9: =(X9+AE9)/2 -> 67 | AP9: =(Y9+AF9+AG9)/3 -> 71.33333333 | AQ9: =(Z9+AH9+AI9+AJ9)/4 -> 76.5 | AR9: =(AA9+AK9)/2 -> 85.5 | AS9: =(AB9+AL9)/2 -> 73.5 | AT9: =(AC9+AM9)/2 -> 75 | AU9: =IFERROR(AVERAGE(AO9:AT9)," ") -> 74.80555556 | AV9: =AH9 -> 76 | AW9: =AI9 -> 80 | AX9: =AJ9 -> 80 | AY9: =IFERROR(AVERAGE(AV9:AX9)," ") -> 78.66666667 | AZ9: =AF9 -> 56 | BA9: =AG9 -> 90 | BB9: =AH9 -> 76 | BC9: =IFERROR(AVERAGE(AZ9:BB9)," ") -> 74 | BD9: =AJ9 -> 80 | BE9: =AK9 -> 90 | BF9: =IFERROR(AVERAGE(BD9:BE9)," ") -> 85 | BG9: =U9 -> 75 | BH9: =G9 -> 70 | BI9: =J9 -> 78 | BJ9: =N9 -> 81 | BK9: =O9 -> 79 | BL9: =IFERROR(AVERAGE(BJ9:BK9)," ") -> 80 | BM9: =S9 -> 68 | BN9: =V9 -> 75
A10: 2 | B10: =dtsiswa!D8 -> Angelia Vabel R | C10: L | T10: =IFERROR(AVERAGE(Q10:S10)," ") ->  | X10: =J10 -> 0 | Y10: =S10 -> 0 | Z10: =G10 -> 0 | AA10: =N10 -> 0 | AB10: =O10 -> 0 | AC10: =V10 -> 0 | AD10: 0 | AE10: =I10 -> 0 | AF10: =Q10 -> 0 | AG10: =R10 -> 0 | AH10: =D10 -> 0 | AI10: =E10 -> 0 | AJ10: =F10 -> 0 | AK10: =L10 -> 0 | AL10: =M10 -> 0 | AM10: =U10 -> 0 | AN10: 0 | AO10: =(X10+AE10+AF10)/3 -> 0 | AP10: =(Y10+AG10)/2 -> 0 | AQ10: =(Z10+AH10)/2 -> 0 | AR10: =(AA10+AI10)/2 -> 0 | AS10: =(AB10+AJ10+AK10)/3 -> 0 | AT10: =(AC10+AL10)/2 -> 0 | AU10: 0 | AV10: 0 | AW10: =AI10 -> 0 | AX10: =AE10 -> 0 | AY10: =IFERROR(AVERAGE(AV10:AX10)," ") -> 0 | AZ10: 0 | BA10: 0 | BB10: 0 | BC10: =IFERROR(AVERAGE(AZ10:BB10)," ") -> 0 | BD10: 0 | BE10: 0 | BF10: =IFERROR(AVERAGE(BD10:BE10)," ") -> 0 | BG10: =U10 -> 0 | BH10: =G10 -> 0 | BI10: =J10 -> 0 | BJ10: =N10 -> 0 | BK10: =O10 -> 0 | BL10: =IFERROR(AVERAGE(BJ10:BK10)," ") -> 0 | BM10: =S10 -> 0 | BN10: =V10 -> 0
A11: 3 | B11: =dtsiswa!D9 -> Anggun Dwi P.I | C11: L | X11: 0 | Y11: 0 | Z11: 0 | AA11: 0 | AB11: 0 | AC11: 0 | AD11: 0 | AE11: 0 | AF11: 0 | AG11: 0 | AH11: 0 | AI11: 0 | AJ11: 0 | AK11: 0 | AL11: 0 | AM11: 0 | AN11: 0 | AO11: 0 | AP11: 0 | AQ11: 0 | AR11: 0 | AS11: 0 | AT11: 0 | AU11: 0 | AV11: 0 | AW11: 0 | AX11: 0 | AY11: 0 | AZ11: 0 | BA11: 0 | BB11: 0 | BC11: 0 | BD11: 0 | BE11: 0 | BF11: 0 | BG11: 0 | BH11: 0 | BI11: 0 | BJ11: 0 | BK11: 0 | BL11: 0 | BM11: 0 | BN11: 0
A12: 4 | B12: =dtsiswa!D10 -> Antonio Permata A | C12: L | X12: 0 | Y12: 0 | Z12: 0 | AA12: 0 | AB12: 0 | AC12: 0 | AD12: 0 | AE12: 0 | AF12: 0 | AG12: 0 | AH12: 0 | AI12: 0 | AJ12: 0 | AK12: 0 | AL12: 0 | AM12: 0 | AN12: 0 | AO12: 0 | AP12: 0 | AQ12: 0 | AR12: 0 | AS12: 0 | AT12: 0 | AU12: 0 | AV12: 0 | AW12: 0 | AX12: 0 | AY12: 0 | AZ12: 0 | BA12: 0 | BB12: 0 | BC12: 0 | BD12: 0 | BE12: 0 | BF12: 0 | BG12: 0 | BH12: 0 | BI12: 0 | BJ12: 0 | BK12: 0 | BL12: 0 | BM12: 0 | BN12: 0
A13: 5 | B13: =dtsiswa!D11 -> Arya Pratama G | C13: P | X13: 0 | Y13: 0 | Z13: 0 | AA13: 0 | AB13: 0 | AC13: 0 | AD13: 0 | AE13: 0 | AF13: 0 | AG13: 0 | AH13: 0 | AI13: 0 | AJ13: 0 | AK13: 0 | AL13: 0 | AM13: 0 | AN13: 0 | AO13: 0 | AP13: 0 | AQ13: 0 | AR13: 0 | AS13: 0 | AT13: 0 | AU13: 0 | AV13: 0 | AW13: 0 | AX13: 0 | AY13: 0 | AZ13: 0 | BA13: 0 | BB13: 0 | BC13: 0 | BD13: 0 | BE13: 0 | BF13: 0 | BG13: 0 | BH13: 0 | BI13: 0 | BJ13: 0 | BK13: 0 | BL13: 0 | BM13: 0 | BN13: 0
A14: 6 | B14: =dtsiswa!D12 -> Asyam Hanif Ihsan H | C14: P | X14: 0 | Y14: 0 | Z14: 0 | AA14: 0 | AB14: 0 | AC14: 0 | AD14: 0 | AE14: 0 | AF14: 0 | AG14: 0 | AH14: 0 | AI14: 0 | AJ14: 0 | AK14: 0 | AL14: 0 | AM14: 0 | AN14: 0 | AO14: 0 | AP14: 0 | AQ14: 0 | AR14: 0 | AS14: 0 | AT14: 0 | AU14: 0 | AV14: 0 | AW14: 0 | AX14: 0 | AY14: 0 | AZ14: 0 | BA14: 0 | BB14: 0 | BC14: 0 | BD14: 0 | BE14: 0 | BF14: 0 | BG14: 0 | BH14: 0 | BI14: 0 | BJ14: 0 | BK14: 0 | BL14: 0 | BM14: 0 | BN14: 0
A15: 7 | B15: =dtsiswa!D13 -> Athaya Salsabilla Z | C15: L | X15: 0 | Y15: 0 | Z15: 0 | AA15: 0 | AB15: 0 | AC15: 0 | AD15: 0 | AE15: 0 | AF15: 0 | AG15: 0 | AH15: 0 | AI15: 0 | AJ15: 0 | AK15: 0 | AL15: 0 | AM15: 0 | AN15: 0 | AO15: 0 | AP15: 0 | AQ15: 0 | AR15: 0 | AS15: 0 | AT15: 0 | AU15: 0 | AV15: 0 | AW15: 0 | AX15: 0 | AY15: 0 | AZ15: 0 | BA15: 0 | BB15: 0 | BC15: 0 | BD15: 0 | BE15: 0 | BF15: 0 | BG15: 0 | BH15: 0 | BI15: 0 | BJ15: 0 | BK15: 0 | BL15: 0 | BM15: 0 | BN15: 0
A16: 8 | B16: =dtsiswa!D14 -> Aulia Dea Rosalinda | C16: L | X16: 0 | Y16: 0 | Z16: 0 | AA16: 0 | AB16: 0 | AC16: 0 | AD16: 0 | AE16: 0 | AF16: 0 | AG16: 0 | AH16: 0 | AI16: 0 | AJ16: 0 | AK16: 0 | AL16: 0 | AM16: 0 | AN16: 0 | AO16: 0 | AP16: 0 | AQ16: 0 | AR16: 0 | AS16: 0 | AT16: 0 | AU16: 0 | AV16: 0 | AW16: 0 | AX16: 0 | AY16: 0 | AZ16: 0 | BA16: 0 | BB16: 0 | BC16: 0 | BD16: 0 | BE16: 0 | BF16: 0 | BG16: 0 | BH16: 0 | BI16: 0 | BJ16: 0 | BK16: 0 | BL16: 0 | BM16: 0 | BN16: 0
A17: 9 | B17: =dtsiswa!D15 -> Claudia Gabriella L | C17: L | X17: 0 | Y17: 0 | Z17: 0 | AA17: 0 | AB17: 0 | AC17: 0 | AD17: 0 | AE17: 0 | AF17: 0 | AG17: 0 | AH17: 0 | AI17: 0 | AJ17: 0 | AK17: 0 | AL17: 0 | AM17: 0 | AN17: 0 | AO17: 0 | AP17: 0 | AQ17: 0 | AR17: 0 | AS17: 0 | AT17: 0 | AU17: 0 | AV17: 0 | AW17: 0 | AX17: 0 | AY17: 0 | AZ17: 0 | BA17: 0 | BB17: 0 | BC17: 0 | BD17: 0 | BE17: 0 | BF17: 0 | BG17: 0 | BH17: 0 | BI17: 0 | BJ17: 0 | BK17: 0 | BL17: 0 | BM17: 0 | BN17: 0
A18: 10 | B18: =dtsiswa!D16 -> Deco Badarus Zaman | C18: L | X18: 0 | Y18: 0 | Z18: 0 | AA18: 0 | AB18: 0 | AC18: 0 | AD18: 0 | AE18: 0 | AF18: 0 | AG18: 0 | AH18: 0 | AI18: 0 | AJ18: 0 | AK18: 0 | AL18: 0 | AM18: 0 | AN18: 0 | AO18: 0 | AP18: 0 | AQ18: 0 | AR18: 0 | AS18: 0 | AT18: 0 | AU18: 0 | AV18: 0 | AW18: 0 | AX18: 0 | AY18: 0 | AZ18: 0 | BA18: 0 | BB18: 0 | BC18: 0 | BD18: 0 | BE18: 0 | BF18: 0 | BG18: 0 | BH18: 0 | BI18: 0 | BJ18: 0 | BK18: 0 | BL18: 0 | BM18: 0 | BN18: 0
A19: 11 | B19: =dtsiswa!D17 -> Fania Mutiara Felichia | C19: L | X19: 0 | Y19: 0 | Z19: 0 | AA19: 0 | AB19: 0 | AC19: 0 | AD19: 0 | AE19: 0 | AF19: 0 | AG19: 0 | AH19: 0 | AI19: 0 | AJ19: 0 | AK19: 0 | AL19: 0 | AM19: 0 | AN19: 0 | AO19: 0 | AP19: 0 | AQ19: 0 | AR19: 0 | AS19: 0 | AT19: 0 | AU19: 0 | AV19: 0 | AW19: 0 | AX19: 0 | AY19: 0 | AZ19: 0 | BA19: 0 | BB19: 0 | BC19: 0 | BD19: 0 | BE19: 0 | BF19: 0 | BG19: 0 | BH19: 0 | BI19: 0 | BJ19: 0 | BK19: 0 | BL19: 0 | BM19: 0 | BN19: 0
A20: 12 | B20: =dtsiswa!D18 -> Intan Dyah Nowari | C20: L | X20: 0 | Y20: 0 | Z20: 0 | AA20: 0 | AB20: 0 | AC20: 0 | AD20: 0 | AE20: 0 | AF20: 0 | AG20: 0 | AH20: 0 | AI20: 0 | AJ20: 0 | AK20: 0 | AL20: 0 | AM20: 0 | AN20: 0 | AO20: 0 | AP20: 0 | AQ20: 0 | AR20: 0 | AS20: 0 | AT20: 0 | AU20: 0 | AV20: 0 | AW20: 0 | AX20: 0 | AY20: 0 | AZ20: 0 | BA20: 0 | BB20: 0 | BC20: 0 | BD20: 0 | BE20: 0 | BF20: 0 | BG20: 0 | BH20: 0 | BI20: 0 | BJ20: 0 | BK20: 0 | BL20: 0 | BM20: 0 | BN20: 0
A21: 13 | B21: =dtsiswa!D19 -> Misyanita Nurfitri S | C21: P | X21: 0 | Y21: 0 | Z21: 0 | AA21: 0 | AB21: 0 | AC21: 0 | AD21: 0 | AE21: 0 | AF21: 0 | AG21: 0 | AH21: 0 | AI21: 0 | AJ21: 0 | AK21: 0 | AL21: 0 | AM21: 0 | AN21: 0 | AO21: 0 | AP21: 0 | AQ21: 0 | AR21: 0 | AS21: 0 | AT21: 0 | AU21: 0 | AV21: 0 | AW21: 0 | AX21: 0 | AY21: 0 | AZ21: 0 | BA21: 0 | BB21: 0 | BC21: 0 | BD21: 0 | BE21: 0 | BF21: 0 | BG21: 0 | BH21: 0 | BI21: 0 | BJ21: 0 | BK21: 0 | BL21: 0 | BM21: 0 | BN21: 0
A22: 14 | B22: =dtsiswa!D20 -> Moch Zidane Hita L. U | C22: L | X22: 0 | Y22: 0 | Z22: 0 | AA22: 0 | AB22: 0 | AC22: 0 | AD22: 0 | AE22: 0 | AF22: 0 | AG22: 0 | AH22: 0 | AI22: 0 | AJ22: 0 | AK22: 0 | AL22: 0 | AM22: 0 | AN22: 0 | AO22: 0 | AP22: 0 | AQ22: 0 | AR22: 0 | AS22: 0 | AT22: 0 | AU22: 0 | AV22: 0 | AW22: 0 | AX22: 0 | AY22: 0 | AZ22: 0 | BA22: 0 | BB22: 0 | BC22: 0 | BD22: 0 | BE22: 0 | BF22: 0 | BG22: 0 | BH22: 0 | BI22: 0 | BJ22: 0 | BK22: 0 | BL22: 0 | BM22: 0 | BN22: 0
A23: 15 | B23: =dtsiswa!D21 -> Muhammad Ibra Maulana | C23: L | X23: 0 | Y23: 0 | Z23: 0 | AA23: 0 | AB23: 0 | AC23: 0 | AD23: 0 | AE23: 0 | AF23: 0 | AG23: 0 | AH23: 0 | AI23: 0 | AJ23: 0 | AK23: 0 | AL23: 0 | AM23: 0 | AN23: 0 | AO23: 0 | AP23: 0 | AQ23: 0 | AR23: 0 | AS23: 0 | AT23: 0 | AU23: 0 | AV23: 0 | AW23: 0 | AX23: 0 | AY23: 0 | AZ23: 0 | BA23: 0 | BB23: 0 | BC23: 0 | BD23: 0 | BE23: 0 | BF23: 0 | BG23: 0 | BH23: 0 | BI23: 0 | BJ23: 0 | BK23: 0 | BL23: 0 | BM23: 0 | BN23: 0
A24: 16 | B24: =dtsiswa!D22 -> Nabilla Shiva Putri | C24: L | X24: 0 | Y24: 0 | Z24: 0 | AA24: 0 | AB24: 0 | AC24: 0 | AD24: 0 | AE24: 0 | AF24: 0 | AG24: 0 | AH24: 0 | AI24: 0 | AJ24: 0 | AK24: 0 | AL24: 0 | AM24: 0 | AN24: 0 | AO24: 0 | AP24: 0 | AQ24: 0 | AR24: 0 | AS24: 0 | AT24: 0 | AU24: 0 | AV24: 0 | AW24: 0 | AX24: 0 | AY24: 0 | AZ24: 0 | BA24: 0 | BB24: 0 | BC24: 0 | BD24: 0 | BE24: 0 | BF24: 0 | BG24: 0 | BH24: 0 | BI24: 0 | BJ24: 0 | BK24: 0 | BL24: 0 | BM24: 0 | BN24: 0
A25: 17 | B25: =dtsiswa!D23 -> Naufal Falih F | C25: P | X25: 0 | Y25: 0 | Z25: 0 | AA25: 0 | AB25: 0 | AC25: 0 | AD25: 0 | AE25: 0 | AF25: 0 | AG25: 0 | AH25: 0 | AI25: 0 | AJ25: 0 | AK25: 0 | AL25: 0 | AM25: 0 | AN25: 0 | AO25: 0 | AP25: 0 | AQ25: 0 | AR25: 0 | AS25: 0 | AT25: 0 | AU25: 0 | AV25: 0 | AW25: 0 | AX25: 0 | AY25: 0 | AZ25: 0 | BA25: 0 | BB25: 0 | BC25: 0 | BD25: 0 | BE25: 0 | BF25: 0 | BG25: 0 | BH25: 0 | BI25: 0 | BJ25: 0 | BK25: 0 | BL25: 0 | BM25: 0 | BN25: 0
A26: 18 | B26: =dtsiswa!D24 -> Nayla Annora Nobel W | C26: L | X26: 0 | Y26: 0 | Z26: 0 | AA26: 0 | AB26: 0 | AC26: 0 | AD26: 0 | AE26: 0 | AF26: 0 | AG26: 0 | AH26: 0 | AI26: 0 | AJ26: 0 | AK26: 0 | AL26: 0 | AM26: 0 | AN26: 0 | AO26: 0 | AP26: 0 | AQ26: 0 | AR26: 0 | AS26: 0 | AT26: 0 | AU26: 0 | AV26: 0 | AW26: 0 | AX26: 0 | AY26: 0 | AZ26: 0 | BA26: 0 | BB26: 0 | BC26: 0 | BD26: 0 | BE26: 0 | BF26: 0 | BG26: 0 | BH26: 0 | BI26: 0 | BJ26: 0 | BK26: 0 | BL26: 0 | BM26: 0 | BN26: 0
A27: 19 | B27: =dtsiswa!D25 -> Raihan Danang P | C27: P | X27: 0 | Y27: 0 | Z27: 0 | AA27: 0 | AB27: 0 | AC27: 0 | AD27: 0 | AE27: 0 | AF27: 0 | AG27: 0 | AH27: 0 | AI27: 0 | AJ27: 0 | AK27: 0 | AL27: 0 | AM27: 0 | AN27: 0 | AO27: 0 | AP27: 0 | AQ27: 0 | AR27: 0 | AS27: 0 | AT27: 0 | AU27: 0 | AV27: 0 | AW27: 0 | AX27: 0 | AY27: 0 | AZ27: 0 | BA27: 0 | BB27: 0 | BC27: 0 | BD27: 0 | BE27: 0 | BF27: 0 | BG27: 0 | BH27: 0 | BI27: 0 | BJ27: 0 | BK27: 0 | BL27: 0 | BM27: 0 | BN27: 0
A28: 20 | B28: =dtsiswa!D26 -> Roby Ardiyansyah | C28: P | X28: 0 | Y28: 0 | Z28: 0 | AA28: 0 | AB28: 0 | AC28: 0 | AD28: 0 | AE28: 0 | AF28: 0 | AG28: 0 | AH28: 0 | AI28: 0 | AJ28: 0 | AK28: 0 | AL28: 0 | AM28: 0 | AN28: 0 | AO28: 0 | AP28: 0 | AQ28: 0 | AR28: 0 | AS28: 0 | AT28: 0 | AU28: 0 | AV28: 0 | AW28: 0 | AX28: 0 | AY28: 0 | AZ28: 0 | BA28: 0 | BB28: 0 | BC28: 0 | BD28: 0 | BE28: 0 | BF28: 0 | BG28: 0 | BH28: 0 | BI28: 0 | BJ28: 0 | BK28: 0 | BL28: 0 | BM28: 0 | BN28: 0
A29: 21 | B29: =dtsiswa!D27 -> Rojalingga Prana A | C29: L | X29: 0 | Y29: 0 | Z29: 0 | AA29: 0 | AB29: 0 | AC29: 0 | AD29: 0 | AE29: 0 | AF29: 0 | AG29: 0 | AH29: 0 | AI29: 0 | AJ29: 0 | AK29: 0 | AL29: 0 | AM29: 0 | AN29: 0 | AO29: 0 | AP29: 0 | AQ29: 0 | AR29: 0 | AS29: 0 | AT29: 0 | AU29: 0 | AV29: 0 | AW29: 0 | AX29: 0 | AY29: 0 | AZ29: 0 | BA29: 0 | BB29: 0 | BC29: 0 | BD29: 0 | BE29: 0 | BF29: 0 | BG29: 0 | BH29: 0 | BI29: 0 | BJ29: 0 | BK29: 0 | BL29: 0 | BM29: 0 | BN29: 0
A30: 22 | B30: =dtsiswa!D28 -> Sally Savista A | X30: 0 | Y30: 0 | Z30: 0 | AA30: 0 | AB30: 0 | AC30: 0 | AD30: 0 | AE30: 0 | AF30: 0 | AG30: 0 | AH30: 0 | AI30: 0 | AJ30: 0 | AK30: 0 | AL30: 0 | AM30: 0 | AN30: 0 | AO30: 0 | AP30: 0 | AQ30: 0 | AR30: 0 | AS30: 0 | AT30: 0 | AU30: 0 | AV30: 0 | AW30: 0 | AX30: 0 | AY30: 0 | AZ30: 0 | BA30: 0 | BB30: 0 | BC30: 0 | BD30: 0 | BE30: 0 | BF30: 0 | BG30: 0 | BH30: 0 | BI30: 0 | BJ30: 0 | BK30: 0 | BL30: 0 | BM30: 0 | BN30: 0
A31: 23 | B31: =dtsiswa!D29 -> Tania Kaori Angelita | X31: 0 | Y31: 0 | Z31: 0 | AA31: 0 | AB31: 0 | AC31: 0 | AD31: 0 | AE31: 0 | AF31: 0 | AG31: 0 | AH31: 0 | AI31: 0 | AJ31: 0 | AK31: 0 | AL31: 0 | AM31: 0 | AN31: 0 | AO31: 0 | AP31: 0 | AQ31: 0 | AR31: 0 | AS31: 0 | AT31: 0 | AU31: 0 | AV31: 0 | AW31: 0 | AX31: 0 | AY31: 0 | AZ31: 0 | BA31: 0 | BB31: 0 | BC31: 0 | BD31: 0 | BE31: 0 | BF31: 0 | BG31: 0 | BH31: 0 | BI31: 0 | BJ31: 0 | BK31: 0 | BL31: 0 | BM31: 0 | BN31: 0
A32: 24 | B32: =dtsiswa!D30 -> Romzy Oka Ramadhani P | X32: 0 | Y32: 0 | Z32: 0 | AA32: 0 | AB32: 0 | AC32: 0 | AD32: 0 | AE32: 0 | AF32: 0 | AG32: 0 | AH32: 0 | AI32: 0 | AJ32: 0 | AK32: 0 | AL32: 0 | AM32: 0 | AN32: 0 | AO32: 0 | AP32: 0 | AQ32: 0 | AR32: 0 | AS32: 0 | AT32: 0 | AU32: 0 | AV32: 0 | AW32: 0 | AX32: 0 | AY32: 0 | AZ32: 0 | BA32: 0 | BB32: 0 | BC32: 0 | BD32: 0 | BE32: 0 | BF32: 0 | BG32: 0 | BH32: 0 | BI32: 0 | BJ32: 0 | BK32: 0 | BL32: 0 | BM32: 0 | BN32: 0
A33: 25 | B33: =dtsiswa!D31 -> Larasati Jagadhita P | X33: 0 | Y33: 0 | Z33: 0 | AA33: 0 | AB33: 0 | AC33: 0 | AD33: 0 | AE33: 0 | AF33: 0 | AG33: 0 | AH33: 0 | AI33: 0 | AJ33: 0 | AK33: 0 | AL33: 0 | AM33: 0 | AN33: 0 | AO33: 0 | AP33: 0 | AQ33: 0 | AR33: 0 | AS33: 0 | AT33: 0 | AU33: 0 | AV33: 0 | AW33: 0 | AX33: 0 | AY33: 0 | AZ33: 0 | BA33: 0 | BB33: 0 | BC33: 0 | BD33: 0 | BE33: 0 | BF33: 0 | BG33: 0 | BH33: 0 | BI33: 0 | BJ33: 0 | BK33: 0 | BL33: 0 | BM33: 0 | BN33: 0
A34: 26 | B34: =dtsiswa!D32 -> Meliana Citra A | X34: 0 | Y34: 0 | Z34: 0 | AA34: 0 | AB34: 0 | AC34: 0 | AD34: 0 | AE34: 0 | AF34: 0 | AG34: 0 | AH34: 0 | AI34: 0 | AJ34: 0 | AK34: 0 | AL34: 0 | AM34: 0 | AN34: 0 | AO34: 0 | AP34: 0 | AQ34: 0 | AR34: 0 | AS34: 0 | AT34: 0 | AU34: 0 | AV34: 0 | AW34: 0 | AX34: 0 | AY34: 0 | AZ34: 0 | BA34: 0 | BB34: 0 | BC34: 0 | BD34: 0 | BE34: 0 | BF34: 0 | BG34: 0 | BH34: 0 | BI34: 0 | BJ34: 0 | BK34: 0 | BL34: 0 | BM34: 0 | BN34: 0
A35: 27 | B35: =dtsiswa!D33 -> Mohammad Rizky | X35: 0 | Y35: 0 | Z35: 0 | AA35: 0 | AB35: 0 | AC35: 0 | AD35: 0 | AE35: 0 | AF35: 0 | AG35: 0 | AH35: 0 | AI35: 0 | AJ35: 0 | AK35: 0 | AL35: 0 | AM35: 0 | AN35: 0 | AO35: 0 | AP35: 0 | AQ35: 0 | AR35: 0 | AS35: 0 | AT35: 0 | AU35: 0 | AV35: 0 | AW35: 0 | AX35: 0 | AY35: 0 | AZ35: 0 | BA35: 0 | BB35: 0 | BC35: 0 | BD35: 0 | BE35: 0 | BF35: 0 | BG35: 0 | BH35: 0 | BI35: 0 | BJ35: 0 | BK35: 0 | BL35: 0 | BM35: 0 | BN35: 0
A36: 28 | B36: =dtsiswa!D34 -> 0 | X36: 0 | Y36: 0 | Z36: 0 | AA36: 0 | AB36: 0 | AC36: 0 | AD36: 0 | AE36: 0 | AF36: 0 | AG36: 0 | AH36: 0 | AI36: 0 | AJ36: 0 | AK36: 0 | AL36: 0 | AM36: 0 | AN36: 0 | AO36: 0 | AP36: 0 | AQ36: 0 | AR36: 0 | AS36: 0 | AT36: 0 | AU36: 0 | AV36: 0 | AW36: 0 | AX36: 0 | AY36: 0 | AZ36: 0 | BA36: 0 | BB36: 0 | BC36: 0 | BD36: 0 | BE36: 0 | BF36: 0 | BG36: 0 | BH36: 0 | BI36: 0 | BJ36: 0 | BK36: 0 | BL36: 0 | BM36: 0 | BN36: 0
A37: 29 | B37: =dtsiswa!D35 -> 0 | X37: 0 | Y37: 0 | Z37: 0 | AA37: 0 | AB37: 0 | AC37: 0 | AD37: 0 | AE37: 0 | AF37: 0 | AG37: 0 | AH37: 0 | AI37: 0 | AJ37: 0 | AK37: 0 | AL37: 0 | AM37: 0 | AN37: 0 | AO37: 0 | AP37: 0 | AQ37: 0 | AR37: 0 | AS37: 0 | AT37: 0 | AU37: 0 | AV37: 0 | AW37: 0 | AX37: 0 | AY37: 0 | AZ37: 0 | BA37: 0 | BB37: 0 | BC37: 0 | BD37: 0 | BE37: 0 | BF37: 0 | BG37: 0 | BH37: 0 | BI37: 0 | BJ37: 0 | BK37: 0 | BL37: 0 | BM37: 0 | BN37: 0
A38: 30 | B38: =dtsiswa!D36 -> 0 | X38: 0 | Y38: 0 | Z38: 0 | AA38: 0 | AB38: 0 | AC38: 0 | AD38: 0 | AE38: 0 | AF38: 0 | AG38: 0 | AH38: 0 | AI38: 0 | AJ38: 0 | AK38: 0 | AL38: 0 | AM38: 0 | AN38: 0 | AO38: 0 | AP38: 0 | AQ38: 0 | AR38: 0 | AS38: 0 | AT38: 0 | AU38: 0 | AV38: 0 | AW38: 0 | AX38: 0 | AY38: 0 | AZ38: 0 | BA38: 0 | BB38: 0 | BC38: 0 | BD38: 0 | BE38: 0 | BF38: 0 | BG38: 0 | BH38: 0 | BI38: 0 | BJ38: 0 | BK38: 0 | BL38: 0 | BM38: 0 | BN38: 0
A39: 31 | B39: =dtsiswa!D37 -> 0 | X39: 0 | Y39: 0 | Z39: 0 | AA39: 0 | AB39: 0 | AC39: 0 | AD39: 0 | AE39: 0 | AF39: 0 | AG39: 0 | AH39: 0 | AI39: 0 | AJ39: 0 | AK39: 0 | AL39: 0 | AM39: 0 | AN39: 0 | AO39: 0 | AP39: 0 | AQ39: 0 | AR39: 0 | AS39: 0 | AT39: 0 | AU39: 0 | AV39: 0 | AW39: 0 | AX39: 0 | AY39: 0 | AZ39: 0 | BA39: 0 | BB39: 0 | BC39: 0 | BD39: 0 | BE39: 0 | BF39: 0 | BG39: 0 | BH39: 0 | BI39: 0 | BJ39: 0 | BK39: 0 | BL39: 0 | BM39: 0 | BN39: 0
A40: 32 | B40: =dtsiswa!D38 -> 0 | X40: 0 | Y40: 0 | Z40: 0 | AA40: 0 | AB40: 0 | AC40: 0 | AD40: 0 | AE40: 0 | AF40: 0 | AG40: 0 | AH40: 0 | AI40: 0 | AJ40: 0 | AK40: 0 | AL40: 0 | AM40: 0 | AN40: 0 | AO40: 0 | AP40: 0 | AQ40: 0 | AR40: 0 | AS40: 0 | AT40: 0 | AU40: 0 | AV40: 0 | AW40: 0 | AX40: 0 | AY40: 0 | AZ40: 0 | BA40: 0 | BB40: 0 | BC40: 0 | BD40: 0 | BE40: 0 | BF40: 0 | BG40: 0 | BH40: 0 | BI40: 0 | BJ40: 0 | BK40: 0 | BL40: 0 | BM40: 0 | BN40: 0
A41: 33 | B41: =dtsiswa!D39 -> 0 | X41: 0 | Y41: 0 | Z41: 0 | AA41: 0 | AB41: 0 | AC41: 0 | AD41: 0 | AE41: 0 | AF41: 0 | AG41: 0 | AH41: 0 | AI41: 0 | AJ41: 0 | AK41: 0 | AL41: 0 | AM41: 0 | AN41: 0 | AO41: 0 | AP41: 0 | AQ41: 0 | AR41: 0 | AS41: 0 | AT41: 0 | AU41: 0 | AV41: 0 | AW41: 0 | AX41: 0 | AY41: 0 | AZ41: 0 | BA41: 0 | BB41: 0 | BC41: 0 | BD41: 0 | BE41: 0 | BF41: 0 | BG41: 0 | BH41: 0 | BI41: 0 | BJ41: 0 | BK41: 0 | BL41: 0 | BM41: 0 | BN41: 0
A42: 34 | B42: =dtsiswa!D40 -> 0 | X42: 0 | Y42: 0 | Z42: 0 | AA42: 0 | AB42: 0 | AC42: 0 | AD42: 0 | AE42: 0 | AF42: 0 | AG42: 0 | AH42: 0 | AI42: 0 | AJ42: 0 | AK42: 0 | AL42: 0 | AM42: 0 | AN42: 0 | AO42: 0 | AP42: 0 | AQ42: 0 | AR42: 0 | AS42: 0 | AT42: 0 | AU42: 0 | AV42: 0 | AW42: 0 | AX42: 0 | AY42: 0 | AZ42: 0 | BA42: 0 | BB42: 0 | BC42: 0 | BD42: 0 | BE42: 0 | BF42: 0 | BG42: 0 | BH42: 0 | BI42: 0 | BJ42: 0 | BK42: 0 | BL42: 0 | BM42: 0 | BN42: 0
A43: 35 | B43: =dtsiswa!D41 -> 0 | H43: =IFERROR(AVERAGE(D43:G43)," ") ->  | X43: 0 | Y43: 0 | Z43: 0 | AA43: 0 | AB43: 0 | AC43: 0 | AD43: 0 | AE43: 0 | AF43: 0 | AG43: 0 | AH43: 0 | AI43: 0 | AJ43: 0 | AK43: 0 | AL43: 0 | AM43: 0 | AN43: 0 | AO43: 0 | AP43: 0 | AQ43: 0 | AR43: 0 | AS43: 0 | AT43: 0 | AU43: 0 | AV43: 0 | AW43: 0 | AX43: 0 | AY43: 0 | AZ43: 0 | BA43: 0 | BB43: 0 | BC43: 0 | BD43: 0 | BE43: 0 | BF43: 0 | BG43: 0 | BH43: 0 | BI43: 0 | BJ43: 0 | BK43: 0 | BL43: 0 | BM43: 0 | BN43: 0
A44: 36 | B44: =dtsiswa!D42 -> 0 | X44: 0 | Y44: 0 | Z44: 0 | AA44: 0 | AB44: 0 | AC44: 0 | AD44: 0 | AE44: 0 | AF44: 0 | AG44: 0 | AH44: 0 | AI44: 0 | AJ44: 0 | AK44: 0 | AL44: 0 | AM44: 0 | AN44: 0 | AO44: 0 | AP44: 0 | AQ44: 0 | AR44: 0 | AS44: 0 | AT44: 0 | AU44: 0 | AV44: 0 | AW44: 0 | AX44: 0 | AY44: 0 | AZ44: 0 | BA44: 0 | BB44: 0 | BC44: 0 | BD44: 0 | BE44: 0 | BF44: 0 | BG44: 0 | BH44: 0 | BI44: 0 | BJ44: 0 | BK44: 0 | BL44: 0 | BM44: 0 | BN44: 0
A45: 37 | B45: =dtsiswa!D43 -> 0 | X45: 0 | Y45: 0 | Z45: 0 | AA45: 0 | AB45: 0 | AC45: 0 | AD45: 0 | AE45: 0 | AF45: 0 | AG45: 0 | AH45: 0 | AI45: 0 | AJ45: 0 | AK45: 0 | AL45: 0 | AM45: 0 | AN45: 0 | AO45: 0 | AP45: 0 | AQ45: 0 | AR45: 0 | AS45: 0 | AT45: 0 | AU45: 0 | AV45: 0 | AW45: 0 | AX45: 0 | AY45: 0 | AZ45: 0 | BA45: 0 | BB45: 0 | BC45: 0 | BD45: 0 | BE45: 0 | BF45: 0 | BG45: 0 | BH45: 0 | BI45: 0 | BJ45: 0 | BK45: 0 | BL45: 0 | BM45: 0 | BN45: 0
A46: 38 | B46: =dtsiswa!D44 -> 0 | X46: 0 | Y46: 0 | Z46: 0 | AA46: 0 | AB46: 0 | AC46: 0 | AD46: 0 | AE46: 0 | AF46: 0 | AG46: 0 | AH46: 0 | AI46: 0 | AJ46: 0 | AK46: 0 | AL46: 0 | AM46: 0 | AN46: 0 | AO46: 0 | AP46: 0 | AQ46: 0 | AR46: 0 | AS46: 0 | AT46: 0 | AU46: 0 | AV46: 0 | AW46: 0 | AX46: 0 | AY46: 0 | AZ46: 0 | BA46: 0 | BB46: 0 | BC46: 0 | BD46: 0 | BE46: 0 | BF46: 0 | BG46: 0 | BH46: 0 | BI46: 0 | BJ46: 0 | BK46: 0 | BL46: 0 | BM46: 0 | BN46: 0
A47: 39 | B47: =dtsiswa!D45 -> 0 | X47: 0 | Y47: 0 | Z47: 0 | AA47: 0 | AB47: 0 | AC47: 0 | AD47: 0 | AE47: 0 | AF47: 0 | AG47: 0 | AH47: 0 | AI47: 0 | AJ47: 0 | AK47: 0 | AL47: 0 | AM47: 0 | AN47: 0 | AO47: 0 | AP47: 0 | AQ47: 0 | AR47: 0 | AS47: 0 | AT47: 0 | AU47: 0 | AV47: 0 | AW47: 0 | AX47: 0 | AY47: 0 | AZ47: 0 | BA47: 0 | BB47: 0 | BC47: 0 | BD47: 0 | BE47: 0 | BF47: 0 | BG47: 0 | BH47: 0 | BI47: 0 | BJ47: 0 | BK47: 0 | BL47: 0 | BM47: 0 | BN47: 0
A48: 40 | B48: =dtsiswa!D46 -> 0 | X48: 0 | Y48: 0 | Z48: 0 | AA48: 0 | AB48: 0 | AC48: 0 | AD48: 0 | AE48: 0 | AF48: 0 | AG48: 0 | AH48: 0 | AI48: 0 | AJ48: 0 | AK48: 0 | AL48: 0 | AM48: 0 | AN48: 0 | AO48: 0 | AP48: 0 | AQ48: 0 | AR48: 0 | AS48: 0 | AT48: 0 | AU48: 0 | AV48: 0 | AW48: 0 | AX48: 0 | AY48: 0 | AZ48: 0 | BA48: 0 | BB48: 0 | BC48: 0 | BD48: 0 | BE48: 0 | BF48: 0 | BG48: 0 | BH48: 0 | BI48: 0 | BJ48: 0 | BK48: 0 | BL48: 0 | BM48: 0 | BN48: 0

Sheet UT_pkn (hidden)
A3: DATA NILAI SEMESTER 2
A4: KI-3 DAN KI-4 KELAS : 4 ---- PKN
A5: 1 | B5: 2 | C5: 3 | D5: 4 | E5: 5 | F5: 6 | G5: 7 | H5: 8 | I5: 9 | J5: 10 | K5: 11 | L5: 12 | M5: 13 | N5: 14 | O5: 15 | P5: 16 | Q5: 17 | R5: 18 | S5: 19 | T5: 20 | U5: 21 | V5: 22 | W5: 23 | X5: 24 | Y5: 25 | Z5: 26 | AA5: 27 | AB5: 28 | AC5: 29 | AD5: 30 | AE5: 31 | AF5: 32 | AG5: 33 | AI5: 34 | AJ5: 35 | AL5: 36 | AM5: 37 | AN5: 38 | AO5: 39 | AP5: 40 | AQ5: 41 | AR5: 42 | AS5: 43 | AT5: 44 | AU5: 45
A6: NO | B6: NAMA | C6: L/P | D6: Tema 6 | F6: Tema 7 | L6: Tema 8 | P6: Tema 9 | R6: RERATA ( KI-3 ) | U6: R.Ulhar | V6: RERATA ( KI-4 ) | Y6: r.tugas | Z6: ( ulhar + tugas ) / 2 | AC6: RTH | AD6: ASPEK KETRAMPILAN ( KI-4 ) | AM6: Aspek Pengetahuan
D7: tugas | E7: Ulhar | F7: tugas | I7: ulhar | L7: tugas | N7: ulhar | P7: tugas | Q7: ulhar | R7: rata - rata ulhar per-KD | V7: rata-rata tugas per KD | Z7: NH per KD | AD7: T.6 | AE7: T.7 | AI7: tema 8 | AL7: T.9 | AM7: T.6 | AN7: tema 7 | AR7: tema 8 | AT7: rt | AU7: T.9
D8: 4.1 | E8: 3.1 | F8: 4.1 | G8: 4.2 | H8: 4.3 | I8: 3.1 | J8: 3.2 | K8: 3.3 | L8: 4.2 | M8: 4.3 | N8: 3.2 | O8: 3.3 | P8: 4.1 | Q8: 3.1 | R8: 3.1 | S8: 3.2 | T8: 3.3 | V8: 4.1 | W8: 4.2 | X8: 4.3 | Z8: 3.1 | AA8: 3.2 | AB8: 3.3 | AD8: 4.1 | AE8: 4.1 | AF8: 4.2 | AG8: 4.3 | AI8: 4.2 | AJ8: 4.3 | AL8: 4.2 | AM8: 3.1 | AN8: 3.1 | AO8: 3.2 | AP8: 3.3 | AR8: 3.2 | AS8: 3.3 | AU8: 3.1
A9: 1 | B9: =dtsiswa!D7 -> Achmad Zacky | C9: L | D9: 76 | E9: 76 | F9: 54 | G9: 67 | H9: 68 | I9: 75 | J9: 65 | K9: 70 | L9: 76 | M9: 70 | N9: 78 | O9: 80 | P9: 63 | Q9: 71 | R9: =(E9+I9+Q9)/3 -> 74 | S9: =(J9+N9)/2 -> 71.5 | T9: =(K9+O9)/2 -> 75 | U9: =IFERROR(AVERAGE(R9:T9)," ") -> 73.5 | V9: =(D9+F9+P9)/3 -> 64.33333333 | W9: =(G9+L9)/2 -> 71.5 | X9: =(H9+M90/2) -> 68 | Y9: =IFERROR(AVERAGE(V9:X9)," ") -> 67.94444444 | Z9: =(R9+V9)/2 -> 69.16666667 | AA9: =(S9+W9)/2 -> 71.5 | AB9: 71.5 | AC9: =IFERROR(AVERAGE(Z9:AB9)," ") -> 70.72222222 | AD9: =D9 -> 76 | AE9: =F9 -> 54 | AF9: =G9 -> 67 | AG9: 68 | AH9: =IFERROR(AVERAGE(AE9:AG9)," ") -> 63 | AI9: =L9 -> 76 | AJ9: =M9 -> 70 | AK9: =IFERROR(AVERAGE(AI9:AJ9)," ") -> 73 | AL9: =P9 -> 63 | AM9: =E9 -> 76 | AN9: =I9 -> 75 | AO9: =J9 -> 65 | AP9: 70 | AQ9: =IFERROR(AVERAGE(AN9:AP9)," ") -> 70 | AR9: =N9 -> 78 | AS9: =O9 -> 80 | AT9: =IFERROR(AVERAGE(AR9:AS9)," ") -> 79 | AU9: =Q9 -> 71
A10: 2 | B10: =dtsiswa!D8 -> Angelia Vabel R | C10: L | D10: 74 | E10: 65 | F10: 56 | G10: 75 | H10: 78 | I10: 65 | J10: 66 | K10: 78 | L10: 80 | M10: 68 | N10: 69 | O10: 67 | P10: 75 | Q10: 65 | R10: =(E10+I10+Q10)/3 -> 65 | S10: =(J10+N10)/2 -> 67.5 | T10: =(K10+O10)/2 -> 72.5 | U10: =IFERROR(AVERAGE(R10:T10)," ") -> 68.33333333 | V10: =(D10+F10+P10)/3 -> 68.33333333 | W10: =(G10+L10)/2 -> 77.5 | X10: =(H10+M91/2) -> 78 | Y10: =IFERROR(AVERAGE(V10:X10)," ") -> 74.61111111 | Z10: =(R10+V10)/2 -> 66.66666667 | AA10: =(S10+W10)/2 -> 72.5 | AB10: =(T10+X10)/2 -> 75.25 | AC10: 71.47222222 | AD10: =D10 -> 74 | AE10: =F10 -> 56 | AF10: =G10 -> 75 | AG10: =H10 -> 78 | AH10: 69.66666667 | AI10: =L10 -> 80 | AJ10: =M10 -> 68 | AK10: =IFERROR(AVERAGE(AI10:AJ10)," ") -> 74 | AL10: =P10 -> 75 | AM10: =E10 -> 65 | AN10: =I10 -> 65 | AO10: =J10 -> 66 | AP10: =K10 -> 78 | AQ10: =IFERROR(AVERAGE(AN10:AP10)," ") -> 69.66666667 | AR10: =N10 -> 69 | AS10: =O10 -> 67 | AT10: =IFERROR(AVERAGE(AR10:AS10)," ") -> 68 | AU10: =Q10 -> 65
A11: 3 | B11: =dtsiswa!D9 -> Anggun Dwi P.I | C11: L | R11: 0 | S11: 0 | T11: 0 | U11: 0 | V11: 0 | W11: 0 | X11: 0 | Y11: 0 | Z11: 0 | AA11: 0 | AB11: 0 | AC11: 0 | AD11: 0 | AE11: 0 | AF11: 0 | AG11: 0 | AH11: 0 | AI11: 0 | AJ11: 0 | AK11: 0 | AL11: 0 | AM11: 0 | AN11: 0 | AO11: 0 | AP11: 0 | AQ11: 0 | AR11: 0 | AS11: 0 | AT11: 0 | AU11: 0
A12: 4 | B12: =dtsiswa!D10 -> Antonio Permata A | C12: L | R12: 0 | S12: 0 | T12: 0 | U12: 0 | V12: 0 | W12: 0 | X12: 0 | Y12: 0 | Z12: 0 | AA12: 0 | AB12: 0 | AC12: 0 | AD12: 0 | AE12: 0 | AF12: 0 | AG12: 0 | AH12: 0 | AI12: 0 | AJ12: 0 | AK12: 0 | AL12: 0 | AM12: 0 | AN12: 0 | AO12: 0 | AP12: 0 | AQ12: 0 | AR12: 0 | AS12: 0 | AT12: 0 | AU12: 0
A13: 5 | B13: =dtsiswa!D11 -> Arya Pratama G | C13: P | R13: 0 | S13: 0 | T13: 0 | U13: 0 | V13: 0 | W13: 0 | X13: 0 | Y13: 0 | Z13: 0 | AA13: 0 | AB13: 0 | AC13: 0 | AD13: 0 | AE13: 0 | AF13: 0 | AG13: 0 | AH13: 0 | AI13: 0 | AJ13: 0 | AK13: 0 | AL13: 0 | AM13: 0 | AN13: 0 | AO13: 0 | AP13: 0 | AQ13: 0 | AR13: 0 | AS13: 0 | AT13: 0 | AU13: 0
A14: 6 | B14: =dtsiswa!D12 -> Asyam Hanif Ihsan H | C14: P | R14: 0 | S14: 0 | T14: 0 | U14: 0 | V14: 0 | W14: 0 | X14: 0 | Y14: 0 | Z14: 0 | AA14: 0 | AB14: 0 | AC14: 0 | AD14: 0 | AE14: 0 | AF14: 0 | AG14: 0 | AH14: 0 | AI14: 0 | AJ14: 0 | AK14: 0 | AL14: 0 | AM14: 0 | AN14: 0 | AO14: 0 | AP14: 0 | AQ14: 0 | AR14: 0 | AS14: 0 | AT14: 0 | AU14: 0
A15: 7 | B15: =dtsiswa!D13 -> Athaya Salsabilla Z | C15: L | R15: 0 | S15: 0 | T15: 0 | U15: 0 | V15: 0 | W15: 0 | X15: 0 | Y15: 0 | Z15: 0 | AA15: 0 | AB15: 0 | AC15: 0 | AD15: 0 | AE15: 0 | AF15: 0 | AG15: 0 | AH15: 0 | AI15: 0 | AJ15: 0 | AK15: 0 | AL15: 0 | AM15: 0 | AN15: 0 | AO15: 0 | AP15: 0 | AQ15: 0 | AR15: 0 | AS15: 0 | AT15: 0 | AU15: 0
A16: 8 | B16: =dtsiswa!D14 -> Aulia Dea Rosalinda | C16: L | R16: 0 | S16: 0 | T16: 0 | U16: 0 | V16: 0 | W16: 0 | X16: 0 | Y16: 0 | Z16: 0 | AA16: 0 | AB16: 0 | AC16: 0 | AD16: 0 | AE16: 0 | AF16: 0 | AG16: 0 | AH16: 0 | AI16: 0 | AJ16: 0 | AK16: 0 | AL16: 0 | AM16: 0 | AN16: 0 | AO16: 0 | AP16: 0 | AQ16: 0 | AR16: 0 | AS16: 0 | AT16: 0 | AU16: 0
A17: 9 | B17: =dtsiswa!D15 -> Claudia Gabriella L | C17: L | R17: 0 | S17: 0 | T17: 0 | U17: 0 | V17: 0 | W17: 0 | X17: 0 | Y17: 0 | Z17: 0 | AA17: 0 | AB17: 0 | AC17: 0 | AD17: 0 | AE17: 0 | AF17: 0 | AG17: 0 | AH17: 0 | AI17: 0 | AJ17: 0 | AK17: 0 | AL17: 0 | AM17: 0 | AN17: 0 | AO17: 0 | AP17: 0 | AQ17: 0 | AR17: 0 | AS17: 0 | AT17: 0 | AU17: 0
A18: 10 | B18: =dtsiswa!D16 -> Deco Badarus Zaman | C18: L | R18: 0 | S18: 0 | T18: 0 | U18: 0 | V18: 0 | W18: 0 | X18: 0 | Y18: 0 | Z18: 0 | AA18: 0 | AB18: 0 | AC18: 0 | AD18: 0 | AE18: 0 | AF18: 0 | AG18: 0 | AH18: 0 | AI18: 0 | AJ18: 0 | AK18: 0 | AL18: 0 | AM18: 0 | AN18: 0 | AO18: 0 | AP18: 0 | AQ18: 0 | AR18: 0 | AS18: 0 | AT18: 0 | AU18: 0
A19: 11 | B19: =dtsiswa!D17 -> Fania Mutiara Felichia | C19: L | R19: 0 | S19: 0 | T19: 0 | U19: 0 | V19: 0 | W19: 0 | X19: 0 | Y19: 0 | Z19: 0 | AA19: 0 | AB19: 0 | AC19: 0 | AD19: 0 | AE19: 0 | AF19: 0 | AG19: 0 | AH19: 0 | AI19: 0 | AJ19: 0 | AK19: 0 | AL19: 0 | AM19: 0 | AN19: 0 | AO19: 0 | AP19: 0 | AQ19: 0 | AR19: 0 | AS19: 0 | AT19: 0 | AU19: 0
A20: 12 | B20: =dtsiswa!D18 -> Intan Dyah Nowari | C20: L | R20: 0 | S20: 0 | T20: 0 | U20: 0 | V20: 0 | W20: 0 | X20: 0 | Y20: 0 | Z20: 0 | AA20: 0 | AB20: 0 | AC20: 0 | AD20: 0 | AE20: 0 | AF20: 0 | AG20: 0 | AH20: 0 | AI20: 0 | AJ20: 0 | AK20: 0 | AL20: 0 | AM20: 0 | AN20: 0 | AO20: 0 | AP20: 0 | AQ20: 0 | AR20: 0 | AS20: 0 | AT20: 0 | AU20: 0
A21: 13 | B21: =dtsiswa!D19 -> Misyanita Nurfitri S | C21: P | R21: 0 | S21: 0 | T21: 0 | U21: 0 | V21: 0 | W21: 0 | X21: 0 | Y21: 0 | Z21: 0 | AA21: 0 | AB21: 0 | AC21: 0 | AD21: 0 | AE21: 0 | AF21: 0 | AG21: 0 | AH21: 0 | AI21: 0 | AJ21: 0 | AK21: 0 | AL21: 0 | AM21: 0 | AN21: 0 | AO21: 0 | AP21: 0 | AQ21: 0 | AR21: 0 | AS21: 0 | AT21: 0 | AU21: 0
A22: 14 | B22: =dtsiswa!D20 -> Moch Zidane Hita L. U | C22: L | R22: 0 | S22: 0 | T22: 0 | U22: 0 | V22: 0 | W22: 0 | X22: 0 | Y22: 0 | Z22: 0 | AA22: 0 | AB22: 0 | AC22: 0 | AD22: 0 | AE22: 0 | AF22: 0 | AG22: 0 | AH22: 0 | AI22: 0 | AJ22: 0 | AK22: 0 | AL22: 0 | AM22: 0 | AN22: 0 | AO22: 0 | AP22: 0 | AQ22: 0 | AR22: 0 | AS22: 0 | AT22: 0 | AU22: 0
A23: 15 | B23: =dtsiswa!D21 -> Muhammad Ibra Maulana | C23: L | R23: 0 | S23: 0 | T23: 0 | U23: 0 | V23: 0 | W23: 0 | X23: 0 | Y23: 0 | Z23: 0 | AA23: 0 | AB23: 0 | AC23: 0 | AD23: 0 | AE23: 0 | AF23: 0 | AG23: 0 | AH23: 0 | AI23: 0 | AJ23: 0 | AK23: 0 | AL23: 0 | AM23: 0 | AN23: 0 | AO23: 0 | AP23: 0 | AQ23: 0 | AR23: 0 | AS23: 0 | AT23: 0 | AU23: 0
A24: 16 | B24: =dtsiswa!D22 -> Nabilla Shiva Putri | C24: L | R24: 0 | S24: 0 | T24: 0 | U24: 0 | V24: 0 | W24: 0 | X24: 0 | Y24: 0 | Z24: 0 | AA24: 0 | AB24: 0 | AC24: 0 | AD24: 0 | AE24: 0 | AF24: 0 | AG24: 0 | AH24: 0 | AI24: 0 | AJ24: 0 | AK24: 0 | AL24: 0 | AM24: 0 | AN24: 0 | AO24: 0 | AP24: 0 | AQ24: 0 | AR24: 0 | AS24: 0 | AT24: 0 | AU24: 0
A25: 17 | B25: =dtsiswa!D23 -> Naufal Falih F | C25: P | R25: 0 | S25: 0 | T25: 0 | U25: 0 | V25: 0 | W25: 0 | X25: 0 | Y25: 0 | Z25: 0 | AA25: 0 | AB25: 0 | AC25: 0 | AD25: 0 | AE25: 0 | AF25: 0 | AG25: 0 | AH25: 0 | AI25: 0 | AJ25: 0 | AK25: 0 | AL25: 0 | AM25: 0 | AN25: 0 | AO25: 0 | AP25: 0 | AQ25: 0 | AR25: 0 | AS25: 0 | AT25: 0 | AU25: 0
A26: 18 | B26: =dtsiswa!D24 -> Nayla Annora Nobel W | C26: L | R26: 0 | S26: 0 | T26: 0 | U26: 0 | V26: 0 | W26: 0 | X26: 0 | Y26: 0 | Z26: 0 | AA26: 0 | AB26: 0 | AC26: 0 | AD26: 0 | AE26: 0 | AF26: 0 | AG26: 0 | AH26: 0 | AI26: 0 | AJ26: 0 | AK26: 0 | AL26: 0 | AM26: 0 | AN26: 0 | AO26: 0 | AP26: 0 | AQ26: 0 | AR26: 0 | AS26: 0 | AT26: 0 | AU26: 0
A27: 19 | B27: =dtsiswa!D25 -> Raihan Danang P | C27: P | R27: 0 | S27: 0 | T27: 0 | U27: 0 | V27: 0 | W27: 0 | X27: 0 | Y27: 0 | Z27: 0 | AA27: 0 | AB27: 0 | AC27: 0 | AD27: 0 | AE27: 0 | AF27: 0 | AG27: 0 | AH27: 0 | AI27: 0 | AJ27: 0 | AK27: 0 | AL27: 0 | AM27: 0 | AN27: 0 | AO27: 0 | AP27: 0 | AQ27: 0 | AR27: 0 | AS27: 0 | AT27: 0 | AU27: 0
A28: 20 | B28: =dtsiswa!D26 -> Roby Ardiyansyah | C28: P | R28: 0 | S28: 0 | T28: 0 | U28: 0 | V28: 0 | W28: 0 | X28: 0 | Y28: 0 | Z28: 0 | AA28: 0 | AB28: 0 | AC28: 0 | AD28: 0 | AE28: 0 | AF28: 0 | AG28: 0 | AH28: 0 | AI28: 0 | AJ28: 0 | AK28: 0 | AL28: 0 | AM28: 0 | AN28: 0 | AO28: 0 | AP28: 0 | AQ28: 0 | AR28: 0 | AS28: 0 | AT28: 0 | AU28: 0
A29: 21 | B29: =dtsiswa!D27 -> Rojalingga Prana A | C29: L | R29: 0 | S29: 0 | T29: 0 | U29: 0 | V29: 0 | W29: 0 | X29: 0 | Y29: 0 | Z29: 0 | AA29: 0 | AB29: 0 | AC29: 0 | AD29: 0 | AE29: 0 | AF29: 0 | AG29: 0 | AH29: 0 | AI29: 0 | AJ29: 0 | AK29: 0 | AL29: 0 | AM29: 0 | AN29: 0 | AO29: 0 | AP29: 0 | AQ29: 0 | AR29: 0 | AS29: 0 | AT29: 0 | AU29: 0
A30: 22 | B30: =dtsiswa!D28 -> Sally Savista A | R30: 0 | S30: 0 | T30: 0 | U30: 0 | V30: 0 | W30: 0 | X30: 0 | Y30: 0 | Z30: 0 | AA30: 0 | AB30: 0 | AC30: 0 | AD30: 0 | AE30: 0 | AF30: 0 | AG30: 0 | AH30: 0 | AI30: 0 | AJ30: 0 | AK30: 0 | AL30: 0 | AM30: 0 | AN30: 0 | AO30: 0 | AP30: 0 | AQ30: 0 | AR30: 0 | AS30: 0 | AT30: 0 | AU30: 0
A31: 23 | B31: =dtsiswa!D29 -> Tania Kaori Angelita | R31: 0 | S31: 0 | T31: 0 | U31: 0 | V31: 0 | W31: 0 | X31: 0 | Y31: 0 | Z31: 0 | AA31: 0 | AB31: 0 | AC31: 0 | AD31: 0 | AE31: 0 | AF31: 0 | AG31: 0 | AH31: 0 | AI31: 0 | AJ31: 0 | AK31: 0 | AL31: 0 | AM31: 0 | AN31: 0 | AO31: 0 | AP31: 0 | AQ31: 0 | AR31: 0 | AS31: 0 | AT31: 0 | AU31: 0
A32: 24 | B32: =dtsiswa!D30 -> Romzy Oka Ramadhani P | R32: 0 | S32: 0 | T32: 0 | U32: 0 | V32: 0 | W32: 0 | X32: 0 | Y32: 0 | Z32: 0 | AA32: 0 | AB32: 0 | AC32: 0 | AD32: 0 | AE32: 0 | AF32: 0 | AG32: 0 | AH32: 0 | AI32: 0 | AJ32: 0 | AK32: 0 | AL32: 0 | AM32: 0 | AN32: 0 | AO32: 0 | AP32: 0 | AQ32: 0 | AR32: 0 | AS32: 0 | AT32: 0 | AU32: 0
A33: 25 | B33: =dtsiswa!D31 -> Larasati Jagadhita P | R33: 0 | S33: 0 | T33: 0 | U33: 0 | V33: 0 | W33: 0 | X33: 0 | Y33: 0 | Z33: 0 | AA33: 0 | AB33: 0 | AC33: 0 | AD33: 0 | AE33: 0 | AF33: 0 | AG33: 0 | AH33: 0 | AI33: 0 | AJ33: 0 | AK33: 0 | AL33: 0 | AM33: 0 | AN33: 0 | AO33: 0 | AP33: 0 | AQ33: 0 | AR33: 0 | AS33: 0 | AT33: 0 | AU33: 0
A34: 26 | B34: =dtsiswa!D32 -> Meliana Citra A | R34: 0 | S34: 0 | T34: 0 | U34: 0 | V34: 0 | W34: 0 | X34: 0 | Y34: 0 | Z34: 0 | AA34: 0 | AB34: 0 | AC34: 0 | AD34: 0 | AE34: 0 | AF34: 0 | AG34: 0 | AH34: 0 | AI34: 0 | AJ34: 0 | AK34: 0 | AL34: 0 | AM34: 0 | AN34: 0 | AO34: 0 | AP34: 0 | AQ34: 0 | AR34: 0 | AS34: 0 | AT34: 0 | AU34: 0
A35: 27 | B35: =dtsiswa!D33 -> Mohammad Rizky | R35: 0 | S35: 0 | T35: 0 | U35: 0 | V35: 0 | W35: 0 | X35: 0 | Y35: 0 | Z35: 0 | AA35: 0 | AB35: 0 | AC35: 0 | AD35: 0 | AE35: 0 | AF35: 0 | AG35: 0 | AH35: 0 | AI35: 0 | AJ35: 0 | AK35: 0 | AL35: 0 | AM35: 0 | AN35: 0 | AO35: 0 | AP35: 0 | AQ35: 0 | AR35: 0 | AS35: 0 | AT35: 0 | AU35: 0
A36: 28 | B36: =dtsiswa!D34 -> 0 | R36: 0 | S36: 0 | T36: 0 | U36: 0 | V36: 0 | W36: 0 | X36: 0 | Y36: 0 | Z36: 0 | AA36: 0 | AB36: 0 | AC36: 0 | AD36: 0 | AE36: 0 | AF36: 0 | AG36: 0 | AH36: 0 | AI36: 0 | AJ36: 0 | AK36: 0 | AL36: 0 | AM36: 0 | AN36: 0 | AO36: 0 | AP36: 0 | AQ36: 0 | AR36: 0 | AS36: 0 | AT36: 0 | AU36: 0
A37: 29 | B37: =dtsiswa!D35 -> 0 | R37: 0 | S37: 0 | T37: 0 | U37: 0 | V37: 0 | W37: 0 | X37: 0 | Y37: 0 | Z37: 0 | AA37: 0 | AB37: 0 | AC37: 0 | AD37: 0 | AE37: 0 | AF37: 0 | AG37: 0 | AH37: 0 | AI37: 0 | AJ37: 0 | AK37: 0 | AL37: 0 | AM37: 0 | AN37: 0 | AO37: 0 | AP37: 0 | AQ37: 0 | AR37: 0 | AS37: 0 | AT37: 0 | AU37: 0
A38: 30 | B38: =dtsiswa!D36 -> 0 | R38: 0 | S38: 0 | T38: 0 | U38: 0 | V38: 0 | W38: 0 | X38: 0 | Y38: 0 | Z38: 0 | AA38: 0 | AB38: 0 | AC38: 0 | AD38: 0 | AE38: 0 | AF38: 0 | AG38: 0 | AH38: 0 | AI38: 0 | AJ38: 0 | AK38: 0 | AL38: 0 | AM38: 0 | AN38: 0 | AO38: 0 | AP38: 0 | AQ38: 0 | AR38: 0 | AS38: 0 | AT38: 0 | AU38: 0
A39: 31 | B39: =dtsiswa!D37 -> 0 | R39: 0 | S39: 0 | T39: 0 | U39: 0 | V39: 0 | W39: 0 | X39: 0 | Y39: 0 | Z39: 0 | AA39: 0 | AB39: 0 | AC39: 0 | AD39: 0 | AE39: 0 | AF39: 0 | AG39: 0 | AH39: 0 | AI39: 0 | AJ39: 0 | AK39: 0 | AL39: 0 | AM39: 0 | AN39: 0 | AO39: 0 | AP39: 0 | AQ39: 0 | AR39: 0 | AS39: 0 | AT39: 0 | AU39: 0
A40: 32 | B40: =dtsiswa!D38 -> 0 | R40: 0 | S40: 0 | T40: 0 | U40: 0 | V40: 0 | W40: 0 | X40: 0 | Y40: 0 | Z40: 0 | AA40: 0 | AB40: 0 | AC40: 0 | AD40: 0 | AE40: 0 | AF40: 0 | AG40: 0 | AH40: 0 | AI40: 0 | AJ40: 0 | AK40: 0 | AL40: 0 | AM40: 0 | AN40: 0 | AO40: 0 | AP40: 0 | AQ40: 0 | AR40: 0 | AS40: 0 | AT40: 0 | AU40: 0
A41: 33 | B41: =dtsiswa!D39 -> 0 | R41: 0 | S41: 0 | T41: 0 | U41: 0 | V41: 0 | W41: 0 | X41: 0 | Y41: 0 | Z41: 0 | AA41: 0 | AB41: 0 | AC41: 0 | AD41: 0 | AE41: 0 | AF41: 0 | AG41: 0 | AH41: 0 | AI41: 0 | AJ41: 0 | AK41: 0 | AL41: 0 | AM41: 0 | AN41: 0 | AO41: 0 | AP41: 0 | AQ41: 0 | AR41: 0 | AS41: 0 | AT41: 0 | AU41: 0
A42: 34 | B42: =dtsiswa!D40 -> 0 | R42: 0 | S42: 0 | T42: 0 | U42: 0 | V42: 0 | W42: 0 | X42: 0 | Y42: 0 | Z42: 0 | AA42: 0 | AB42: 0 | AC42: 0 | AD42: 0 | AE42: 0 | AF42: 0 | AG42: 0 | AH42: 0 | AI42: 0 | AJ42: 0 | AK42: 0 | AL42: 0 | AM42: 0 | AN42: 0 | AO42: 0 | AP42: 0 | AQ42: 0 | AR42: 0 | AS42: 0 | AT42: 0 | AU42: 0
A43: 35 | B43: =dtsiswa!D41 -> 0 | R43: 0 | S43: 0 | T43: 0 | U43: 0 | V43: 0 | W43: 0 | X43: 0 | Y43: 0 | Z43: 0 | AA43: 0 | AB43: 0 | AC43: 0 | AD43: 0 | AE43: 0 | AF43: 0 | AG43: 0 | AH43: 0 | AI43: 0 | AJ43: 0 | AK43: 0 | AL43: 0 | AM43: 0 | AN43: 0 | AO43: 0 | AP43: 0 | AQ43: 0 | AR43: 0 | AS43: 0 | AT43: 0 | AU43: 0
A44: 36 | B44: =dtsiswa!D42 -> 0 | R44: 0 | S44: 0 | T44: 0 | U44: 0 | V44: 0 | W44: 0 | X44: 0 | Y44: 0 | Z44: 0 | AA44: 0 | AB44: 0 | AC44: 0 | AD44: 0 | AE44: 0 | AF44: 0 | AG44: 0 | AH44: 0 | AI44: 0 | AJ44: 0 | AK44: 0 | AL44: 0 | AM44: 0 | AN44: 0 | AO44: 0 | AP44: 0 | AQ44: 0 | AR44: 0 | AS44: 0 | AT44: 0 | AU44: 0
A45: 37 | B45: =dtsiswa!D43 -> 0 | R45: 0 | S45: 0 | T45: 0 | U45: 0 | V45: 0 | W45: 0 | X45: 0 | Y45: 0 | Z45: 0 | AA45: 0 | AB45: 0 | AC45: 0 | AD45: 0 | AE45: 0 | AF45: 0 | AG45: 0 | AH45: 0 | AI45: 0 | AJ45: 0 | AK45: 0 | AL45: 0 | AM45: 0 | AN45: 0 | AO45: 0 | AP45: 0 | AQ45: 0 | AR45: 0 | AS45: 0 | AT45: 0 | AU45: 0
A46: 38 | B46: =dtsiswa!D44 -> 0 | R46: 0 | S46: 0 | T46: 0 | U46: 0 | V46: 0 | W46: 0 | X46: 0 | Y46: 0 | Z46: 0 | AA46: 0 | AB46: 0 | AC46: 0 | AD46: 0 | AE46: 0 | AF46: 0 | AG46: 0 | AH46: 0 | AI46: 0 | AJ46: 0 | AK46: 0 | AL46: 0 | AM46: 0 | AN46: 0 | AO46: 0 | AP46: 0 | AQ46: 0 | AR46: 0 | AS46: 0 | AT46: 0 | AU46: 0
A47: 39 | B47: =dtsiswa!D45 -> 0 | R47: 0 | S47: 0 | T47: 0 | U47: 0 | V47: 0 | W47: 0 | X47: 0 | Y47: 0 | Z47: 0 | AA47: 0 | AB47: 0 | AC47: 0 | AD47: 0 | AE47: 0 | AF47: 0 | AG47: 0 | AH47: 0 | AI47: 0 | AJ47: 0 | AK47: 0 | AL47: 0 | AM47: 0 | AN47: 0 | AO47: 0 | AP47: 0 | AQ47: 0 | AR47: 0 | AS47: 0 | AT47: 0 | AU47: 0
A48: 40 | B48: =dtsiswa!D46 -> 0 | R48: 0 | S48: 0 | T48: 0 | U48: 0 | V48: 0 | W48: 0 | X48: 0 | Y48: 0 | Z48: 0 | AA48: 0 | AB48: 0 | AC48: 0 | AD48: 0 | AE48: 0 | AF48: 0 | AG48: 0 | AH48: 0 | AI48: 0 | AJ48: 0 | AK48: 0 | AL48: 0 | AM48: 0 | AN48: 0 | AO48: 0 | AP48: 0 | AQ48: 0 | AR48: 0 | AS48: 0 | AT48: 0 | AU48: 0

Sheet UT_bhs ind (hidden)
A3: DATA NILAI SEMESTER 2
A4: KI-3 DAN KI-4 KELAS : 4 / BAHASA INDONESIA
A5: 1 | B5: 2 | C5: 3 | D5: 4 | E5: 5 | F5: 6 | G5: 7 | H5: 8 | I5: 9 | J5: 10 | K5: 11 | L5: 12 | M5: 13 | N5: 14 | O5: 15 | P5: 16 | Q5: 17 | R5: 18 | S5: 19 | T5: 20 | U5: 21 | V5: 22 | W5: 23 | X5: 24 | Y5: 25 | Z5: 26 | AA5: 27 | AB5: 28 | AC5: 29 | AD5: 30 | AE5: 31 | AF5: 32 | AG5: 33 | AH5: 34 | AI5: 35 | AJ5: 36 | AK5: 37 | AL5: 38 | AM5: 39 | AN5: 40 | AO5: 41 | AP5: 42 | AQ5: 43 | AR5: 44 | AS5: 45 | AT5: 46 | AU5: 47 | AV5: 48 | AW5: 49 | AX5: 50 | AY5: 51 | AZ5: 52 | BA5: 53 | BB5: 54 | BC5: 55 | BD5: 56 | BE5: 57
A6: NO | B6: NAMA | C6: L/P | D6: Tema 6 | G6: Tema 7 | O6: Tema 8 | S6: Tema 9 | U6: RERATA ( KI-3 ) | Z6: R.TUGAS | AA6: RERATA ( KI-4 ) | AE6: r.tugas | AF6: nilai ulhar + tugas per KD | AK6: RTH | AL6: ASPEK KETRAMPILAN ( KI-4 ) | AV6: ASPEK PENGETAHUAN ( KI-3)
D7: tugas | E7: Ulhar | G7: tugas | K7: ulhar | O7: tugas | Q7: ulhar | S7: tugas | T7: ulhar | U7: rata - rata ulhar per-KD | AA7: rata-rata tugas per KD | AL7: T.6 | AM7: T.7 | AQ7: RT | AR7: T.8 | AT7: RT | AU7: T.9 | AV7: T.6 | AX7: RT | AY7: T.7 | BA7: RT | BB7: T.8 | BD7: RT | BE7: T.9
D8: 4.4 | E8: 3.4 | F8: 3.5 | G8: 4.1 | H8: 4.2 | I8: 4.3 | J8: 4.4 | K8: 3.1 | L8: 3.2 | M8: 3.3 | N8: 3.4 | O8: 4.2 | P8: 4.3 | Q8: 3.2 | R8: 3.3 | S8: 4.2 | T8: 3.2 | U8: 3.1 | V8: 3.2 | W8: 3.3 | X8: 3.4 | Y8: 3.5 | AA8: 4.1 | AB8: 4.2 | AC8: 4.3 | AD8: 4.4 | AF8: 3.1 | AG8: 3.2 | AH8: 3.3 | AI8: 3.4 | AJ8: 3.5 | AL8: 4.2 | AM8: 4.1 | AN8: 4.2 | AO8: 4.3 | AP8: 4.4 | AR8: 4.2 | AS8: 4.3 | AU8: 4.1 | AV8: 3.4 | AW8: 3.5 | AY8: 3.1 | AZ8: 3.2 | BB8: 3.1 | BC8: 3.3 | BE8: 3.1
A9: 1 | B9: =dtsiswa!D7 -> Achmad Zacky | C9: L | D9: 76 | E9: 70 | F9: 65 | G9: 56 | H9: 56 | I9: 76 | J9: 78 | K9: 78 | L9: 76 | M9: 82 | N9: 76 | O9: 90 | P9: 80 | Q9: 81 | R9: 79 | S9: 56 | T9: 78 | U9: =K9 -> 78 | V9: =(L9+Q9+T9)/3 -> 78.33333333 | W9: =(L9+Q9)/2 -> 78.5 | X9: =(E9+N9)/2 -> 73 | Y9: =F9 -> 65 | Z9: =IFERROR(AVERAGE(U9:Y9)," ") -> 74.56666667 | AA9: =G9 -> 56 | AB9: =(H9+O9+S9)/3 -> 67.33333333 | AC9: =(P9) -> 80 | AD9: =(D9+J9)/2 -> 77 | AE9: =IFERROR(AVERAGE(AA9:AD9)," ") -> 70.08333333 | AF9: =(U9+AA9)/2 -> 67 | AG9: =(V9+AB9)/2 -> 72.83333333 | AH9: 79.25 | AI9: 75 | AJ9: 67.54166667 | AK9: =IFERROR(AVERAGE(AF9:AJ9)," ") -> 72.325 | AL9: =D9 -> 76 | AM9: =G9 -> 56 | AN9: =H9 -> 56 | AO9: 76 | AP9: =J9 -> 78 | AQ9: =IFERROR(AVERAGE(AM9:AP9)," ") -> 66.5 | AR9: =O9 -> 90 | AS9: =P9 -> 80 | AT9: =IFERROR(AVERAGE(AR9:AS9)," ") -> 85 | AU9: =T9 -> 78 | AV9: =E9 -> 70 | AW9: =F9 -> 65 | AX9: =IFERROR(AVERAGE(AV9:AW9)," ") -> 67.5 | AY9: =K9 -> 78 | AZ9: =L9 -> 76 | BA9: =IFERROR(AVERAGE(AY9:AZ9)," ") -> 77 | BB9: =Q9 -> 81 | BC9: =R9 -> 79 | BD9: =IFERROR(AVERAGE(BB9:BC9)," ") -> 80 | BE9: =T9 -> 78
A10: 2 | B10: =dtsiswa!D8 -> Angelia Vabel R | C10: L | U10: =K10 -> 0 | V10: =(L10+Q10+T10)/3 -> 0 | W10: =(L10+Q10)/2 -> 0 | X10: =(E10+N10)/2 -> 0 | Y10: =F10 -> 0 | Z10: =IFERROR(AVERAGE(U10:Y10)," ") -> 0 | AA10: =G10 -> 0 | AB10: =(H10+O10+S10)/3 -> 0 | AC10: =(P10) -> 0 | AD10: =(D10+J10)/2 -> 0 | AE10: =IFERROR(AVERAGE(AA10:AD10)," ") -> 0 | AF10: =(U10+AA10)/2 -> 0 | AG10: =(V10+AB10)/2 -> 0 | AH10: =(W10+AC10)/2 -> 0 | AI10: =(X10+AD10)/2 -> 0 | AJ10: =(Y10+AE10)/2 -> 0 | AK10: =IFERROR(AVERAGE(AF10:AJ10)," ") -> 0 | AL10: =D10 -> 0 | AM10: =G10 -> 0 | AN10: =H10 -> 0 | AO10: =I10 -> 0 | AP10: =J10 -> 0 | AQ10: =IFERROR(AVERAGE(AM10:AP10)," ") -> 0 | AR10: =O10 -> 0 | AS10: =P10 -> 0 | AT10: =IFERROR(AVERAGE(AR10:AS10)," ") -> 0 | AU10: =T10 -> 0 | AV10: =E10 -> 0 | AW10: =F10 -> 0 | AX10: =IFERROR(AVERAGE(AV10:AW10)," ") -> 0 | AY10: =K10 -> 0 | AZ10: =L10 -> 0 | BA10: =IFERROR(AVERAGE(AY10:AZ10)," ") -> 0 | BB10: =Q10 -> 0 | BC10: =R10 -> 0 | BD10: =IFERROR(AVERAGE(BB10:BC10)," ") -> 0 | BE10: =T10 -> 0
A11: 3 | B11: =dtsiswa!D9 -> Anggun Dwi P.I | C11: L | U11: 0 | V11: 0 | W11: 0 | X11: 0 | Y11: 0 | Z11: 0 | AA11: 0 | AB11: 0 | AC11: 0 | AD11: 0 | AE11: 0 | AF11: 0 | AG11: 0 | AH11: 0 | AI11: 0 | AJ11: 0 | AK11: 0 | AL11: 0 | AM11: 0 | AN11: 0 | AO11: 0 | AP11: 0 | AQ11: 0 | AR11: 0 | AS11: 0 | AT11: 0 | AU11: 0 | AV11: 0 | AW11: 0 | AX11: 0 | AY11: 0 | AZ11: 0 | BA11: 0 | BB11: 0 | BC11: 0 | BD11: 0 | BE11: 0
A12: 4 | B12: =dtsiswa!D10 -> Antonio Permata A | C12: L | U12: 0 | V12: 0 | W12: 0 | X12: 0 | Y12: 0 | Z12: 0 | AA12: 0 | AB12: 0 | AC12: 0 | AD12: 0 | AE12: 0 | AF12: 0 | AG12: 0 | AH12: 0 | AI12: 0 | AJ12: 0 | AK12: 0 | AL12: 0 | AM12: 0 | AN12: 0 | AO12: 0 | AP12: 0 | AQ12: 0 | AR12: 0 | AS12: 0 | AT12: 0 | AU12: 0 | AV12: 0 | AW12: 0 | AX12: 0 | AY12: 0 | AZ12: 0 | BA12: 0 | BB12: 0 | BC12: 0 | BD12: 0 | BE12: 0
A13: 5 | B13: =dtsiswa!D11 -> Arya Pratama G | C13: P | U13: 0 | V13: 0 | W13: 0 | X13: 0 | Y13: 0 | Z13: 0 | AA13: 0 | AB13: 0 | AC13: 0 | AD13: 0 | AE13: 0 | AF13: 0 | AG13: 0 | AH13: 0 | AI13: 0 | AJ13: 0 | AK13: 0 | AL13: 0 | AM13: 0 | AN13: 0 | AO13: 0 | AP13: 0 | AQ13: 0 | AR13: 0 | AS13: 0 | AT13: 0 | AU13: 0 | AV13: 0 | AW13: 0 | AX13: 0 | AY13: 0 | AZ13: 0 | BA13: 0 | BB13: 0 | BC13: 0 | BD13: 0 | BE13: 0
A14: 6 | B14: =dtsiswa!D12 -> Asyam Hanif Ihsan H | C14: P | U14: 0 | V14: 0 | W14: 0 | X14: 0 | Y14: 0 | Z14: 0 | AA14: 0 | AB14: 0 | AC14: 0 | AD14: 0 | AE14: 0 | AF14: 0 | AG14: 0 | AH14: 0 | AI14: 0 | AJ14: 0 | AK14: 0 | AL14: 0 | AM14: 0 | AN14: 0 | AO14: 0 | AP14: 0 | AQ14: 0 | AR14: 0 | AS14: 0 | AT14: 0 | AU14: 0 | AV14: 0 | AW14: 0 | AX14: 0 | AY14: 0 | AZ14: 0 | BA14: 0 | BB14: 0 | BC14: 0 | BD14: 0 | BE14: 0
A15: 7 | B15: =dtsiswa!D13 -> Athaya Salsabilla Z | C15: L | U15: 0 | V15: 0 | W15: 0 | X15: 0 | Y15: 0 | Z15: 0 | AA15: 0 | AB15: 0 | AC15: 0 | AD15: 0 | AE15: 0 | AF15: 0 | AG15: 0 | AH15: 0 | AI15: 0 | AJ15: 0 | AK15: 0 | AL15: 0 | AM15: 0 | AN15: 0 | AO15: 0 | AP15: 0 | AQ15: 0 | AR15: 0 | AS15: 0 | AT15: 0 | AU15: 0 | AV15: 0 | AW15: 0 | AX15: 0 | AY15: 0 | AZ15: 0 | BA15: 0 | BB15: 0 | BC15: 0 | BD15: 0 | BE15: 0
A16: 8 | B16: =dtsiswa!D14 -> Aulia Dea Rosalinda | C16: L | U16: 0 | V16: 0 | W16: 0 | X16: 0 | Y16: 0 | Z16: 0 | AA16: 0 | AB16: 0 | AC16: 0 | AD16: 0 | AE16: 0 | AF16: 0 | AG16: 0 | AH16: 0 | AI16: 0 | AJ16: 0 | AK16: 0 | AL16: 0 | AM16: 0 | AN16: 0 | AO16: 0 | AP16: 0 | AQ16: 0 | AR16: 0 | AS16: 0 | AT16: 0 | AU16: 0 | AV16: 0 | AW16: 0 | AX16: 0 | AY16: 0 | AZ16: 0 | BA16: 0 | BB16: 0 | BC16: 0 | BD16: 0 | BE16: 0
A17: 9 | B17: =dtsiswa!D15 -> Claudia Gabriella L | C17: L | U17: 0 | V17: 0 | W17: 0 | X17: 0 | Y17: 0 | Z17: 0 | AA17: 0 | AB17: 0 | AC17: 0 | AD17: 0 | AE17: 0 | AF17: 0 | AG17: 0 | AH17: 0 | AI17: 0 | AJ17: 0 | AK17: 0 | AL17: 0 | AM17: 0 | AN17: 0 | AO17: 0 | AP17: 0 | AQ17: 0 | AR17: 0 | AS17: 0 | AT17: 0 | AU17: 0 | AV17: 0 | AW17: 0 | AX17: 0 | AY17: 0 | AZ17: 0 | BA17: 0 | BB17: 0 | BC17: 0 | BD17: 0 | BE17: 0
A18: 10 | B18: =dtsiswa!D16 -> Deco Badarus Zaman | C18: L | U18: 0 | V18: 0 | W18: 0 | X18: 0 | Y18: 0 | Z18: 0 | AA18: 0 | AB18: 0 | AC18: 0 | AD18: 0 | AE18: 0 | AF18: 0 | AG18: 0 | AH18: 0 | AI18: 0 | AJ18: 0 | AK18: 0 | AL18: 0 | AM18: 0 | AN18: 0 | AO18: 0 | AP18: 0 | AQ18: 0 | AR18: 0 | AS18: 0 | AT18: 0 | AU18: 0 | AV18: 0 | AW18: 0 | AX18: 0 | AY18: 0 | AZ18: 0 | BA18: 0 | BB18: 0 | BC18: 0 | BD18: 0 | BE18: 0
A19: 11 | B19: =dtsiswa!D17 -> Fania Mutiara Felichia | C19: L | U19: 0 | V19: 0 | W19: 0 | X19: 0 | Y19: 0 | Z19: 0 | AA19: 0 | AB19: 0 | AC19: 0 | AD19: 0 | AE19: 0 | AF19: 0 | AG19: 0 | AH19: 0 | AI19: 0 | AJ19: 0 | AK19: 0 | AL19: 0 | AM19: 0 | AN19: 0 | AO19: 0 | AP19: 0 | AQ19: 0 | AR19: 0 | AS19: 0 | AT19: 0 | AU19: 0 | AV19: 0 | AW19: 0 | AX19: 0 | AY19: 0 | AZ19: 0 | BA19: 0 | BB19: 0 | BC19: 0 | BD19: 0 | BE19: 0
A20: 12 | B20: =dtsiswa!D18 -> Intan Dyah Nowari | C20: L | U20: 0 | V20: 0 | W20: 0 | X20: 0 | Y20: 0 | Z20: 0 | AA20: 0 | AB20: 0 | AC20: 0 | AD20: 0 | AE20: 0 | AF20: 0 | AG20: 0 | AH20: 0 | AI20: 0 | AJ20: 0 | AK20: 0 | AL20: 0 | AM20: 0 | AN20: 0 | AO20: 0 | AP20: 0 | AQ20: 0 | AR20: 0 | AS20: 0 | AT20: 0 | AU20: 0 | AV20: 0 | AW20: 0 | AX20: 0 | AY20: 0 | AZ20: 0 | BA20: 0 | BB20: 0 | BC20: 0 | BD20: 0 | BE20: 0
A21: 13 | B21: =dtsiswa!D19 -> Misyanita Nurfitri S | C21: P | U21: 0 | V21: 0 | W21: 0 | X21: 0 | Y21: 0 | Z21: 0 | AA21: 0 | AB21: 0 | AC21: 0 | AD21: 0 | AE21: 0 | AF21: 0 | AG21: 0 | AH21: 0 | AI21: 0 | AJ21: 0 | AK21: 0 | AL21: 0 | AM21: 0 | AN21: 0 | AO21: 0 | AP21: 0 | AQ21: 0 | AR21: 0 | AS21: 0 | AT21: 0 | AU21: 0 | AV21: 0 | AW21: 0 | AX21: 0 | AY21: 0 | AZ21: 0 | BA21: 0 | BB21: 0 | BC21: 0 | BD21: 0 | BE21: 0
A22: 14 | B22: =dtsiswa!D20 -> Moch Zidane Hita L. U | C22: L | U22: 0 | V22: 0 | W22: 0 | X22: 0 | Y22: 0 | Z22: 0 | AA22: 0 | AB22: 0 | AC22: 0 | AD22: 0 | AE22: 0 | AF22: 0 | AG22: 0 | AH22: 0 | AI22: 0 | AJ22: 0 | AK22: 0 | AL22: 0 | AM22: 0 | AN22: 0 | AO22: 0 | AP22: 0 | AQ22: 0 | AR22: 0 | AS22: 0 | AT22: 0 | AU22: 0 | AV22: 0 | AW22: 0 | AX22: 0 | AY22: 0 | AZ22: 0 | BA22: 0 | BB22: 0 | BC22: 0 | BD22: 0 | BE22: 0
A23: 15 | B23: =dtsiswa!D21 -> Muhammad Ibra Maulana | C23: L | U23: 0 | V23: 0 | W23: 0 | X23: 0 | Y23: 0 | Z23: 0 | AA23: 0 | AB23: 0 | AC23: 0 | AD23: 0 | AE23: 0 | AF23: 0 | AG23: 0 | AH23: 0 | AI23: 0 | AJ23: 0 | AK23: 0 | AL23: 0 | AM23: 0 | AN23: 0 | AO23: 0 | AP23: 0 | AQ23: 0 | AR23: 0 | AS23: 0 | AT23: 0 | AU23: 0 | AV23: 0 | AW23: 0 | AX23: 0 | AY23: 0 | AZ23: 0 | BA23: 0 | BB23: 0 | BC23: 0 | BD23: 0 | BE23: 0
A24: 16 | B24: =dtsiswa!D22 -> Nabilla Shiva Putri | C24: L | U24: 0 | V24: 0 | W24: 0 | X24: 0 | Y24: 0 | Z24: 0 | AA24: 0 | AB24: 0 | AC24: 0 | AD24: 0 | AE24: 0 | AF24: 0 | AG24: 0 | AH24: 0 | AI24: 0 | AJ24: 0 | AK24: 0 | AL24: 0 | AM24: 0 | AN24: 0 | AO24: 0 | AP24: 0 | AQ24: 0 | AR24: 0 | AS24: 0 | AT24: 0 | AU24: 0 | AV24: 0 | AW24: 0 | AX24: 0 | AY24: 0 | AZ24: 0 | BA24: 0 | BB24: 0 | BC24: 0 | BD24: 0 | BE24: 0
A25: 17 | B25: =dtsiswa!D23 -> Naufal Falih F | C25: P | U25: 0 | V25: 0 | W25: 0 | X25: 0 | Y25: 0 | Z25: 0 | AA25: 0 | AB25: 0 | AC25: 0 | AD25: 0 | AE25: 0 | AF25: 0 | AG25: 0 | AH25: 0 | AI25: 0 | AJ25: 0 | AK25: 0 | AL25: 0 | AM25: 0 | AN25: 0 | AO25: 0 | AP25: 0 | AQ25: 0 | AR25: 0 | AS25: 0 | AT25: 0 | AU25: 0 | AV25: 0 | AW25: 0 | AX25: 0 | AY25: 0 | AZ25: 0 | BA25: 0 | BB25: 0 | BC25: 0 | BD25: 0 | BE25: 0
A26: 18 | B26: =dtsiswa!D24 -> Nayla Annora Nobel W | C26: L | U26: 0 | V26: 0 | W26: 0 | X26: 0 | Y26: 0 | Z26: 0 | AA26: 0 | AB26: 0 | AC26: 0 | AD26: 0 | AE26: 0 | AF26: 0 | AG26: 0 | AH26: 0 | AI26: 0 | AJ26: 0 | AK26: 0 | AL26: 0 | AM26: 0 | AN26: 0 | AO26: 0 | AP26: 0 | AQ26: 0 | AR26: 0 | AS26: 0 | AT26: 0 | AU26: 0 | AV26: 0 | AW26: 0 | AX26: 0 | AY26: 0 | AZ26: 0 | BA26: 0 | BB26: 0 | BC26: 0 | BD26: 0 | BE26: 0
A27: 19 | B27: =dtsiswa!D25 -> Raihan Danang P | C27: P | U27: 0 | V27: 0 | W27: 0 | X27: 0 | Y27: 0 | Z27: 0 | AA27: 0 | AB27: 0 | AC27: 0 | AD27: 0 | AE27: 0 | AF27: 0 | AG27: 0 | AH27: 0 | AI27: 0 | AJ27: 0 | AK27: 0 | AL27: 0 | AM27: 0 | AN27: 0 | AO27: 0 | AP27: 0 | AQ27: 0 | AR27: 0 | AS27: 0 | AT27: 0 | AU27: 0 | AV27: 0 | AW27: 0 | AX27: 0 | AY27: 0 | AZ27: 0 | BA27: 0 | BB27: 0 | BC27: 0 | BD27: 0 | BE27: 0
A28: 20 | B28: =dtsiswa!D26 -> Roby Ardiyansyah | C28: P | U28: 0 | V28: 0 | W28: 0 | X28: 0 | Y28: 0 | Z28: 0 | AA28: 0 | AB28: 0 | AC28: 0 | AD28: 0 | AE28: 0 | AF28: 0 | AG28: 0 | AH28: 0 | AI28: 0 | AJ28: 0 | AK28: 0 | AL28: 0 | AM28: 0 | AN28: 0 | AO28: 0 | AP28: 0 | AQ28: 0 | AR28: 0 | AS28: 0 | AT28: 0 | AU28: 0 | AV28: 0 | AW28: 0 | AX28: 0 | AY28: 0 | AZ28: 0 | BA28: 0 | BB28: 0 | BC28: 0 | BD28: 0 | BE28: 0
A29: 21 | B29: =dtsiswa!D27 -> Rojalingga Prana A | C29: L | U29: 0 | V29: 0 | W29: 0 | X29: 0 | Y29: 0 | Z29: 0 | AA29: 0 | AB29: 0 | AC29: 0 | AD29: 0 | AE29: 0 | AF29: 0 | AG29: 0 | AH29: 0 | AI29: 0 | AJ29: 0 | AK29: 0 | AL29: 0 | AM29: 0 | AN29: 0 | AO29: 0 | AP29: 0 | AQ29: 0 | AR29: 0 | AS29: 0 | AT29: 0 | AU29: 0 | AV29: 0 | AW29: 0 | AX29: 0 | AY29: 0 | AZ29: 0 | BA29: 0 | BB29: 0 | BC29: 0 | BD29: 0 | BE29: 0
A30: 22 | B30: =dtsiswa!D28 -> Sally Savista A | U30: 0 | V30: 0 | W30: 0 | X30: 0 | Y30: 0 | Z30: 0 | AA30: 0 | AB30: 0 | AC30: 0 | AD30: 0 | AE30: 0 | AF30: 0 | AG30: 0 | AH30: 0 | AI30: 0 | AJ30: 0 | AK30: 0 | AL30: 0 | AM30: 0 | AN30: 0 | AO30: 0 | AP30: 0 | AQ30: 0 | AR30: 0 | AS30: 0 | AT30: 0 | AU30: 0 | AV30: 0 | AW30: 0 | AX30: 0 | AY30: 0 | AZ30: 0 | BA30: 0 | BB30: 0 | BC30: 0 | BD30: 0 | BE30: 0
A31: 23 | B31: =dtsiswa!D29 -> Tania Kaori Angelita | U31: 0 | V31: 0 | W31: 0 | X31: 0 | Y31: 0 | Z31: 0 | AA31: 0 | AB31: 0 | AC31: 0 | AD31: 0 | AE31: 0 | AF31: 0 | AG31: 0 | AH31: 0 | AI31: 0 | AJ31: 0 | AK31: 0 | AL31: 0 | AM31: 0 | AN31: 0 | AO31: 0 | AP31: 0 | AQ31: 0 | AR31: 0 | AS31: 0 | AT31: 0 | AU31: 0 | AV31: 0 | AW31: 0 | AX31: 0 | AY31: 0 | AZ31: 0 | BA31: 0 | BB31: 0 | BC31: 0 | BD31: 0 | BE31: 0
A32: 24 | B32: =dtsiswa!D30 -> Romzy Oka Ramadhani P | U32: 0 | V32: 0 | W32: 0 | X32: 0 | Y32: 0 | Z32: 0 | AA32: 0 | AB32: 0 | AC32: 0 | AD32: 0 | AE32: 0 | AF32: 0 | AG32: 0 | AH32: 0 | AI32: 0 | AJ32: 0 | AK32: 0 | AL32: 0 | AM32: 0 | AN32: 0 | AO32: 0 | AP32: 0 | AQ32: 0 | AR32: 0 | AS32: 0 | AT32: 0 | AU32: 0 | AV32: 0 | AW32: 0 | AX32: 0 | AY32: 0 | AZ32: 0 | BA32: 0 | BB32: 0 | BC32: 0 | BD32: 0 | BE32: 0
A33: 25 | B33: =dtsiswa!D31 -> Larasati Jagadhita P | U33: 0 | V33: 0 | W33: 0 | X33: 0 | Y33: 0 | Z33: 0 | AA33: 0 | AB33: 0 | AC33: 0 | AD33: 0 | AE33: 0 | AF33: 0 | AG33: 0 | AH33: 0 | AI33: 0 | AJ33: 0 | AK33: 0 | AL33: 0 | AM33: 0 | AN33: 0 | AO33: 0 | AP33: 0 | AQ33: 0 | AR33: 0 | AS33: 0 | AT33: 0 | AU33: 0 | AV33: 0 | AW33: 0 | AX33: 0 | AY33: 0 | AZ33: 0 | BA33: 0 | BB33: 0 | BC33: 0 | BD33: 0 | BE33: 0
A34: 26 | B34: =dtsiswa!D32 -> Meliana Citra A | U34: 0 | V34: 0 | W34: 0 | X34: 0 | Y34: 0 | Z34: 0 | AA34: 0 | AB34: 0 | AC34: 0 | AD34: 0 | AE34: 0 | AF34: 0 | AG34: 0 | AH34: 0 | AI34: 0 | AJ34: 0 | AK34: 0 | AL34: 0 | AM34: 0 | AN34: 0 | AO34: 0 | AP34: 0 | AQ34: 0 | AR34: 0 | AS34: 0 | AT34: 0 | AU34: 0 | AV34: 0 | AW34: 0 | AX34: 0 | AY34: 0 | AZ34: 0 | BA34: 0 | BB34: 0 | BC34: 0 | BD34: 0 | BE34: 0
A35: 27 | B35: =dtsiswa!D33 -> Mohammad Rizky | U35: 0 | V35: 0 | W35: 0 | X35: 0 | Y35: 0 | Z35: 0 | AA35: 0 | AB35: 0 | AC35: 0 | AD35: 0 | AE35: 0 | AF35: 0 | AG35: 0 | AH35: 0 | AI35: 0 | AJ35: 0 | AK35: 0 | AL35: 0 | AM35: 0 | AN35: 0 | AO35: 0 | AP35: 0 | AQ35: 0 | AR35: 0 | AS35: 0 | AT35: 0 | AU35: 0 | AV35: 0 | AW35: 0 | AX35: 0 | AY35: 0 | AZ35: 0 | BA35: 0 | BB35: 0 | BC35: 0 | BD35: 0 | BE35: 0
A36: 28 | B36: =dtsiswa!D34 -> 0 | U36: 0 | V36: 0 | W36: 0 | X36: 0 | Y36: 0 | Z36: 0 | AA36: 0 | AB36: 0 | AC36: 0 | AD36: 0 | AE36: 0 | AF36: 0 | AG36: 0 | AH36: 0 | AI36: 0 | AJ36: 0 | AK36: 0 | AL36: 0 | AM36: 0 | AN36: 0 | AO36: 0 | AP36: 0 | AQ36: 0 | AR36: 0 | AS36: 0 | AT36: 0 | AU36: 0 | AV36: 0 | AW36: 0 | AX36: 0 | AY36: 0 | AZ36: 0 | BA36: 0 | BB36: 0 | BC36: 0 | BD36: 0 | BE36: 0
A37: 29 | B37: =dtsiswa!D35 -> 0 | U37: 0 | V37: 0 | W37: 0 | X37: 0 | Y37: 0 | Z37: 0 | AA37: 0 | AB37: 0 | AC37: 0 | AD37: 0 | AE37: 0 | AF37: 0 | AG37: 0 | AH37: 0 | AI37: 0 | AJ37: 0 | AK37: 0 | AL37: 0 | AM37: 0 | AN37: 0 | AO37: 0 | AP37: 0 | AQ37: 0 | AR37: 0 | AS37: 0 | AT37: 0 | AU37: 0 | AV37: 0 | AW37: 0 | AX37: 0 | AY37: 0 | AZ37: 0 | BA37: 0 | BB37: 0 | BC37: 0 | BD37: 0 | BE37: 0
A38: 30 | B38: =dtsiswa!D36 -> 0 | U38: 0 | V38: 0 | W38: 0 | X38: 0 | Y38: 0 | Z38: 0 | AA38: 0 | AB38: 0 | AC38: 0 | AD38: 0 | AE38: 0 | AF38: 0 | AG38: 0 | AH38: 0 | AI38: 0 | AJ38: 0 | AK38: 0 | AL38: 0 | AM38: 0 | AN38: 0 | AO38: 0 | AP38: 0 | AQ38: 0 | AR38: 0 | AS38: 0 | AT38: 0 | AU38: 0 | AV38: 0 | AW38: 0 | AX38: 0 | AY38: 0 | AZ38: 0 | BA38: 0 | BB38: 0 | BC38: 0 | BD38: 0 | BE38: 0
A39: 31 | B39: =dtsiswa!D37 -> 0 | U39: 0 | V39: 0 | W39: 0 | X39: 0 | Y39: 0 | Z39: 0 | AA39: 0 | AB39: 0 | AC39: 0 | AD39: 0 | AE39: 0 | AF39: 0 | AG39: 0 | AH39: 0 | AI39: 0 | AJ39: 0 | AK39: 0 | AL39: 0 | AM39: 0 | AN39: 0 | AO39: 0 | AP39: 0 | AQ39: 0 | AR39: 0 | AS39: 0 | AT39: 0 | AU39: 0 | AV39: 0 | AW39: 0 | AX39: 0 | AY39: 0 | AZ39: 0 | BA39: 0 | BB39: 0 | BC39: 0 | BD39: 0 | BE39: 0
A40: 32 | B40: =dtsiswa!D38 -> 0 | U40: 0 | V40: 0 | W40: 0 | X40: 0 | Y40: 0 | Z40: 0 | AA40: 0 | AB40: 0 | AC40: 0 | AD40: 0 | AE40: 0 | AF40: 0 | AG40: 0 | AH40: 0 | AI40: 0 | AJ40: 0 | AK40: 0 | AL40: 0 | AM40: 0 | AN40: 0 | AO40: 0 | AP40: 0 | AQ40: 0 | AR40: 0 | AS40: 0 | AT40: 0 | AU40: 0 | AV40: 0 | AW40: 0 | AX40: 0 | AY40: 0 | AZ40: 0 | BA40: 0 | BB40: 0 | BC40: 0 | BD40: 0 | BE40: 0
A41: 33 | B41: =dtsiswa!D39 -> 0 | U41: 0 | V41: 0 | W41: 0 | X41: 0 | Y41: 0 | Z41: 0 | AA41: 0 | AB41: 0 | AC41: 0 | AD41: 0 | AE41: 0 | AF41: 0 | AG41: 0 | AH41: 0 | AI41: 0 | AJ41: 0 | AK41: 0 | AL41: 0 | AM41: 0 | AN41: 0 | AO41: 0 | AP41: 0 | AQ41: 0 | AR41: 0 | AS41: 0 | AT41: 0 | AU41: 0 | AV41: 0 | AW41: 0 | AX41: 0 | AY41: 0 | AZ41: 0 | BA41: 0 | BB41: 0 | BC41: 0 | BD41: 0 | BE41: 0
A42: 34 | B42: =dtsiswa!D40 -> 0 | U42: 0 | V42: 0 | W42: 0 | X42: 0 | Y42: 0 | Z42: 0 | AA42: 0 | AB42: 0 | AC42: 0 | AD42: 0 | AE42: 0 | AF42: 0 | AG42: 0 | AH42: 0 | AI42: 0 | AJ42: 0 | AK42: 0 | AL42: 0 | AM42: 0 | AN42: 0 | AO42: 0 | AP42: 0 | AQ42: 0 | AR42: 0 | AS42: 0 | AT42: 0 | AU42: 0 | AV42: 0 | AW42: 0 | AX42: 0 | AY42: 0 | AZ42: 0 | BA42: 0 | BB42: 0 | BC42: 0 | BD42: 0 | BE42: 0
A43: 35 | B43: =dtsiswa!D41 -> 0 | U43: 0 | V43: 0 | W43: 0 | X43: 0 | Y43: 0 | Z43: 0 | AA43: 0 | AB43: 0 | AC43: 0 | AD43: 0 | AE43: 0 | AF43: 0 | AG43: 0 | AH43: 0 | AI43: 0 | AJ43: 0 | AK43: 0 | AL43: 0 | AM43: 0 | AN43: 0 | AO43: 0 | AP43: 0 | AQ43: 0 | AR43: 0 | AS43: 0 | AT43: 0 | AU43: 0 | AV43: 0 | AW43: 0 | AX43: 0 | AY43: 0 | AZ43: 0 | BA43: 0 | BB43: 0 | BC43: 0 | BD43: 0 | BE43: 0
A44: 36 | B44: =dtsiswa!D42 -> 0 | U44: 0 | V44: 0 | W44: 0 | X44: 0 | Y44: 0 | Z44: 0 | AA44: 0 | AB44: 0 | AC44: 0 | AD44: 0 | AE44: 0 | AF44: 0 | AG44: 0 | AH44: 0 | AI44: 0 | AJ44: 0 | AK44: 0 | AL44: 0 | AM44: 0 | AN44: 0 | AO44: 0 | AP44: 0 | AQ44: 0 | AR44: 0 | AS44: 0 | AT44: 0 | AU44: 0 | AV44: 0 | AW44: 0 | AX44: 0 | AY44: 0 | AZ44: 0 | BA44: 0 | BB44: 0 | BC44: 0 | BD44: 0 | BE44: 0
A45: 37 | B45: =dtsiswa!D43 -> 0 | U45: 0 | V45: 0 | W45: 0 | X45: 0 | Y45: 0 | Z45: 0 | AA45: 0 | AB45: 0 | AC45: 0 | AD45: 0 | AE45: 0 | AF45: 0 | AG45: 0 | AH45: 0 | AI45: 0 | AJ45: 0 | AK45: 0 | AL45: 0 | AM45: 0 | AN45: 0 | AO45: 0 | AP45: 0 | AQ45: 0 | AR45: 0 | AS45: 0 | AT45: 0 | AU45: 0 | AV45: 0 | AW45: 0 | AX45: 0 | AY45: 0 | AZ45: 0 | BA45: 0 | BB45: 0 | BC45: 0 | BD45: 0 | BE45: 0
A46: 38 | B46: =dtsiswa!D44 -> 0 | U46: 0 | V46: 0 | W46: 0 | X46: 0 | Y46: 0 | Z46: 0 | AA46: 0 | AB46: 0 | AC46: 0 | AD46: 0 | AE46: 0 | AF46: 0 | AG46: 0 | AH46: 0 | AI46: 0 | AJ46: 0 | AK46: 0 | AL46: 0 | AM46: 0 | AN46: 0 | AO46: 0 | AP46: 0 | AQ46: 0 | AR46: 0 | AS46: 0 | AT46: 0 | AU46: 0 | AV46: 0 | AW46: 0 | AX46: 0 | AY46: 0 | AZ46: 0 | BA46: 0 | BB46: 0 | BC46: 0 | BD46: 0 | BE46: 0
A47: 39 | B47: =dtsiswa!D45 -> 0 | U47: 0 | V47: 0 | W47: 0 | X47: 0 | Y47: 0 | Z47: 0 | AA47: 0 | AB47: 0 | AC47: 0 | AD47: 0 | AE47: 0 | AF47: 0 | AG47: 0 | AH47: 0 | AI47: 0 | AJ47: 0 | AK47: 0 | AL47: 0 | AM47: 0 | AN47: 0 | AO47: 0 | AP47: 0 | AQ47: 0 | AR47: 0 | AS47: 0 | AT47: 0 | AU47: 0 | AV47: 0 | AW47: 0 | AX47: 0 | AY47: 0 | AZ47: 0 | BA47: 0 | BB47: 0 | BC47: 0 | BD47: 0 | BE47: 0
A48: 40 | B48: =dtsiswa!D46 -> 0 | U48: 0 | V48: 0 | W48: 0 | X48: 0 | Y48: 0 | Z48: 0 | AA48: 0 | AB48: 0 | AC48: 0 | AD48: 0 | AE48: 0 | AF48: 0 | AG48: 0 | AH48: 0 | AI48: 0 | AJ48: 0 | AK48: 0 | AL48: =D48 -> 0 | AM48: =G48 -> 0 | AN48: 0 | AO48: 0 | AP48: =J48 -> 0 | AQ48: =IFERROR(AVERAGE(AM48:AP48)," ") -> 0 | AR48: 0 | AS48: 0 | AT48: 0 | AU48: 0 | AV48: =E48 -> 0 | AW48: =F48 -> 0 | AX48: 0 | AY48: 0 | AZ48: 0 | BA48: 0 | BB48: 0 | BC48: 0 | BD48: 0 | BE48: 0

Sheet UT_mat (hidden)
A3: DATA NILAI SEMESTER 2
A4: KI-3 DAN KI-4 KELAS : 4 / MATEMATIKA
A5: 1 | B5: 2 | C5: 3 | D5: 4 | E5: 5 | F5: 6 | G5: 7 | H5: 8 | I5: 9 | J5: 10 | K5: 11 | L5: 12 | M5: 13 | N5: 14 | O5: 15 | P5: 16 | Q5: 17 | R5: 18 | S5: 19 | T5: 20 | U5: 21 | V5: 22 | W5: 23 | X5: 24 | Y5: 25 | Z5: 26 | AA5: 27 | AB5: 28 | AC5: 29 | AD5: 30 | AE5: 31 | AF5: 32 | AG5: 33 | AH5: 34 | AI5: 35 | AJ5: 36 | AK5: 37 | AL5: 38 | AM5: 39 | AN5: 40 | AO5: 41 | AP5: 42 | AQ5: 43 | AR5: 44 | AS5: 45 | AT5: 46 | AU5: 47 | AV5: 48 | AW5: 49 | AX5: 50 | AY5: 51 | AZ5: 52 | BA5: 53 | BB5: 54 | BC5: 55 | BD5: 56 | BE5: 57 | BF5: 58 | BG5: 59 | BH5: 60 | BI5: 61 | BJ5: 62 | BK5: 63 | BL5: 64 | BM5: 65 | BN5: 66 | BO5: 67 | BP5: 68 | BQ5: 69 | BR5: 70 | BS5: 71 | BT5: 72 | BU5: 73 | BV5: 74 | BW5: 75 | BX5: 76 | BY5: 77 | BZ5: 78 | CA5: 79 | CB5: 80 | CC5: 81 | CD5: 82 | CE5: 83 | CF5: 84 | CG5: 85
A6: NO | B6: NAMA | C6: L/P | D6: Tema 6 | I6: Tema 7 | S6: Tema 8 | V6: Tema 9 | AC6: RERATA ( KI-3 ) | AJ6: R.TUGAS | AK6: RERATA ( KI-4 ) | AV6: r.tugas | AW6: nilai ulhar + tugas per KD | BD6: RTH | BE6: ASPEK KETRAMPILAN ( KI-4 ) | BU6: ASPEK PENGETAHUAN ( KI-3 )
D7: tugas | F7: Ulhar | I7: tugas | N7: ulhar | S7: tugas | V7: tugas | Y7: ulhar | AC7: rata - rata ulhar per-KD | AK7: rata-rata tugas per KD | BE7: T.6 | BH7: T.7 | BN7: T.8 | BQ7: t.9 | BU7: Tema 5 | BX7: Tema 6 | CC7: Tema 7 | CD7: Tema 8
D8: 4.1 | E8: 4.9 | F8: 3.7 | G8: 3.10 | I8: 4.5 | J8: 4.6 | K8: 4.7 | L8: 4.9 | M8: 4.10 | N8: 3.9 | O8: 3.10 | P8: 3.11 | Q8: 3.15 | S8: 4.8 | T8: 4.12 | V8: 4.2 | W8: 4.15 | X8: 4.17 | Y8: 3.3 | Z8: 3.7 | AA8: 3.16 | AC8: 3.3 | AD8: 3.7 | AE8: 3.9 | AF8: 3.10 | AG8: 3.11 | AH8: 3.15 | AI8: 3.16 | AK8: 4.1 | AL8: 4.2 | AM8: 4.5 | AN8: 4.6 | AO8: 4.7 | AP8: 4.8 | AQ8: 4.9 | AR8: 4.10 | AS8: 4.12 | AT8: 4.15 | AU8: 4.17 | AW8: 3.3 | AX8: 3.7 | AY8: 3.9 | AZ8: 3.10 | BA8: 3.11 | BB8: 3.15 | BC8: 3.16 | BE8: 4.1 | BF8: 4.9 | BG8: rt | BH8: 4.5 | BI8: 4.6 | BJ8: 4.7 | BK8: 4.9 | BL8: 4.10 | BM8: rt | BN8: 4.8 | BO8: 4.12 | BP8: rt | BQ8: 4.2 | BR8: 4.15 | BS8: 4.17 | BU8: 3.7 | BV8: 3.10 | BW8: rt | BX8: 3.9 | BY8: 3.10 | BZ8: 3.11 | CA8: 3.15 | CB8: rt | CC8: 3.2 | CD8: 3.3 | CE8: 3.7 | CF8: 3.16
A9: 1 | B9: =dtsiswa!D7 -> Achmad Zacky | C9: L | D9: 65 | E9: 70 | F9: 80 | G9: 75 | H9: =IFERROR(AVERAGE(D9:G9)," ") -> 72.5 | I9: 84 | J9: 90 | K9: 80 | L9: 67 | M9: 75 | N9: 84 | O9: 90 | P9: 80 | Q9: 75 | R9: =IFERROR(AVERAGE(I9:Q9)," ") -> 80.55555556 | S9: 80 | T9: 65 | U9: =IFERROR(AVERAGE(S9:T9)," ") -> 72.5 | V9: 74 | W9: 80 | X9: 65 | Y9: 74 | Z9: 45 | AA9: 80 | AB9: =IFERROR(AVERAGE(U9:AA9)," ") -> 70.07142857 | AC9: =Y9 -> 74 | AD9: =(F9+Z9)/2 -> 62.5 | AE9: =N9 -> 84 | AF9: =(O9+G9)/2 -> 82.5 | AG9: =P9 -> 80 | AH9: =Q9 -> 75 | AI9: =AA9 -> 80 | AJ9: =IFERROR(AVERAGE(AC9:AI9)," ") -> 76.85714286 | AK9: =D9 -> 65 | AL9: =V9 -> 74 | AM9: =I9 -> 84 | AN9: =J9 -> 90 | AO9: 80 | AP9: =S9 -> 80 | AQ9: =(E9+L9)/2 -> 68.5 | AR9: =M9 -> 75 | AS9: =T9 -> 65 | AT9: =W9 -> 80 | AU9: =X9 -> 65 | AV9: =IFERROR(AVERAGE(AK9:AU9)," ") -> 75.13636364 | AW9: =(AC9+AK9+AL9)/3 -> 71 | AX9: =(AD9+AM9+AN9)/3 -> 78.83333333 | AY9: =(AE9+AO9+AP9)/3 -> 81.33333333 | AZ9: =(AF9+AQ9+AR9)/3 -> 75.33333333 | BA9: =(AG9+AS9+AT9)/3 -> 75 | BB9: =(AH9+AU9)/2 -> 70 | BC9: =AI9 -> 80 | BD9: =IFERROR(AVERAGE(AW9:BC9)," ") -> 75.92857143 | BE9: =D9 -> 65 | BF9: =E9 -> 70 | BG9: =IFERROR(AVERAGE(BE9:BF9)," ") -> 67.5 | BH9: =I9 -> 84 | BI9: =J9 -> 90 | BJ9: =K9 -> 80 | BK9: =L9 -> 67 | BL9: =M9 -> 75 | BM9: =IFERROR(AVERAGE(BH9:BL9)," ") -> 79.2 | BN9: =S9 -> 80 | BO9: =T9 -> 65 | BP9: =IFERROR(AVERAGE(BN9:BO9)," ") -> 72.5 | BQ9: =V9 -> 74 | BR9: =W9 -> 80 | BS9: =X9 -> 65 | BT9: =IFERROR(AVERAGE(BQ9:BS9)," ") -> 73 | BU9: =F9 -> 80 | BV9: =G9 -> 75 | BW9: =IFERROR(AVERAGE(BU9:BV9)," ") -> 77.5 | BX9: =N9 -> 84 | BY9: =O9 -> 90 | BZ9: =P9 -> 80 | CA9: =Q9 -> 75 | CB9: =IFERROR(AVERAGE(BX9:CA9)," ") -> 82.25 | CC9: 0 | CD9: =Y9 -> 74 | CE9: =Z9 -> 45 | CF9: =AA9 -> 80 | CG9: =IFERROR(AVERAGE(CD9:CF9)," ") -> 66.33333333
A10: 2 | B10: =dtsiswa!D8 -> Angelia Vabel R | C10: L | AC10: =Y10 -> 0 | AD10: =(F10+Z10)/2 -> 0 | AE10: =N10 -> 0 | AF10: =(O10+G10)/2 -> 0 | AG10: =P10 -> 0 | AH10: =Q10 -> 0 | AI10: =AA10 -> 0 | AJ10: =IFERROR(AVERAGE(AC10:AI10)," ") -> 0 | AK10: =D10 -> 0 | AL10: =V10 -> 0 | AM10: =I10 -> 0 | AN10: =J10 -> 0 | AO10: =K10 -> 0 | AP10: =S10 -> 0 | AQ10: =(E10+L10)/2 -> 0 | AR10: =M10 -> 0 | AS10: =T10 -> 0 | AT10: =W10 -> 0 | AU10: =X10 -> 0 | AV10: =IFERROR(AVERAGE(AK10:AU10)," ") -> 0 | AW10: =(AC10+AK10+AL10)/3 -> 0 | AX10: =(AD10+AM10+AN10)/3 -> 0 | AY10: =(AE10+AO10+AP10)/3 -> 0 | AZ10: =(AF10+AQ10+AR10)/3 -> 0 | BA10: =(AG10+AS10+AT10)/3 -> 0 | BB10: =(AH10+AU10)/2 -> 0 | BC10: =AI10 -> 0 | BD10: =IFERROR(AVERAGE(AW10:BC10)," ") -> 0 | BE10: 0 | BF10: 0 | BG10: 0 | BH10: =I10 -> 0 | BI10: =J10 -> 0 | BJ10: =K10 -> 0 | BK10: =L10 -> 0 | BL10: =M10 -> 0 | BM10: =IFERROR(AVERAGE(BH10:BL10)," ") -> 0 | BN10: 0 | BO10: 0 | BP10: 0 | BQ10: 0 | BR10: 0 | BS10: 0 | BT10: 0 | BU10: 0 | BV10: 0 | BW10: 0 | BX10: 0 | BY10: 0 | BZ10: 0 | CA10: 0 | CB10: 0 | CC10: 0 | CD10: 0 | CE10: 0 | CF10: 0 | CG10: 0
A11: 3 | B11: =dtsiswa!D9 -> Anggun Dwi P.I | C11: L | AC11: 0 | AD11: 0 | AE11: 0 | AF11: 0 | AG11: 0 | AH11: 0 | AI11: 0 | AJ11: 0 | AK11: 0 | AL11: 0 | AM11: 0 | AN11: 0 | AO11: 0 | AP11: 0 | AQ11: 0 | AR11: 0 | AS11: 0 | AT11: 0 | AU11: 0 | AV11: 0 | AW11: 0 | AX11: 0 | AY11: 0 | AZ11: 0 | BA11: 0 | BB11: 0 | BC11: 0 | BD11: 0 | BE11: 0 | BF11: 0 | BG11: 0 | BH11: 0 | BI11: 0 | BJ11: 0 | BK11: 0 | BL11: 0 | BM11: 0 | BN11: 0 | BO11: 0 | BP11: 0 | BQ11: 0 | BR11: 0 | BS11: 0 | BT11: 0 | BU11: 0 | BV11: 0 | BW11: 0 | BX11: 0 | BY11: 0 | BZ11: 0 | CA11: 0 | CB11: 0 | CC11: 0 | CD11: 0 | CE11: 0 | CF11: 0 | CG11: 0
A12: 4 | B12: =dtsiswa!D10 -> Antonio Permata A | C12: L | AC12: 0 | AD12: 0 | AE12: 0 | AF12: 0 | AG12: 0 | AH12: 0 | AI12: 0 | AJ12: 0 | AK12: 0 | AL12: 0 | AM12: 0 | AN12: 0 | AO12: 0 | AP12: 0 | AQ12: 0 | AR12: 0 | AS12: 0 | AT12: 0 | AU12: 0 | AV12: 0 | AW12: 0 | AX12: 0 | AY12: 0 | AZ12: 0 | BA12: 0 | BB12: 0 | BC12: 0 | BD12: 0 | BE12: 0 | BF12: 0 | BG12: 0 | BH12: 0 | BI12: 0 | BJ12: 0 | BK12: 0 | BL12: 0 | BM12: 0 | BN12: 0 | BO12: 0 | BP12: 0 | BQ12: 0 | BR12: 0 | BS12: 0 | BT12: 0 | BU12: 0 | BV12: 0 | BW12: 0 | BX12: 0 | BY12: 0 | BZ12: 0 | CA12: 0 | CB12: 0 | CC12: 0 | CD12: 0 | CE12: 0 | CF12: 0 | CG12: 0
A13: 5 | B13: =dtsiswa!D11 -> Arya Pratama G | C13: P | AC13: 0 | AD13: 0 | AE13: 0 | AF13: 0 | AG13: 0 | AH13: 0 | AI13: 0 | AJ13: 0 | AK13: 0 | AL13: 0 | AM13: 0 | AN13: 0 | AO13: 0 | AP13: 0 | AQ13: 0 | AR13: 0 | AS13: 0 | AT13: 0 | AU13: 0 | AV13: 0 | AW13: 0 | AX13: 0 | AY13: 0 | AZ13: 0 | BA13: 0 | BB13: 0 | BC13: 0 | BD13: 0 | BE13: 0 | BF13: 0 | BG13: 0 | BH13: 0 | BI13: 0 | BJ13: 0 | BK13: 0 | BL13: 0 | BM13: 0 | BN13: 0 | BO13: 0 | BP13: 0 | BQ13: 0 | BR13: 0 | BS13: 0 | BT13: 0 | BU13: 0 | BV13: 0 | BW13: 0 | BX13: 0 | BY13: 0 | BZ13: 0 | CA13: 0 | CB13: 0 | CC13: 0 | CD13: 0 | CE13: 0 | CF13: 0 | CG13: 0
A14: 6 | B14: =dtsiswa!D12 -> Asyam Hanif Ihsan H | C14: P | AC14: 0 | AD14: 0 | AE14: 0 | AF14: 0 | AG14: 0 | AH14: 0 | AI14: 0 | AJ14: 0 | AK14: 0 | AL14: 0 | AM14: 0 | AN14: 0 | AO14: 0 | AP14: 0 | AQ14: 0 | AR14: 0 | AS14: 0 | AT14: 0 | AU14: 0 | AV14: 0 | AW14: 0 | AX14: 0 | AY14: 0 | AZ14: 0 | BA14: 0 | BB14: 0 | BC14: 0 | BD14: 0 | BE14: 0 | BF14: 0 | BG14: 0 | BH14: 0 | BI14: 0 | BJ14: 0 | BK14: 0 | BL14: 0 | BM14: 0 | BN14: 0 | BO14: 0 | BP14: 0 | BQ14: 0 | BR14: 0 | BS14: 0 | BT14: 0 | BU14: 0 | BV14: 0 | BW14: 0 | BX14: 0 | BY14: 0 | BZ14: 0 | CA14: 0 | CB14: 0 | CC14: 0 | CD14: 0 | CE14: 0 | CF14: 0 | CG14: 0
A15: 7 | B15: =dtsiswa!D13 -> Athaya Salsabilla Z | C15: L | AC15: 0 | AD15: 0 | AE15: 0 | AF15: 0 | AG15: 0 | AH15: 0 | AI15: 0 | AJ15: 0 | AK15: 0 | AL15: 0 | AM15: 0 | AN15: 0 | AO15: 0 | AP15: 0 | AQ15: 0 | AR15: 0 | AS15: 0 | AT15: 0 | AU15: 0 | AV15: 0 | AW15: 0 | AX15: 0 | AY15: 0 | AZ15: 0 | BA15: 0 | BB15: 0 | BC15: 0 | BD15: 0 | BE15: 0 | BF15: 0 | BG15: 0 | BH15: 0 | BI15: 0 | BJ15: 0 | BK15: 0 | BL15: 0 | BM15: 0 | BN15: 0 | BO15: 0 | BP15: 0 | BQ15: 0 | BR15: 0 | BS15: 0 | BT15: 0 | BU15: 0 | BV15: 0 | BW15: 0 | BX15: 0 | BY15: 0 | BZ15: 0 | CA15: 0 | CB15: 0 | CC15: 0 | CD15: 0 | CE15: 0 | CF15: 0 | CG15: 0
A16: 8 | B16: =dtsiswa!D14 -> Aulia Dea Rosalinda | C16: L | AC16: 0 | AD16: 0 | AE16: 0 | AF16: 0 | AG16: 0 | AH16: 0 | AI16: 0 | AJ16: 0 | AK16: 0 | AL16: 0 | AM16: 0 | AN16: 0 | AO16: 0 | AP16: 0 | AQ16: 0 | AR16: 0 | AS16: 0 | AT16: 0 | AU16: 0 | AV16: 0 | AW16: 0 | AX16: 0 | AY16: 0 | AZ16: 0 | BA16: 0 | BB16: 0 | BC16: 0 | BD16: 0 | BE16: 0 | BF16: 0 | BG16: 0 | BH16: 0 | BI16: 0 | BJ16: 0 | BK16: 0 | BL16: 0 | BM16: 0 | BN16: 0 | BO16: 0 | BP16: 0 | BQ16: 0 | BR16: 0 | BS16: 0 | BT16: 0 | BU16: 0 | BV16: 0 | BW16: 0 | BX16: 0 | BY16: 0 | BZ16: 0 | CA16: 0 | CB16: 0 | CC16: 0 | CD16: 0 | CE16: 0 | CF16: 0 | CG16: 0
A17: 9 | B17: =dtsiswa!D15 -> Claudia Gabriella L | C17: L | AC17: 0 | AD17: 0 | AE17: 0 | AF17: 0 | AG17: 0 | AH17: 0 | AI17: 0 | AJ17: 0 | AK17: 0 | AL17: 0 | AM17: 0 | AN17: 0 | AO17: 0 | AP17: 0 | AQ17: 0 | AR17: 0 | AS17: 0 | AT17: 0 | AU17: 0 | AV17: 0 | AW17: 0 | AX17: 0 | AY17: 0 | AZ17: 0 | BA17: 0 | BB17: 0 | BC17: 0 | BD17: 0 | BE17: 0 | BF17: 0 | BG17: 0 | BH17: 0 | BI17: 0 | BJ17: 0 | BK17: 0 | BL17: 0 | BM17: 0 | BN17: 0 | BO17: 0 | BP17: 0 | BQ17: 0 | BR17: 0 | BS17: 0 | BT17: 0 | BU17: 0 | BV17: 0 | BW17: 0 | BX17: 0 | BY17: 0 | BZ17: 0 | CA17: 0 | CB17: 0 | CC17: 0 | CD17: 0 | CE17: 0 | CF17: 0 | CG17: 0
A18: 10 | B18: =dtsiswa!D16 -> Deco Badarus Zaman | C18: L | AC18: 0 | AD18: 0 | AE18: 0 | AF18: 0 | AG18: 0 | AH18: 0 | AI18: 0 | AJ18: 0 | AK18: 0 | AL18: 0 | AM18: 0 | AN18: 0 | AO18: 0 | AP18: 0 | AQ18: 0 | AR18: 0 | AS18: 0 | AT18: 0 | AU18: 0 | AV18: 0 | AW18: 0 | AX18: 0 | AY18: 0 | AZ18: 0 | BA18: 0 | BB18: 0 | BC18: 0 | BD18: 0 | BE18: 0 | BF18: 0 | BG18: 0 | BH18: 0 | BI18: 0 | BJ18: 0 | BK18: 0 | BL18: 0 | BM18: 0 | BN18: 0 | BO18: 0 | BP18: 0 | BQ18: 0 | BR18: 0 | BS18: 0 | BT18: 0 | BU18: 0 | BV18: 0 | BW18: 0 | BX18: 0 | BY18: 0 | BZ18: 0 | CA18: 0 | CB18: 0 | CC18: 0 | CD18: 0 | CE18: 0 | CF18: 0 | CG18: 0
A19: 11 | B19: =dtsiswa!D17 -> Fania Mutiara Felichia | C19: L | AC19: 0 | AD19: 0 | AE19: 0 | AF19: 0 | AG19: 0 | AH19: 0 | AI19: 0 | AJ19: 0 | AK19: 0 | AL19: 0 | AM19: 0 | AN19: 0 | AO19: 0 | AP19: 0 | AQ19: 0 | AR19: 0 | AS19: 0 | AT19: 0 | AU19: 0 | AV19: 0 | AW19: 0 | AX19: 0 | AY19: 0 | AZ19: 0 | BA19: 0 | BB19: 0 | BC19: 0 | BD19: 0 | BE19: 0 | BF19: 0 | BG19: 0 | BH19: 0 | BI19: 0 | BJ19: 0 | BK19: 0 | BL19: 0 | BM19: 0 | BN19: 0 | BO19: 0 | BP19: 0 | BQ19: 0 | BR19: 0 | BS19: 0 | BT19: 0 | BU19: 0 | BV19: 0 | BW19: 0 | BX19: 0 | BY19: 0 | BZ19: 0 | CA19: 0 | CB19: 0 | CC19: 0 | CD19: 0 | CE19: 0 | CF19: 0 | CG19: 0
A20: 12 | B20: =dtsiswa!D18 -> Intan Dyah Nowari | C20: L | AC20: 0 | AD20: 0 | AE20: 0 | AF20: 0 | AG20: 0 | AH20: 0 | AI20: 0 | AJ20: 0 | AK20: 0 | AL20: 0 | AM20: 0 | AN20: 0 | AO20: 0 | AP20: 0 | AQ20: 0 | AR20: 0 | AS20: 0 | AT20: 0 | AU20: 0 | AV20: 0 | AW20: 0 | AX20: 0 | AY20: 0 | AZ20: 0 | BA20: 0 | BB20: 0 | BC20: 0 | BD20: 0 | BE20: 0 | BF20: 0 | BG20: 0 | BH20: 0 | BI20: 0 | BJ20: 0 | BK20: 0 | BL20: 0 | BM20: 0 | BN20: 0 | BO20: 0 | BP20: 0 | BQ20: 0 | BR20: 0 | BS20: 0 | BT20: 0 | BU20: 0 | BV20: 0 | BW20: 0 | BX20: 0 | BY20: 0 | BZ20: 0 | CA20: 0 | CB20: 0 | CC20: 0 | CD20: 0 | CE20: 0 | CF20: 0 | CG20: 0
A21: 13 | B21: =dtsiswa!D19 -> Misyanita Nurfitri S | C21: P | AC21: 0 | AD21: 0 | AE21: 0 | AF21: 0 | AG21: 0 | AH21: 0 | AI21: 0 | AJ21: 0 | AK21: 0 | AL21: 0 | AM21: 0 | AN21: 0 | AO21: 0 | AP21: 0 | AQ21: 0 | AR21: 0 | AS21: 0 | AT21: 0 | AU21: 0 | AV21: 0 | AW21: 0 | AX21: 0 | AY21: 0 | AZ21: 0 | BA21: 0 | BB21: 0 | BC21: 0 | BD21: 0 | BE21: 0 | BF21: 0 | BG21: 0 | BH21: 0 | BI21: 0 | BJ21: 0 | BK21: 0 | BL21: 0 | BM21: 0 | BN21: 0 | BO21: 0 | BP21: 0 | BQ21: 0 | BR21: 0 | BS21: 0 | BT21: 0 | BU21: 0 | BV21: 0 | BW21: 0 | BX21: 0 | BY21: 0 | BZ21: 0 | CA21: 0 | CB21: 0 | CC21: 0 | CD21: 0 | CE21: 0 | CF21: 0 | CG21: 0
A22: 14 | B22: =dtsiswa!D20 -> Moch Zidane Hita L. U | C22: L | AC22: 0 | AD22: 0 | AE22: 0 | AF22: 0 | AG22: 0 | AH22: 0 | AI22: 0 | AJ22: 0 | AK22: 0 | AL22: 0 | AM22: 0 | AN22: 0 | AO22: 0 | AP22: 0 | AQ22: 0 | AR22: 0 | AS22: 0 | AT22: 0 | AU22: 0 | AV22: 0 | AW22: 0 | AX22: 0 | AY22: 0 | AZ22: 0 | BA22: 0 | BB22: 0 | BC22: 0 | BD22: 0 | BE22: 0 | BF22: 0 | BG22: 0 | BH22: 0 | BI22: 0 | BJ22: 0 | BK22: 0 | BL22: 0 | BM22: 0 | BN22: 0 | BO22: 0 | BP22: 0 | BQ22: 0 | BR22: 0 | BS22: 0 | BT22: 0 | BU22: 0 | BV22: 0 | BW22: 0 | BX22: 0 | BY22: 0 | BZ22: 0 | CA22: 0 | CB22: 0 | CC22: 0 | CD22: 0 | CE22: 0 | CF22: 0 | CG22: 0
A23: 15 | B23: =dtsiswa!D21 -> Muhammad Ibra Maulana | C23: L | AC23: 0 | AD23: 0 | AE23: 0 | AF23: 0 | AG23: 0 | AH23: 0 | AI23: 0 | AJ23: 0 | AK23: 0 | AL23: 0 | AM23: 0 | AN23: 0 | AO23: 0 | AP23: 0 | AQ23: 0 | AR23: 0 | AS23: 0 | AT23: 0 | AU23: 0 | AV23: 0 | AW23: 0 | AX23: 0 | AY23: 0 | AZ23: 0 | BA23: 0 | BB23: 0 | BC23: 0 | BD23: 0 | BE23: 0 | BF23: 0 | BG23: 0 | BH23: 0 | BI23: 0 | BJ23: 0 | BK23: 0 | BL23: 0 | BM23: 0 | BN23: 0 | BO23: 0 | BP23: 0 | BQ23: 0 | BR23: 0 | BS23: 0 | BT23: 0 | BU23: 0 | BV23: 0 | BW23: 0 | BX23: 0 | BY23: 0 | BZ23: 0 | CA23: 0 | CB23: 0 | CC23: 0 | CD23: 0 | CE23: 0 | CF23: 0 | CG23: 0
A24: 16 | B24: =dtsiswa!D22 -> Nabilla Shiva Putri | C24: L | AC24: 0 | AD24: 0 | AE24: 0 | AF24: 0 | AG24: 0 | AH24: 0 | AI24: 0 | AJ24: 0 | AK24: 0 | AL24: 0 | AM24: 0 | AN24: 0 | AO24: 0 | AP24: 0 | AQ24: 0 | AR24: 0 | AS24: 0 | AT24: 0 | AU24: 0 | AV24: 0 | AW24: 0 | AX24: 0 | AY24: 0 | AZ24: 0 | BA24: 0 | BB24: 0 | BC24: 0 | BD24: 0 | BE24: 0 | BF24: 0 | BG24: 0 | BH24: 0 | BI24: 0 | BJ24: 0 | BK24: 0 | BL24: 0 | BM24: 0 | BN24: 0 | BO24: 0 | BP24: 0 | BQ24: 0 | BR24: 0 | BS24: 0 | BT24: 0 | BU24: 0 | BV24: 0 | BW24: 0 | BX24: 0 | BY24: 0 | BZ24: 0 | CA24: 0 | CB24: 0 | CC24: 0 | CD24: 0 | CE24: 0 | CF24: 0 | CG24: 0
A25: 17 | B25: =dtsiswa!D23 -> Naufal Falih F | C25: P | AC25: 0 | AD25: 0 | AE25: 0 | AF25: 0 | AG25: 0 | AH25: 0 | AI25: 0 | AJ25: 0 | AK25: 0 | AL25: 0 | AM25: 0 | AN25: 0 | AO25: 0 | AP25: 0 | AQ25: 0 | AR25: 0 | AS25: 0 | AT25: 0 | AU25: 0 | AV25: 0 | AW25: 0 | AX25: 0 | AY25: 0 | AZ25: 0 | BA25: 0 | BB25: 0 | BC25: 0 | BD25: 0 | BE25: 0 | BF25: 0 | BG25: 0 | BH25: 0 | BI25: 0 | BJ25: 0 | BK25: 0 | BL25: 0 | BM25: 0 | BN25: 0 | BO25: 0 | BP25: 0 | BQ25: 0 | BR25: 0 | BS25: 0 | BT25: 0 | BU25: 0 | BV25: 0 | BW25: 0 | BX25: 0 | BY25: 0 | BZ25: 0 | CA25: 0 | CB25: 0 | CC25: 0 | CD25: 0 | CE25: 0 | CF25: 0 | CG25: 0
A26: 18 | B26: =dtsiswa!D24 -> Nayla Annora Nobel W | C26: L | AC26: 0 | AD26: 0 | AE26: 0 | AF26: 0 | AG26: 0 | AH26: 0 | AI26: 0 | AJ26: 0 | AK26: 0 | AL26: 0 | AM26: 0 | AN26: 0 | AO26: 0 | AP26: 0 | AQ26: 0 | AR26: 0 | AS26: 0 | AT26: 0 | AU26: 0 | AV26: 0 | AW26: 0 | AX26: 0 | AY26: 0 | AZ26: 0 | BA26: 0 | BB26: 0 | BC26: 0 | BD26: 0 | BE26: 0 | BF26: 0 | BG26: 0 | BH26: 0 | BI26: 0 | BJ26: 0 | BK26: 0 | BL26: 0 | BM26: 0 | BN26: 0 | BO26: 0 | BP26: 0 | BQ26: 0 | BR26: 0 | BS26: 0 | BT26: 0 | BU26: 0 | BV26: 0 | BW26: 0 | BX26: 0 | BY26: 0 | BZ26: 0 | CA26: 0 | CB26: 0 | CC26: 0 | CD26: 0 | CE26: 0 | CF26: 0 | CG26: 0
A27: 19 | B27: =dtsiswa!D25 -> Raihan Danang P | C27: P | AC27: 0 | AD27: 0 | AE27: 0 | AF27: 0 | AG27: 0 | AH27: 0 | AI27: 0 | AJ27: 0 | AK27: 0 | AL27: 0 | AM27: 0 | AN27: 0 | AO27: 0 | AP27: 0 | AQ27: 0 | AR27: 0 | AS27: 0 | AT27: 0 | AU27: 0 | AV27: 0 | AW27: 0 | AX27: 0 | AY27: 0 | AZ27: 0 | BA27: 0 | BB27: 0 | BC27: 0 | BD27: 0 | BE27: 0 | BF27: 0 | BG27: 0 | BH27: 0 | BI27: 0 | BJ27: 0 | BK27: 0 | BL27: 0 | BM27: 0 | BN27: 0 | BO27: 0 | BP27: 0 | BQ27: 0 | BR27: 0 | BS27: 0 | BT27: 0 | BU27: 0 | BV27: 0 | BW27: 0 | BX27: 0 | BY27: 0 | BZ27: 0 | CA27: 0 | CB27: 0 | CC27: 0 | CD27: 0 | CE27: 0 | CF27: 0 | CG27: 0
A28: 20 | B28: =dtsiswa!D26 -> Roby Ardiyansyah | C28: P | AC28: 0 | AD28: 0 | AE28: 0 | AF28: 0 | AG28: 0 | AH28: 0 | AI28: 0 | AJ28: 0 | AK28: 0 | AL28: 0 | AM28: 0 | AN28: 0 | AO28: 0 | AP28: 0 | AQ28: 0 | AR28: 0 | AS28: 0 | AT28: 0 | AU28: 0 | AV28: 0 | AW28: 0 | AX28: 0 | AY28: 0 | AZ28: 0 | BA28: 0 | BB28: 0 | BC28: 0 | BD28: 0 | BE28: 0 | BF28: 0 | BG28: 0 | BH28: 0 | BI28: 0 | BJ28: 0 | BK28: 0 | BL28: 0 | BM28: 0 | BN28: 0 | BO28: 0 | BP28: 0 | BQ28: 0 | BR28: 0 | BS28: 0 | BT28: 0 | BU28: 0 | BV28: 0 | BW28: 0 | BX28: 0 | BY28: 0 | BZ28: 0 | CA28: 0 | CB28: 0 | CC28: 0 | CD28: 0 | CE28: 0 | CF28: 0 | CG28: 0
A29: 21 | B29: =dtsiswa!D27 -> Rojalingga Prana A | C29: L | AC29: 0 | AD29: 0 | AE29: 0 | AF29: 0 | AG29: 0 | AH29: 0 | AI29: 0 | AJ29: 0 | AK29: 0 | AL29: 0 | AM29: 0 | AN29: 0 | AO29: 0 | AP29: 0 | AQ29: 0 | AR29: 0 | AS29: 0 | AT29: 0 | AU29: 0 | AV29: 0 | AW29: 0 | AX29: 0 | AY29: 0 | AZ29: 0 | BA29: 0 | BB29: 0 | BC29: 0 | BD29: 0 | BE29: 0 | BF29: 0 | BG29: 0 | BH29: 0 | BI29: 0 | BJ29: 0 | BK29: 0 | BL29: 0 | BM29: 0 | BN29: 0 | BO29: 0 | BP29: 0 | BQ29: 0 | BR29: 0 | BS29: 0 | BT29: 0 | BU29: 0 | BV29: 0 | BW29: 0 | BX29: 0 | BY29: 0 | BZ29: 0 | CA29: 0 | CB29: 0 | CC29: 0 | CD29: 0 | CE29: 0 | CF29: 0 | CG29: 0
A30: 22 | B30: =dtsiswa!D28 -> Sally Savista A | AC30: 0 | AD30: 0 | AE30: 0 | AF30: 0 | AG30: 0 | AH30: 0 | AI30: 0 | AJ30: 0 | AK30: 0 | AL30: 0 | AM30: 0 | AN30: 0 | AO30: 0 | AP30: 0 | AQ30: 0 | AR30: 0 | AS30: 0 | AT30: 0 | AU30: 0 | AV30: 0 | AW30: 0 | AX30: 0 | AY30: 0 | AZ30: 0 | BA30: 0 | BB30: 0 | BC30: 0 | BD30: 0 | BE30: 0 | BF30: 0 | BG30: 0 | BH30: 0 | BI30: 0 | BJ30: 0 | BK30: 0 | BL30: 0 | BM30: 0 | BN30: 0 | BO30: 0 | BP30: 0 | BQ30: 0 | BR30: 0 | BS30: 0 | BT30: 0 | BU30: 0 | BV30: 0 | BW30: 0 | BX30: 0 | BY30: 0 | BZ30: 0 | CA30: 0 | CB30: 0 | CC30: 0 | CD30: 0 | CE30: 0 | CF30: 0 | CG30: 0
A31: 23 | B31: =dtsiswa!D29 -> Tania Kaori Angelita | AC31: 0 | AD31: 0 | AE31: 0 | AF31: 0 | AG31: 0 | AH31: 0 | AI31: 0 | AJ31: 0 | AK31: 0 | AL31: 0 | AM31: 0 | AN31: 0 | AO31: 0 | AP31: 0 | AQ31: 0 | AR31: 0 | AS31: 0 | AT31: 0 | AU31: 0 | AV31: 0 | AW31: 0 | AX31: 0 | AY31: 0 | AZ31: 0 | BA31: 0 | BB31: 0 | BC31: 0 | BD31: 0 | BE31: 0 | BF31: 0 | BG31: 0 | BH31: 0 | BI31: 0 | BJ31: 0 | BK31: 0 | BL31: 0 | BM31: 0 | BN31: 0 | BO31: 0 | BP31: 0 | BQ31: 0 | BR31: 0 | BS31: 0 | BT31: 0 | BU31: 0 | BV31: 0 | BW31: 0 | BX31: 0 | BY31: 0 | BZ31: 0 | CA31: 0 | CB31: 0 | CC31: 0 | CD31: 0 | CE31: 0 | CF31: 0 | CG31: 0
A32: 24 | B32: =dtsiswa!D30 -> Romzy Oka Ramadhani P | AC32: 0 | AD32: 0 | AE32: 0 | AF32: 0 | AG32: 0 | AH32: 0 | AI32: 0 | AJ32: 0 | AK32: 0 | AL32: 0 | AM32: 0 | AN32: 0 | AO32: 0 | AP32: 0 | AQ32: 0 | AR32: 0 | AS32: 0 | AT32: 0 | AU32: 0 | AV32: 0 | AW32: 0 | AX32: 0 | AY32: 0 | AZ32: 0 | BA32: 0 | BB32: 0 | BC32: 0 | BD32: 0 | BE32: 0 | BF32: 0 | BG32: 0 | BH32: 0 | BI32: 0 | BJ32: 0 | BK32: 0 | BL32: 0 | BM32: 0 | BN32: 0 | BO32: 0 | BP32: 0 | BQ32: 0 | BR32: 0 | BS32: 0 | BT32: 0 | BU32: 0 | BV32: 0 | BW32: 0 | BX32: 0 | BY32: 0 | BZ32: 0 | CA32: 0 | CB32: 0 | CC32: 0 | CD32: 0 | CE32: 0 | CF32: 0 | CG32: 0
A33: 25 | B33: =dtsiswa!D31 -> Larasati Jagadhita P | AC33: 0 | AD33: 0 | AE33: 0 | AF33: 0 | AG33: 0 | AH33: 0 | AI33: 0 | AJ33: 0 | AK33: 0 | AL33: 0 | AM33: 0 | AN33: 0 | AO33: 0 | AP33: 0 | AQ33: 0 | AR33: 0 | AS33: 0 | AT33: 0 | AU33: 0 | AV33: 0 | AW33: 0 | AX33: 0 | AY33: 0 | AZ33: 0 | BA33: 0 | BB33: 0 | BC33: 0 | BD33: 0 | BE33: 0 | BF33: 0 | BG33: 0 | BH33: 0 | BI33: 0 | BJ33: 0 | BK33: 0 | BL33: 0 | BM33: 0 | BN33: 0 | BO33: 0 | BP33: 0 | BQ33: 0 | BR33: 0 | BS33: 0 | BT33: 0 | BU33: 0 | BV33: 0 | BW33: 0 | BX33: 0 | BY33: 0 | BZ33: 0 | CA33: 0 | CB33: 0 | CC33: 0 | CD33: 0 | CE33: 0 | CF33: 0 | CG33: 0
A34: 26 | B34: =dtsiswa!D32 -> Meliana Citra A | AC34: 0 | AD34: 0 | AE34: 0 | AF34: 0 | AG34: 0 | AH34: 0 | AI34: 0 | AJ34: 0 | AK34: 0 | AL34: 0 | AM34: 0 | AN34: 0 | AO34: 0 | AP34: 0 | AQ34: 0 | AR34: 0 | AS34: 0 | AT34: 0 | AU34: 0 | AV34: 0 | AW34: 0 | AX34: 0 | AY34: 0 | AZ34: 0 | BA34: 0 | BB34: 0 | BC34: 0 | BD34: 0 | BE34: 0 | BF34: 0 | BG34: 0 | BH34: 0 | BI34: 0 | BJ34: 0 | BK34: 0 | BL34: 0 | BM34: 0 | BN34: 0 | BO34: 0 | BP34: 0 | BQ34: 0 | BR34: 0 | BS34: 0 | BT34: 0 | BU34: 0 | BV34: 0 | BW34: 0 | BX34: 0 | BY34: 0 | BZ34: 0 | CA34: 0 | CB34: 0 | CC34: 0 | CD34: 0 | CE34: 0 | CF34: 0 | CG34: 0
A35: 27 | B35: =dtsiswa!D33 -> Mohammad Rizky | AC35: 0 | AD35: 0 | AE35: 0 | AF35: 0 | AG35: 0 | AH35: 0 | AI35: 0 | AJ35: 0 | AK35: 0 | AL35: 0 | AM35: 0 | AN35: 0 | AO35: 0 | AP35: 0 | AQ35: 0 | AR35: 0 | AS35: 0 | AT35: 0 | AU35: 0 | AV35: 0 | AW35: 0 | AX35: 0 | AY35: 0 | AZ35: 0 | BA35: 0 | BB35: 0 | BC35: 0 | BD35: 0 | BE35: 0 | BF35: 0 | BG35: 0 | BH35: 0 | BI35: 0 | BJ35: 0 | BK35: 0 | BL35: 0 | BM35: 0 | BN35: 0 | BO35: 0 | BP35: 0 | BQ35: 0 | BR35: 0 | BS35: 0 | BT35: 0 | BU35: 0 | BV35: 0 | BW35: 0 | BX35: 0 | BY35: 0 | BZ35: 0 | CA35: 0 | CB35: 0 | CC35: 0 | CD35: 0 | CE35: 0 | CF35: 0 | CG35: 0
A36: 28 | B36: =dtsiswa!D34 -> 0 | AC36: 0 | AD36: 0 | AE36: 0 | AF36: 0 | AG36: 0 | AH36: 0 | AI36: 0 | AJ36: 0 | AK36: 0 | AL36: 0 | AM36: 0 | AN36: 0 | AO36: 0 | AP36: 0 | AQ36: 0 | AR36: 0 | AS36: 0 | AT36: 0 | AU36: 0 | AV36: 0 | AW36: 0 | AX36: 0 | AY36: 0 | AZ36: 0 | BA36: 0 | BB36: 0 | BC36: 0 | BD36: 0 | BE36: 0 | BF36: 0 | BG36: 0 | BH36: 0 | BI36: 0 | BJ36: 0 | BK36: 0 | BL36: 0 | BM36: 0 | BN36: 0 | BO36: 0 | BP36: 0 | BQ36: 0 | BR36: 0 | BS36: 0 | BT36: 0 | BU36: 0 | BV36: 0 | BW36: 0 | BX36: 0 | BY36: 0 | BZ36: 0 | CA36: 0 | CB36: 0 | CC36: 0 | CD36: 0 | CE36: 0 | CF36: 0 | CG36: 0
A37: 29 | B37: =dtsiswa!D35 -> 0 | AC37: 0 | AD37: 0 | AE37: 0 | AF37: 0 | AG37: 0 | AH37: 0 | AI37: 0 | AJ37: 0 | AK37: 0 | AL37: 0 | AM37: 0 | AN37: 0 | AO37: 0 | AP37: 0 | AQ37: 0 | AR37: 0 | AS37: 0 | AT37: 0 | AU37: 0 | AV37: 0 | AW37: 0 | AX37: 0 | AY37: 0 | AZ37: 0 | BA37: 0 | BB37: 0 | BC37: 0 | BD37: 0 | BE37: 0 | BF37: 0 | BG37: 0 | BH37: 0 | BI37: 0 | BJ37: 0 | BK37: 0 | BL37: 0 | BM37: 0 | BN37: 0 | BO37: 0 | BP37: 0 | BQ37: 0 | BR37: 0 | BS37: 0 | BT37: 0 | BU37: 0 | BV37: 0 | BW37: 0 | BX37: 0 | BY37: 0 | BZ37: 0 | CA37: 0 | CB37: 0 | CC37: 0 | CD37: 0 | CE37: 0 | CF37: 0 | CG37: 0
A38: 30 | B38: =dtsiswa!D36 -> 0 | AC38: 0 | AD38: 0 | AE38: 0 | AF38: 0 | AG38: 0 | AH38: 0 | AI38: 0 | AJ38: 0 | AK38: 0 | AL38: 0 | AM38: 0 | AN38: 0 | AO38: 0 | AP38: 0 | AQ38: 0 | AR38: 0 | AS38: 0 | AT38: 0 | AU38: 0 | AV38: 0 | AW38: 0 | AX38: 0 | AY38: 0 | AZ38: 0 | BA38: 0 | BB38: 0 | BC38: 0 | BD38: 0 | BE38: 0 | BF38: 0 | BG38: 0 | BH38: 0 | BI38: 0 | BJ38: 0 | BK38: 0 | BL38: 0 | BM38: 0 | BN38: 0 | BO38: 0 | BP38: 0 | BQ38: 0 | BR38: 0 | BS38: 0 | BT38: 0 | BU38: 0 | BV38: 0 | BW38: 0 | BX38: 0 | BY38: 0 | BZ38: 0 | CA38: 0 | CB38: 0 | CC38: 0 | CD38: 0 | CE38: 0 | CF38: 0 | CG38: 0
A39: 31 | B39: =dtsiswa!D37 -> 0 | AC39: 0 | AD39: 0 | AE39: 0 | AF39: 0 | AG39: 0 | AH39: 0 | AI39: 0 | AJ39: 0 | AK39: 0 | AL39: 0 | AM39: 0 | AN39: 0 | AO39: 0 | AP39: 0 | AQ39: 0 | AR39: 0 | AS39: 0 | AT39: 0 | AU39: 0 | AV39: 0 | AW39: 0 | AX39: 0 | AY39: 0 | AZ39: 0 | BA39: 0 | BB39: 0 | BC39: 0 | BD39: 0 | BE39: 0 | BF39: 0 | BG39: 0 | BH39: 0 | BI39: 0 | BJ39: 0 | BK39: 0 | BL39: 0 | BM39: 0 | BN39: 0 | BO39: 0 | BP39: 0 | BQ39: 0 | BR39: 0 | BS39: 0 | BT39: 0 | BU39: 0 | BV39: 0 | BW39: 0 | BX39: 0 | BY39: 0 | BZ39: 0 | CA39: 0 | CB39: 0 | CC39: 0 | CD39: 0 | CE39: 0 | CF39: 0 | CG39: 0
A40: 32 | B40: =dtsiswa!D38 -> 0 | AC40: 0 | AD40: 0 | AE40: 0 | AF40: 0 | AG40: 0 | AH40: 0 | AI40: 0 | AJ40: 0 | AK40: 0 | AL40: 0 | AM40: 0 | AN40: 0 | AO40: 0 | AP40: 0 | AQ40: 0 | AR40: 0 | AS40: 0 | AT40: 0 | AU40: 0 | AV40: 0 | AW40: 0 | AX40: 0 | AY40: 0 | AZ40: 0 | BA40: 0 | BB40: 0 | BC40: 0 | BD40: 0 | BE40: 0 | BF40: 0 | BG40: 0 | BH40: 0 | BI40: 0 | BJ40: 0 | BK40: 0 | BL40: 0 | BM40: 0 | BN40: 0 | BO40: 0 | BP40: 0 | BQ40: 0 | BR40: 0 | BS40: 0 | BT40: 0 | BU40: 0 | BV40: 0 | BW40: 0 | BX40: 0 | BY40: 0 | BZ40: 0 | CA40: 0 | CB40: 0 | CC40: 0 | CD40: 0 | CE40: 0 | CF40: 0 | CG40: 0
A41: 33 | B41: =dtsiswa!D39 -> 0 | AC41: 0 | AD41: 0 | AE41: 0 | AF41: 0 | AG41: 0 | AH41: 0 | AI41: 0 | AJ41: 0 | AK41: 0 | AL41: 0 | AM41: 0 | AN41: 0 | AO41: 0 | AP41: 0 | AQ41: 0 | AR41: 0 | AS41: 0 | AT41: 0 | AU41: 0 | AV41: 0 | AW41: 0 | AX41: 0 | AY41: 0 | AZ41: 0 | BA41: 0 | BB41: 0 | BC41: 0 | BD41: 0 | BE41: 0 | BF41: 0 | BG41: 0 | BH41: 0 | BI41: 0 | BJ41: 0 | BK41: 0 | BL41: 0 | BM41: 0 | BN41: 0 | BO41: 0 | BP41: 0 | BQ41: 0 | BR41: 0 | BS41: 0 | BT41: 0 | BU41: 0 | BV41: 0 | BW41: 0 | BX41: 0 | BY41: 0 | BZ41: 0 | CA41: 0 | CB41: 0 | CC41: 0 | CD41: 0 | CE41: 0 | CF41: 0 | CG41: 0
A42: 34 | B42: =dtsiswa!D40 -> 0 | AC42: 0 | AD42: 0 | AE42: 0 | AF42: 0 | AG42: 0 | AH42: 0 | AI42: 0 | AJ42: 0 | AK42: 0 | AL42: 0 | AM42: 0 | AN42: 0 | AO42: 0 | AP42: 0 | AQ42: 0 | AR42: 0 | AS42: 0 | AT42: 0 | AU42: 0 | AV42: 0 | AW42: 0 | AX42: 0 | AY42: 0 | AZ42: 0 | BA42: 0 | BB42: 0 | BC42: 0 | BD42: 0 | BE42: 0 | BF42: 0 | BG42: 0 | BH42: 0 | BI42: 0 | BJ42: 0 | BK42: 0 | BL42: 0 | BM42: 0 | BN42: 0 | BO42: 0 | BP42: 0 | BQ42: 0 | BR42: 0 | BS42: 0 | BT42: 0 | BU42: 0 | BV42: 0 | BW42: 0 | BX42: 0 | BY42: 0 | BZ42: 0 | CA42: 0 | CB42: 0 | CC42: 0 | CD42: 0 | CE42: 0 | CF42: 0 | CG42: 0
A43: 35 | B43: =dtsiswa!D41 -> 0 | AC43: 0 | AD43: 0 | AE43: 0 | AF43: 0 | AG43: 0 | AH43: 0 | AI43: 0 | AJ43: 0 | AK43: 0 | AL43: 0 | AM43: 0 | AN43: 0 | AO43: 0 | AP43: 0 | AQ43: 0 | AR43: 0 | AS43: 0 | AT43: 0 | AU43: 0 | AV43: 0 | AW43: 0 | AX43: 0 | AY43: 0 | AZ43: 0 | BA43: 0 | BB43: 0 | BC43: 0 | BD43: 0 | BE43: 0 | BF43: 0 | BG43: 0 | BH43: 0 | BI43: 0 | BJ43: 0 | BK43: 0 | BL43: 0 | BM43: 0 | BN43: 0 | BO43: 0 | BP43: 0 | BQ43: 0 | BR43: 0 | BS43: 0 | BT43: 0 | BU43: 0 | BV43: 0 | BW43: 0 | BX43: 0 | BY43: 0 | BZ43: 0 | CA43: 0 | CB43: 0 | CC43: 0 | CD43: 0 | CE43: 0 | CF43: 0 | CG43: 0
A44: 36 | B44: =dtsiswa!D42 -> 0 | AC44: 0 | AD44: 0 | AE44: 0 | AF44: 0 | AG44: 0 | AH44: 0 | AI44: 0 | AJ44: 0 | AK44: 0 | AL44: 0 | AM44: 0 | AN44: 0 | AO44: 0 | AP44: 0 | AQ44: 0 | AR44: 0 | AS44: 0 | AT44: 0 | AU44: 0 | AV44: 0 | AW44: 0 | AX44: 0 | AY44: 0 | AZ44: 0 | BA44: 0 | BB44: 0 | BC44: 0 | BD44: 0 | BE44: 0 | BF44: 0 | BG44: 0 | BH44: 0 | BI44: 0 | BJ44: 0 | BK44: 0 | BL44: 0 | BM44: 0 | BN44: 0 | BO44: 0 | BP44: 0 | BQ44: 0 | BR44: 0 | BS44: 0 | BT44: 0 | BU44: 0 | BV44: 0 | BW44: 0 | BX44: 0 | BY44: 0 | BZ44: 0 | CA44: 0 | CB44: 0 | CC44: 0 | CD44: 0 | CE44: 0 | CF44: 0 | CG44: 0
A45: 37 | B45: =dtsiswa!D43 -> 0 | AC45: 0 | AD45: 0 | AE45: 0 | AF45: 0 | AG45: 0 | AH45: 0 | AI45: 0 | AJ45: 0 | AK45: 0 | AL45: 0 | AM45: 0 | AN45: 0 | AO45: 0 | AP45: 0 | AQ45: 0 | AR45: 0 | AS45: 0 | AT45: 0 | AU45: 0 | AV45: 0 | AW45: 0 | AX45: 0 | AY45: 0 | AZ45: 0 | BA45: 0 | BB45: 0 | BC45: 0 | BD45: 0 | BE45: 0 | BF45: 0 | BG45: 0 | BH45: 0 | BI45: 0 | BJ45: 0 | BK45: 0 | BL45: 0 | BM45: 0 | BN45: 0 | BO45: 0 | BP45: 0 | BQ45: 0 | BR45: 0 | BS45: 0 | BT45: 0 | BU45: 0 | BV45: 0 | BW45: 0 | BX45: 0 | BY45: 0 | BZ45: 0 | CA45: 0 | CB45: 0 | CC45: 0 | CD45: 0 | CE45: 0 | CF45: 0 | CG45: 0
A46: 38 | B46: =dtsiswa!D44 -> 0 | AC46: 0 | AD46: 0 | AE46: 0 | AF46: 0 | AG46: 0 | AH46: 0 | AI46: 0 | AJ46: 0 | AK46: 0 | AL46: 0 | AM46: 0 | AN46: 0 | AO46: 0 | AP46: 0 | AQ46: 0 | AR46: 0 | AS46: 0 | AT46: 0 | AU46: 0 | AV46: 0 | AW46: 0 | AX46: 0 | AY46: 0 | AZ46: 0 | BA46: 0 | BB46: 0 | BC46: 0 | BD46: 0 | BE46: 0 | BF46: 0 | BG46: 0 | BH46: 0 | BI46: 0 | BJ46: 0 | BK46: 0 | BL46: 0 | BM46: 0 | BN46: 0 | BO46: 0 | BP46: 0 | BQ46: 0 | BR46: 0 | BS46: 0 | BT46: 0 | BU46: 0 | BV46: 0 | BW46: 0 | BX46: 0 | BY46: 0 | BZ46: 0 | CA46: 0 | CB46: 0 | CC46: 0 | CD46: 0 | CE46: 0 | CF46: 0 | CG46: 0
A47: 39 | B47: =dtsiswa!D45 -> 0 | AC47: 0 | AD47: 0 | AE47: 0 | AF47: 0 | AG47: 0 | AH47: 0 | AI47: 0 | AJ47: 0 | AK47: 0 | AL47: 0 | AM47: 0 | AN47: 0 | AO47: 0 | AP47: 0 | AQ47: 0 | AR47: 0 | AS47: 0 | AT47: 0 | AU47: 0 | AV47: 0 | AW47: 0 | AX47: 0 | AY47: 0 | AZ47: 0 | BA47: 0 | BB47: 0 | BC47: 0 | BD47: 0 | BE47: 0 | BF47: 0 | BG47: 0 | BH47: 0 | BI47: 0 | BJ47: 0 | BK47: 0 | BL47: 0 | BM47: 0 | BN47: 0 | BO47: 0 | BP47: 0 | BQ47: 0 | BR47: 0 | BS47: 0 | BT47: 0 | BU47: 0 | BV47: 0 | BW47: 0 | BX47: 0 | BY47: 0 | BZ47: 0 | CA47: 0 | CB47: 0 | CC47: 0 | CD47: 0 | CE47: 0 | CF47: 0 | CG47: 0
A48: 40 | B48: =dtsiswa!D46 -> 0 | AC48: 0 | AD48: 0 | AE48: 0 | AF48: 0 | AG48: 0 | AH48: 0 | AI48: 0 | AJ48: 0 | AK48: 0 | AL48: 0 | AM48: 0 | AN48: 0 | AO48: 0 | AP48: 0 | AQ48: 0 | AR48: 0 | AS48: 0 | AT48: 0 | AU48: 0 | AV48: 0 | AW48: 0 | AX48: 0 | AY48: 0 | AZ48: 0 | BA48: 0 | BB48: 0 | BC48: 0 | BD48: 0 | BE48: 0 | BF48: 0 | BG48: 0 | BH48: 0 | BI48: 0 | BJ48: 0 | BK48: 0 | BL48: 0 | BM48: 0 | BN48: 0 | BO48: 0 | BP48: 0 | BQ48: 0 | BR48: 0 | BS48: 0 | BT48: 0 | BU48: 0 | BV48: 0 | BW48: 0 | BX48: 0 | BY48: 0 | BZ48: 0 | CA48: 0 | CB48: 0 | CC48: 0 | CD48: 0 | CE48: 0 | CF48: 0 | CG48: 0

Sheet UHT_IPA (hidden)
A3: DATA NILAI SEMESTER 2
A4: KI-3 DAN KI-4 KELAS : 1 / IPA
A5: 1 | B5: 2 | C5: 3 | D5: 4 | E5: 5 | F5: 6 | G5: 7 | H5: 8 | I5: 9 | J5: 10 | K5: 11 | L5: 12 | M5: 13 | N5: 14 | O5: 15 | P5: 16 | Q5: 17 | R5: 18 | S5: 19 | T5: 20 | U5: 21 | V5: 22 | W5: 23 | X5: 24 | Y5: 25 | Z5: 26 | AA5: 27 | AB5: 28 | AC5: 29 | AD5: 30 | AE5: 31 | AF5: 32 | AG5: 33 | AH5: 34 | AI5: 35 | AJ5: 36 | AK5: 37 | AL5: 38 | AM5: 39 | AN5: 40 | AO5: 41 | AP5: 42 | AQ5: 43 | AR5: 44
A6: NO | B6: NAMA | C6: L/P | D6: tema 6 | G6: Tema 7 | K6: tema 8 | N6: tema 9 | Q6: RERATA ( KI-3 ) | S6: R.TUGAS | T6: RERATA ( KI-4 ) | W6: r.tugas | X6: nilai ulhar + tugas per KD | Z6: RTH | AA6: ASPEK KETRAMPILAN ( KI-4 ) | AM6: ASPEK PENGETAHUAN ( KI_3 )
D7: Ulhar | G7: tugas | I7: ulhar | K7: tugas | M7: ulhar | N7: tugas | P7: ulhar | Q7: rata - rata ulhar per-KD | T7: rata-rata tugas per KD | AA7: tema 6 | AD7: tema 7 | AG7: tema 8 | AJ7: tema 9 | AM7: T.6 | AN7: T.7 | AQ7: T.8 | AR7: tema 9
D8: 4.6 | E8: 4.7 | F8: 3.7 | G8: 4.4 | H8: 4.6 | I8: 3.5 | J8: 3.7 | K8: 4.6 | L8: 4.7 | M8: 3.7 | N8: 4.6 | O8: 4.7 | P8: 3.7 | Q8: 3.5 | R8: 3.7 | T8: 4.4 | U8: 4.6 | V8: 4.7 | X8: 3.5 | Y8: 3.7 | AA8: 4.6 | AB8: 4.7 | AD8: 4.4 | AE8: 4.6 | AG8: 4.6 | AH8: 4.7 | AJ8: 4.6 | AK8: 4.7 | AM8: 3.7 | AN8: 3.5 | AO8: 3.7 | AQ8: 3.7 | AR8: 3.7
A9: 1 | B9: =dtsiswa!D7 -> Achmad Zacky | C9: L | D9: 70 | E9: 65 | F9: 70 | G9: 56 | H9: 67 | I9: 81 | J9: 78 | K9: 80 | L9: 73 | M9: 81 | N9: 56 | O9: 60 | P9: 72 | Q9: =I9 -> 81 | R9: =(F9+J9+M9+P9)/4 -> 75.25 | S9: =IFERROR(AVERAGE(Q9:R9)," ") -> 78.125 | T9: =G9 -> 56 | U9: =(D9+H9+K9+N9)/4 -> 68.25 | V9: =(E9+L9+O9)/3 -> 66 | W9: =IFERROR(AVERAGE(T9:V9)," ") -> 63.41666667 | X9: =(Q9+T9+U9)/3 -> 68.41666667 | Y9: =(R9+U9+V9)/3 -> 69.83333333 | Z9: =IFERROR(AVERAGE(X9:Y9)," ") -> 69.125 | AA9: =D9 -> 70 | AB9: =E9 -> 65 | AC9: =IFERROR(AVERAGE(AA9:AB9)," ") -> 67.5 | AD9: =G9 -> 56 | AE9: =H9 -> 67 | AF9: =IFERROR(AVERAGE(AD9:AE9)," ") -> 61.5 | AG9: =K9 -> 80 | AH9: =L9 -> 73 | AI9: =IFERROR(AVERAGE(AG9:AH9)," ") -> 76.5 | AJ9: =N9 -> 56 | AK9: =O9 -> 60 | AL9: =IFERROR(AVERAGE(AJ9:AK9)," ") -> 58 | AM9: =F9 -> 70 | AN9: =I9 -> 81 | AO9: =J9 -> 78 | AP9: =IFERROR(AVERAGE(AN9:AO9)," ") -> 79.5 | AQ9: =M9 -> 81 | AR9: =P9 -> 72
A10: 2 | B10: =dtsiswa!D8 -> Angelia Vabel R | C10: L | Q10: =I10 -> 0 | R10: =(F10+J10+M10+P10)/4 -> 0 | S10: =IFERROR(AVERAGE(Q10:R10)," ") -> 0 | T10: =G10 -> 0 | U10: =(D10+H10+K10+N10)/4 -> 0 | V10: =(E10+L10+O10)/3 -> 0 | W10: =IFERROR(AVERAGE(T10:V10)," ") -> 0 | X10: =(Q10+T10+U10)/3 -> 0 | Y10: =(R10+U10+V10)/3 -> 0 | Z10: =IFERROR(AVERAGE(X10:Y10)," ") -> 0 | AA10: =D10 -> 0 | AB10: =E10 -> 0 | AC10: =IFERROR(AVERAGE(AA10:AB10)," ") -> 0 | AD10: =G10 -> 0 | AE10: =H10 -> 0 | AF10: =IFERROR(AVERAGE(AD10:AE10)," ") -> 0 | AG10: =K10 -> 0 | AH10: =L10 -> 0 | AI10: =IFERROR(AVERAGE(AG10:AH10)," ") -> 0 | AJ10: =N10 -> 0 | AK10: =O10 -> 0 | AL10: =IFERROR(AVERAGE(AJ10:AK10)," ") -> 0 | AM10: =F10 -> 0 | AN10: =I10 -> 0 | AO10: =J10 -> 0 | AP10: =IFERROR(AVERAGE(AN10:AO10)," ") -> 0 | AQ10: =M10 -> 0 | AR10: =P10 -> 0
A11: 3 | B11: =dtsiswa!D9 -> Anggun Dwi P.I | C11: L | Q11: 0 | R11: 0 | S11: 0 | T11: 0 | U11: 0 | V11: 0 | W11: 0 | X11: 0 | Y11: 0 | Z11: 0 | AA11: 0 | AB11: 0 | AC11: 0 | AD11: 0 | AE11: 0 | AF11: 0 | AG11: 0 | AH11: 0 | AI11: 0 | AJ11: 0 | AK11: 0 | AL11: 0 | AM11: 0 | AN11: 0 | AO11: 0 | AP11: 0 | AQ11: 0 | AR11: 0
A12: 4 | B12: =dtsiswa!D10 -> Antonio Permata A | C12: L | Q12: 0 | R12: 0 | S12: 0 | T12: 0 | U12: 0 | V12: 0 | W12: 0 | X12: 0 | Y12: 0 | Z12: 0 | AA12: 0 | AB12: 0 | AC12: 0 | AD12: 0 | AE12: 0 | AF12: 0 | AG12: 0 | AH12: 0 | AI12: 0 | AJ12: 0 | AK12: 0 | AL12: 0 | AM12: 0 | AN12: 0 | AO12: 0 | AP12: 0 | AQ12: 0 | AR12: 0
A13: 5 | B13: =dtsiswa!D11 -> Arya Pratama G | C13: P | Q13: 0 | R13: 0 | S13: 0 | T13: 0 | U13: 0 | V13: 0 | W13: 0 | X13: 0 | Y13: 0 | Z13: 0 | AA13: 0 | AB13: 0 | AC13: 0 | AD13: 0 | AE13: 0 | AF13: 0 | AG13: 0 | AH13: 0 | AI13: 0 | AJ13: 0 | AK13: 0 | AL13: 0 | AM13: 0 | AN13: 0 | AO13: 0 | AP13: 0 | AQ13: 0 | AR13: 0
A14: 6 | B14: =dtsiswa!D12 -> Asyam Hanif Ihsan H | C14: P | Q14: 0 | R14: 0 | S14: 0 | T14: 0 | U14: 0 | V14: 0 | W14: 0 | X14: 0 | Y14: 0 | Z14: 0 | AA14: 0 | AB14: 0 | AC14: 0 | AD14: 0 | AE14: 0 | AF14: 0 | AG14: 0 | AH14: 0 | AI14: 0 | AJ14: 0 | AK14: 0 | AL14: 0 | AM14: 0 | AN14: 0 | AO14: 0 | AP14: 0 | AQ14: 0 | AR14: 0
A15: 7 | B15: =dtsiswa!D13 -> Athaya Salsabilla Z | C15: L | Q15: 0 | R15: 0 | S15: 0 | T15: 0 | U15: 0 | V15: 0 | W15: 0 | X15: 0 | Y15: 0 | Z15: 0 | AA15: 0 | AB15: 0 | AC15: 0 | AD15: 0 | AE15: 0 | AF15: 0 | AG15: 0 | AH15: 0 | AI15: 0 | AJ15: 0 | AK15: 0 | AL15: 0 | AM15: 0 | AN15: 0 | AO15: 0 | AP15: 0 | AQ15: 0 | AR15: 0
A16: 8 | B16: =dtsiswa!D14 -> Aulia Dea Rosalinda | C16: L | Q16: 0 | R16: 0 | S16: 0 | T16: 0 | U16: 0 | V16: 0 | W16: 0 | X16: 0 | Y16: 0 | Z16: 0 | AA16: 0 | AB16: 0 | AC16: 0 | AD16: 0 | AE16: 0 | AF16: 0 | AG16: 0 | AH16: 0 | AI16: 0 | AJ16: 0 | AK16: 0 | AL16: 0 | AM16: 0 | AN16: 0 | AO16: 0 | AP16: 0 | AQ16: 0 | AR16: 0
A17: 9 | B17: =dtsiswa!D15 -> Claudia Gabriella L | C17: L | Q17: 0 | R17: 0 | S17: 0 | T17: 0 | U17: 0 | V17: 0 | W17: 0 | X17: 0 | Y17: 0 | Z17: 0 | AA17: 0 | AB17: 0 | AC17: 0 | AD17: 0 | AE17: 0 | AF17: 0 | AG17: 0 | AH17: 0 | AI17: 0 | AJ17: 0 | AK17: 0 | AL17: 0 | AM17: 0 | AN17: 0 | AO17: 0 | AP17: 0 | AQ17: 0 | AR17: 0
A18: 10 | B18: =dtsiswa!D16 -> Deco Badarus Zaman | C18: L | Q18: 0 | R18: 0 | S18: 0 | T18: 0 | U18: 0 | V18: 0 | W18: 0 | X18: 0 | Y18: 0 | Z18: 0 | AA18: 0 | AB18: 0 | AC18: 0 | AD18: 0 | AE18: 0 | AF18: 0 | AG18: 0 | AH18: 0 | AI18: 0 | AJ18: 0 | AK18: 0 | AL18: 0 | AM18: 0 | AN18: 0 | AO18: 0 | AP18: 0 | AQ18: 0 | AR18: 0
A19: 11 | B19: =dtsiswa!D17 -> Fania Mutiara Felichia | C19: L | Q19: 0 | R19: 0 | S19: 0 | T19: 0 | U19: 0 | V19: 0 | W19: 0 | X19: 0 | Y19: 0 | Z19: 0 | AA19: 0 | AB19: 0 | AC19: 0 | AD19: 0 | AE19: 0 | AF19: 0 | AG19: 0 | AH19: 0 | AI19: 0 | AJ19: 0 | AK19: 0 | AL19: 0 | AM19: 0 | AN19: 0 | AO19: 0 | AP19: 0 | AQ19: 0 | AR19: 0
A20: 12 | B20: =dtsiswa!D18 -> Intan Dyah Nowari | C20: L | Q20: 0 | R20: 0 | S20: 0 | T20: 0 | U20: 0 | V20: 0 | W20: 0 | X20: 0 | Y20: 0 | Z20: 0 | AA20: 0 | AB20: 0 | AC20: 0 | AD20: 0 | AE20: 0 | AF20: 0 | AG20: 0 | AH20: 0 | AI20: 0 | AJ20: 0 | AK20: 0 | AL20: 0 | AM20: 0 | AN20: 0 | AO20: 0 | AP20: 0 | AQ20: 0 | AR20: 0
A21: 13 | B21: =dtsiswa!D19 -> Misyanita Nurfitri S | C21: P | Q21: 0 | R21: 0 | S21: 0 | T21: 0 | U21: 0 | V21: 0 | W21: 0 | X21: 0 | Y21: 0 | Z21: 0 | AA21: 0 | AB21: 0 | AC21: 0 | AD21: 0 | AE21: 0 | AF21: 0 | AG21: 0 | AH21: 0 | AI21: 0 | AJ21: 0 | AK21: 0 | AL21: 0 | AM21: 0 | AN21: 0 | AO21: 0 | AP21: 0 | AQ21: 0 | AR21: 0
A22: 14 | B22: =dtsiswa!D20 -> Moch Zidane Hita L. U | C22: L | Q22: 0 | R22: 0 | S22: 0 | T22: 0 | U22: 0 | V22: 0 | W22: 0 | X22: 0 | Y22: 0 | Z22: 0 | AA22: 0 | AB22: 0 | AC22: 0 | AD22: 0 | AE22: 0 | AF22: 0 | AG22: 0 | AH22: 0 | AI22: 0 | AJ22: 0 | AK22: 0 | AL22: 0 | AM22: 0 | AN22: 0 | AO22: 0 | AP22: 0 | AQ22: 0 | AR22: 0
A23: 15 | B23: =dtsiswa!D21 -> Muhammad Ibra Maulana | C23: L | Q23: 0 | R23: 0 | S23: 0 | T23: 0 | U23: 0 | V23: 0 | W23: 0 | X23: 0 | Y23: 0 | Z23: 0 | AA23: 0 | AB23: 0 | AC23: 0 | AD23: 0 | AE23: 0 | AF23: 0 | AG23: 0 | AH23: 0 | AI23: 0 | AJ23: 0 | AK23: 0 | AL23: 0 | AM23: 0 | AN23: 0 | AO23: 0 | AP23: 0 | AQ23: 0 | AR23: 0
A24: 16 | B24: =dtsiswa!D22 -> Nabilla Shiva Putri | C24: L | Q24: 0 | R24: 0 | S24: 0 | T24: 0 | U24: 0 | V24: 0 | W24: 0 | X24: 0 | Y24: 0 | Z24: 0 | AA24: 0 | AB24: 0 | AC24: 0 | AD24: 0 | AE24: 0 | AF24: 0 | AG24: 0 | AH24: 0 | AI24: 0 | AJ24: 0 | AK24: 0 | AL24: 0 | AM24: 0 | AN24: 0 | AO24: 0 | AP24: 0 | AQ24: 0 | AR24: 0
A25: 17 | B25: =dtsiswa!D23 -> Naufal Falih F | C25: P | Q25: 0 | R25: 0 | S25: 0 | T25: 0 | U25: 0 | V25: 0 | W25: 0 | X25: 0 | Y25: 0 | Z25: 0 | AA25: 0 | AB25: 0 | AC25: 0 | AD25: 0 | AE25: 0 | AF25: 0 | AG25: 0 | AH25: 0 | AI25: 0 | AJ25: 0 | AK25: 0 | AL25: 0 | AM25: 0 | AN25: 0 | AO25: 0 | AP25: 0 | AQ25: 0 | AR25: 0
A26: 18 | B26: =dtsiswa!D24 -> Nayla Annora Nobel W | C26: L | Q26: 0 | R26: 0 | S26: 0 | T26: 0 | U26: 0 | V26: 0 | W26: 0 | X26: 0 | Y26: 0 | Z26: 0 | AA26: 0 | AB26: 0 | AC26: 0 | AD26: 0 | AE26: 0 | AF26: 0 | AG26: 0 | AH26: 0 | AI26: 0 | AJ26: 0 | AK26: 0 | AL26: 0 | AM26: 0 | AN26: 0 | AO26: 0 | AP26: 0 | AQ26: 0 | AR26: 0
A27: 19 | B27: =dtsiswa!D25 -> Raihan Danang P | C27: P | Q27: 0 | R27: 0 | S27: 0 | T27: 0 | U27: 0 | V27: 0 | W27: 0 | X27: 0 | Y27: 0 | Z27: 0 | AA27: 0 | AB27: 0 | AC27: 0 | AD27: 0 | AE27: 0 | AF27: 0 | AG27: 0 | AH27: 0 | AI27: 0 | AJ27: 0 | AK27: 0 | AL27: 0 | AM27: 0 | AN27: 0 | AO27: 0 | AP27: 0 | AQ27: 0 | AR27: 0
A28: 20 | B28: =dtsiswa!D26 -> Roby Ardiyansyah | C28: P | Q28: 0 | R28: 0 | S28: 0 | T28: 0 | U28: 0 | V28: 0 | W28: 0 | X28: 0 | Y28: 0 | Z28: 0 | AA28: 0 | AB28: 0 | AC28: 0 | AD28: 0 | AE28: 0 | AF28: 0 | AG28: 0 | AH28: 0 | AI28: 0 | AJ28: 0 | AK28: 0 | AL28: 0 | AM28: 0 | AN28: 0 | AO28: 0 | AP28: 0 | AQ28: 0 | AR28: 0
A29: 21 | B29: =dtsiswa!D27 -> Rojalingga Prana A | C29: L | Q29: 0 | R29: 0 | S29: 0 | T29: 0 | U29: 0 | V29: 0 | W29: 0 | X29: 0 | Y29: 0 | Z29: 0 | AA29: 0 | AB29: 0 | AC29: 0 | AD29: 0 | AE29: 0 | AF29: 0 | AG29: 0 | AH29: 0 | AI29: 0 | AJ29: 0 | AK29: 0 | AL29: 0 | AM29: 0 | AN29: 0 | AO29: 0 | AP29: 0 | AQ29: 0 | AR29: 0
A30: 22 | B30: =dtsiswa!D28 -> Sally Savista A | C30: P | Q30: 0 | R30: 0 | S30: 0 | T30: 0 | U30: 0 | V30: 0 | W30: 0 | X30: 0 | Y30: 0 | Z30: 0 | AA30: 0 | AB30: 0 | AC30: 0 | AD30: 0 | AE30: 0 | AF30: 0 | AG30: 0 | AH30: 0 | AI30: 0 | AJ30: 0 | AK30: 0 | AL30: 0 | AM30: 0 | AN30: 0 | AO30: 0 | AP30: 0 | AQ30: 0 | AR30: 0
A31: 23 | B31: =dtsiswa!D29 -> Tania Kaori Angelita | C31: L | Q31: 0 | R31: 0 | S31: 0 | T31: 0 | U31: 0 | V31: 0 | W31: 0 | X31: 0 | Y31: 0 | Z31: 0 | AA31: 0 | AB31: 0 | AC31: 0 | AD31: 0 | AE31: 0 | AF31: 0 | AG31: 0 | AH31: 0 | AI31: 0 | AJ31: 0 | AK31: 0 | AL31: 0 | AM31: 0 | AN31: 0 | AO31: 0 | AP31: 0 | AQ31: 0 | AR31: 0
A32: 24 | B32: =dtsiswa!D30 -> Romzy Oka Ramadhani P | C32: P | Q32: 0 | R32: 0 | S32: 0 | T32: 0 | U32: 0 | V32: 0 | W32: 0 | X32: 0 | Y32: 0 | Z32: 0 | AA32: 0 | AB32: 0 | AC32: 0 | AD32: 0 | AE32: 0 | AF32: 0 | AG32: 0 | AH32: 0 | AI32: 0 | AJ32: 0 | AK32: 0 | AL32: 0 | AM32: 0 | AN32: 0 | AO32: 0 | AP32: 0 | AQ32: 0 | AR32: 0
A33: 25 | B33: =dtsiswa!D31 -> Larasati Jagadhita P | C33: L | Q33: 0 | R33: 0 | S33: 0 | T33: 0 | U33: 0 | V33: 0 | W33: 0 | X33: 0 | Y33: 0 | Z33: 0 | AA33: 0 | AB33: 0 | AC33: 0 | AD33: 0 | AE33: 0 | AF33: 0 | AG33: 0 | AH33: 0 | AI33: 0 | AJ33: 0 | AK33: 0 | AL33: 0 | AM33: 0 | AN33: 0 | AO33: 0 | AP33: 0 | AQ33: 0 | AR33: 0
A34: 26 | B34: =dtsiswa!D32 -> Meliana Citra A | C34: P | Q34: 0 | R34: 0 | S34: 0 | T34: 0 | U34: 0 | V34: 0 | W34: 0 | X34: 0 | Y34: 0 | Z34: 0 | AA34: 0 | AB34: 0 | AC34: 0 | AD34: 0 | AE34: 0 | AF34: 0 | AG34: 0 | AH34: 0 | AI34: 0 | AJ34: 0 | AK34: 0 | AL34: 0 | AM34: 0 | AN34: 0 | AO34: 0 | AP34: 0 | AQ34: 0 | AR34: 0
A35: 27 | B35: =dtsiswa!D33 -> Mohammad Rizky | C35: L | Q35: 0 | R35: 0 | S35: 0 | T35: 0 | U35: 0 | V35: 0 | W35: 0 | X35: 0 | Y35: 0 | Z35: 0 | AA35: 0 | AB35: 0 | AC35: 0 | AD35: 0 | AE35: 0 | AF35: 0 | AG35: 0 | AH35: 0 | AI35: 0 | AJ35: 0 | AK35: 0 | AL35: 0 | AM35: 0 | AN35: 0 | AO35: 0 | AP35: 0 | AQ35: 0 | AR35: 0
A36: 28 | B36: =dtsiswa!D34 -> 0 | C36: P | Q36: 0 | R36: 0 | S36: 0 | T36: 0 | U36: 0 | V36: 0 | W36: 0 | X36: 0 | Y36: 0 | Z36: 0 | AA36: 0 | AB36: 0 | AC36: 0 | AD36: 0 | AE36: 0 | AF36: 0 | AG36: 0 | AH36: 0 | AI36: 0 | AJ36: 0 | AK36: 0 | AL36: 0 | AM36: 0 | AN36: 0 | AO36: 0 | AP36: 0 | AQ36: 0 | AR36: 0
A37: 29 | B37: =dtsiswa!D35 -> 0 | C37: P | Q37: 0 | R37: 0 | S37: 0 | T37: 0 | U37: 0 | V37: 0 | W37: 0 | X37: 0 | Y37: 0 | Z37: 0 | AA37: 0 | AB37: 0 | AC37: 0 | AD37: 0 | AE37: 0 | AF37: 0 | AG37: 0 | AH37: 0 | AI37: 0 | AJ37: 0 | AK37: 0 | AL37: 0 | AM37: 0 | AN37: 0 | AO37: 0 | AP37: 0 | AQ37: 0 | AR37: 0
A38: 30 | B38: =dtsiswa!D36 -> 0 | C38: L | Q38: 0 | R38: 0 | S38: 0 | T38: 0 | U38: 0 | V38: 0 | W38: 0 | X38: 0 | Y38: 0 | Z38: 0 | AA38: 0 | AB38: 0 | AC38: 0 | AD38: 0 | AE38: 0 | AF38: 0 | AG38: 0 | AH38: 0 | AI38: 0 | AJ38: 0 | AK38: 0 | AL38: 0 | AM38: 0 | AN38: 0 | AO38: 0 | AP38: 0 | AQ38: 0 | AR38: 0
A39: 31 | B39: =dtsiswa!D37 -> 0 | C39: P | Q39: 0 | R39: 0 | S39: 0 | T39: 0 | U39: 0 | V39: 0 | W39: 0 | X39: 0 | Y39: 0 | Z39: 0 | AA39: 0 | AB39: 0 | AC39: 0 | AD39: 0 | AE39: 0 | AF39: 0 | AG39: 0 | AH39: 0 | AI39: 0 | AJ39: 0 | AK39: 0 | AL39: 0 | AM39: 0 | AN39: 0 | AO39: 0 | AP39: 0 | AQ39: 0 | AR39: 0
A40: 32 | B40: =dtsiswa!D38 -> 0 | C40: L | Q40: 0 | R40: 0 | S40: 0 | T40: 0 | U40: 0 | V40: 0 | W40: 0 | X40: 0 | Y40: 0 | Z40: 0 | AA40: 0 | AB40: 0 | AC40: 0 | AD40: 0 | AE40: 0 | AF40: 0 | AG40: 0 | AH40: 0 | AI40: 0 | AJ40: 0 | AK40: 0 | AL40: 0 | AM40: 0 | AN40: 0 | AO40: 0 | AP40: 0 | AQ40: 0 | AR40: 0
A41: 33 | B41: =dtsiswa!D39 -> 0 | C41: P | Q41: 0 | R41: 0 | S41: 0 | T41: 0 | U41: 0 | V41: 0 | W41: 0 | X41: 0 | Y41: 0 | Z41: 0 | AA41: 0 | AB41: 0 | AC41: 0 | AD41: 0 | AE41: 0 | AF41: 0 | AG41: 0 | AH41: 0 | AI41: 0 | AJ41: 0 | AK41: 0 | AL41: 0 | AM41: 0 | AN41: 0 | AO41: 0 | AP41: 0 | AQ41: 0 | AR41: 0
A42: 34 | B42: =dtsiswa!D40 -> 0 | C42: L | Q42: 0 | R42: 0 | S42: 0 | T42: 0 | U42: 0 | V42: 0 | W42: 0 | X42: 0 | Y42: 0 | Z42: 0 | AA42: 0 | AB42: 0 | AC42: 0 | AD42: 0 | AE42: 0 | AF42: 0 | AG42: 0 | AH42: 0 | AI42: 0 | AJ42: 0 | AK42: 0 | AL42: 0 | AM42: 0 | AN42: 0 | AO42: 0 | AP42: 0 | AQ42: 0 | AR42: 0
A43: 35 | B43: =dtsiswa!D41 -> 0 | C43: P | Q43: 0 | R43: 0 | S43: 0 | T43: 0 | U43: 0 | V43: 0 | W43: 0 | X43: 0 | Y43: 0 | Z43: 0 | AA43: 0 | AB43: 0 | AC43: 0 | AD43: 0 | AE43: 0 | AF43: 0 | AG43: 0 | AH43: 0 | AI43: 0 | AJ43: 0 | AK43: 0 | AL43: 0 | AM43: 0 | AN43: 0 | AO43: 0 | AP43: 0 | AQ43: 0 | AR43: 0
A44: 36 | Q44: 0 | R44: 0 | S44: 0 | T44: 0 | U44: 0 | V44: 0 | W44: 0 | X44: 0 | Y44: 0 | Z44: 0 | AA44: 0 | AB44: 0 | AC44: 0 | AD44: 0 | AE44: 0 | AF44: 0 | AG44: 0 | AH44: 0 | AI44: 0 | AJ44: 0 | AK44: 0 | AL44: 0 | AM44: 0 | AN44: 0 | AO44: 0 | AP44: 0 | AQ44: 0 | AR44: 0
A45: 37 | Q45: 0 | R45: 0 | S45: 0 | T45: 0 | U45: 0 | V45: 0 | W45: 0 | X45: 0 | Y45: 0 | Z45: 0 | AA45: 0 | AB45: 0 | AC45: 0 | AD45: 0 | AE45: 0 | AF45: 0 | AG45: 0 | AH45: 0 | AI45: 0 | AJ45: 0 | AK45: 0 | AL45: 0 | AM45: 0 | AN45: 0 | AO45: 0 | AP45: 0 | AQ45: 0 | AR45: 0
A46: 38 | Q46: 0 | R46: 0 | S46: 0 | T46: 0 | U46: 0 | V46: 0 | W46: 0 | X46: 0 | Y46: 0 | Z46: 0 | AA46: 0 | AB46: 0 | AC46: 0 | AD46: 0 | AE46: 0 | AF46: 0 | AG46: 0 | AH46: 0 | AI46: 0 | AJ46: 0 | AK46: 0 | AL46: 0 | AM46: 0 | AN46: 0 | AO46: 0 | AP46: 0 | AQ46: 0 | AR46: 0
A47: 39 | Q47: 0 | R47: 0 | S47: 0 | T47: 0 | U47: 0 | V47: 0 | W47: 0 | X47: 0 | Y47: 0 | Z47: 0 | AA47: 0 | AB47: 0 | AC47: 0 | AD47: 0 | AE47: 0 | AF47: 0 | AG47: 0 | AH47: 0 | AI47: 0 | AJ47: 0 | AK47: 0 | AL47: 0 | AM47: 0 | AN47: 0 | AO47: 0 | AP47: 0 | AQ47: 0 | AR47: 0
A48: 40 | Q48: 0 | R48: 0 | S48: 0 | T48: 0 | U48: 0 | V48: 0 | W48: 0 | X48: 0 | Y48: 0 | Z48: 0 | AA48: 0 | AB48: 0 | AC48: 0 | AD48: 0 | AE48: 0 | AF48: 0 | AG48: 0 | AH48: 0 | AI48: 0 | AJ48: 0 | AK48: 0 | AL48: 0 | AM48: 0 | AN48: 0 | AO48: 0 | AP48: 0 | AQ48: 0 | AR48: 0

Sheet UHT_IPS (hidden)
A3: DATA NILAI SEMESTER 2
A4: KI-3 DAN KI-4 KELAS : 1 / IPS
A5: 1 | B5: 2 | C5: 3 | D5: 4 | E5: 5 | F5: 6 | G5: 7 | H5: 8 | I5: 9 | J5: 10 | K5: 11 | L5: 12 | M5: 13 | N5: 14 | O5: 15 | P5: 16 | Q5: 17 | R5: 18 | S5: 19 | T5: 20 | U5: 21 | V5: 22 | W5: 23 | X5: 24 | Y5: 25 | Z5: 26 | AA5: 27 | AB5: 28 | AC5: 29 | AD5: 30 | AE5: 31 | AF5: 32 | AG5: 33 | AH5: 34 | AI5: 35 | AJ5: 36 | AK5: 37 | AL5: 38 | AM5: 39 | AN5: 40 | AO5: 41 | AP5: 42 | AQ5: 43 | AR5: 44 | AS5: 45 | AT5: 46 | AU5: 47 | AV5: 48 | AW5: 49 | AX5: 50 | AY5: 51 | AZ5: 52 | BA5: 53 | BB5: 54 | BC5: 55 | BD5: 56 | BE5: 57 | BF5: 58 | BG5: 59 | BH5: 60
A6: NO | B6: NAMA | C6: L/P | D6: tema 6 | F6: Tema 7 | M6: tema 8 | S6: tema 9 | W6: RERATA ( KI-3 ) | Z6: R.TUGAS | AA6: RERATA ( KI-4 ) | AE6: r.tugas | AF6: nilai ulhar + tugas per KD | AI6: RTH | AJ6: ASPEK KETRAMPILAN ( KI-4 ) | AW6: ASPEK PENGETAHUAN ( KI_3 )
D7: tugas | E7: ulhar | F7: tugas | J7: ulhar | M7: tugas | P7: ulhar | S7: tugas | U7: ulhar | W7: rata - rata ulhar per-KD | AA7: rata-rata tugas per KD | AJ7: T.6 | AK7: tema 7 | AP7: tema 8 | AT7: tema 9 | AW7: T.6 | AX7: T.7 | BB7: T.8 | BF7: tema 9
D8: 4.5 | E8: 3.5 | F8: 4.1 | G8: 4.3 | H8: 4.4 | I8: 4.5 | J8: 3.3 | K8: 3.4 | L8: 3.5 | M8: 4.3 | N8: 4.4 | O8: 4.5 | P8: 3.3 | Q8: 3.4 | R8: 3.5 | S8: 4.3 | T8: 4.4 | U8: 3.3 | V8: 3.5 | W8: 3.3 | X8: 3.4 | Y8: 3.5 | AA8: 4.1 | AB8: 4.3 | AC8: 4.4 | AD8: 4.5 | AF8: 3.3 | AG8: 3.4 | AH8: 3.5 | AJ8: 4.5 | AK8: 4.1 | AL8: 4.3 | AM8: 4.4 | AN8: 4.5 | AP8: 4.3 | AQ8: 4.4 | AR8: 4.5 | AT8: 4.3 | AU8: 4.4 | AW8: 3.5 | AX8: 3.3 | AY8: 3.4 | AZ8: 3.5 | BB8: 3.3 | BC8: 3.4 | BD8: 3.5 | BF8: 3.3 | BG8: 3.5
A9: 1 | B9: =dtsiswa!D7 -> Achmad Zacky | C9: L | D9: 70 | E9: 65 | F9: 56 | G9: 65 | H9: 78 | I9: 67 | J9: 81 | K9: 78 | L9: 73 | M9: 80 | N9: 73 | O9: 56 | P9: 81 | Q9: 67 | R9: 70 | S9: 56 | T9: 60 | U9: 65 | V9: 72 | W9: =(J9+P9+U9)/3 -> 75.66666667 | X9: =(K9+Q9)/2 -> 72.5 | Y9: =(E9+L9+R9+V9)/4 -> 70 | Z9: =IFERROR(AVERAGE(W9:Y9)," ") -> 72.72222222 | AA9: =F9 -> 56 | AB9: =(G9+M9+S9)/3 -> 67 | AC9: =(H9+N9+T9)/3 -> 70.33333333 | AD9: =(I9+O9)/2 -> 61.5 | AE9: =IFERROR(AVERAGE(AA9:AD9)," ") -> 63.70833333 | AF9: =(W9+AB9+AA9)/3 -> 66.22222222 | AG9: =(X9+AC9)/2 -> 71.41666667 | AH9: 65.75 | AI9: =IFERROR(AVERAGE(AF9:AH9)," ") -> 67.7962963 | AJ9: =D9 -> 70 | AK9: =F9 -> 56 | AL9: =G9 -> 65 | AM9: 78 | AN9: 67 | AO9: =IFERROR(AVERAGE(AK9:AN9)," ") -> 66.5 | AP9: =M9 -> 80 | AQ9: =N9 -> 73 | AR9: 56 | AS9: =IFERROR(AVERAGE(AP9:AR9)," ") -> 69.66666667 | AT9: =S9 -> 56 | AU9: =T9 -> 60 | AV9: =IFERROR(AVERAGE(AT9:AU9)," ") -> 58 | AW9: =E9 -> 65 | AX9: =J9 -> 81 | AY9: =K9 -> 78 | AZ9: 73 | BA9: =IFERROR(AVERAGE(AX9:AZ9)," ") -> 77.33333333 | BB9: =P9 -> 81 | BC9: =Q9 -> 67 | BD9: 70 | BE9: =IFERROR(AVERAGE(BB9:BD9)," ") -> 72.66666667 | BF9: =U9 -> 65 | BG9: =V9 -> 72 | BH9: =IFERROR(AVERAGE(BF9:BG9)," ") -> 68.5
A10: 2 | B10: =dtsiswa!D8 -> Angelia Vabel R | C10: L | W10: =(J10+P10+U10)/3 -> 0 | X10: =(K10+Q10)/2 -> 0 | Y10: =(E10+L10+R10+V10)/4 -> 0 | Z10: =IFERROR(AVERAGE(W10:Y10)," ") -> 0 | AA10: =F10 -> 0 | AB10: =(G10+M10+S10)/3 -> 0 | AC10: =(H10+N10+T10)/3 -> 0 | AD10: =(I10+O10)/2 -> 0 | AE10: =IFERROR(AVERAGE(AA10:AD10)," ") -> 0 | AF10: =(W10+AB10+AA10)/3 -> 0 | AG10: =(X10+AC10)/2 -> 0 | AH10: =(Y10+AD10)/2 -> 0 | AI10: =IFERROR(AVERAGE(AF10:AH10)," ") -> 0 | AJ10: =D10 -> 0 | AK10: =F10 -> 0 | AL10: =G10 -> 0 | AM10: =H10 -> 0 | AN10: =I10 -> 0 | AO10: =IFERROR(AVERAGE(AK10:AN10)," ") -> 0 | AP10: =M10 -> 0 | AQ10: =N10 -> 0 | AR10: =O10 -> 0 | AS10: =IFERROR(AVERAGE(AP10:AR10)," ") -> 0 | AT10: =S10 -> 0 | AU10: =T10 -> 0 | AV10: =IFERROR(AVERAGE(AT10:AU10)," ") -> 0 | AW10: =E10 -> 0 | AX10: =J10 -> 0 | AY10: =K10 -> 0 | AZ10: =L10 -> 0 | BA10: =IFERROR(AVERAGE(AX10:AZ10)," ") -> 0 | BB10: =P10 -> 0 | BC10: =Q10 -> 0 | BD10: =R10 -> 0 | BE10: =IFERROR(AVERAGE(BB10:BD10)," ") -> 0 | BF10: =U10 -> 0 | BG10: =V10 -> 0 | BH10: =IFERROR(AVERAGE(BF10:BG10)," ") -> 0
A11: 3 | B11: =dtsiswa!D9 -> Anggun Dwi P.I | C11: L | W11: 0 | X11: 0 | Y11: 0 | Z11: 0 | AA11: 0 | AB11: 0 | AC11: 0 | AD11: 0 | AE11: 0 | AF11: 0 | AG11: 0 | AH11: 0 | AI11: 0 | AJ11: 0 | AK11: 0 | AL11: 0 | AM11: 0 | AN11: 0 | AO11: 0 | AP11: 0 | AQ11: 0 | AR11: 0 | AS11: 0 | AT11: 0 | AU11: 0 | AV11: 0 | AW11: 0 | AX11: 0 | AY11: 0 | AZ11: 0 | BA11: 0 | BB11: 0 | BC11: 0 | BD11: 0 | BE11: 0 | BF11: 0 | BG11: 0 | BH11: 0
A12: 4 | B12: =dtsiswa!D10 -> Antonio Permata A | C12: L | W12: 0 | X12: 0 | Y12: 0 | Z12: 0 | AA12: 0 | AB12: 0 | AC12: 0 | AD12: 0 | AE12: 0 | AF12: 0 | AG12: 0 | AH12: 0 | AI12: 0 | AJ12: 0 | AK12: 0 | AL12: 0 | AM12: 0 | AN12: 0 | AO12: 0 | AP12: 0 | AQ12: 0 | AR12: 0 | AS12: 0 | AT12: 0 | AU12: 0 | AV12: 0 | AW12: 0 | AX12: 0 | AY12: 0 | AZ12: 0 | BA12: 0 | BB12: 0 | BC12: 0 | BD12: 0 | BE12: 0 | BF12: 0 | BG12: 0 | BH12: 0
A13: 5 | B13: =dtsiswa!D11 -> Arya Pratama G | C13: P | W13: 0 | X13: 0 | Y13: 0 | Z13: 0 | AA13: 0 | AB13: 0 | AC13: 0 | AD13: 0 | AE13: 0 | AF13: 0 | AG13: 0 | AH13: 0 | AI13: 0 | AJ13: 0 | AK13: 0 | AL13: 0 | AM13: 0 | AN13: 0 | AO13: 0 | AP13: 0 | AQ13: 0 | AR13: 0 | AS13: 0 | AT13: 0 | AU13: 0 | AV13: 0 | AW13: 0 | AX13: 0 | AY13: 0 | AZ13: 0 | BA13: 0 | BB13: 0 | BC13: 0 | BD13: 0 | BE13: 0 | BF13: 0 | BG13: 0 | BH13: 0
A14: 6 | B14: =dtsiswa!D12 -> Asyam Hanif Ihsan H | C14: P | W14: 0 | X14: 0 | Y14: 0 | Z14: 0 | AA14: 0 | AB14: 0 | AC14: 0 | AD14: 0 | AE14: 0 | AF14: 0 | AG14: 0 | AH14: 0 | AI14: 0 | AJ14: 0 | AK14: 0 | AL14: 0 | AM14: 0 | AN14: 0 | AO14: 0 | AP14: 0 | AQ14: 0 | AR14: 0 | AS14: 0 | AT14: 0 | AU14: 0 | AV14: 0 | AW14: 0 | AX14: 0 | AY14: 0 | AZ14: 0 | BA14: 0 | BB14: 0 | BC14: 0 | BD14: 0 | BE14: 0 | BF14: 0 | BG14: 0 | BH14: 0
A15: 7 | B15: =dtsiswa!D13 -> Athaya Salsabilla Z | C15: L | W15: 0 | X15: 0 | Y15: 0 | Z15: 0 | AA15: 0 | AB15: 0 | AC15: 0 | AD15: 0 | AE15: 0 | AF15: 0 | AG15: 0 | AH15: 0 | AI15: 0 | AJ15: 0 | AK15: 0 | AL15: 0 | AM15: 0 | AN15: 0 | AO15: 0 | AP15: 0 | AQ15: 0 | AR15: 0 | AS15: 0 | AT15: 0 | AU15: 0 | AV15: 0 | AW15: 0 | AX15: 0 | AY15: 0 | AZ15: 0 | BA15: 0 | BB15: 0 | BC15: 0 | BD15: 0 | BE15: 0 | BF15: 0 | BG15: 0 | BH15: 0
A16: 8 | B16: =dtsiswa!D14 -> Aulia Dea Rosalinda | C16: L | W16: 0 | X16: 0 | Y16: 0 | Z16: 0 | AA16: 0 | AB16: 0 | AC16: 0 | AD16: 0 | AE16: 0 | AF16: 0 | AG16: 0 | AH16: 0 | AI16: 0 | AJ16: 0 | AK16: 0 | AL16: 0 | AM16: 0 | AN16: 0 | AO16: 0 | AP16: 0 | AQ16: 0 | AR16: 0 | AS16: 0 | AT16: 0 | AU16: 0 | AV16: 0 | AW16: 0 | AX16: 0 | AY16: 0 | AZ16: 0 | BA16: 0 | BB16: 0 | BC16: 0 | BD16: 0 | BE16: 0 | BF16: 0 | BG16: 0 | BH16: 0
A17: 9 | B17: =dtsiswa!D15 -> Claudia Gabriella L | C17: L | W17: 0 | X17: 0 | Y17: 0 | Z17: 0 | AA17: 0 | AB17: 0 | AC17: 0 | AD17: 0 | AE17: 0 | AF17: 0 | AG17: 0 | AH17: 0 | AI17: 0 | AJ17: 0 | AK17: 0 | AL17: 0 | AM17: 0 | AN17: 0 | AO17: 0 | AP17: 0 | AQ17: 0 | AR17: 0 | AS17: 0 | AT17: 0 | AU17: 0 | AV17: 0 | AW17: 0 | AX17: 0 | AY17: 0 | AZ17: 0 | BA17: 0 | BB17: 0 | BC17: 0 | BD17: 0 | BE17: 0 | BF17: 0 | BG17: 0 | BH17: 0
A18: 10 | B18: =dtsiswa!D16 -> Deco Badarus Zaman | C18: L | W18: 0 | X18: 0 | Y18: 0 | Z18: 0 | AA18: 0 | AB18: 0 | AC18: 0 | AD18: 0 | AE18: 0 | AF18: 0 | AG18: 0 | AH18: 0 | AI18: 0 | AJ18: 0 | AK18: 0 | AL18: 0 | AM18: 0 | AN18: 0 | AO18: 0 | AP18: 0 | AQ18: 0 | AR18: 0 | AS18: 0 | AT18: 0 | AU18: 0 | AV18: 0 | AW18: 0 | AX18: 0 | AY18: 0 | AZ18: 0 | BA18: 0 | BB18: 0 | BC18: 0 | BD18: 0 | BE18: 0 | BF18: 0 | BG18: 0 | BH18: 0
A19: 11 | B19: =dtsiswa!D17 -> Fania Mutiara Felichia | C19: L | W19: 0 | X19: 0 | Y19: 0 | Z19: 0 | AA19: 0 | AB19: 0 | AC19: 0 | AD19: 0 | AE19: 0 | AF19: 0 | AG19: 0 | AH19: 0 | AI19: 0 | AJ19: 0 | AK19: 0 | AL19: 0 | AM19: 0 | AN19: 0 | AO19: 0 | AP19: 0 | AQ19: 0 | AR19: 0 | AS19: 0 | AT19: 0 | AU19: 0 | AV19: 0 | AW19: 0 | AX19: 0 | AY19: 0 | AZ19: 0 | BA19: 0 | BB19: 0 | BC19: 0 | BD19: 0 | BE19: 0 | BF19: 0 | BG19: 0 | BH19: 0
A20: 12 | B20: =dtsiswa!D18 -> Intan Dyah Nowari | C20: L | W20: 0 | X20: 0 | Y20: 0 | Z20: 0 | AA20: 0 | AB20: 0 | AC20: 0 | AD20: 0 | AE20: 0 | AF20: 0 | AG20: 0 | AH20: 0 | AI20: 0 | AJ20: 0 | AK20: 0 | AL20: 0 | AM20: 0 | AN20: 0 | AO20: 0 | AP20: 0 | AQ20: 0 | AR20: 0 | AS20: 0 | AT20: 0 | AU20: 0 | AV20: 0 | AW20: 0 | AX20: 0 | AY20: 0 | AZ20: 0 | BA20: 0 | BB20: 0 | BC20: 0 | BD20: 0 | BE20: 0 | BF20: 0 | BG20: 0 | BH20: 0
A21: 13 | B21: =dtsiswa!D19 -> Misyanita Nurfitri S | C21: P | W21: 0 | X21: 0 | Y21: 0 | Z21: 0 | AA21: 0 | AB21: 0 | AC21: 0 | AD21: 0 | AE21: 0 | AF21: 0 | AG21: 0 | AH21: 0 | AI21: 0 | AJ21: 0 | AK21: 0 | AL21: 0 | AM21: 0 | AN21: 0 | AO21: 0 | AP21: 0 | AQ21: 0 | AR21: 0 | AS21: 0 | AT21: 0 | AU21: 0 | AV21: 0 | AW21: 0 | AX21: 0 | AY21: 0 | AZ21: 0 | BA21: 0 | BB21: 0 | BC21: 0 | BD21: 0 | BE21: 0 | BF21: 0 | BG21: 0 | BH21: 0
A22: 14 | B22: =dtsiswa!D20 -> Moch Zidane Hita L. U | C22: L | W22: 0 | X22: 0 | Y22: 0 | Z22: 0 | AA22: 0 | AB22: 0 | AC22: 0 | AD22: 0 | AE22: 0 | AF22: 0 | AG22: 0 | AH22: 0 | AI22: 0 | AJ22: 0 | AK22: 0 | AL22: 0 | AM22: 0 | AN22: 0 | AO22: 0 | AP22: 0 | AQ22: 0 | AR22: 0 | AS22: 0 | AT22: 0 | AU22: 0 | AV22: 0 | AW22: 0 | AX22: 0 | AY22: 0 | AZ22: 0 | BA22: 0 | BB22: 0 | BC22: 0 | BD22: 0 | BE22: 0 | BF22: 0 | BG22: 0 | BH22: 0
A23: 15 | B23: =dtsiswa!D21 -> Muhammad Ibra Maulana | C23: L | W23: 0 | X23: 0 | Y23: 0 | Z23: 0 | AA23: 0 | AB23: 0 | AC23: 0 | AD23: 0 | AE23: 0 | AF23: 0 | AG23: 0 | AH23: 0 | AI23: 0 | AJ23: 0 | AK23: 0 | AL23: 0 | AM23: 0 | AN23: 0 | AO23: 0 | AP23: 0 | AQ23: 0 | AR23: 0 | AS23: 0 | AT23: 0 | AU23: 0 | AV23: 0 | AW23: 0 | AX23: 0 | AY23: 0 | AZ23: 0 | BA23: 0 | BB23: 0 | BC23: 0 | BD23: 0 | BE23: 0 | BF23: 0 | BG23: 0 | BH23: 0
A24: 16 | B24: =dtsiswa!D22 -> Nabilla Shiva Putri | C24: L | W24: 0 | X24: 0 | Y24: 0 | Z24: 0 | AA24: 0 | AB24: 0 | AC24: 0 | AD24: 0 | AE24: 0 | AF24: 0 | AG24: 0 | AH24: 0 | AI24: 0 | AJ24: 0 | AK24: 0 | AL24: 0 | AM24: 0 | AN24: 0 | AO24: 0 | AP24: 0 | AQ24: 0 | AR24: 0 | AS24: 0 | AT24: 0 | AU24: 0 | AV24: 0 | AW24: 0 | AX24: 0 | AY24: 0 | AZ24: 0 | BA24: 0 | BB24: 0 | BC24: 0 | BD24: 0 | BE24: 0 | BF24: 0 | BG24: 0 | BH24: 0
A25: 17 | B25: =dtsiswa!D23 -> Naufal Falih F | C25: P | W25: 0 | X25: 0 | Y25: 0 | Z25: 0 | AA25: 0 | AB25: 0 | AC25: 0 | AD25: 0 | AE25: 0 | AF25: 0 | AG25: 0 | AH25: 0 | AI25: 0 | AJ25: 0 | AK25: 0 | AL25: 0 | AM25: 0 | AN25: 0 | AO25: 0 | AP25: 0 | AQ25: 0 | AR25: 0 | AS25: 0 | AT25: 0 | AU25: 0 | AV25: 0 | AW25: 0 | AX25: 0 | AY25: 0 | AZ25: 0 | BA25: 0 | BB25: 0 | BC25: 0 | BD25: 0 | BE25: 0 | BF25: 0 | BG25: 0 | BH25: 0
A26: 18 | B26: =dtsiswa!D24 -> Nayla Annora Nobel W | C26: L | W26: 0 | X26: 0 | Y26: 0 | Z26: 0 | AA26: 0 | AB26: 0 | AC26: 0 | AD26: 0 | AE26: 0 | AF26: 0 | AG26: 0 | AH26: 0 | AI26: 0 | AJ26: 0 | AK26: 0 | AL26: 0 | AM26: 0 | AN26: 0 | AO26: 0 | AP26: 0 | AQ26: 0 | AR26: 0 | AS26: 0 | AT26: 0 | AU26: 0 | AV26: 0 | AW26: 0 | AX26: 0 | AY26: 0 | AZ26: 0 | BA26: 0 | BB26: 0 | BC26: 0 | BD26: 0 | BE26: 0 | BF26: 0 | BG26: 0 | BH26: 0
A27: 19 | B27: =dtsiswa!D25 -> Raihan Danang P | C27: P | W27: 0 | X27: 0 | Y27: 0 | Z27: 0 | AA27: 0 | AB27: 0 | AC27: 0 | AD27: 0 | AE27: 0 | AF27: 0 | AG27: 0 | AH27: 0 | AI27: 0 | AJ27: 0 | AK27: 0 | AL27: 0 | AM27: 0 | AN27: 0 | AO27: 0 | AP27: 0 | AQ27: 0 | AR27: 0 | AS27: 0 | AT27: 0 | AU27: 0 | AV27: 0 | AW27: 0 | AX27: 0 | AY27: 0 | AZ27: 0 | BA27: 0 | BB27: 0 | BC27: 0 | BD27: 0 | BE27: 0 | BF27: 0 | BG27: 0 | BH27: 0
A28: 20 | B28: =dtsiswa!D26 -> Roby Ardiyansyah | C28: P | W28: 0 | X28: 0 | Y28: 0 | Z28: 0 | AA28: 0 | AB28: 0 | AC28: 0 | AD28: 0 | AE28: 0 | AF28: 0 | AG28: 0 | AH28: 0 | AI28: 0 | AJ28: 0 | AK28: 0 | AL28: 0 | AM28: 0 | AN28: 0 | AO28: 0 | AP28: 0 | AQ28: 0 | AR28: 0 | AS28: 0 | AT28: 0 | AU28: 0 | AV28: 0 | AW28: 0 | AX28: 0 | AY28: 0 | AZ28: 0 | BA28: 0 | BB28: 0 | BC28: 0 | BD28: 0 | BE28: 0 | BF28: 0 | BG28: 0 | BH28: 0
A29: 21 | B29: =dtsiswa!D27 -> Rojalingga Prana A | C29: L | W29: 0 | X29: 0 | Y29: 0 | Z29: 0 | AA29: 0 | AB29: 0 | AC29: 0 | AD29: 0 | AE29: 0 | AF29: 0 | AG29: 0 | AH29: 0 | AI29: 0 | AJ29: 0 | AK29: 0 | AL29: 0 | AM29: 0 | AN29: 0 | AO29: 0 | AP29: 0 | AQ29: 0 | AR29: 0 | AS29: 0 | AT29: 0 | AU29: 0 | AV29: 0 | AW29: 0 | AX29: 0 | AY29: 0 | AZ29: 0 | BA29: 0 | BB29: 0 | BC29: 0 | BD29: 0 | BE29: 0 | BF29: 0 | BG29: 0 | BH29: 0
A30: 22 | B30: =dtsiswa!D28 -> Sally Savista A | C30: P | W30: 0 | X30: 0 | Y30: 0 | Z30: 0 | AA30: 0 | AB30: 0 | AC30: 0 | AD30: 0 | AE30: 0 | AF30: 0 | AG30: 0 | AH30: 0 | AI30: 0 | AJ30: 0 | AK30: 0 | AL30: 0 | AM30: 0 | AN30: 0 | AO30: 0 | AP30: 0 | AQ30: 0 | AR30: 0 | AS30: 0 | AT30: 0 | AU30: 0 | AV30: 0 | AW30: 0 | AX30: 0 | AY30: 0 | AZ30: 0 | BA30: 0 | BB30: 0 | BC30: 0 | BD30: 0 | BE30: 0 | BF30: 0 | BG30: 0 | BH30: 0
A31: 23 | B31: =dtsiswa!D29 -> Tania Kaori Angelita | C31: L | W31: 0 | X31: 0 | Y31: 0 | Z31: 0 | AA31: 0 | AB31: 0 | AC31: 0 | AD31: 0 | AE31: 0 | AF31: 0 | AG31: 0 | AH31: 0 | AI31: 0 | AJ31: 0 | AK31: 0 | AL31: 0 | AM31: 0 | AN31: 0 | AO31: 0 | AP31: 0 | AQ31: 0 | AR31: 0 | AS31: 0 | AT31: 0 | AU31: 0 | AV31: 0 | AW31: 0 | AX31: 0 | AY31: 0 | AZ31: 0 | BA31: 0 | BB31: 0 | BC31: 0 | BD31: 0 | BE31: 0 | BF31: 0 | BG31: 0 | BH31: 0
A32: 24 | B32: =dtsiswa!D30 -> Romzy Oka Ramadhani P | C32: P | W32: 0 | X32: 0 | Y32: 0 | Z32: 0 | AA32: 0 | AB32: 0 | AC32: 0 | AD32: 0 | AE32: 0 | AF32: 0 | AG32: 0 | AH32: 0 | AI32: 0 | AJ32: 0 | AK32: 0 | AL32: 0 | AM32: 0 | AN32: 0 | AO32: 0 | AP32: 0 | AQ32: 0 | AR32: 0 | AS32: 0 | AT32: 0 | AU32: 0 | AV32: 0 | AW32: 0 | AX32: 0 | AY32: 0 | AZ32: 0 | BA32: 0 | BB32: 0 | BC32: 0 | BD32: 0 | BE32: 0 | BF32: 0 | BG32: 0 | BH32: 0
A33: 25 | B33: =dtsiswa!D31 -> Larasati Jagadhita P | C33: L | W33: 0 | X33: 0 | Y33: 0 | Z33: 0 | AA33: 0 | AB33: 0 | AC33: 0 | AD33: 0 | AE33: 0 | AF33: 0 | AG33: 0 | AH33: 0 | AI33: 0 | AJ33: 0 | AK33: 0 | AL33: 0 | AM33: 0 | AN33: 0 | AO33: 0 | AP33: 0 | AQ33: 0 | AR33: 0 | AS33: 0 | AT33: 0 | AU33: 0 | AV33: 0 | AW33: 0 | AX33: 0 | AY33: 0 | AZ33: 0 | BA33: 0 | BB33: 0 | BC33: 0 | BD33: 0 | BE33: 0 | BF33: 0 | BG33: 0 | BH33: 0
A34: 26 | B34: =dtsiswa!D32 -> Meliana Citra A | C34: P | W34: 0 | X34: 0 | Y34: 0 | Z34: 0 | AA34: 0 | AB34: 0 | AC34: 0 | AD34: 0 | AE34: 0 | AF34: 0 | AG34: 0 | AH34: 0 | AI34: 0 | AJ34: 0 | AK34: 0 | AL34: 0 | AM34: 0 | AN34: 0 | AO34: 0 | AP34: 0 | AQ34: 0 | AR34: 0 | AS34: 0 | AT34: 0 | AU34: 0 | AV34: 0 | AW34: 0 | AX34: 0 | AY34: 0 | AZ34: 0 | BA34: 0 | BB34: 0 | BC34: 0 | BD34: 0 | BE34: 0 | BF34: 0 | BG34: 0 | BH34: 0
A35: 27 | B35: =dtsiswa!D33 -> Mohammad Rizky | C35: L | W35: 0 | X35: 0 | Y35: 0 | Z35: 0 | AA35: 0 | AB35: 0 | AC35: 0 | AD35: 0 | AE35: 0 | AF35: 0 | AG35: 0 | AH35: 0 | AI35: 0 | AJ35: 0 | AK35: 0 | AL35: 0 | AM35: 0 | AN35: 0 | AO35: 0 | AP35: 0 | AQ35: 0 | AR35: 0 | AS35: 0 | AT35: 0 | AU35: 0 | AV35: 0 | AW35: 0 | AX35: 0 | AY35: 0 | AZ35: 0 | BA35: 0 | BB35: 0 | BC35: 0 | BD35: 0 | BE35: 0 | BF35: 0 | BG35: 0 | BH35: 0
A36: 28 | B36: =dtsiswa!D34 -> 0 | C36: P | W36: 0 | X36: 0 | Y36: 0 | Z36: 0 | AA36: 0 | AB36: 0 | AC36: 0 | AD36: 0 | AE36: 0 | AF36: 0 | AG36: 0 | AH36: 0 | AI36: 0 | AJ36: 0 | AK36: 0 | AL36: 0 | AM36: 0 | AN36: 0 | AO36: 0 | AP36: 0 | AQ36: 0 | AR36: 0 | AS36: 0 | AT36: 0 | AU36: 0 | AV36: 0 | AW36: 0 | AX36: 0 | AY36: 0 | AZ36: 0 | BA36: 0 | BB36: 0 | BC36: 0 | BD36: 0 | BE36: 0 | BF36: 0 | BG36: 0 | BH36: 0
A37: 29 | B37: =dtsiswa!D35 -> 0 | C37: P | W37: 0 | X37: 0 | Y37: 0 | Z37: 0 | AA37: 0 | AB37: 0 | AC37: 0 | AD37: 0 | AE37: 0 | AF37: 0 | AG37: 0 | AH37: 0 | AI37: 0 | AJ37: 0 | AK37: 0 | AL37: 0 | AM37: 0 | AN37: 0 | AO37: 0 | AP37: 0 | AQ37: 0 | AR37: 0 | AS37: 0 | AT37: 0 | AU37: 0 | AV37: 0 | AW37: 0 | AX37: 0 | AY37: 0 | AZ37: 0 | BA37: 0 | BB37: 0 | BC37: 0 | BD37: 0 | BE37: 0 | BF37: 0 | BG37: 0 | BH37: 0
A38: 30 | B38: =dtsiswa!D36 -> 0 | C38: L | W38: 0 | X38: 0 | Y38: 0 | Z38: 0 | AA38: 0 | AB38: 0 | AC38: 0 | AD38: 0 | AE38: 0 | AF38: 0 | AG38: 0 | AH38: 0 | AI38: 0 | AJ38: 0 | AK38: 0 | AL38: 0 | AM38: 0 | AN38: 0 | AO38: 0 | AP38: 0 | AQ38: 0 | AR38: 0 | AS38: 0 | AT38: 0 | AU38: 0 | AV38: 0 | AW38: 0 | AX38: 0 | AY38: 0 | AZ38: 0 | BA38: 0 | BB38: 0 | BC38: 0 | BD38: 0 | BE38: 0 | BF38: 0 | BG38: 0 | BH38: 0
A39: 31 | B39: =dtsiswa!D37 -> 0 | C39: P | W39: 0 | X39: 0 | Y39: 0 | Z39: 0 | AA39: 0 | AB39: 0 | AC39: 0 | AD39: 0 | AE39: 0 | AF39: 0 | AG39: 0 | AH39: 0 | AI39: 0 | AJ39: 0 | AK39: 0 | AL39: 0 | AM39: 0 | AN39: 0 | AO39: 0 | AP39: 0 | AQ39: 0 | AR39: 0 | AS39: 0 | AT39: 0 | AU39: 0 | AV39: 0 | AW39: 0 | AX39: 0 | AY39: 0 | AZ39: 0 | BA39: 0 | BB39: 0 | BC39: 0 | BD39: 0 | BE39: 0 | BF39: 0 | BG39: 0 | BH39: 0
A40: 32 | B40: =dtsiswa!D38 -> 0 | C40: L | W40: 0 | X40: 0 | Y40: 0 | Z40: 0 | AA40: 0 | AB40: 0 | AC40: 0 | AD40: 0 | AE40: 0 | AF40: 0 | AG40: 0 | AH40: 0 | AI40: 0 | AJ40: 0 | AK40: 0 | AL40: 0 | AM40: 0 | AN40: 0 | AO40: 0 | AP40: 0 | AQ40: 0 | AR40: 0 | AS40: 0 | AT40: 0 | AU40: 0 | AV40: 0 | AW40: 0 | AX40: 0 | AY40: 0 | AZ40: 0 | BA40: 0 | BB40: 0 | BC40: 0 | BD40: 0 | BE40: 0 | BF40: 0 | BG40: 0 | BH40: 0
A41: 33 | B41: =dtsiswa!D39 -> 0 | C41: P | W41: 0 | X41: 0 | Y41: 0 | Z41: 0 | AA41: 0 | AB41: 0 | AC41: 0 | AD41: 0 | AE41: 0 | AF41: 0 | AG41: 0 | AH41: 0 | AI41: 0 | AJ41: 0 | AK41: 0 | AL41: 0 | AM41: 0 | AN41: 0 | AO41: 0 | AP41: 0 | AQ41: 0 | AR41: 0 | AS41: 0 | AT41: 0 | AU41: 0 | AV41: 0 | AW41: 0 | AX41: 0 | AY41: 0 | AZ41: 0 | BA41: 0 | BB41: 0 | BC41: 0 | BD41: 0 | BE41: 0 | BF41: 0 | BG41: 0 | BH41: 0
A42: 34 | B42: =dtsiswa!D40 -> 0 | C42: L | W42: 0 | X42: 0 | Y42: 0 | Z42: 0 | AA42: 0 | AB42: 0 | AC42: 0 | AD42: 0 | AE42: 0 | AF42: 0 | AG42: 0 | AH42: 0 | AI42: 0 | AJ42: 0 | AK42: 0 | AL42: 0 | AM42: 0 | AN42: 0 | AO42: 0 | AP42: 0 | AQ42: 0 | AR42: 0 | AS42: 0 | AT42: 0 | AU42: 0 | AV42: 0 | AW42: 0 | AX42: 0 | AY42: 0 | AZ42: 0 | BA42: 0 | BB42: 0 | BC42: 0 | BD42: 0 | BE42: 0 | BF42: 0 | BG42: 0 | BH42: 0
A43: 35 | B43: =dtsiswa!D41 -> 0 | C43: P | W43: 0 | X43: 0 | Y43: 0 | Z43: 0 | AA43: 0 | AB43: 0 | AC43: 0 | AD43: 0 | AE43: 0 | AF43: 0 | AG43: 0 | AH43: 0 | AI43: 0 | AJ43: 0 | AK43: 0 | AL43: 0 | AM43: 0 | AN43: 0 | AO43: 0 | AP43: 0 | AQ43: 0 | AR43: 0 | AS43: 0 | AT43: 0 | AU43: 0 | AV43: 0 | AW43: 0 | AX43: 0 | AY43: 0 | AZ43: 0 | BA43: 0 | BB43: 0 | BC43: 0 | BD43: 0 | BE43: 0 | BF43: 0 | BG43: 0 | BH43: 0
A44: 36 | W44: 0 | X44: 0 | Y44: 0 | Z44: 0 | AA44: 0 | AB44: 0 | AC44: 0 | AD44: 0 | AE44: 0 | AF44: 0 | AG44: 0 | AH44: 0 | AI44: 0 | AJ44: 0 | AK44: 0 | AL44: 0 | AM44: 0 | AN44: 0 | AO44: 0 | AP44: 0 | AQ44: 0 | AR44: 0 | AS44: 0 | AT44: 0 | AU44: 0 | AV44: 0 | AW44: 0 | AX44: 0 | AY44: 0 | AZ44: 0 | BA44: 0 | BB44: 0 | BC44: 0 | BD44: 0 | BE44: 0 | BF44: 0 | BG44: 0 | BH44: 0
A45: 37 | W45: 0 | X45: 0 | Y45: 0 | Z45: 0 | AA45: 0 | AB45: 0 | AC45: 0 | AD45: 0 | AE45: 0 | AF45: 0 | AG45: 0 | AH45: 0 | AI45: 0 | AJ45: 0 | AK45: 0 | AL45: 0 | AM45: 0 | AN45: 0 | AO45: 0 | AP45: 0 | AQ45: 0 | AR45: 0 | AS45: 0 | AT45: 0 | AU45: 0 | AV45: 0 | AW45: 0 | AX45: 0 | AY45: 0 | AZ45: 0 | BA45: 0 | BB45: 0 | BC45: 0 | BD45: 0 | BE45: 0 | BF45: 0 | BG45: 0 | BH45: 0
A46: 38 | W46: 0 | X46: 0 | Y46: 0 | Z46: 0 | AA46: 0 | AB46: 0 | AC46: 0 | AD46: 0 | AE46: 0 | AF46: 0 | AG46: 0 | AH46: 0 | AI46: 0 | AJ46: 0 | AK46: 0 | AL46: 0 | AM46: 0 | AN46: 0 | AO46: 0 | AP46: 0 | AQ46: 0 | AR46: 0 | AS46: 0 | AT46: 0 | AU46: 0 | AV46: 0 | AW46: 0 | AX46: 0 | AY46: 0 | AZ46: 0 | BA46: 0 | BB46: 0 | BC46: 0 | BD46: 0 | BE46: 0 | BF46: 0 | BG46: 0 | BH46: 0
A47: 39 | W47: 0 | X47: 0 | Y47: 0 | Z47: 0 | AA47: 0 | AB47: 0 | AC47: 0 | AD47: 0 | AE47: 0 | AF47: 0 | AG47: 0 | AH47: 0 | AI47: 0 | AJ47: 0 | AK47: 0 | AL47: 0 | AM47: 0 | AN47: 0 | AO47: 0 | AP47: 0 | AQ47: 0 | AR47: 0 | AS47: 0 | AT47: 0 | AU47: 0 | AV47: 0 | AW47: 0 | AX47: 0 | AY47: 0 | AZ47: 0 | BA47: 0 | BB47: 0 | BC47: 0 | BD47: 0 | BE47: 0 | BF47: 0 | BG47: 0 | BH47: 0
A48: 40 | W48: 0 | X48: 0 | Y48: 0 | Z48: 0 | AA48: 0 | AB48: 0 | AC48: 0 | AD48: 0 | AE48: 0 | AF48: 0 | AG48: 0 | AH48: 0 | AI48: 0 | AJ48: 0 | AK48: 0 | AL48: 0 | AM48: 0 | AN48: 0 | AO48: 0 | AP48: 0 | AQ48: 0 | AR48: 0 | AS48: 0 | AT48: 0 | AU48: 0 | AV48: 0 | AW48: 0 | AX48: 0 | AY48: 0 | AZ48: 0 | BA48: 0 | BB48: 0 | BC48: 0 | BD48: 0 | BE48: 0 | BF48: 0 | BG48: 0 | BH48: 0

Sheet UT_Sbdp (hidden)
A3: DATA NILAI SEMESTER 2
A4: KI-3 DAN KI-4 KELAS : 1 / SBDP
A5: 1 | B5: 2 | C5: 3 | D5: 4 | E5: 5 | F5: 6 | G5: 7 | H5: 8 | I5: 9 | J5: 10 | K5: 11 | L5: 12 | M5: 13 | N5: 14 | O5: 15 | P5: 16 | Q5: 17 | R5: 18 | S5: 19 | T5: 20 | U5: 21 | V5: 22 | W5: 23 | X5: 24 | Y5: 25 | Z5: 26 | AA5: 27 | AB5: 28 | AC5: 29 | AD5: 30 | AE5: 31 | AF5: 32 | AG5: 33 | AH5: 34 | AI5: 35 | AJ5: 36 | AK5: 37 | AL5: 38 | AM5: 39 | AN5: 40 | AO5: 41 | AP5: 42 | AQ5: 43 | AR5: 44 | AS5: 45 | AT5: 46 | AU5: 47 | AV5: 48 | AW5: 49 | AX5: 50 | AY5: 51 | AZ5: 52 | BA5: 53 | BB5: 54 | BC5: 55 | BD5: 56 | BE5: 57 | BF5: 58 | BG5: 59 | BH5: 60 | BI5: 61 | BJ5: 62 | BK5: 63 | BL5: 64 | BM5: 65 | BN5: 66 | BO5: 67 | BP5: 68 | BQ5: 69 | BR5: 70 | BS5: 71 | BT5: 72 | BU5: 73
A6: NO | B6: NAMA | C6: L/P | D6: Tema 6 | H6: R | I6: Tema 7 | O6: R | P6: Tema 8 | U6: R | V6: Tema 9 | AB6: R | AC6: RERATA ( KI-3 ) | AG6: R.TUGAS | AH6: RERATA ( KI-4 ) | AN6: r.tugas | AO6: nilai ulhar + tugas per KD | AS6: RTH | AT6: ASPEK KETRAMPILAN ( KI-4 ) | BJ6: ASPEK PENGETAHUAN ( KI-3 )
D7: tugas | G7: Ulhar | I7: tugas | L7: ulhar | P7: tugas | S7: ulhar | V7: tugas | Y7: ulhar | AC7: rata - rata ulhar per-KD | AH7: rata-rata tugas per KD | AT7: tema 6 | AX7: tema 7 | BB7: tema 8 | BF7: tema 9 | BJ7: tema 6 | BK7: tema 7 | BO7: tema 8 | BR7: tema 8
D8: 4.1 | E8: 4.2 | F8: 4.4 | G8: 3.4 | I8: 4.1 | J8: 4.2 | K8: 4.4 | L8: 3.1 | M8: 3.2 | N8: 3.4 | P8: 4.2 | Q8: 4.4 | R8: 4.7 | S8: 3.2 | T8: 3.4 | V8: 4.4 | W8: 4.5 | X8: 4.14 | Y8: 3.2 | Z8: 3.3 | AA8: 3.4 | AC8: 3.1 | AD8: 3.2 | AE8: 3.3 | AF8: 3.4 | AH8: 4.1 | AI8: 4.2 | AJ8: 4.4 | AK8: 4.5 | AL8: 4.7 | AM8: 4.14 | AO8: 3.1 | AP8: 3.2 | AQ8: 3.3 | AR8: 3.4 | AT8: 4.1 | AU8: 4.2 | AV8: 4.4 | AX8: 4.1 | AY8: 4.2 | AZ8: 4.4 | BB8: 4.2 | BC8: 4.4 | BD8: 4.7 | BF8: 4.4 | BG8: 4.5 | BH8: 4.14 | BJ8: 3.4 | BK8: 3.1 | BL8: 3.2 | BM8: 3.4 | BO8: 3.2 | BP8: 3.4 | BR8: 3.2 | BS8: 3.3 | BT8: 3.4
A9: 1 | B9: =dtsiswa!D7 -> Achmad Zacky | C9: L | D9: 87 | E9: 90 | F9: 75 | G9: 85 | H9: =IFERROR(AVERAGE(D9:G9)," ") -> 84.25 | I9: 75 | J9: 80 | K9: 89 | L9: 73 | M9: 76 | N9: 85 | O9: =IFERROR(AVERAGE(I9:N9)," ") -> 79.66666667 | P9: 73 | Q9: 86 | R9: 75 | S9: 80 | T9: 73 | U9: =IFERROR(AVERAGE(P9:T9)," ") -> 77.4 | V9: 80 | W9: 89 | X9: 73 | Y9: 76 | Z9: 75 | AA9: 68 | AB9: =IFERROR(AVERAGE(V9:AA9)," ") -> 76.83333333 | AC9: =L9 -> 73 | AD9: =(M9+S9+Y9)/3 -> 77.33333333 | AE9: =(Z9) -> 75 | AF9: =(G9+N9+T9+AA9)/4 -> 77.75 | AG9: =IFERROR(AVERAGE(AC9:AF9)," ") -> 75.77083333 | AH9: =(D9+I9)/2 -> 81 | AI9: =(E9+J9+P9)/3 -> 81 | AJ9: =(F9+K9+Q9+V9)/4 -> 82.5 | AK9: =(W9) -> 89 | AL9: =(R9) -> 75 | AM9: =X9 -> 73 | AN9: =IFERROR(AVERAGE(AH9:AM9)," ") -> 80.25 | AO9: =(AC9+AH9)/2 -> 77 | AP9: =(AD9+AI9)/2 -> 79.16666667 | AQ9: 78.75 | AR9: =(AF9+AK9+AL9+AM9)/4 -> 78.6875 | AS9: =IFERROR(AVERAGE(AO9:AR9)," ") -> 78.40104167 | AT9: =D9 -> 87 | AU9: =E9 -> 90 | AV9: =F9 -> 75 | AW9: =IFERROR(AVERAGE(AT9:AV9)," ") -> 84 | AX9: =I9 -> 75 | AY9: =J9 -> 80 | AZ9: =K9 -> 89 | BA9: =IFERROR(AVERAGE(AX9:AZ9)," ") -> 81.33333333 | BB9: =P9 -> 73 | BC9: =Q9 -> 86 | BD9: =R9 -> 75 | BE9: =IFERROR(AVERAGE(BB9:BD9)," ") -> 78 | BF9: =V9 -> 80 | BG9: =W9 -> 89 | BH9: =X9 -> 73 | BI9: =IFERROR(AVERAGE(BF9:BH9)," ") -> 80.66666667 | BJ9: =G9 -> 85 | BK9: =L9 -> 73 | BM9: =N9 -> 85 | BN9: =IFERROR(AVERAGE(BK9:BM9)," ") -> 79 | BO9: =S9 -> 80 | BP9: =T9 -> 73 | BQ9: =IFERROR(AVERAGE(BP9:BP9)," ") -> 73 | BR9: =Y9 -> 76 | BS9: =Z9 -> 75 | BT9: =AA9 -> 68 | BU9: =IFERROR(AVERAGE(BR9:BT9)," ") -> 73
A10: 2 | B10: =dtsiswa!D8 -> Angelia Vabel R | C10: L | O10: =IFERROR(AVERAGE(I10:N10)," ") ->  | AC10: =L10 -> 0 | AD10: =(M10+S10+Y10)/3 -> 0 | AE10: =(Z10) -> 0 | AF10: =(G10+N10+T10+AA10)/4 -> 0 | AG10: =IFERROR(AVERAGE(AC10:AF10)," ") -> 0 | AH10: =(D10+I10)/2 -> 0 | AI10: =(E10+J10+P10)/3 -> 0 | AJ10: =(F10+K10+Q10+V10)/4 -> 0 | AK10: =(W10) -> 0 | AL10: =(R10) -> 0 | AM10: =X10 -> 0 | AN10: =IFERROR(AVERAGE(AH10:AM10)," ") -> 0 | AO10: =(AC10+AH10)/2 -> 0 | AP10: =(AD10+AI10)/2 -> 0 | AQ10: =(AE10+AJ10)/2 -> 0 | AR10: =(AF10+AK10+AL10+AM10)/4 -> 0 | AS10: =IFERROR(AVERAGE(AO10:AR10)," ") -> 0 | AT10: 0 | AU10: 0 | AV10: 0 | AW10: 0 | AX10: 0 | AY10: 0 | AZ10: 0 | BA10: =IFERROR(AVERAGE(AX10:AZ10)," ") -> 0 | BB10: 0 | BC10: 0 | BD10: 0 | BE10: 0 | BF10: 0 | BG10: 0 | BH10: 0 | BI10: 0 | BJ10: 0 | BK10: 0 | BM10: 0 | BN10: 0 | BO10: 0 | BP10: 0 | BQ10: 0 | BR10: 0 | BS10: 0 | BT10: 0 | BU10: 0
A11: 3 | B11: =dtsiswa!D9 -> Anggun Dwi P.I | C11: L | AC11: 0 | AD11: 0 | AE11: 0 | AF11: 0 | AG11: 0 | AH11: 0 | AI11: 0 | AJ11: 0 | AK11: 0 | AL11: 0 | AM11: 0 | AN11: 0 | AO11: 0 | AP11: 0 | AQ11: 0 | AR11: 0 | AS11: 0 | AT11: 0 | AU11: 0 | AV11: 0 | AW11: 0 | AX11: 0 | AY11: 0 | AZ11: 0 | BA11: 0 | BB11: 0 | BC11: 0 | BD11: 0 | BE11: 0 | BF11: 0 | BG11: 0 | BH11: 0 | BI11: 0 | BJ11: 0 | BK11: 0 | BM11: 0 | BN11: 0 | BO11: 0 | BP11: 0 | BQ11: 0 | BR11: 0 | BS11: 0 | BT11: 0 | BU11: 0
A12: 4 | B12: =dtsiswa!D10 -> Antonio Permata A | C12: L | AC12: 0 | AD12: 0 | AE12: 0 | AF12: 0 | AG12: 0 | AH12: 0 | AI12: 0 | AJ12: 0 | AK12: 0 | AL12: 0 | AM12: 0 | AN12: 0 | AO12: 0 | AP12: 0 | AQ12: 0 | AR12: 0 | AS12: 0 | AT12: 0 | AU12: 0 | AV12: 0 | AW12: 0 | AX12: 0 | AY12: 0 | AZ12: 0 | BA12: 0 | BB12: 0 | BC12: 0 | BD12: 0 | BE12: 0 | BF12: 0 | BG12: 0 | BH12: 0 | BI12: 0 | BJ12: 0 | BK12: 0 | BM12: 0 | BN12: 0 | BO12: 0 | BP12: 0 | BQ12: 0 | BR12: 0 | BS12: 0 | BT12: 0 | BU12: 0
A13: 5 | B13: =dtsiswa!D11 -> Arya Pratama G | C13: P | AC13: 0 | AD13: 0 | AE13: 0 | AF13: 0 | AG13: 0 | AH13: 0 | AI13: 0 | AJ13: 0 | AK13: 0 | AL13: 0 | AM13: 0 | AN13: 0 | AO13: 0 | AP13: 0 | AQ13: 0 | AR13: 0 | AS13: 0 | AT13: 0 | AU13: 0 | AV13: 0 | AW13: 0 | AX13: 0 | AY13: 0 | AZ13: 0 | BA13: 0 | BB13: 0 | BC13: 0 | BD13: 0 | BE13: 0 | BF13: 0 | BG13: 0 | BH13: 0 | BI13: 0 | BJ13: 0 | BK13: 0 | BM13: 0 | BN13: 0 | BO13: 0 | BP13: 0 | BQ13: 0 | BR13: 0 | BS13: 0 | BT13: 0 | BU13: 0
A14: 6 | B14: =dtsiswa!D12 -> Asyam Hanif Ihsan H | C14: P | AC14: 0 | AD14: 0 | AE14: 0 | AF14: 0 | AG14: 0 | AH14: 0 | AI14: 0 | AJ14: 0 | AK14: 0 | AL14: 0 | AM14: 0 | AN14: 0 | AO14: 0 | AP14: 0 | AQ14: 0 | AR14: 0 | AS14: 0 | AT14: 0 | AU14: 0 | AV14: 0 | AW14: 0 | AX14: 0 | AY14: 0 | AZ14: 0 | BA14: 0 | BB14: 0 | BC14: 0 | BD14: 0 | BE14: 0 | BF14: 0 | BG14: 0 | BH14: 0 | BI14: 0 | BJ14: 0 | BK14: 0 | BM14: 0 | BN14: 0 | BO14: 0 | BP14: 0 | BQ14: 0 | BR14: 0 | BS14: 0 | BT14: 0 | BU14: 0
A15: 7 | B15: =dtsiswa!D13 -> Athaya Salsabilla Z | C15: L | AC15: 0 | AD15: 0 | AE15: 0 | AF15: 0 | AG15: 0 | AH15: 0 | AI15: 0 | AJ15: 0 | AK15: 0 | AL15: 0 | AM15: 0 | AN15: 0 | AO15: 0 | AP15: 0 | AQ15: 0 | AR15: 0 | AS15: 0 | AT15: 0 | AU15: 0 | AV15: 0 | AW15: 0 | AX15: 0 | AY15: 0 | AZ15: 0 | BA15: 0 | BB15: 0 | BC15: 0 | BD15: 0 | BE15: 0 | BF15: 0 | BG15: 0 | BH15: 0 | BI15: 0 | BJ15: 0 | BK15: 0 | BM15: 0 | BN15: 0 | BO15: 0 | BP15: 0 | BQ15: 0 | BR15: 0 | BS15: 0 | BT15: 0 | BU15: 0
A16: 8 | B16: =dtsiswa!D14 -> Aulia Dea Rosalinda | C16: L | AC16: 0 | AD16: 0 | AE16: 0 | AF16: 0 | AG16: 0 | AH16: 0 | AI16: 0 | AJ16: 0 | AK16: 0 | AL16: 0 | AM16: 0 | AN16: 0 | AO16: 0 | AP16: 0 | AQ16: 0 | AR16: 0 | AS16: 0 | AT16: 0 | AU16: 0 | AV16: 0 | AW16: 0 | AX16: 0 | AY16: 0 | AZ16: 0 | BA16: 0 | BB16: 0 | BC16: 0 | BD16: 0 | BE16: 0 | BF16: 0 | BG16: 0 | BH16: 0 | BI16: 0 | BJ16: 0 | BK16: 0 | BM16: 0 | BN16: 0 | BO16: 0 | BP16: 0 | BQ16: 0 | BR16: 0 | BS16: 0 | BT16: 0 | BU16: 0
A17: 9 | B17: =dtsiswa!D15 -> Claudia Gabriella L | C17: L | AC17: 0 | AD17: 0 | AE17: 0 | AF17: 0 | AG17: 0 | AH17: 0 | AI17: 0 | AJ17: 0 | AK17: 0 | AL17: 0 | AM17: 0 | AN17: 0 | AO17: 0 | AP17: 0 | AQ17: 0 | AR17: 0 | AS17: 0 | AT17: 0 | AU17: 0 | AV17: 0 | AW17: 0 | AX17: 0 | AY17: 0 | AZ17: 0 | BA17: 0 | BB17: 0 | BC17: 0 | BD17: 0 | BE17: 0 | BF17: 0 | BG17: 0 | BH17: 0 | BI17: 0 | BJ17: 0 | BK17: 0 | BM17: 0 | BN17: 0 | BO17: 0 | BP17: 0 | BQ17: 0 | BR17: 0 | BS17: 0 | BT17: 0 | BU17: 0
A18: 10 | B18: =dtsiswa!D16 -> Deco Badarus Zaman | C18: L | AC18: 0 | AD18: 0 | AE18: 0 | AF18: 0 | AG18: 0 | AH18: 0 | AI18: 0 | AJ18: 0 | AK18: 0 | AL18: 0 | AM18: 0 | AN18: 0 | AO18: 0 | AP18: 0 | AQ18: 0 | AR18: 0 | AS18: 0 | AT18: 0 | AU18: 0 | AV18: 0 | AW18: 0 | AX18: 0 | AY18: 0 | AZ18: 0 | BA18: 0 | BB18: 0 | BC18: 0 | BD18: 0 | BE18: 0 | BF18: 0 | BG18: 0 | BH18: 0 | BI18: 0 | BJ18: 0 | BK18: 0 | BM18: 0 | BN18: 0 | BO18: 0 | BP18: 0 | BQ18: 0 | BR18: 0 | BS18: 0 | BT18: 0 | BU18: 0
A19: 11 | B19: =dtsiswa!D17 -> Fania Mutiara Felichia | C19: L | AC19: 0 | AD19: 0 | AE19: 0 | AF19: 0 | AG19: 0 | AH19: 0 | AI19: 0 | AJ19: 0 | AK19: 0 | AL19: 0 | AM19: 0 | AN19: 0 | AO19: 0 | AP19: 0 | AQ19: 0 | AR19: 0 | AS19: 0 | AT19: 0 | AU19: 0 | AV19: 0 | AW19: 0 | AX19: 0 | AY19: 0 | AZ19: 0 | BA19: 0 | BB19: 0 | BC19: 0 | BD19: 0 | BE19: 0 | BF19: 0 | BG19: 0 | BH19: 0 | BI19: 0 | BJ19: 0 | BK19: 0 | BM19: 0 | BN19: 0 | BO19: 0 | BP19: 0 | BQ19: 0 | BR19: 0 | BS19: 0 | BT19: 0 | BU19: 0
A20: 12 | B20: =dtsiswa!D18 -> Intan Dyah Nowari | C20: L | AC20: 0 | AD20: 0 | AE20: 0 | AF20: 0 | AG20: 0 | AH20: 0 | AI20: 0 | AJ20: 0 | AK20: 0 | AL20: 0 | AM20: 0 | AN20: 0 | AO20: 0 | AP20: 0 | AQ20: 0 | AR20: 0 | AS20: 0 | AT20: 0 | AU20: 0 | AV20: 0 | AW20: 0 | AX20: 0 | AY20: 0 | AZ20: 0 | BA20: 0 | BB20: 0 | BC20: 0 | BD20: 0 | BE20: 0 | BF20: 0 | BG20: 0 | BH20: 0 | BI20: 0 | BJ20: 0 | BK20: 0 | BM20: 0 | BN20: 0 | BO20: 0 | BP20: 0 | BQ20: 0 | BR20: 0 | BS20: 0 | BT20: 0 | BU20: 0
A21: 13 | B21: =dtsiswa!D19 -> Misyanita Nurfitri S | C21: P | AC21: 0 | AD21: 0 | AE21: 0 | AF21: 0 | AG21: 0 | AH21: 0 | AI21: 0 | AJ21: 0 | AK21: 0 | AL21: 0 | AM21: 0 | AN21: 0 | AO21: 0 | AP21: 0 | AQ21: 0 | AR21: 0 | AS21: 0 | AT21: 0 | AU21: 0 | AV21: 0 | AW21: 0 | AX21: 0 | AY21: 0 | AZ21: 0 | BA21: 0 | BB21: 0 | BC21: 0 | BD21: 0 | BE21: 0 | BF21: 0 | BG21: 0 | BH21: 0 | BI21: 0 | BJ21: 0 | BK21: 0 | BM21: 0 | BN21: 0 | BO21: 0 | BP21: 0 | BQ21: 0 | BR21: 0 | BS21: 0 | BT21: 0 | BU21: 0
A22: 14 | B22: =dtsiswa!D20 -> Moch Zidane Hita L. U | C22: L | AC22: 0 | AD22: 0 | AE22: 0 | AF22: 0 | AG22: 0 | AH22: 0 | AI22: 0 | AJ22: 0 | AK22: 0 | AL22: 0 | AM22: 0 | AN22: 0 | AO22: 0 | AP22: 0 | AQ22: 0 | AR22: 0 | AS22: 0 | AT22: 0 | AU22: 0 | AV22: 0 | AW22: 0 | AX22: 0 | AY22: 0 | AZ22: 0 | BA22: 0 | BB22: 0 | BC22: 0 | BD22: 0 | BE22: 0 | BF22: 0 | BG22: 0 | BH22: 0 | BI22: 0 | BJ22: 0 | BK22: 0 | BM22: 0 | BN22: 0 | BO22: 0 | BP22: 0 | BQ22: 0 | BR22: 0 | BS22: 0 | BT22: 0 | BU22: 0
A23: 15 | B23: =dtsiswa!D21 -> Muhammad Ibra Maulana | C23: L | AC23: 0 | AD23: 0 | AE23: 0 | AF23: 0 | AG23: 0 | AH23: 0 | AI23: 0 | AJ23: 0 | AK23: 0 | AL23: 0 | AM23: 0 | AN23: 0 | AO23: 0 | AP23: 0 | AQ23: 0 | AR23: 0 | AS23: 0 | AT23: 0 | AU23: 0 | AV23: 0 | AW23: 0 | AX23: 0 | AY23: 0 | AZ23: 0 | BA23: 0 | BB23: 0 | BC23: 0 | BD23: 0 | BE23: 0 | BF23: 0 | BG23: 0 | BH23: 0 | BI23: 0 | BJ23: 0 | BK23: 0 | BM23: 0 | BN23: 0 | BO23: 0 | BP23: 0 | BQ23: 0 | BR23: 0 | BS23: 0 | BT23: 0 | BU23: 0
A24: 16 | B24: =dtsiswa!D22 -> Nabilla Shiva Putri | C24: L | AC24: 0 | AD24: 0 | AE24: 0 | AF24: 0 | AG24: 0 | AH24: 0 | AI24: 0 | AJ24: 0 | AK24: 0 | AL24: 0 | AM24: 0 | AN24: 0 | AO24: 0 | AP24: 0 | AQ24: 0 | AR24: 0 | AS24: 0 | AT24: 0 | AU24: 0 | AV24: 0 | AW24: 0 | AX24: 0 | AY24: 0 | AZ24: 0 | BA24: 0 | BB24: 0 | BC24: 0 | BD24: 0 | BE24: 0 | BF24: 0 | BG24: 0 | BH24: 0 | BI24: 0 | BJ24: 0 | BK24: 0 | BM24: 0 | BN24: 0 | BO24: 0 | BP24: 0 | BQ24: 0 | BR24: 0 | BS24: 0 | BT24: 0 | BU24: 0
A25: 17 | B25: =dtsiswa!D23 -> Naufal Falih F | C25: P | AC25: 0 | AD25: 0 | AE25: 0 | AF25: 0 | AG25: 0 | AH25: 0 | AI25: 0 | AJ25: 0 | AK25: 0 | AL25: 0 | AM25: 0 | AN25: 0 | AO25: 0 | AP25: 0 | AQ25: 0 | AR25: 0 | AS25: 0 | AT25: 0 | AU25: 0 | AV25: 0 | AW25: 0 | AX25: 0 | AY25: 0 | AZ25: 0 | BA25: 0 | BB25: 0 | BC25: 0 | BD25: 0 | BE25: 0 | BF25: 0 | BG25: 0 | BH25: 0 | BI25: 0 | BJ25: 0 | BK25: 0 | BM25: 0 | BN25: 0 | BO25: 0 | BP25: 0 | BQ25: 0 | BR25: 0 | BS25: 0 | BT25: 0 | BU25: 0
A26: 18 | B26: =dtsiswa!D24 -> Nayla Annora Nobel W | C26: L | AC26: 0 | AD26: 0 | AE26: 0 | AF26: 0 | AG26: 0 | AH26: 0 | AI26: 0 | AJ26: 0 | AK26: 0 | AL26: 0 | AM26: 0 | AN26: 0 | AO26: 0 | AP26: 0 | AQ26: 0 | AR26: 0 | AS26: 0 | AT26: 0 | AU26: 0 | AV26: 0 | AW26: 0 | AX26: 0 | AY26: 0 | AZ26: 0 | BA26: 0 | BB26: 0 | BC26: 0 | BD26: 0 | BE26: 0 | BF26: 0 | BG26: 0 | BH26: 0 | BI26: 0 | BJ26: 0 | BK26: 0 | BM26: 0 | BN26: 0 | BO26: 0 | BP26: 0 | BQ26: 0 | BR26: 0 | BS26: 0 | BT26: 0 | BU26: 0
A27: 19 | B27: =dtsiswa!D25 -> Raihan Danang P | C27: P | AC27: 0 | AD27: 0 | AE27: 0 | AF27: 0 | AG27: 0 | AH27: 0 | AI27: 0 | AJ27: 0 | AK27: 0 | AL27: 0 | AM27: 0 | AN27: 0 | AO27: 0 | AP27: 0 | AQ27: 0 | AR27: 0 | AS27: 0 | AT27: 0 | AU27: 0 | AV27: 0 | AW27: 0 | AX27: 0 | AY27: 0 | AZ27: 0 | BA27: 0 | BB27: 0 | BC27: 0 | BD27: 0 | BE27: 0 | BF27: 0 | BG27: 0 | BH27: 0 | BI27: 0 | BJ27: 0 | BK27: 0 | BM27: 0 | BN27: 0 | BO27: 0 | BP27: 0 | BQ27: 0 | BR27: 0 | BS27: 0 | BT27: 0 | BU27: 0
A28: 20 | B28: =dtsiswa!D26 -> Roby Ardiyansyah | C28: P | AC28: 0 | AD28: 0 | AE28: 0 | AF28: 0 | AG28: 0 | AH28: 0 | AI28: 0 | AJ28: 0 | AK28: 0 | AL28: 0 | AM28: 0 | AN28: 0 | AO28: 0 | AP28: 0 | AQ28: 0 | AR28: 0 | AS28: 0 | AT28: 0 | AU28: 0 | AV28: 0 | AW28: 0 | AX28: 0 | AY28: 0 | AZ28: 0 | BA28: 0 | BB28: 0 | BC28: 0 | BD28: 0 | BE28: 0 | BF28: 0 | BG28: 0 | BH28: 0 | BI28: 0 | BJ28: 0 | BK28: 0 | BM28: 0 | BN28: 0 | BO28: 0 | BP28: 0 | BQ28: 0 | BR28: 0 | BS28: 0 | BT28: 0 | BU28: 0
A29: 21 | B29: =dtsiswa!D27 -> Rojalingga Prana A | C29: L | AC29: 0 | AD29: 0 | AE29: 0 | AF29: 0 | AG29: 0 | AH29: 0 | AI29: 0 | AJ29: 0 | AK29: 0 | AL29: 0 | AM29: 0 | AN29: 0 | AO29: 0 | AP29: 0 | AQ29: 0 | AR29: 0 | AS29: 0 | AT29: 0 | AU29: 0 | AV29: 0 | AW29: 0 | AX29: 0 | AY29: 0 | AZ29: 0 | BA29: 0 | BB29: 0 | BC29: 0 | BD29: 0 | BE29: 0 | BF29: 0 | BG29: 0 | BH29: 0 | BI29: 0 | BJ29: 0 | BK29: 0 | BM29: 0 | BN29: 0 | BO29: 0 | BP29: 0 | BQ29: 0 | BR29: 0 | BS29: 0 | BT29: 0 | BU29: 0
A30: 22 | B30: =dtsiswa!D28 -> Sally Savista A | AC30: 0 | AD30: 0 | AE30: 0 | AF30: 0 | AG30: 0 | AH30: 0 | AI30: 0 | AJ30: 0 | AK30: 0 | AL30: 0 | AM30: 0 | AN30: 0 | AO30: 0 | AP30: 0 | AQ30: 0 | AR30: 0 | AS30: 0 | AT30: 0 | AU30: 0 | AV30: 0 | AW30: 0 | AX30: 0 | AY30: 0 | AZ30: 0 | BA30: 0 | BB30: 0 | BC30: 0 | BD30: 0 | BE30: 0 | BF30: 0 | BG30: 0 | BH30: 0 | BI30: 0 | BJ30: 0 | BK30: 0 | BM30: 0 | BN30: 0 | BO30: 0 | BP30: 0 | BQ30: 0 | BR30: 0 | BS30: 0 | BT30: 0 | BU30: 0
A31: 23 | B31: =dtsiswa!D29 -> Tania Kaori Angelita | AC31: 0 | AD31: 0 | AE31: 0 | AF31: 0 | AG31: 0 | AH31: 0 | AI31: 0 | AJ31: 0 | AK31: 0 | AL31: 0 | AM31: 0 | AN31: 0 | AO31: 0 | AP31: 0 | AQ31: 0 | AR31: 0 | AS31: 0 | AT31: 0 | AU31: 0 | AV31: 0 | AW31: 0 | AX31: 0 | AY31: 0 | AZ31: 0 | BA31: 0 | BB31: 0 | BC31: 0 | BD31: 0 | BE31: 0 | BF31: 0 | BG31: 0 | BH31: 0 | BI31: 0 | BJ31: 0 | BK31: 0 | BM31: 0 | BN31: 0 | BO31: 0 | BP31: 0 | BQ31: 0 | BR31: 0 | BS31: 0 | BT31: 0 | BU31: 0
A32: 24 | B32: =dtsiswa!D30 -> Romzy Oka Ramadhani P | AC32: 0 | AD32: 0 | AE32: 0 | AF32: 0 | AG32: 0 | AH32: 0 | AI32: 0 | AJ32: 0 | AK32: 0 | AL32: 0 | AM32: 0 | AN32: 0 | AO32: 0 | AP32: 0 | AQ32: 0 | AR32: 0 | AS32: 0 | AT32: 0 | AU32: 0 | AV32: 0 | AW32: 0 | AX32: 0 | AY32: 0 | AZ32: 0 | BA32: 0 | BB32: 0 | BC32: 0 | BD32: 0 | BE32: 0 | BF32: 0 | BG32: 0 | BH32: 0 | BI32: 0 | BJ32: 0 | BK32: 0 | BM32: 0 | BN32: 0 | BO32: 0 | BP32: 0 | BQ32: 0 | BR32: 0 | BS32: 0 | BT32: 0 | BU32: 0
A33: 25 | B33: =dtsiswa!D31 -> Larasati Jagadhita P | AC33: 0 | AD33: 0 | AE33: 0 | AF33: 0 | AG33: 0 | AH33: 0 | AI33: 0 | AJ33: 0 | AK33: 0 | AL33: 0 | AM33: 0 | AN33: 0 | AO33: 0 | AP33: 0 | AQ33: 0 | AR33: 0 | AS33: 0 | AT33: 0 | AU33: 0 | AV33: 0 | AW33: 0 | AX33: 0 | AY33: 0 | AZ33: 0 | BA33: 0 | BB33: 0 | BC33: 0 | BD33: 0 | BE33: 0 | BF33: 0 | BG33: 0 | BH33: 0 | BI33: 0 | BJ33: 0 | BK33: 0 | BM33: 0 | BN33: 0 | BO33: 0 | BP33: 0 | BQ33: 0 | BR33: 0 | BS33: 0 | BT33: 0 | BU33: 0
A34: 26 | B34: =dtsiswa!D32 -> Meliana Citra A | AC34: 0 | AD34: 0 | AE34: 0 | AF34: 0 | AG34: 0 | AH34: 0 | AI34: 0 | AJ34: 0 | AK34: 0 | AL34: 0 | AM34: 0 | AN34: 0 | AO34: 0 | AP34: 0 | AQ34: 0 | AR34: 0 | AS34: 0 | AT34: 0 | AU34: 0 | AV34: 0 | AW34: 0 | AX34: 0 | AY34: 0 | AZ34: 0 | BA34: 0 | BB34: 0 | BC34: 0 | BD34: 0 | BE34: 0 | BF34: 0 | BG34: 0 | BH34: 0 | BI34: 0 | BJ34: 0 | BK34: 0 | BM34: 0 | BN34: 0 | BO34: 0 | BP34: 0 | BQ34: 0 | BR34: 0 | BS34: 0 | BT34: 0 | BU34: 0
A35: 27 | B35: =dtsiswa!D33 -> Mohammad Rizky | AC35: 0 | AD35: 0 | AE35: 0 | AF35: 0 | AG35: 0 | AH35: 0 | AI35: 0 | AJ35: 0 | AK35: 0 | AL35: 0 | AM35: 0 | AN35: 0 | AO35: 0 | AP35: 0 | AQ35: 0 | AR35: 0 | AS35: 0 | AT35: 0 | AU35: 0 | AV35: 0 | AW35: 0 | AX35: 0 | AY35: 0 | AZ35: 0 | BA35: 0 | BB35: 0 | BC35: 0 | BD35: 0 | BE35: 0 | BF35: 0 | BG35: 0 | BH35: 0 | BI35: 0 | BJ35: 0 | BK35: 0 | BM35: 0 | BN35: 0 | BO35: 0 | BP35: 0 | BQ35: 0 | BR35: 0 | BS35: 0 | BT35: 0 | BU35: 0
A36: 28 | B36: =dtsiswa!D34 -> 0 | AC36: 0 | AD36: 0 | AE36: 0 | AF36: 0 | AG36: 0 | AH36: 0 | AI36: 0 | AJ36: 0 | AK36: 0 | AL36: 0 | AM36: 0 | AN36: 0 | AO36: 0 | AP36: 0 | AQ36: 0 | AR36: 0 | AS36: 0 | AT36: 0 | AU36: 0 | AV36: 0 | AW36: 0 | AX36: 0 | AY36: 0 | AZ36: 0 | BA36: 0 | BB36: 0 | BC36: 0 | BD36: 0 | BE36: 0 | BF36: 0 | BG36: 0 | BH36: 0 | BI36: 0 | BJ36: 0 | BK36: 0 | BM36: 0 | BN36: 0 | BO36: 0 | BP36: 0 | BQ36: 0 | BR36: 0 | BS36: 0 | BT36: 0 | BU36: 0
A37: 29 | B37: =dtsiswa!D35 -> 0 | AC37: 0 | AD37: 0 | AE37: 0 | AF37: 0 | AG37: 0 | AH37: 0 | AI37: 0 | AJ37: 0 | AK37: 0 | AL37: 0 | AM37: 0 | AN37: 0 | AO37: 0 | AP37: 0 | AQ37: 0 | AR37: 0 | AS37: 0 | AT37: 0 | AU37: 0 | AV37: 0 | AW37: 0 | AX37: 0 | AY37: 0 | AZ37: 0 | BA37: 0 | BB37: 0 | BC37: 0 | BD37: 0 | BE37: 0 | BF37: 0 | BG37: 0 | BH37: 0 | BI37: 0 | BJ37: 0 | BK37: 0 | BM37: 0 | BN37: 0 | BO37: 0 | BP37: 0 | BQ37: 0 | BR37: 0 | BS37: 0 | BT37: 0 | BU37: 0
A38: 30 | B38: =dtsiswa!D36 -> 0 | AC38: 0 | AD38: 0 | AE38: 0 | AF38: 0 | AG38: 0 | AH38: 0 | AI38: 0 | AJ38: 0 | AK38: 0 | AL38: 0 | AM38: 0 | AN38: 0 | AO38: 0 | AP38: 0 | AQ38: 0 | AR38: 0 | AS38: 0 | AT38: 0 | AU38: 0 | AV38: 0 | AW38: 0 | AX38: 0 | AY38: 0 | AZ38: 0 | BA38: 0 | BB38: 0 | BC38: 0 | BD38: 0 | BE38: 0 | BF38: 0 | BG38: 0 | BH38: 0 | BI38: 0 | BJ38: 0 | BK38: 0 | BM38: 0 | BN38: 0 | BO38: 0 | BP38: 0 | BQ38: 0 | BR38: 0 | BS38: 0 | BT38: 0 | BU38: 0
A39: 31 | B39: =dtsiswa!D37 -> 0 | AC39: 0 | AD39: 0 | AE39: 0 | AF39: 0 | AG39: 0 | AH39: 0 | AI39: 0 | AJ39: 0 | AK39: 0 | AL39: 0 | AM39: 0 | AN39: 0 | AO39: 0 | AP39: 0 | AQ39: 0 | AR39: 0 | AS39: 0 | AT39: 0 | AU39: 0 | AV39: 0 | AW39: 0 | AX39: 0 | AY39: 0 | AZ39: 0 | BA39: 0 | BB39: 0 | BC39: 0 | BD39: 0 | BE39: 0 | BF39: 0 | BG39: 0 | BH39: 0 | BI39: 0 | BJ39: 0 | BK39: 0 | BM39: 0 | BN39: 0 | BO39: 0 | BP39: 0 | BQ39: 0 | BR39: 0 | BS39: 0 | BT39: 0 | BU39: 0
A40: 32 | B40: =dtsiswa!D38 -> 0 | AC40: 0 | AD40: 0 | AE40: 0 | AF40: 0 | AG40: 0 | AH40: 0 | AI40: 0 | AJ40: 0 | AK40: 0 | AL40: 0 | AM40: 0 | AN40: 0 | AO40: 0 | AP40: 0 | AQ40: 0 | AR40: 0 | AS40: 0 | AT40: 0 | AU40: 0 | AV40: 0 | AW40: 0 | AX40: 0 | AY40: 0 | AZ40: 0 | BA40: 0 | BB40: 0 | BC40: 0 | BD40: 0 | BE40: 0 | BF40: 0 | BG40: 0 | BH40: 0 | BI40: 0 | BJ40: 0 | BK40: 0 | BM40: 0 | BN40: 0 | BO40: 0 | BP40: 0 | BQ40: 0 | BR40: 0 | BS40: 0 | BT40: 0 | BU40: 0
A41: 33 | B41: =dtsiswa!D39 -> 0 | AC41: 0 | AD41: 0 | AE41: 0 | AF41: 0 | AG41: 0 | AH41: 0 | AI41: 0 | AJ41: 0 | AK41: 0 | AL41: 0 | AM41: 0 | AN41: 0 | AO41: 0 | AP41: 0 | AQ41: 0 | AR41: 0 | AS41: 0 | AT41: 0 | AU41: 0 | AV41: 0 | AW41: 0 | AX41: 0 | AY41: 0 | AZ41: 0 | BA41: 0 | BB41: 0 | BC41: 0 | BD41: 0 | BE41: 0 | BF41: 0 | BG41: 0 | BH41: 0 | BI41: 0 | BJ41: 0 | BK41: 0 | BM41: 0 | BN41: 0 | BO41: 0 | BP41: 0 | BQ41: 0 | BR41: 0 | BS41: 0 | BT41: 0 | BU41: 0
A42: 34 | B42: =dtsiswa!D40 -> 0 | AC42: 0 | AD42: 0 | AE42: 0 | AF42: 0 | AG42: 0 | AH42: 0 | AI42: 0 | AJ42: 0 | AK42: 0 | AL42: 0 | AM42: 0 | AN42: 0 | AO42: 0 | AP42: 0 | AQ42: 0 | AR42: 0 | AS42: 0 | AT42: 0 | AU42: 0 | AV42: 0 | AW42: 0 | AX42: 0 | AY42: 0 | AZ42: 0 | BA42: 0 | BB42: 0 | BC42: 0 | BD42: 0 | BE42: 0 | BF42: 0 | BG42: 0 | BH42: 0 | BI42: 0 | BJ42: 0 | BK42: 0 | BM42: 0 | BN42: 0 | BO42: 0 | BP42: 0 | BQ42: 0 | BR42: 0 | BS42: 0 | BT42: 0 | BU42: 0
A43: 35 | B43: =dtsiswa!D41 -> 0 | O43: =IFERROR(AVERAGE(I43:N43)," ") ->  | AC43: 0 | AD43: 0 | AE43: 0 | AF43: 0 | AG43: 0 | AH43: 0 | AI43: 0 | AJ43: 0 | AK43: 0 | AL43: 0 | AM43: 0 | AN43: 0 | AO43: 0 | AP43: 0 | AQ43: 0 | AR43: 0 | AS43: 0 | AT43: 0 | AU43: 0 | AV43: 0 | AW43: 0 | AX43: 0 | AY43: 0 | AZ43: 0 | BA43: 0 | BB43: 0 | BC43: 0 | BD43: 0 | BE43: 0 | BF43: 0 | BG43: 0 | BH43: 0 | BI43: 0 | BJ43: 0 | BK43: 0 | BM43: 0 | BN43: 0 | BO43: 0 | BP43: 0 | BQ43: 0 | BR43: 0 | BS43: 0 | BT43: 0 | BU43: 0
A44: 36 | B44: =dtsiswa!D42 -> 0 | H44: =IFERROR(AVERAGE(D44:G44)," ") ->  | O44: =IFERROR(AVERAGE(I44:N44)," ") ->  | U44: =IFERROR(AVERAGE(P44:T44)," ") ->  | AB44: =IFERROR(AVERAGE(V44:AA44)," ") ->  | AC44: 0 | AD44: 0 | AE44: 0 | AF44: 0 | AG44: 0 | AH44: 0 | AI44: 0 | AJ44: 0 | AK44: 0 | AL44: 0 | AM44: 0 | AN44: 0 | AO44: 0 | AP44: 0 | AQ44: 0 | AR44: 0 | AS44: 0 | AT44: =D44 -> 0 | AU44: =E44 -> 0 | AV44: =F44 -> 0 | AW44: 0 | AX44: =I44 -> 0 | AY44: =J44 -> 0 | AZ44: =K44 -> 0 | BA44: =IFERROR(AVERAGE(AX44:AZ44)," ") -> 0 | BB44: =P44 -> 0 | BC44: =Q44 -> 0 | BD44: =R44 -> 0 | BE44: =IFERROR(AVERAGE(BB44:BD44)," ") -> 0 | BF44: =V44 -> 0 | BG44: =W44 -> 0 | BH44: =X44 -> 0 | BI44: 0 | BJ44: =G44 -> 0 | BK44: =L44 -> 0 | BM44: =N44 -> 0 | BN44: 0 | BO44: =S44 -> 0 | BP44: =T44 -> 0 | BQ44: 0 | BR44: =Y44 -> 0 | BS44: =Z44 -> 0 | BT44: =AA44 -> 0 | BU44: 0
A45: 37 | B45: =dtsiswa!D43 -> 0 | AC45: 0 | AD45: 0 | AE45: 0 | AF45: 0 | AG45: 0 | AH45: 0 | AI45: 0 | AJ45: 0 | AK45: 0 | AL45: 0 | AM45: 0 | AN45: 0 | AO45: 0 | AP45: 0 | AQ45: 0 | AR45: 0 | AS45: 0 | AT45: 0 | AU45: 0 | AV45: 0 | AW45: 0 | AX45: 0 | AY45: 0 | AZ45: 0 | BA45: 0 | BB45: 0 | BC45: 0 | BD45: 0 | BE45: 0 | BF45: 0 | BG45: 0 | BH45: 0 | BI45: 0 | BJ45: 0 | BK45: 0 | BM45: 0 | BN45: 0 | BO45: 0 | BP45: 0 | BQ45: 0 | BR45: 0 | BS45: 0 | BT45: 0 | BU45: 0
A46: 38 | B46: =dtsiswa!D44 -> 0 | AC46: 0 | AD46: 0 | AE46: 0 | AF46: 0 | AG46: 0 | AH46: 0 | AI46: 0 | AJ46: 0 | AK46: 0 | AL46: 0 | AM46: 0 | AN46: 0 | AO46: 0 | AP46: 0 | AQ46: 0 | AR46: 0 | AS46: 0 | AT46: 0 | AU46: 0 | AV46: 0 | AW46: 0 | AX46: 0 | AY46: 0 | AZ46: 0 | BA46: 0 | BB46: 0 | BC46: 0 | BD46: 0 | BE46: 0 | BF46: 0 | BG46: 0 | BH46: 0 | BI46: 0 | BJ46: 0 | BK46: 0 | BM46: 0 | BN46: 0 | BO46: 0 | BP46: 0 | BQ46: 0 | BR46: 0 | BS46: 0 | BT46: 0 | BU46: 0
A47: 39 | B47: =dtsiswa!D45 -> 0 | AC47: 0 | AD47: 0 | AE47: 0 | AF47: 0 | AG47: 0 | AH47: 0 | AI47: 0 | AJ47: 0 | AK47: 0 | AL47: 0 | AM47: 0 | AN47: 0 | AO47: 0 | AP47: 0 | AQ47: 0 | AR47: 0 | AS47: 0 | AT47: 0 | AU47: 0 | AV47: 0 | AW47: 0 | AX47: 0 | AY47: 0 | AZ47: 0 | BA47: 0 | BB47: 0 | BC47: 0 | BD47: 0 | BE47: 0 | BF47: 0 | BG47: 0 | BH47: 0 | BI47: 0 | BJ47: 0 | BK47: 0 | BM47: 0 | BN47: 0 | BO47: 0 | BP47: 0 | BQ47: 0 | BR47: 0 | BS47: 0 | BT47: 0 | BU47: 0
A48: 40 | B48: =dtsiswa!D46 -> 0 | AC48: 0 | AD48: 0 | AE48: 0 | AF48: 0 | AG48: 0 | AH48: 0 | AI48: 0 | AJ48: 0 | AK48: 0 | AL48: 0 | AM48: 0 | AN48: 0 | AO48: 0 | AP48: 0 | AQ48: 0 | AR48: 0 | AS48: 0 | AT48: 0 | AU48: 0 | AV48: 0 | AW48: 0 | AX48: 0 | AY48: 0 | AZ48: 0 | BA48: 0 | BB48: 0 | BC48: 0 | BD48: 0 | BE48: 0 | BF48: 0 | BG48: 0 | BH48: 0 | BI48: 0 | BJ48: 0 | BK48: 0 | BM48: 0 | BN48: 0 | BO48: 0 | BP48: 0 | BQ48: 0 | BR48: 0 | BS48: 0 | BT48: 0 | BU48: 0

Sheet UT_PJOK (hidden)
A3: DATA NILAI SEMESTER 2
A4: KI-3 DAN KI-4 KELAS : 4 / PJOK
A5: 1 | B5: 2 | C5: 3 | D5: 4 | E5: 5 | F5: 6 | G5: 7 | H5: 8 | I5: 9 | J5: 10 | K5: 11 | L5: 12 | M5: 13 | N5: 14 | O5: 15 | P5: 16 | Q5: 17 | R5: 18 | S5: 19 | T5: 20 | U5: 21 | V5: 22 | W5: 23 | X5: 24 | Y5: 25 | Z5: 26 | AA5: 27 | AB5: 28 | AC5: 29 | AD5: 30 | AE5: 31 | AF5: 32 | AG5: 33 | AH5: 34 | AI5: 35 | AJ5: 36 | AK5: 37 | AL5: 38 | AM5: 39 | AN5: 40 | AO5: 41 | AP5: 42 | AQ5: 43 | AR5: 44 | AS5: 45 | AT5: 46 | AU5: 47 | AV5: 48 | AW5: 49 | AX5: 50 | AY5: 51 | AZ5: 52 | BA5: 53 | BB5: 54 | BC5: 55 | BD5: 56 | BE5: 57 | BF5: 58 | BG5: 59 | BH5: 60 | BI5: 61 | BJ5: 62 | BK5: 63 | BL5: 64 | BM5: 65 | BN5: 66 | BO5: 67 | BP5: 68 | BQ5: 69
A6: NO | B6: NAMA | C6: L/P | D6: Tema 6 | K6: Tema 7 | P6: Tema 8 | U6: Tema 9 | Z6: RERATA ( KI-3 ) | AE6: R.TUGAS | AF6: RERATA ( KI-4 ) | AK6: r.tugas | AL6: nilai ulhar + tugas per KD | AQ6: RTH | AR6: ASPEK KETRAMPILAN ( KI-4 ) | BE6: ASPEK PENGETAHUAN ( KI-3 )
D7: tugas | G7: Ulhar | K7: tugas | M7: ulhar | P7: tugas | R7: ulhar | U7: tugas | W7: ulhar | Z7: rata - rata ulhar per-KD | AF7: rata-rata tugas per KD | AR7: tema 6 | AV7: tema 7 | AY7: tema 8 | BB7: tema 9 | BE7: tema 6 | BI7: tema 7 | BL7: tema 8 | BO7: tema 9
D8: 4.2 | E8: 4.3 | F8: 4.6 | G8: 3.2 | H8: 3.3 | I8: 3.6 | K8: 4.4 | L8: 4.5 | M8: 3.4 | N8: 3.5 | P8: 4.4 | Q8: 4.6 | R8: 3.4 | S8: 3.6 | U8: 4.3 | V8: 4.4 | W8: 3.3 | X8: 3.4 | Z8: 3.2 | AA8: 3.3 | AB8: 3.4 | AC8: 3.5 | AD8: 3.6 | AF8: 4.2 | AG8: 4.3 | AH8: 4.4 | AI8: 4.5 | AJ8: 4.6 | AL8: 3.2 | AM8: 3.3 | AN8: 3.4 | AO8: 3.5 | AP8: 3.6 | AR8: 4.2 | AS8: 4.3 | AT8: 4.6 | AV8: 4.4 | AW8: 4.5 | AY8: 4.4 | AZ8: 4.6 | BB8: 4.3 | BC8: 4.4 | BE8: 3.2 | BF8: 3.3 | BG8: 3.7 | BI8: 3.4 | BJ8: 3.5 | BL8: 3.4 | BM8: 3.6 | BO8: 3.3 | BP8: 3.4
A9: 1 | B9: =dtsiswa!D7 -> Achmad Zacky | C9: L | D9: 76 | E9: 65 | F9: 78 | G9: 70 | H9: 68 | I9: 87 | J9: =IFERROR(AVERAGE(D9:I9)," ") -> 74 | K9: 56 | L9: 56 | M9: 78 | N9: 76 | O9: =IFERROR(AVERAGE(K9:N9)," ") -> 66.5 | P9: 90 | Q9: 90 | R9: 81 | S9: 81 | T9: =IFERROR(AVERAGE(R9:S9)," ") -> 81 | U9: 56 | V9: 56 | W9: 76 | X9: 76 | Y9: =IFERROR(AVERAGE(W9:X9)," ") -> 76 | Z9: =(G9) -> 70 | AA9: =(H9+W9)/2 -> 72 | AB9: =(M9+R9+X9)/3 -> 78.33333333 | AC9: =(N9) -> 76 | AD9: =(I9+S9)/2 -> 84 | AE9: =IFERROR(AVERAGE(Z9:AD9)," ") -> 76.06666667 | AF9: =D9 -> 76 | AG9: =(E9+U9)/2 -> 60.5 | AH9: =(K9+P9+V9)/3 -> 67.33333333 | AI9: =(L9) -> 56 | AJ9: =(F9+Q9)/2 -> 84 | AK9: =IFERROR(AVERAGE(AF9:AJ9)," ") -> 68.76666667 | AL9: =(Z9+AF9)/2 -> 73 | AM9: =(AA9+AG9)/2 -> 66.25 | AN9: =(AB9+AH9)/2 -> 72.83333333 | AO9: =(AC9+AI9)/2 -> 66 | AP9: =(AD9+AJ9)/2 -> 84 | AQ9: =IFERROR(AVERAGE(AL9:AP9)," ") -> 72.41666667 | AR9: =D9 -> 76 | AS9: =E9 -> 65 | AT9: =F9 -> 78 | AU9: =AVERAGE(AR9:AT9) -> 73 | AV9: =K9 -> 56 | AW9: =L9 -> 56 | AX9: =AVERAGE(AV9:AW9) -> 56 | AY9: =P9 -> 90 | AZ9: =Q9 -> 90 | BA9: =AVERAGE(AZ9:AZ9) -> 90 | BB9: =U9 -> 56 | BC9: =V9 -> 56 | BD9: =AVERAGE(BC9:BC9) -> 56 | BE9: =G9 -> 70 | BF9: =H9 -> 68 | BG9: =I9 -> 87 | BH9: =IFERROR(AVERAGE(BE9:BG9)," ") -> 75 | BI9: =M9 -> 78 | BJ9: =N9 -> 76 | BK9: =IFERROR(AVERAGE(BI9:BJ9)," ") -> 77 | BL9: =R9 -> 81 | BM9: =S9 -> 81 | BN9: =IFERROR(AVERAGE(#REF!)," ") ->  | BO9: =W9 -> 76 | BP9: =X9 -> 76 | BQ9: =IFERROR(AVERAGE(#REF!)," ") -> 
A10: 2 | B10: =dtsiswa!D8 -> Angelia Vabel R | C10: L | Z10: =(G10) -> 0 | AA10: =(H10+W10)/2 -> 0 | AB10: =(M10+R10+X10)/3 -> 0 | AC10: =(N10) -> 0 | AD10: =(I10+S10)/2 -> 0 | AE10: =IFERROR(AVERAGE(Z10:AD10)," ") -> 0 | AF10: =D10 -> 0 | AG10: =(E10+U10)/2 -> 0 | AH10: =(K10+P10+V10)/3 -> 0 | AI10: =(L10) -> 0 | AJ10: =(F10+Q10)/2 -> 0 | AK10: =IFERROR(AVERAGE(AF10:AJ10)," ") -> 0 | AL10: 0 | AM10: 0 | AN10: 0 | AO10: 0 | AP10: 0 | AQ10: 0 | AR10: 0 | AS10: 0 | AT10: 0 | AU10: 0 | AV10: 0 | AW10: 0 | AX10: 0 | AY10: 0 | AZ10: 0 | BA10: 0 | BB10: 0 | BC10: 0 | BD10: =AVERAGE(BC10:BC10) -> 0 | BE10: 0 | BF10: 0 | BG10: 0 | BH10: =IFERROR(AVERAGE(BE10:BG10)," ") -> 0 | BI10: 0 | BJ10: 0 | BK10: 0 | BL10: 0 | BM10: 0 | BN10: =IFERROR(AVERAGE(#REF!)," ") ->  | BO10: 0 | BP10: 0 | BQ10: =IFERROR(AVERAGE(#REF!)," ") -> 
A11: 3 | B11: =dtsiswa!D9 -> Anggun Dwi P.I | C11: L | Z11: 0 | AA11: 0 | AB11: 0 | AC11: 0 | AD11: 0 | AE11: 0 | AF11: 0 | AG11: 0 | AH11: 0 | AI11: 0 | AJ11: 0 | AK11: 0 | AL11: 0 | AM11: 0 | AN11: 0 | AO11: 0 | AP11: 0 | AQ11: 0 | AR11: 0 | AS11: 0 | AT11: 0 | AU11: 0 | AV11: 0 | AW11: 0 | AX11: 0 | AY11: 0 | AZ11: 0 | BA11: 0 | BB11: 0 | BC11: 0 | BD11: 0 | BE11: 0 | BF11: 0 | BG11: 0 | BH11: 0 | BI11: 0 | BJ11: 0 | BK11: 0 | BL11: 0 | BM11: 0 | BN11: =IFERROR(AVERAGE(#REF!)," ") ->  | BO11: 0 | BP11: 0 | BQ11: =IFERROR(AVERAGE(#REF!)," ") -> 
A12: 4 | B12: =dtsiswa!D10 -> Antonio Permata A | C12: L | Z12: 0 | AA12: 0 | AB12: 0 | AC12: 0 | AD12: 0 | AE12: 0 | AF12: 0 | AG12: 0 | AH12: 0 | AI12: 0 | AJ12: 0 | AK12: 0 | AL12: 0 | AM12: 0 | AN12: 0 | AO12: 0 | AP12: 0 | AQ12: 0 | AR12: 0 | AS12: 0 | AT12: 0 | AU12: 0 | AV12: 0 | AW12: 0 | AX12: 0 | AY12: 0 | AZ12: 0 | BA12: 0 | BB12: 0 | BC12: 0 | BD12: 0 | BE12: 0 | BF12: 0 | BG12: 0 | BH12: 0 | BI12: 0 | BJ12: 0 | BK12: 0 | BL12: 0 | BM12: 0 | BN12: =IFERROR(AVERAGE(#REF!)," ") ->  | BO12: 0 | BP12: 0 | BQ12: =IFERROR(AVERAGE(#REF!)," ") -> 
A13: 5 | B13: =dtsiswa!D11 -> Arya Pratama G | C13: P | Z13: 0 | AA13: 0 | AB13: 0 | AC13: 0 | AD13: 0 | AE13: 0 | AF13: 0 | AG13: 0 | AH13: 0 | AI13: 0 | AJ13: 0 | AK13: 0 | AL13: 0 | AM13: 0 | AN13: 0 | AO13: 0 | AP13: 0 | AQ13: 0 | AR13: 0 | AS13: 0 | AT13: 0 | AU13: 0 | AV13: 0 | AW13: 0 | AX13: 0 | AY13: 0 | AZ13: 0 | BA13: 0 | BB13: 0 | BC13: 0 | BD13: 0 | BE13: 0 | BF13: 0 | BG13: 0 | BH13: 0 | BI13: 0 | BJ13: 0 | BK13: 0 | BL13: 0 | BM13: 0 | BN13: =IFERROR(AVERAGE(#REF!)," ") ->  | BO13: 0 | BP13: 0 | BQ13: =IFERROR(AVERAGE(#REF!)," ") -> 
A14: 6 | B14: =dtsiswa!D12 -> Asyam Hanif Ihsan H | C14: P | Z14: 0 | AA14: 0 | AB14: 0 | AC14: 0 | AD14: 0 | AE14: 0 | AF14: 0 | AG14: 0 | AH14: 0 | AI14: 0 | AJ14: 0 | AK14: 0 | AL14: 0 | AM14: 0 | AN14: 0 | AO14: 0 | AP14: 0 | AQ14: 0 | AR14: 0 | AS14: 0 | AT14: 0 | AU14: 0 | AV14: 0 | AW14: 0 | AX14: 0 | AY14: 0 | AZ14: 0 | BA14: 0 | BB14: 0 | BC14: 0 | BD14: 0 | BE14: 0 | BF14: 0 | BG14: 0 | BH14: 0 | BI14: 0 | BJ14: 0 | BK14: 0 | BL14: 0 | BM14: 0 | BN14: =IFERROR(AVERAGE(#REF!)," ") ->  | BO14: 0 | BP14: 0 | BQ14: =IFERROR(AVERAGE(#REF!)," ") -> 
A15: 7 | B15: =dtsiswa!D13 -> Athaya Salsabilla Z | C15: L | Z15: 0 | AA15: 0 | AB15: 0 | AC15: 0 | AD15: 0 | AE15: 0 | AF15: 0 | AG15: 0 | AH15: 0 | AI15: 0 | AJ15: 0 | AK15: 0 | AL15: 0 | AM15: 0 | AN15: 0 | AO15: 0 | AP15: 0 | AQ15: 0 | AR15: 0 | AS15: 0 | AT15: 0 | AU15: 0 | AV15: 0 | AW15: 0 | AX15: 0 | AY15: 0 | AZ15: 0 | BA15: 0 | BB15: 0 | BC15: 0 | BD15: 0 | BE15: 0 | BF15: 0 | BG15: 0 | BH15: 0 | BI15: 0 | BJ15: 0 | BK15: 0 | BL15: 0 | BM15: 0 | BN15: =IFERROR(AVERAGE(#REF!)," ") ->  | BO15: 0 | BP15: 0 | BQ15: =IFERROR(AVERAGE(#REF!)," ") -> 
A16: 8 | B16: =dtsiswa!D14 -> Aulia Dea Rosalinda | C16: L | Z16: 0 | AA16: 0 | AB16: 0 | AC16: 0 | AD16: 0 | AE16: 0 | AF16: 0 | AG16: 0 | AH16: 0 | AI16: 0 | AJ16: 0 | AK16: 0 | AL16: 0 | AM16: 0 | AN16: 0 | AO16: 0 | AP16: 0 | AQ16: 0 | AR16: 0 | AS16: 0 | AT16: 0 | AU16: 0 | AV16: 0 | AW16: 0 | AX16: 0 | AY16: 0 | AZ16: 0 | BA16: 0 | BB16: 0 | BC16: 0 | BD16: 0 | BE16: 0 | BF16: 0 | BG16: 0 | BH16: 0 | BI16: 0 | BJ16: 0 | BK16: 0 | BL16: 0 | BM16: 0 | BN16: =IFERROR(AVERAGE(#REF!)," ") ->  | BO16: 0 | BP16: 0 | BQ16: =IFERROR(AVERAGE(#REF!)," ") -> 
A17: 9 | B17: =dtsiswa!D15 -> Claudia Gabriella L | C17: L | Z17: 0 | AA17: 0 | AB17: 0 | AC17: 0 | AD17: 0 | AE17: 0 | AF17: 0 | AG17: 0 | AH17: 0 | AI17: 0 | AJ17: 0 | AK17: 0 | AL17: 0 | AM17: 0 | AN17: 0 | AO17: 0 | AP17: 0 | AQ17: 0 | AR17: 0 | AS17: 0 | AT17: 0 | AU17: 0 | AV17: 0 | AW17: 0 | AX17: 0 | AY17: 0 | AZ17: 0 | BA17: 0 | BB17: 0 | BC17: 0 | BD17: 0 | BE17: 0 | BF17: 0 | BG17: 0 | BH17: 0 | BI17: 0 | BJ17: 0 | BK17: 0 | BL17: 0 | BM17: 0 | BN17: =IFERROR(AVERAGE(#REF!)," ") ->  | BO17: 0 | BP17: 0 | BQ17: =IFERROR(AVERAGE(#REF!)," ") -> 
A18: 10 | B18: =dtsiswa!D16 -> Deco Badarus Zaman | C18: L | Z18: 0 | AA18: 0 | AB18: 0 | AC18: 0 | AD18: 0 | AE18: 0 | AF18: 0 | AG18: 0 | AH18: 0 | AI18: 0 | AJ18: 0 | AK18: 0 | AL18: 0 | AM18: 0 | AN18: 0 | AO18: 0 | AP18: 0 | AQ18: 0 | AR18: 0 | AS18: 0 | AT18: 0 | AU18: 0 | AV18: 0 | AW18: 0 | AX18: 0 | AY18: 0 | AZ18: 0 | BA18: 0 | BB18: 0 | BC18: 0 | BD18: 0 | BE18: 0 | BF18: 0 | BG18: 0 | BH18: 0 | BI18: 0 | BJ18: 0 | BK18: 0 | BL18: 0 | BM18: 0 | BN18: =IFERROR(AVERAGE(#REF!)," ") ->  | BO18: 0 | BP18: 0 | BQ18: =IFERROR(AVERAGE(#REF!)," ") -> 
A19: 11 | B19: =dtsiswa!D17 -> Fania Mutiara Felichia | C19: L | Z19: 0 | AA19: 0 | AB19: 0 | AC19: 0 | AD19: 0 | AE19: 0 | AF19: 0 | AG19: 0 | AH19: 0 | AI19: 0 | AJ19: 0 | AK19: 0 | AL19: 0 | AM19: 0 | AN19: 0 | AO19: 0 | AP19: 0 | AQ19: 0 | AR19: 0 | AS19: 0 | AT19: 0 | AU19: 0 | AV19: 0 | AW19: 0 | AX19: 0 | AY19: 0 | AZ19: 0 | BA19: 0 | BB19: 0 | BC19: 0 | BD19: 0 | BE19: 0 | BF19: 0 | BG19: 0 | BH19: 0 | BI19: 0 | BJ19: 0 | BK19: 0 | BL19: 0 | BM19: 0 | BN19: =IFERROR(AVERAGE(#REF!)," ") ->  | BO19: 0 | BP19: 0 | BQ19: =IFERROR(AVERAGE(#REF!)," ") -> 
A20: 12 | B20: =dtsiswa!D18 -> Intan Dyah Nowari | C20: L | Z20: 0 | AA20: 0 | AB20: 0 | AC20: 0 | AD20: 0 | AE20: 0 | AF20: 0 | AG20: 0 | AH20: 0 | AI20: 0 | AJ20: 0 | AK20: 0 | AL20: 0 | AM20: 0 | AN20: 0 | AO20: 0 | AP20: 0 | AQ20: 0 | AR20: 0 | AS20: 0 | AT20: 0 | AU20: 0 | AV20: 0 | AW20: 0 | AX20: 0 | AY20: 0 | AZ20: 0 | BA20: 0 | BB20: 0 | BC20: 0 | BD20: 0 | BE20: 0 | BF20: 0 | BG20: 0 | BH20: 0 | BI20: 0 | BJ20: 0 | BK20: 0 | BL20: 0 | BM20: 0 | BN20: =IFERROR(AVERAGE(#REF!)," ") ->  | BO20: 0 | BP20: 0 | BQ20: =IFERROR(AVERAGE(#REF!)," ") -> 
A21: 13 | B21: =dtsiswa!D19 -> Misyanita Nurfitri S | C21: P | Z21: 0 | AA21: 0 | AB21: 0 | AC21: 0 | AD21: 0 | AE21: 0 | AF21: 0 | AG21: 0 | AH21: 0 | AI21: 0 | AJ21: 0 | AK21: 0 | AL21: 0 | AM21: 0 | AN21: 0 | AO21: 0 | AP21: 0 | AQ21: 0 | AR21: 0 | AS21: 0 | AT21: 0 | AU21: 0 | AV21: 0 | AW21: 0 | AX21: 0 | AY21: 0 | AZ21: 0 | BA21: 0 | BB21: 0 | BC21: 0 | BD21: 0 | BE21: 0 | BF21: 0 | BG21: 0 | BH21: 0 | BI21: 0 | BJ21: 0 | BK21: 0 | BL21: 0 | BM21: 0 | BN21: =IFERROR(AVERAGE(#REF!)," ") ->  | BO21: 0 | BP21: 0 | BQ21: =IFERROR(AVERAGE(#REF!)," ") -> 
A22: 14 | B22: =dtsiswa!D20 -> Moch Zidane Hita L. U | C22: L | Z22: 0 | AA22: 0 | AB22: 0 | AC22: 0 | AD22: 0 | AE22: 0 | AF22: 0 | AG22: 0 | AH22: 0 | AI22: 0 | AJ22: 0 | AK22: 0 | AL22: 0 | AM22: 0 | AN22: 0 | AO22: 0 | AP22: 0 | AQ22: 0 | AR22: 0 | AS22: 0 | AT22: 0 | AU22: 0 | AV22: 0 | AW22: 0 | AX22: 0 | AY22: 0 | AZ22: 0 | BA22: 0 | BB22: 0 | BC22: 0 | BD22: 0 | BE22: 0 | BF22: 0 | BG22: 0 | BH22: 0 | BI22: 0 | BJ22: 0 | BK22: 0 | BL22: 0 | BM22: 0 | BN22: =IFERROR(AVERAGE(#REF!)," ") ->  | BO22: 0 | BP22: 0 | BQ22: =IFERROR(AVERAGE(#REF!)," ") -> 
A23: 15 | B23: =dtsiswa!D21 -> Muhammad Ibra Maulana | C23: L | Z23: 0 | AA23: 0 | AB23: 0 | AC23: 0 | AD23: 0 | AE23: 0 | AF23: 0 | AG23: 0 | AH23: 0 | AI23: 0 | AJ23: 0 | AK23: 0 | AL23: 0 | AM23: 0 | AN23: 0 | AO23: 0 | AP23: 0 | AQ23: 0 | AR23: 0 | AS23: 0 | AT23: 0 | AU23: 0 | AV23: 0 | AW23: 0 | AX23: 0 | AY23: 0 | AZ23: 0 | BA23: 0 | BB23: 0 | BC23: 0 | BD23: 0 | BE23: 0 | BF23: 0 | BG23: 0 | BH23: 0 | BI23: 0 | BJ23: 0 | BK23: 0 | BL23: 0 | BM23: 0 | BN23: =IFERROR(AVERAGE(#REF!)," ") ->  | BO23: 0 | BP23: 0 | BQ23: =IFERROR(AVERAGE(#REF!)," ") -> 
A24: 16 | B24: =dtsiswa!D22 -> Nabilla Shiva Putri | C24: L | Z24: 0 | AA24: 0 | AB24: 0 | AC24: 0 | AD24: 0 | AE24: 0 | AF24: 0 | AG24: 0 | AH24: 0 | AI24: 0 | AJ24: 0 | AK24: 0 | AL24: 0 | AM24: 0 | AN24: 0 | AO24: 0 | AP24: 0 | AQ24: 0 | AR24: 0 | AS24: 0 | AT24: 0 | AU24: 0 | AV24: 0 | AW24: 0 | AX24: 0 | AY24: 0 | AZ24: 0 | BA24: 0 | BB24: 0 | BC24: 0 | BD24: 0 | BE24: 0 | BF24: 0 | BG24: 0 | BH24: 0 | BI24: 0 | BJ24: 0 | BK24: 0 | BL24: 0 | BM24: 0 | BN24: =IFERROR(AVERAGE(#REF!)," ") ->  | BO24: 0 | BP24: 0 | BQ24: =IFERROR(AVERAGE(#REF!)," ") -> 
A25: 17 | B25: =dtsiswa!D23 -> Naufal Falih F | C25: P | Z25: 0 | AA25: 0 | AB25: 0 | AC25: 0 | AD25: 0 | AE25: 0 | AF25: 0 | AG25: 0 | AH25: 0 | AI25: 0 | AJ25: 0 | AK25: 0 | AL25: 0 | AM25: 0 | AN25: 0 | AO25: 0 | AP25: 0 | AQ25: 0 | AR25: 0 | AS25: 0 | AT25: 0 | AU25: 0 | AV25: 0 | AW25: 0 | AX25: 0 | AY25: 0 | AZ25: 0 | BA25: 0 | BB25: 0 | BC25: 0 | BD25: 0 | BE25: 0 | BF25: 0 | BG25: 0 | BH25: 0 | BI25: 0 | BJ25: 0 | BK25: 0 | BL25: 0 | BM25: 0 | BN25: =IFERROR(AVERAGE(#REF!)," ") ->  | BO25: 0 | BP25: 0 | BQ25: =IFERROR(AVERAGE(#REF!)," ") -> 
A26: 18 | B26: =dtsiswa!D24 -> Nayla Annora Nobel W | C26: L | Z26: 0 | AA26: 0 | AB26: 0 | AC26: 0 | AD26: 0 | AE26: 0 | AF26: 0 | AG26: 0 | AH26: 0 | AI26: 0 | AJ26: 0 | AK26: 0 | AL26: 0 | AM26: 0 | AN26: 0 | AO26: 0 | AP26: 0 | AQ26: 0 | AR26: 0 | AS26: 0 | AT26: 0 | AU26: 0 | AV26: 0 | AW26: 0 | AX26: 0 | AY26: 0 | AZ26: 0 | BA26: 0 | BB26: 0 | BC26: 0 | BD26: 0 | BE26: 0 | BF26: 0 | BG26: 0 | BH26: 0 | BI26: 0 | BJ26: 0 | BK26: 0 | BL26: 0 | BM26: 0 | BN26: =IFERROR(AVERAGE(#REF!)," ") ->  | BO26: 0 | BP26: 0 | BQ26: =IFERROR(AVERAGE(#REF!)," ") -> 
A27: 19 | B27: =dtsiswa!D25 -> Raihan Danang P | C27: P | Z27: 0 | AA27: 0 | AB27: 0 | AC27: 0 | AD27: 0 | AE27: 0 | AF27: 0 | AG27: 0 | AH27: 0 | AI27: 0 | AJ27: 0 | AK27: 0 | AL27: 0 | AM27: 0 | AN27: 0 | AO27: 0 | AP27: 0 | AQ27: 0 | AR27: 0 | AS27: 0 | AT27: 0 | AU27: 0 | AV27: 0 | AW27: 0 | AX27: 0 | AY27: 0 | AZ27: 0 | BA27: 0 | BB27: 0 | BC27: 0 | BD27: 0 | BE27: 0 | BF27: 0 | BG27: 0 | BH27: 0 | BI27: 0 | BJ27: 0 | BK27: 0 | BL27: 0 | BM27: 0 | BN27: =IFERROR(AVERAGE(#REF!)," ") ->  | BO27: 0 | BP27: 0 | BQ27: =IFERROR(AVERAGE(#REF!)," ") -> 
A28: 20 | B28: =dtsiswa!D26 -> Roby Ardiyansyah | C28: P | Z28: 0 | AA28: 0 | AB28: 0 | AC28: 0 | AD28: 0 | AE28: 0 | AF28: 0 | AG28: 0 | AH28: 0 | AI28: 0 | AJ28: 0 | AK28: 0 | AL28: 0 | AM28: 0 | AN28: 0 | AO28: 0 | AP28: 0 | AQ28: 0 | AR28: 0 | AS28: 0 | AT28: 0 | AU28: 0 | AV28: 0 | AW28: 0 | AX28: 0 | AY28: 0 | AZ28: 0 | BA28: 0 | BB28: 0 | BC28: 0 | BD28: 0 | BE28: 0 | BF28: 0 | BG28: 0 | BH28: 0 | BI28: 0 | BJ28: 0 | BK28: 0 | BL28: 0 | BM28: 0 | BN28: =IFERROR(AVERAGE(#REF!)," ") ->  | BO28: 0 | BP28: 0 | BQ28: =IFERROR(AVERAGE(#REF!)," ") -> 
A29: 21 | B29: =dtsiswa!D27 -> Rojalingga Prana A | C29: L | Z29: 0 | AA29: 0 | AB29: 0 | AC29: 0 | AD29: 0 | AE29: 0 | AF29: 0 | AG29: 0 | AH29: 0 | AI29: 0 | AJ29: 0 | AK29: 0 | AL29: 0 | AM29: 0 | AN29: 0 | AO29: 0 | AP29: 0 | AQ29: 0 | AR29: 0 | AS29: 0 | AT29: 0 | AU29: 0 | AV29: 0 | AW29: 0 | AX29: 0 | AY29: 0 | AZ29: 0 | BA29: 0 | BB29: 0 | BC29: 0 | BD29: 0 | BE29: 0 | BF29: 0 | BG29: 0 | BH29: 0 | BI29: 0 | BJ29: 0 | BK29: 0 | BL29: 0 | BM29: 0 | BN29: =IFERROR(AVERAGE(#REF!)," ") ->  | BO29: 0 | BP29: 0 | BQ29: =IFERROR(AVERAGE(#REF!)," ") -> 
A30: 22 | B30: =dtsiswa!D28 -> Sally Savista A | C30: L | Z30: 0 | AA30: 0 | AB30: 0 | AC30: 0 | AD30: 0 | AE30: 0 | AF30: 0 | AG30: 0 | AH30: 0 | AI30: 0 | AJ30: 0 | AK30: 0 | AL30: 0 | AM30: 0 | AN30: 0 | AO30: 0 | AP30: 0 | AQ30: 0 | AR30: 0 | AS30: 0 | AT30: 0 | AU30: 0 | AV30: 0 | AW30: 0 | AX30: 0 | AY30: 0 | AZ30: 0 | BA30: 0 | BB30: 0 | BC30: 0 | BD30: 0 | BE30: 0 | BF30: 0 | BG30: 0 | BH30: 0 | BI30: 0 | BJ30: 0 | BK30: 0 | BL30: 0 | BM30: 0 | BN30: =IFERROR(AVERAGE(#REF!)," ") ->  | BO30: 0 | BP30: 0 | BQ30: =IFERROR(AVERAGE(#REF!)," ") -> 
A31: 23 | B31: =dtsiswa!D29 -> Tania Kaori Angelita | C31: P | Z31: 0 | AA31: 0 | AB31: 0 | AC31: 0 | AD31: 0 | AE31: 0 | AF31: 0 | AG31: 0 | AH31: 0 | AI31: 0 | AJ31: 0 | AK31: 0 | AL31: 0 | AM31: 0 | AN31: 0 | AO31: 0 | AP31: 0 | AQ31: 0 | AR31: 0 | AS31: 0 | AT31: 0 | AU31: 0 | AV31: 0 | AW31: 0 | AX31: 0 | AY31: 0 | AZ31: 0 | BA31: 0 | BB31: 0 | BC31: 0 | BD31: 0 | BE31: 0 | BF31: 0 | BG31: 0 | BH31: 0 | BI31: 0 | BJ31: 0 | BK31: 0 | BL31: 0 | BM31: 0 | BN31: =IFERROR(AVERAGE(#REF!)," ") ->  | BO31: 0 | BP31: 0 | BQ31: =IFERROR(AVERAGE(#REF!)," ") -> 
A32: 24 | B32: =dtsiswa!D30 -> Romzy Oka Ramadhani P | C32: P | Z32: 0 | AA32: 0 | AB32: 0 | AC32: 0 | AD32: 0 | AE32: 0 | AF32: 0 | AG32: 0 | AH32: 0 | AI32: 0 | AJ32: 0 | AK32: 0 | AL32: 0 | AM32: 0 | AN32: 0 | AO32: 0 | AP32: 0 | AQ32: 0 | AR32: 0 | AS32: 0 | AT32: 0 | AU32: 0 | AV32: 0 | AW32: 0 | AX32: 0 | AY32: 0 | AZ32: 0 | BA32: 0 | BB32: 0 | BC32: 0 | BD32: 0 | BE32: 0 | BF32: 0 | BG32: 0 | BH32: 0 | BI32: 0 | BJ32: 0 | BK32: 0 | BL32: 0 | BM32: 0 | BN32: =IFERROR(AVERAGE(#REF!)," ") ->  | BO32: 0 | BP32: 0 | BQ32: =IFERROR(AVERAGE(#REF!)," ") -> 
A33: 25 | B33: =dtsiswa!D31 -> Larasati Jagadhita P | C33: L | Z33: 0 | AA33: 0 | AB33: 0 | AC33: 0 | AD33: 0 | AE33: 0 | AF33: 0 | AG33: 0 | AH33: 0 | AI33: 0 | AJ33: 0 | AK33: 0 | AL33: 0 | AM33: 0 | AN33: 0 | AO33: 0 | AP33: 0 | AQ33: 0 | AR33: 0 | AS33: 0 | AT33: 0 | AU33: 0 | AV33: 0 | AW33: 0 | AX33: 0 | AY33: 0 | AZ33: 0 | BA33: 0 | BB33: 0 | BC33: 0 | BD33: 0 | BE33: 0 | BF33: 0 | BG33: 0 | BH33: 0 | BI33: 0 | BJ33: 0 | BK33: 0 | BL33: 0 | BM33: 0 | BN33: =IFERROR(AVERAGE(#REF!)," ") ->  | BO33: 0 | BP33: 0 | BQ33: =IFERROR(AVERAGE(#REF!)," ") -> 
A34: 26 | B34: =dtsiswa!D32 -> Meliana Citra A | C34: L | Z34: 0 | AA34: 0 | AB34: 0 | AC34: 0 | AD34: 0 | AE34: 0 | AF34: 0 | AG34: 0 | AH34: 0 | AI34: 0 | AJ34: 0 | AK34: 0 | AL34: 0 | AM34: 0 | AN34: 0 | AO34: 0 | AP34: 0 | AQ34: 0 | AR34: 0 | AS34: 0 | AT34: 0 | AU34: 0 | AV34: 0 | AW34: 0 | AX34: 0 | AY34: 0 | AZ34: 0 | BA34: 0 | BB34: 0 | BC34: 0 | BD34: 0 | BE34: 0 | BF34: 0 | BG34: 0 | BH34: 0 | BI34: 0 | BJ34: 0 | BK34: 0 | BL34: 0 | BM34: 0 | BN34: =IFERROR(AVERAGE(#REF!)," ") ->  | BO34: 0 | BP34: 0 | BQ34: =IFERROR(AVERAGE(#REF!)," ") -> 
A35: 27 | B35: =dtsiswa!D33 -> Mohammad Rizky | C35: L | Z35: 0 | AA35: 0 | AB35: 0 | AC35: 0 | AD35: 0 | AE35: 0 | AF35: 0 | AG35: 0 | AH35: 0 | AI35: 0 | AJ35: 0 | AK35: 0 | AL35: 0 | AM35: 0 | AN35: 0 | AO35: 0 | AP35: 0 | AQ35: 0 | AR35: 0 | AS35: 0 | AT35: 0 | AU35: 0 | AV35: 0 | AW35: 0 | AX35: 0 | AY35: 0 | AZ35: 0 | BA35: 0 | BB35: 0 | BC35: 0 | BD35: 0 | BE35: 0 | BF35: 0 | BG35: 0 | BH35: 0 | BI35: 0 | BJ35: 0 | BK35: 0 | BL35: 0 | BM35: 0 | BN35: =IFERROR(AVERAGE(#REF!)," ") ->  | BO35: 0 | BP35: 0 | BQ35: =IFERROR(AVERAGE(#REF!)," ") -> 
A36: 28 | B36: =dtsiswa!D34 -> 0 | C36: L | Z36: 0 | AA36: 0 | AB36: 0 | AC36: 0 | AD36: 0 | AE36: 0 | AF36: 0 | AG36: 0 | AH36: 0 | AI36: 0 | AJ36: 0 | AK36: 0 | AL36: 0 | AM36: 0 | AN36: 0 | AO36: 0 | AP36: 0 | AQ36: 0 | AR36: 0 | AS36: 0 | AT36: 0 | AU36: 0 | AV36: 0 | AW36: 0 | AX36: 0 | AY36: 0 | AZ36: 0 | BA36: 0 | BB36: 0 | BC36: 0 | BD36: 0 | BE36: 0 | BF36: 0 | BG36: 0 | BH36: 0 | BI36: 0 | BJ36: 0 | BK36: 0 | BL36: 0 | BM36: 0 | BN36: =IFERROR(AVERAGE(#REF!)," ") ->  | BO36: 0 | BP36: 0 | BQ36: =IFERROR(AVERAGE(#REF!)," ") -> 
A37: 29 | B37: =dtsiswa!D35 -> 0 | C37: L | Z37: 0 | AA37: 0 | AB37: 0 | AC37: 0 | AD37: 0 | AE37: 0 | AF37: 0 | AG37: 0 | AH37: 0 | AI37: 0 | AJ37: 0 | AK37: 0 | AL37: 0 | AM37: 0 | AN37: 0 | AO37: 0 | AP37: 0 | AQ37: 0 | AR37: 0 | AS37: 0 | AT37: 0 | AU37: 0 | AV37: 0 | AW37: 0 | AX37: 0 | AY37: 0 | AZ37: 0 | BA37: 0 | BB37: 0 | BC37: 0 | BD37: 0 | BE37: 0 | BF37: 0 | BG37: 0 | BH37: 0 | BI37: 0 | BJ37: 0 | BK37: 0 | BL37: 0 | BM37: 0 | BN37: =IFERROR(AVERAGE(#REF!)," ") ->  | BO37: 0 | BP37: 0 | BQ37: =IFERROR(AVERAGE(#REF!)," ") -> 
A38: 30 | B38: =dtsiswa!D36 -> 0 | C38: P | Z38: 0 | AA38: 0 | AB38: 0 | AC38: 0 | AD38: 0 | AE38: 0 | AF38: 0 | AG38: 0 | AH38: 0 | AI38: 0 | AJ38: 0 | AK38: 0 | AL38: 0 | AM38: 0 | AN38: 0 | AO38: 0 | AP38: 0 | AQ38: 0 | AR38: 0 | AS38: 0 | AT38: 0 | AU38: 0 | AV38: 0 | AW38: 0 | AX38: 0 | AY38: 0 | AZ38: 0 | BA38: 0 | BB38: 0 | BC38: 0 | BD38: 0 | BE38: 0 | BF38: 0 | BG38: 0 | BH38: 0 | BI38: 0 | BJ38: 0 | BK38: 0 | BL38: 0 | BM38: 0 | BN38: =IFERROR(AVERAGE(#REF!)," ") ->  | BO38: 0 | BP38: 0 | BQ38: =IFERROR(AVERAGE(#REF!)," ") -> 
A39: 31 | B39: =dtsiswa!D37 -> 0 | C39: P | Z39: 0 | AA39: 0 | AB39: 0 | AC39: 0 | AD39: 0 | AE39: 0 | AF39: 0 | AG39: 0 | AH39: 0 | AI39: 0 | AJ39: 0 | AK39: 0 | AL39: 0 | AM39: 0 | AN39: 0 | AO39: 0 | AP39: 0 | AQ39: 0 | AR39: 0 | AS39: 0 | AT39: 0 | AU39: 0 | AV39: 0 | AW39: 0 | AX39: 0 | AY39: 0 | AZ39: 0 | BA39: 0 | BB39: 0 | BC39: 0 | BD39: 0 | BE39: 0 | BF39: 0 | BG39: 0 | BH39: 0 | BI39: 0 | BJ39: 0 | BK39: 0 | BL39: 0 | BM39: 0 | BN39: =IFERROR(AVERAGE(#REF!)," ") ->  | BO39: 0 | BP39: 0 | BQ39: =IFERROR(AVERAGE(#REF!)," ") -> 
A40: 32 | B40: =dtsiswa!D38 -> 0 | Z40: 0 | AA40: 0 | AB40: 0 | AC40: 0 | AD40: 0 | AE40: 0 | AF40: 0 | AG40: 0 | AH40: 0 | AI40: 0 | AJ40: 0 | AK40: 0 | AL40: 0 | AM40: 0 | AN40: 0 | AO40: 0 | AP40: 0 | AQ40: 0 | AR40: 0 | AS40: 0 | AT40: 0 | AU40: 0 | AV40: 0 | AW40: 0 | AX40: 0 | AY40: 0 | AZ40: 0 | BA40: 0 | BB40: 0 | BC40: 0 | BD40: 0 | BE40: 0 | BF40: 0 | BG40: 0 | BH40: 0 | BI40: 0 | BJ40: 0 | BK40: 0 | BL40: 0 | BM40: 0 | BN40: =IFERROR(AVERAGE(#REF!)," ") ->  | BO40: 0 | BP40: 0 | BQ40: =IFERROR(AVERAGE(#REF!)," ") -> 
A41: 33 | B41: =dtsiswa!D39 -> 0 | Z41: 0 | AA41: 0 | AB41: 0 | AC41: 0 | AD41: 0 | AE41: 0 | AF41: 0 | AG41: 0 | AH41: 0 | AI41: 0 | AJ41: 0 | AK41: 0 | AL41: 0 | AM41: 0 | AN41: 0 | AO41: 0 | AP41: 0 | AQ41: 0 | AR41: 0 | AS41: 0 | AT41: 0 | AU41: 0 | AV41: 0 | AW41: 0 | AX41: 0 | AY41: 0 | AZ41: 0 | BA41: 0 | BB41: 0 | BC41: 0 | BD41: 0 | BE41: 0 | BF41: 0 | BG41: 0 | BH41: 0 | BI41: 0 | BJ41: 0 | BK41: 0 | BL41: 0 | BM41: 0 | BN41: =IFERROR(AVERAGE(#REF!)," ") ->  | BO41: 0 | BP41: 0 | BQ41: =IFERROR(AVERAGE(#REF!)," ") -> 
A42: 34 | B42: =dtsiswa!D40 -> 0 | Z42: 0 | AA42: 0 | AB42: 0 | AC42: 0 | AD42: 0 | AE42: 0 | AF42: 0 | AG42: 0 | AH42: 0 | AI42: 0 | AJ42: 0 | AK42: 0 | AL42: 0 | AM42: 0 | AN42: 0 | AO42: 0 | AP42: 0 | AQ42: 0 | AR42: 0 | AS42: 0 | AT42: 0 | AU42: 0 | AV42: 0 | AW42: 0 | AX42: 0 | AY42: 0 | AZ42: 0 | BA42: 0 | BB42: 0 | BC42: 0 | BD42: 0 | BE42: 0 | BF42: 0 | BG42: 0 | BH42: 0 | BI42: 0 | BJ42: 0 | BK42: 0 | BL42: 0 | BM42: 0 | BN42: =IFERROR(AVERAGE(#REF!)," ") ->  | BO42: 0 | BP42: 0 | BQ42: =IFERROR(AVERAGE(#REF!)," ") -> 
A43: 35 | B43: =dtsiswa!D41 -> 0 | Z43: 0 | AA43: 0 | AB43: 0 | AC43: 0 | AD43: 0 | AE43: 0 | AF43: 0 | AG43: 0 | AH43: 0 | AI43: 0 | AJ43: 0 | AK43: 0 | AL43: 0 | AM43: 0 | AN43: 0 | AO43: 0 | AP43: 0 | AQ43: 0 | AR43: 0 | AS43: 0 | AT43: 0 | AU43: 0 | AV43: 0 | AW43: 0 | AX43: 0 | AY43: 0 | AZ43: 0 | BA43: 0 | BB43: 0 | BC43: 0 | BD43: 0 | BE43: 0 | BF43: 0 | BG43: 0 | BH43: 0 | BI43: 0 | BJ43: 0 | BK43: 0 | BL43: 0 | BM43: 0 | BN43: =IFERROR(AVERAGE(#REF!)," ") ->  | BO43: 0 | BP43: 0 | BQ43: =IFERROR(AVERAGE(#REF!)," ") -> 
A44: 36 | B44: =dtsiswa!D42 -> 0 | J44: =IFERROR(AVERAGE(D44:I44)," ") ->  | O44: =IFERROR(AVERAGE(K44:N44)," ") ->  | T44: =IFERROR(AVERAGE(R44:S44)," ") ->  | Y44: =IFERROR(AVERAGE(W44:X44)," ") ->  | Z44: 0 | AA44: 0 | AB44: 0 | AC44: 0 | AD44: 0 | AE44: 0 | AF44: 0 | AG44: 0 | AH44: 0 | AI44: 0 | AJ44: 0 | AK44: 0 | AL44: =(Z44+AF44)/2 -> 0 | AM44: =(AA44+AG44)/2 -> 0 | AN44: =(AB44+AH44)/2 -> 0 | AO44: =(AC44+AI44)/2 -> 0 | AP44: =(AD44+AJ44)/2 -> 0 | AQ44: 0 | AR44: 0 | AS44: 0 | AT44: 0 | AU44: 0 | AV44: 0 | AW44: 0 | AX44: 0 | AY44: 0 | AZ44: 0 | BA44: 0 | BB44: 0 | BC44: 0 | BD44: 0 | BE44: 0 | BF44: 0 | BG44: 0 | BH44: =IFERROR(AVERAGE(BE44:BG44)," ") -> 0 | BI44: 0 | BJ44: 0 | BK44: 0 | BL44: 0 | BM44: 0 | BN44: =IFERROR(AVERAGE(#REF!)," ") ->  | BO44: =W44 -> 0 | BP44: =X44 -> 0 | BQ44: =IFERROR(AVERAGE(#REF!)," ") -> 
A45: 37 | B45: =dtsiswa!D43 -> 0 | Z45: 0 | AA45: 0 | AB45: 0 | AC45: 0 | AD45: 0 | AE45: 0 | AF45: 0 | AG45: 0 | AH45: 0 | AI45: 0 | AJ45: 0 | AK45: 0 | AL45: 0 | AM45: 0 | AN45: 0 | AO45: 0 | AP45: 0 | AQ45: 0 | AR45: 0 | AS45: 0 | AT45: 0 | AU45: 0 | AV45: 0 | AW45: 0 | AX45: 0 | AY45: 0 | AZ45: 0 | BA45: 0 | BB45: 0 | BC45: 0 | BD45: 0 | BE45: 0 | BF45: 0 | BG45: 0 | BH45: 0 | BI45: 0 | BJ45: 0 | BK45: 0 | BL45: 0 | BM45: 0 | BN45: =IFERROR(AVERAGE(#REF!)," ") ->  | BO45: 0 | BP45: 0 | BQ45: =IFERROR(AVERAGE(#REF!)," ") -> 
A46: 38 | B46: =dtsiswa!D44 -> 0 | Z46: 0 | AA46: 0 | AB46: 0 | AC46: 0 | AD46: 0 | AE46: 0 | AF46: 0 | AG46: 0 | AH46: 0 | AI46: 0 | AJ46: 0 | AK46: 0 | AL46: 0 | AM46: 0 | AN46: 0 | AO46: 0 | AP46: 0 | AQ46: 0 | AR46: 0 | AS46: 0 | AT46: 0 | AU46: 0 | AV46: 0 | AW46: 0 | AX46: 0 | AY46: 0 | AZ46: 0 | BA46: 0 | BB46: 0 | BC46: 0 | BD46: 0 | BE46: 0 | BF46: 0 | BG46: 0 | BH46: 0 | BI46: 0 | BJ46: 0 | BK46: 0 | BL46: 0 | BM46: 0 | BN46: =IFERROR(AVERAGE(#REF!)," ") ->  | BO46: 0 | BP46: 0 | BQ46: =IFERROR(AVERAGE(#REF!)," ") -> 
A47: 39 | B47: =dtsiswa!D45 -> 0 | Z47: 0 | AA47: 0 | AB47: 0 | AC47: 0 | AD47: 0 | AE47: 0 | AF47: 0 | AG47: 0 | AH47: 0 | AI47: 0 | AJ47: 0 | AK47: 0 | AL47: 0 | AM47: 0 | AN47: 0 | AO47: 0 | AP47: 0 | AQ47: 0 | AR47: 0 | AS47: 0 | AT47: 0 | AU47: 0 | AV47: 0 | AW47: 0 | AX47: 0 | AY47: 0 | AZ47: 0 | BA47: 0 | BB47: 0 | BC47: 0 | BD47: 0 | BE47: 0 | BF47: 0 | BG47: 0 | BH47: 0 | BI47: 0 | BJ47: 0 | BK47: 0 | BL47: 0 | BM47: 0 | BN47: =IFERROR(AVERAGE(#REF!)," ") ->  | BO47: 0 | BP47: 0 | BQ47: =IFERROR(AVERAGE(#REF!)," ") -> 
A48: 40 | B48: =dtsiswa!D46 -> 0 | Z48: 0 | AA48: 0 | AB48: 0 | AC48: 0 | AD48: 0 | AE48: 0 | AF48: 0 | AG48: 0 | AH48: 0 | AI48: 0 | AJ48: 0 | AK48: 0 | AL48: 0 | AM48: 0 | AN48: 0 | AO48: 0 | AP48: 0 | AQ48: 0 | AR48: 0 | AS48: 0 | AT48: 0 | AU48: 0 | AV48: 0 | AW48: 0 | AX48: 0 | AY48: 0 | AZ48: 0 | BA48: 0 | BB48: 0 | BC48: 0 | BD48: 0 | BE48: 0 | BF48: 0 | BG48: 0 | BH48: 0 | BI48: 0 | BJ48: 0 | BK48: 0 | BL48: 0 | BM48: 0 | BN48: =IFERROR(AVERAGE(#REF!)," ") ->  | BO48: 0 | BP48: 0 | BQ48: =IFERROR(AVERAGE(#REF!)," ") -> 

Sheet UT_MULOK (hidden)
A3: DATA NILAI SEMESTER 2
A4: KI-3 DAN KI-4 KELAS : 2 / BAHASA JAWA
A5: 1 | B5: 2 | C5: 3 | D5: 4 | E5: 5 | F5: 6 | G5: 7 | H5: 8 | I5: 9 | J5: 10 | K5: 11 | L5: 12 | M5: 13 | N5: 14 | O5: 15 | P5: 16 | Q5: 17 | R5: 18 | S5: 19 | T5: 20 | U5: 21 | V5: 22 | W5: 23 | X5: 24 | Y5: 25 | Z5: 26 | AA5: 27
A6: NO | B6: NAMA | C6: L/P | D6: tema 5 | F6: Tema 6 | H6: tema 7 | J6: RERATA ( KI-3 ) | M6: R.TUGAS | N6: RERATA ( KI-4 ) | Q6: r.tugas | R6: nilai ulhar + tugas per KD | U6: RTH | V6: ASPEK KETRAMPILAN ( KI-4 ) | Y6: ASPEK PENGETAHUAN ( KI_3 )
D7: tugas | E7: ulhar | F7: tugas | G7: ulhar | H7: tugas | I7: ulhar | J7: rata - rata ulhar per-KD | N7: rata-rata tugas per KD | V7: tema 5 | W7: tema 6 | X7: tema 7 | Y7: tema 5 | Z7: tema 6 | AA7: tema 7
D8: 4.5 | E8: 3.5 | F8: 4.6 | G8: 3.6 | H8: 4.7 | I8: 3.7 | J8: 3.5 | K8: 3.6 | L8: 3.7 | N8: 4.5 | O8: 4.6 | P8: 4.7 | R8: 3.5 | S8: 3.6 | T8: 3.7 | V8: 4.5 | W8: 4.6 | X8: 4.7 | Y8: 3.5 | Z8: 3.6 | AA8: 3.7
A9: 1 | B9: =dtsiswa!D7 -> Achmad Zacky | C9: L | D9: 70 | E9: 65 | F9: 56 | G9: 78 | H9: 80 | I9: 81 | J9: =E9 -> 65 | K9: =G9 -> 78 | L9: =I9 -> 81 | M9: =IFERROR(AVERAGE(J9:L9)," ") -> 74.66666667 | N9: =D9 -> 70 | O9: =E9 -> 65 | P9: 56 | Q9: =IFERROR(AVERAGE(N9:P9)," ") -> 63.66666667 | R9: =(J9+N9)/2 -> 67.5 | S9: =(K9+O9)/2 -> 71.5 | T9: 68.5 | U9: =IFERROR(AVERAGE(R9:T9)," ") -> 69.16666667 | V9: =D9 -> 70 | W9: =F9 -> 56 | X9: =I9 -> 81 | Y9: =E9 -> 65 | Z9: =G9 -> 78 | AA9: =I9 -> 81
A10: 2 | B10: =dtsiswa!D8 -> Angelia Vabel R | C10: L | J10: =E10 -> 0 | K10: =G10 -> 0 | L10: =I10 -> 0 | M10: =IFERROR(AVERAGE(J10:L10)," ") -> 0 | N10: =D10 -> 0 | O10: =E10 -> 0 | P10: =F10 -> 0 | Q10: =IFERROR(AVERAGE(N10:P10)," ") -> 0 | R10: =(J10+N10)/2 -> 0 | S10: =(K10+O10)/2 -> 0 | T10: =(L10+P10)/2 -> 0 | U10: 0 | V10: =D10 -> 0 | W10: =F10 -> 0 | X10: =H10 -> 0 | Y10: =E10 -> 0 | Z10: =G10 -> 0 | AA10: =I10 -> 0
A11: 3 | B11: =dtsiswa!D9 -> Anggun Dwi P.I | C11: L | J11: 0 | K11: 0 | L11: 0 | M11: 0 | N11: 0 | O11: 0 | P11: 0 | Q11: 0 | R11: 0 | S11: 0 | T11: 0 | U11: 0 | V11: 0 | W11: 0 | X11: 0 | Y11: 0 | Z11: 0 | AA11: 0
A12: 4 | B12: =dtsiswa!D10 -> Antonio Permata A | C12: L | J12: 0 | K12: 0 | L12: 0 | M12: 0 | N12: 0 | O12: 0 | P12: 0 | Q12: 0 | R12: 0 | S12: 0 | T12: 0 | U12: 0 | V12: 0 | W12: 0 | X12: 0 | Y12: 0 | Z12: 0 | AA12: 0
A13: 5 | B13: =dtsiswa!D11 -> Arya Pratama G | C13: P | J13: 0 | K13: 0 | L13: 0 | M13: 0 | N13: 0 | O13: 0 | P13: 0 | Q13: 0 | R13: 0 | S13: 0 | T13: 0 | U13: 0 | V13: 0 | W13: 0 | X13: 0 | Y13: 0 | Z13: 0 | AA13: 0
A14: 6 | B14: =dtsiswa!D12 -> Asyam Hanif Ihsan H | C14: P | J14: 0 | K14: 0 | L14: 0 | M14: 0 | N14: 0 | O14: 0 | P14: 0 | Q14: 0 | R14: 0 | S14: 0 | T14: 0 | U14: 0 | V14: 0 | W14: 0 | X14: 0 | Y14: 0 | Z14: 0 | AA14: 0
A15: 7 | B15: =dtsiswa!D13 -> Athaya Salsabilla Z | C15: L | J15: 0 | K15: 0 | L15: 0 | M15: 0 | N15: 0 | O15: 0 | P15: 0 | Q15: 0 | R15: 0 | S15: 0 | T15: 0 | U15: 0 | V15: 0 | W15: 0 | X15: 0 | Y15: 0 | Z15: 0 | AA15: 0
A16: 8 | B16: =dtsiswa!D14 -> Aulia Dea Rosalinda | C16: L | J16: 0 | K16: 0 | L16: 0 | M16: 0 | N16: 0 | O16: 0 | P16: 0 | Q16: 0 | R16: 0 | S16: 0 | T16: 0 | U16: 0 | V16: 0 | W16: 0 | X16: 0 | Y16: 0 | Z16: 0 | AA16: 0
A17: 9 | B17: =dtsiswa!D15 -> Claudia Gabriella L | C17: L | J17: 0 | K17: 0 | L17: 0 | M17: 0 | N17: 0 | O17: 0 | P17: 0 | Q17: 0 | R17: 0 | S17: 0 | T17: 0 | U17: 0 | V17: 0 | W17: 0 | X17: 0 | Y17: 0 | Z17: 0 | AA17: 0
A18: 10 | B18: =dtsiswa!D16 -> Deco Badarus Zaman | C18: L | J18: 0 | K18: 0 | L18: 0 | M18: 0 | N18: 0 | O18: 0 | P18: 0 | Q18: 0 | R18: 0 | S18: 0 | T18: 0 | U18: 0 | V18: 0 | W18: 0 | X18: 0 | Y18: 0 | Z18: 0 | AA18: 0
A19: 11 | B19: =dtsiswa!D17 -> Fania Mutiara Felichia | C19: L | J19: 0 | K19: 0 | L19: 0 | M19: 0 | N19: 0 | O19: 0 | P19: 0 | Q19: 0 | R19: 0 | S19: 0 | T19: 0 | U19: 0 | V19: 0 | W19: 0 | X19: 0 | Y19: 0 | Z19: 0 | AA19: 0
A20: 12 | B20: =dtsiswa!D18 -> Intan Dyah Nowari | C20: L | J20: 0 | K20: 0 | L20: 0 | M20: 0 | N20: 0 | O20: 0 | P20: 0 | Q20: 0 | R20: 0 | S20: 0 | T20: 0 | U20: 0 | V20: 0 | W20: 0 | X20: 0 | Y20: 0 | Z20: 0 | AA20: 0
A21: 13 | B21: =dtsiswa!D19 -> Misyanita Nurfitri S | C21: P | J21: 0 | K21: 0 | L21: 0 | M21: 0 | N21: 0 | O21: 0 | P21: 0 | Q21: 0 | R21: 0 | S21: 0 | T21: 0 | U21: 0 | V21: 0 | W21: 0 | X21: 0 | Y21: 0 | Z21: 0 | AA21: 0
A22: 14 | B22: =dtsiswa!D20 -> Moch Zidane Hita L. U | C22: L | J22: 0 | K22: 0 | L22: 0 | M22: 0 | N22: 0 | O22: 0 | P22: 0 | Q22: 0 | R22: 0 | S22: 0 | T22: 0 | U22: 0 | V22: 0 | W22: 0 | X22: 0 | Y22: 0 | Z22: 0 | AA22: 0
A23: 15 | B23: =dtsiswa!D21 -> Muhammad Ibra Maulana | C23: L | J23: 0 | K23: 0 | L23: 0 | M23: 0 | N23: 0 | O23: 0 | P23: 0 | Q23: 0 | R23: 0 | S23: 0 | T23: 0 | U23: 0 | V23: 0 | W23: 0 | X23: 0 | Y23: 0 | Z23: 0 | AA23: 0
A24: 16 | B24: =dtsiswa!D22 -> Nabilla Shiva Putri | C24: L | J24: 0 | K24: 0 | L24: 0 | M24: 0 | N24: 0 | O24: 0 | P24: 0 | Q24: 0 | R24: 0 | S24: 0 | T24: 0 | U24: 0 | V24: 0 | W24: 0 | X24: 0 | Y24: 0 | Z24: 0 | AA24: 0
A25: 17 | B25: =dtsiswa!D23 -> Naufal Falih F | C25: P | J25: 0 | K25: 0 | L25: 0 | M25: 0 | N25: 0 | O25: 0 | P25: 0 | Q25: 0 | R25: 0 | S25: 0 | T25: 0 | U25: 0 | V25: 0 | W25: 0 | X25: 0 | Y25: 0 | Z25: 0 | AA25: 0
A26: 18 | B26: =dtsiswa!D24 -> Nayla Annora Nobel W | C26: L | J26: 0 | K26: 0 | L26: 0 | M26: 0 | N26: 0 | O26: 0 | P26: 0 | Q26: 0 | R26: 0 | S26: 0 | T26: 0 | U26: 0 | V26: 0 | W26: 0 | X26: 0 | Y26: 0 | Z26: 0 | AA26: 0
A27: 19 | B27: =dtsiswa!D25 -> Raihan Danang P | C27: P | J27: 0 | K27: 0 | L27: 0 | M27: 0 | N27: 0 | O27: 0 | P27: 0 | Q27: 0 | R27: 0 | S27: 0 | T27: 0 | U27: 0 | V27: 0 | W27: 0 | X27: 0 | Y27: 0 | Z27: 0 | AA27: 0
A28: 20 | B28: =dtsiswa!D26 -> Roby Ardiyansyah | C28: P | J28: 0 | K28: 0 | L28: 0 | M28: 0 | N28: 0 | O28: 0 | P28: 0 | Q28: 0 | R28: 0 | S28: 0 | T28: 0 | U28: 0 | V28: 0 | W28: 0 | X28: 0 | Y28: 0 | Z28: 0 | AA28: 0
A29: 21 | B29: =dtsiswa!D27 -> Rojalingga Prana A | C29: L | J29: 0 | K29: 0 | L29: 0 | M29: 0 | N29: 0 | O29: 0 | P29: 0 | Q29: 0 | R29: 0 | S29: 0 | T29: 0 | U29: 0 | V29: 0 | W29: 0 | X29: 0 | Y29: 0 | Z29: 0 | AA29: 0
A30: 22 | B30: =dtsiswa!D28 -> Sally Savista A | C30: P | J30: 0 | K30: 0 | L30: 0 | M30: 0 | N30: 0 | O30: 0 | P30: 0 | Q30: 0 | R30: 0 | S30: 0 | T30: 0 | U30: 0 | V30: 0 | W30: 0 | X30: 0 | Y30: 0 | Z30: 0 | AA30: 0
A31: 23 | B31: =dtsiswa!D29 -> Tania Kaori Angelita | C31: L | J31: 0 | K31: 0 | L31: 0 | M31: 0 | N31: 0 | O31: 0 | P31: 0 | Q31: 0 | R31: 0 | S31: 0 | T31: 0 | U31: 0 | V31: 0 | W31: 0 | X31: 0 | Y31: 0 | Z31: 0 | AA31: 0
A32: 24 | B32: =dtsiswa!D30 -> Romzy Oka Ramadhani P | C32: P | J32: 0 | K32: 0 | L32: 0 | M32: 0 | N32: 0 | O32: 0 | P32: 0 | Q32: 0 | R32: 0 | S32: 0 | T32: 0 | U32: 0 | V32: 0 | W32: 0 | X32: 0 | Y32: 0 | Z32: 0 | AA32: 0
A33: 25 | B33: =dtsiswa!D31 -> Larasati Jagadhita P | C33: L | J33: 0 | K33: 0 | L33: 0 | M33: 0 | N33: 0 | O33: 0 | P33: 0 | Q33: 0 | R33: 0 | S33: 0 | T33: 0 | U33: 0 | V33: 0 | W33: 0 | X33: 0 | Y33: 0 | Z33: 0 | AA33: 0
A34: 26 | B34: =dtsiswa!D32 -> Meliana Citra A | C34: P | J34: 0 | K34: 0 | L34: 0 | M34: 0 | N34: 0 | O34: 0 | P34: 0 | Q34: 0 | R34: 0 | S34: 0 | T34: 0 | U34: 0 | V34: 0 | W34: 0 | X34: 0 | Y34: 0 | Z34: 0 | AA34: 0
A35: 27 | B35: =dtsiswa!D33 -> Mohammad Rizky | C35: L | J35: 0 | K35: 0 | L35: 0 | M35: 0 | N35: 0 | O35: 0 | P35: 0 | Q35: 0 | R35: 0 | S35: 0 | T35: 0 | U35: 0 | V35: 0 | W35: 0 | X35: 0 | Y35: 0 | Z35: 0 | AA35: 0
A36: 28 | B36: =dtsiswa!D34 -> 0 | C36: P | J36: 0 | K36: 0 | L36: 0 | M36: 0 | N36: 0 | O36: 0 | P36: 0 | Q36: 0 | R36: 0 | S36: 0 | T36: 0 | U36: 0 | V36: 0 | W36: 0 | X36: 0 | Y36: 0 | Z36: 0 | AA36: 0
A37: 29 | B37: =dtsiswa!D35 -> 0 | C37: P | J37: 0 | K37: 0 | L37: 0 | M37: 0 | N37: 0 | O37: 0 | P37: 0 | Q37: 0 | R37: 0 | S37: 0 | T37: 0 | U37: 0 | V37: 0 | W37: 0 | X37: 0 | Y37: 0 | Z37: 0 | AA37: 0
A38: 30 | B38: =dtsiswa!D36 -> 0 | C38: L | J38: 0 | K38: 0 | L38: 0 | M38: 0 | N38: 0 | O38: 0 | P38: 0 | Q38: 0 | R38: 0 | S38: 0 | T38: 0 | U38: 0 | V38: 0 | W38: 0 | X38: 0 | Y38: 0 | Z38: 0 | AA38: 0
A39: 31 | B39: =dtsiswa!D37 -> 0 | C39: P | J39: 0 | K39: 0 | L39: 0 | M39: 0 | N39: 0 | O39: 0 | P39: 0 | Q39: 0 | R39: 0 | S39: 0 | T39: 0 | U39: 0 | V39: 0 | W39: 0 | X39: 0 | Y39: 0 | Z39: 0 | AA39: 0
A40: 32 | B40: =dtsiswa!D38 -> 0 | C40: L | J40: 0 | K40: 0 | L40: 0 | M40: 0 | N40: 0 | O40: 0 | P40: 0 | Q40: 0 | R40: 0 | S40: 0 | T40: 0 | U40: 0 | V40: 0 | W40: 0 | X40: 0 | Y40: 0 | Z40: 0 | AA40: 0
A41: 33 | B41: =dtsiswa!D39 -> 0 | C41: P | J41: 0 | K41: 0 | L41: 0 | M41: 0 | N41: 0 | O41: 0 | P41: 0 | Q41: 0 | R41: 0 | S41: 0 | T41: 0 | U41: 0 | V41: 0 | W41: 0 | X41: 0 | Y41: 0 | Z41: 0 | AA41: 0
A42: 34 | B42: =dtsiswa!D40 -> 0 | C42: L | J42: 0 | K42: 0 | L42: 0 | M42: 0 | N42: 0 | O42: 0 | P42: 0 | Q42: 0 | R42: 0 | S42: 0 | T42: 0 | U42: 0 | V42: 0 | W42: 0 | X42: 0 | Y42: 0 | Z42: 0 | AA42: 0
A43: 35 | B43: =dtsiswa!D41 -> 0 | C43: P | J43: 0 | K43: 0 | L43: 0 | M43: 0 | N43: 0 | O43: 0 | P43: 0 | Q43: 0 | R43: 0 | S43: 0 | T43: 0 | U43: 0 | V43: 0 | W43: 0 | X43: 0 | Y43: 0 | Z43: 0 | AA43: 0
A44: 36 | J44: 0 | K44: 0 | L44: 0 | M44: 0 | N44: 0 | O44: 0 | P44: 0 | Q44: 0 | R44: 0 | S44: 0 | T44: 0 | U44: 0 | V44: 0 | W44: 0 | X44: 0 | Y44: 0 | Z44: 0 | AA44: 0
A45: 37 | J45: 0 | K45: 0 | L45: 0 | M45: 0 | N45: 0 | O45: 0 | P45: 0 | Q45: 0 | R45: 0 | S45: 0 | T45: 0 | U45: 0 | V45: 0 | W45: 0 | X45: 0 | Y45: 0 | Z45: 0 | AA45: 0
A46: 38 | J46: 0 | K46: 0 | L46: 0 | M46: 0 | N46: 0 | O46: 0 | P46: 0 | Q46: 0 | R46: 0 | S46: 0 | T46: 0 | U46: 0 | V46: 0 | W46: 0 | X46: 0 | Y46: 0 | Z46: 0 | AA46: 0
A47: 39 | J47: 0 | K47: 0 | L47: 0 | M47: 0 | N47: 0 | O47: 0 | P47: 0 | Q47: 0 | R47: 0 | S47: 0 | T47: 0 | U47: 0 | V47: 0 | W47: 0 | X47: 0 | Y47: 0 | Z47: 0 | AA47: 0
A48: 40 | J48: 0 | K48: 0 | L48: 0 | M48: 0 | N48: 0 | O48: 0 | P48: 0 | Q48: 0 | R48: 0 | S48: 0 | T48: 0 | U48: 0 | V48: 0 | W48: 0 | X48: 0 | Y48: 0 | Z48: 0 | AA48: 0

Sheet agmki3
A3: Nilai Rapot Pelajaran PAI ( KI-3 )
A4: Tahun Pelajaran 2015/2016
A5: Kelas : 4
A6: 1 | B6: 2 | C6: 3 | D6: 4 | E6: 5 | F6: 6 | G6: 7 | H6: 8 | I6: 9 | J6: 10 | K6: 11 | L6: 12 | M6: 13 | N6: 14 | O6: 15 | P6: 16 | Q6: 17 | R6: 18 | S6: 19 | T6: 20 | U6: 21 | V6: 22 | W6: 23 | X6: 24 | Y6: 25 | Z6: 26 | AA6: 27
A7: NO | B7: NIS | C7: NAMA | D7: KD | E7: NILAI | I7: JML | J7: NA | K7: NILAI KONVERSI | L7: PREDIKAT | M7: KLASIFIKASI | N7: Deskripsi Positif 3/4 | T7: Deskripsi Negatif 2/3 | Z7: NA | AA7: P
E8: Rt.NH | F8: 2x NH | G8: UTS | H8: UAS | N8: 3.2 | O8: 3.5 | P8: 3.6 | Q8: 3.8 | R8: 3.9 | S8: 3.10 | T8: 3.2 | U8: 3.5 | V8: 3.6 | W8: 3.8 | X8: 3.9 | Y8: 3.10
A9: 1 | C9: =VLOOKUP(A9,data_siswa,4,FALSE) -> Achmad Zacky | D9: 3.2 | E9: =VLOOKUP(A9,UHT_AGM,24,FALSE) -> 78 | F9: =E9*2 -> 156 | G9: 75 | H9: =VLOOKUP(A9,an_agm,49,FALSE) -> 90 | I9: =F9+G9+H9 -> 321 | J9: =(F9+G9+H9)/4 -> 80.25 | K9: =IF(J9>85,("4"),IF(J9>80,("3.66"),IF(J9>75,("3.33"),IF(J9>70,("3.00"),IF(J9>65,("2.66"),IF(J9>60,("2.33"),IF(J9>55,("2"),IF(J9>50,("1.66"),"1.33")))))))) -> 3.66 | L9: =IF(J9>85,("A"),IF(J9>80,("A-"),IF(J9>75,("B+"),IF(J9>70,("B"),IF(J9>65,("B-"),IF(J9>60,("C+"),IF(J9>55,("C"),IF(J9>50,("C-"),"D+")))))))) -> A- | M9: =IF(J9>80,("SB"),IF(J9>65,("B"),IF(J9>50,("C"),IF(J9>0,("K"),"0")))) -> SB | Q9: 4 | V9: 3 | Z9: =J15 -> 79.15972222 | AA9: =L15 -> B+
D10: 3.5 | E10: =VLOOKUP(A9,UHT_AGM,25,FALSE) -> 68 | F10: =E10*2 -> 136 | G10: 75 | H10: =VLOOKUP(A9,an_agm,50,FALSE) -> 90 | I10: =F10+G10+H10 -> 301 | J10: =(F10+G10+H10)/4 -> 75.25 | K10: =IF(J10>85,("4"),IF(J10>80,("3.66"),IF(J10>75,("3.33"),IF(J10>70,("3.00"),IF(J10>65,("2.66"),IF(J10>60,("2.33"),IF(J10>55,("2"),IF(J10>50,("1.66"),"1.33")))))))) -> 3.33 | L10: =IF(J10>85,("A"),IF(J10>80,("A-"),IF(J10>75,("B+"),IF(J10>70,("B"),IF(J10>65,("B-"),IF(J10>60,("C+"),IF(J10>55,("C"),IF(J10>50,("C-"),"D+")))))))) -> B+ | M10: =IF(J10>80,("SB"),IF(J10>65,("B"),IF(J10>50,("C"),IF(J10>0,("K"),"0")))) -> B
D11: 3.6 | E11: =VLOOKUP(A9,UHT_AGM,26,FALSE) -> 70 | F11: 140 | G11: 75 | H11: =VLOOKUP(A9,an_agm,51,FALSE) -> 80 | I11: 295 | J11: 73.75 | K11: 3.00 | L11: B | M11: B
D12: 3.8 | E12: =VLOOKUP(A9,UHT_AGM,27,FALSE) -> 81 | F12: 162 | G12: 75 | H12: =VLOOKUP(A9,an_agm,52,FALSE) -> 100 | I12: 337 | J12: 84.25 | K12: 3.66 | L12: A- | M12: SB
D13: 3.9 | E13: =VLOOKUP(A9,UHT_AGM,28,FALSE) -> 79 | F13: =E13*2 -> 158 | G13: 75 | H13: =VLOOKUP(A9,an_agm,53,FALSE) -> 100 | I13: =F13+G13+H13 -> 333 | J13: =(F13+G13+H13)/4 -> 83.25 | K13: =IF(J13>85,("4"),IF(J13>80,("3.66"),IF(J13>75,("3.33"),IF(J13>70,("3.00"),IF(J13>65,("2.66"),IF(J13>60,("2.33"),IF(J13>55,("2"),IF(J13>50,("1.66"),"1.33")))))))) -> 3.66 | L13: =IF(J13>85,("A"),IF(J13>80,("A-"),IF(J13>75,("B+"),IF(J13>70,("B"),IF(J13>65,("B-"),IF(J13>60,("C+"),IF(J13>55,("C"),IF(J13>50,("C-"),"D+")))))))) -> A- | M13: =IF(J13>80,("SB"),IF(J13>65,("B"),IF(J13>50,("C"),IF(J13>0,("K"),"0")))) -> SB
D14: 3.10 | E14: =VLOOKUP(A9,UHT_AGM,30,FALSE) -> 75.16666667 | F14: 150.3333333 | G14: 75 | H14: =VLOOKUP(A9,an_agm,54,FALSE) -> 87.5 | I14: 312.8333333 | J14: 78.20833333 | K14: 3.33 | L14: B+ | M14: B
B15: 1 | C15: capaian rapot | E15: =AVERAGE(E9:E14) -> 75.19444444 | G15: =AVEDEV(G9:G14) -> 0 | H15: =AVERAGE(H9:H14) -> 91.25 | I15: =MAX(J9:J14) -> 84.25 | J15: =AVERAGE(J9:J14) -> 79.15972222 | K15: =IF(J15>85,("4"),IF(J15>80,("3.66"),IF(J15>75,("3.33"),IF(J15>70,("3.00"),IF(J15>65,("2.66"),IF(J15>60,("2.33"),IF(J15>55,("2"),IF(J15>50,("1.66"),"1.33")))))))) -> 3.33 | L15: =IF(J15>85,("A"),IF(J15>80,("A-"),IF(J15>75,("B+"),IF(J15>70,("B"),IF(J15>65,("B-"),IF(J15>60,("C+"),IF(J15>55,("C"),IF(J15>50,("C-"),"D+")))))))) -> B+ | M15: =IF(J15>85,("A"),IF(J15>80,("A-"),IF(J15>75,("B+"),IF(J15>70,("B"),IF(J15>65,("B-"),IF(J15>60,("C+"),IF(J15>55,("C"),IF(J15>50,("C-"),"D+")))))))) -> B+
A16: 2 | C16: =VLOOKUP(A16,data_siswa,4,FALSE) -> Angelia Vabel R | D16: 3.2 | E16: =VLOOKUP(A16,UHT_AGM,24,FALSE) -> 0 | F16: =E16*2 -> 0 | H16: =VLOOKUP(A16,an_agm,49,FALSE) -> 0 | I16: =F16+G16+H16 -> 0 | J16: =(F16+G16+H16)/4 -> 0 | K16: =IF(J16>85,("4"),IF(J16>80,("3.66"),IF(J16>75,("3.33"),IF(J16>70,("3.00"),IF(J16>65,("2.66"),IF(J16>60,("2.33"),IF(J16>55,("2"),IF(J16>50,("1.66"),"1.33")))))))) -> 1.33 | L16: =IF(J16>85,("A"),IF(J16>80,("A-"),IF(J16>75,("B+"),IF(J16>70,("B"),IF(J16>65,("B-"),IF(J16>60,("C+"),IF(J16>55,("C"),IF(J16>50,("C-"),"D+")))))))) -> D+ | M16: =IF(J16>80,("SB"),IF(J16>65,("B"),IF(J16>50,("C"),IF(J16>0,("K"),"0")))) -> 0 | Z16: =J22 -> 0 | AA16: =L22 -> D+
D17: 3.5 | E17: =VLOOKUP(A16,UHT_AGM,25,FALSE) -> 0 | F17: =E17*2 -> 0 | H17: =VLOOKUP(A16,an_agm,50,FALSE) -> 0 | I17: =F17+G17+H17 -> 0 | J17: =(F17+G17+H17)/4 -> 0 | K17: =IF(J17>85,("4"),IF(J17>80,("3.66"),IF(J17>75,("3.33"),IF(J17>70,("3.00"),IF(J17>65,("2.66"),IF(J17>60,("2.33"),IF(J17>55,("2"),IF(J17>50,("1.66"),"1.33")))))))) -> 1.33 | L17: =IF(J17>85,("A"),IF(J17>80,("A-"),IF(J17>75,("B+"),IF(J17>70,("B"),IF(J17>65,("B-"),IF(J17>60,("C+"),IF(J17>55,("C"),IF(J17>50,("C-"),"D+")))))))) -> D+ | M17: =IF(J17>80,("SB"),IF(J17>65,("B"),IF(J17>50,("C"),IF(J17>0,("K"),"0")))) -> 0
D18: 3.6 | E18: =VLOOKUP(A16,UHT_AGM,26,FALSE) -> 0 | F18: 0 | H18: =VLOOKUP(A16,an_agm,51,FALSE) -> 0 | I18: 0 | J18: 0 | K18: 1.33 | L18: D+ | M18: 0
D19: 3.8 | E19: =VLOOKUP(A16,UHT_AGM,27,FALSE) -> 0 | F19: 0 | H19: =VLOOKUP(A16,an_agm,52,FALSE) -> 0 | I19: 0 | J19: 0 | K19: 1.33 | L19: D+ | M19: 0
D20: 3.9 | E20: =VLOOKUP(A16,UHT_AGM,28,FALSE) -> 0 | F20: 0 | H20: =VLOOKUP(A16,an_agm,53,FALSE) -> 0 | I20: 0 | J20: 0 | K20: 1.33 | L20: D+ | M20: 0
D21: 3.10 | E21: =VLOOKUP(A16,UHT_AGM,30,FALSE) -> 0 | F21: 0 | H21: =VLOOKUP(A16,an_agm,54,FALSE) -> 0 | I21: 0 | J21: 0 | K21: 1.33 | L21: D+ | M21: 0
B22: 2 | C22: capaian rapot | E22: =AVERAGE(E16:E21) -> 0 | G22: =AVEDEV(G16:G21) ->  | H22: =AVERAGE(H16:H21) -> 0 | J22: =AVERAGE(J16:J21) -> 0 | K22: =IF(J22>85,("4"),IF(J22>80,("3.66"),IF(J22>75,("3.33"),IF(J22>70,("3.00"),IF(J22>65,("2.66"),IF(J22>60,("2.33"),IF(J22>55,("2"),IF(J22>50,("1.66"),"1.33")))))))) -> 1.33 | L22: =IF(J22>85,("A"),IF(J22>80,("A-"),IF(J22>75,("B+"),IF(J22>70,("B"),IF(J22>65,("B-"),IF(J22>60,("C+"),IF(J22>55,("C"),IF(J22>50,("C-"),"D+")))))))) -> D+ | M22: =IF(J22>85,("A"),IF(J22>80,("A-"),IF(J22>75,("B+"),IF(J22>70,("B"),IF(J22>65,("B-"),IF(J22>60,("C+"),IF(J22>55,("C"),IF(J22>50,("C-"),"D+")))))))) -> D+
A23: 3 | C23: =VLOOKUP(A23,data_siswa,4,FALSE) -> Anggun Dwi P.I | D23: 3.2 | E23: =VLOOKUP(A23,UHT_AGM,24,FALSE) -> 0 | F23: =E23*2 -> 0 | H23: =VLOOKUP(A23,an_agm,49,FALSE) -> 0 | I23: =F23+G23+H23 -> 0 | J23: =(F23+G23+H23)/4 -> 0 | K23: =IF(J23>85,("4"),IF(J23>80,("3.66"),IF(J23>75,("3.33"),IF(J23>70,("3.00"),IF(J23>65,("2.66"),IF(J23>60,("2.33"),IF(J23>55,("2"),IF(J23>50,("1.66"),"1.33")))))))) -> 1.33 | L23: =IF(J23>85,("A"),IF(J23>80,("A-"),IF(J23>75,("B+"),IF(J23>70,("B"),IF(J23>65,("B-"),IF(J23>60,("C+"),IF(J23>55,("C"),IF(J23>50,("C-"),"D+")))))))) -> D+ | M23: =IF(J23>80,("SB"),IF(J23>65,("B"),IF(J23>50,("C"),IF(J23>0,("K"),"0")))) -> 0 | Z23: =J29 -> 0 | AA23: =L29 -> D+
D24: 3.5 | E24: =VLOOKUP(A23,UHT_AGM,25,FALSE) -> 0 | F24: =E24*2 -> 0 | H24: =VLOOKUP(A23,an_agm,50,FALSE) -> 0 | I24: =F24+G24+H24 -> 0 | J24: =(F24+G24+H24)/4 -> 0 | K24: =IF(J24>85,("4"),IF(J24>80,("3.66"),IF(J24>75,("3.33"),IF(J24>70,("3.00"),IF(J24>65,("2.66"),IF(J24>60,("2.33"),IF(J24>55,("2"),IF(J24>50,("1.66"),"1.33")))))))) -> 1.33 | L24: =IF(J24>85,("A"),IF(J24>80,("A-"),IF(J24>75,("B+"),IF(J24>70,("B"),IF(J24>65,("B-"),IF(J24>60,("C+"),IF(J24>55,("C"),IF(J24>50,("C-"),"D+")))))))) -> D+ | M24: =IF(J24>80,("SB"),IF(J24>65,("B"),IF(J24>50,("C"),IF(J24>0,("K"),"0")))) -> 0
D25: 3.6 | E25: =VLOOKUP(A23,UHT_AGM,26,FALSE) -> 0 | F25: 0 | H25: =VLOOKUP(A23,an_agm,51,FALSE) -> 0 | I25: 0 | J25: 0 | K25: 1.33 | L25: D+ | M25: 0
D26: 3.8 | E26: =VLOOKUP(A23,UHT_AGM,27,FALSE) -> 0 | F26: 0 | H26: =VLOOKUP(A23,an_agm,52,FALSE) -> 0 | I26: 0 | J26: 0 | K26: 1.33 | L26: D+ | M26: 0
D27: 3.9 | E27: =VLOOKUP(A23,UHT_AGM,28,FALSE) -> 0 | F27: 0 | H27: =VLOOKUP(A23,an_agm,53,FALSE) -> 0 | I27: 0 | J27: 0 | K27: 1.33 | L27: D+ | M27: 0
D28: 3.10 | E28: =VLOOKUP(A23,UHT_AGM,30,FALSE) -> 0 | F28: 0 | H28: =VLOOKUP(A23,an_agm,54,FALSE) -> 0 | I28: 0 | J28: 0 | K28: 1.33 | L28: D+ | M28: 0
B29: 3 | C29: capaian rapot | E29: =AVERAGE(E23:E28) -> 0 | G29: =AVEDEV(G23:G28) ->  | H29: =AVERAGE(H23:H28) -> 0 | J29: =AVERAGE(J23:J28) -> 0 | K29: =IF(J29>85,("4"),IF(J29>80,("3.66"),IF(J29>75,("3.33"),IF(J29>70,("3.00"),IF(J29>65,("2.66"),IF(J29>60,("2.33"),IF(J29>55,("2"),IF(J29>50,("1.66"),"1.33")))))))) -> 1.33 | L29: =IF(J29>85,("A"),IF(J29>80,("A-"),IF(J29>75,("B+"),IF(J29>70,("B"),IF(J29>65,("B-"),IF(J29>60,("C+"),IF(J29>55,("C"),IF(J29>50,("C-"),"D+")))))))) -> D+ | M29: =IF(J29>85,("A"),IF(J29>80,("A-"),IF(J29>75,("B+"),IF(J29>70,("B"),IF(J29>65,("B-"),IF(J29>60,("C+"),IF(J29>55,("C"),IF(J29>50,("C-"),"D+")))))))) -> D+
A30: 4 | C30: =VLOOKUP(A30,data_siswa,4,FALSE) -> Antonio Permata A | D30: 3.2 | E30: =VLOOKUP(A30,UHT_AGM,24,FALSE) -> 0 | F30: =E30*2 -> 0 | H30: =VLOOKUP(A30,an_agm,49,FALSE) -> 0 | I30: =F30+G30+H30 -> 0 | J30: =(F30+G30+H30)/4 -> 0 | K30: =IF(J30>85,("4"),IF(J30>80,("3.66"),IF(J30>75,("3.33"),IF(J30>70,("3.00"),IF(J30>65,("2.66"),IF(J30>60,("2.33"),IF(J30>55,("2"),IF(J30>50,("1.66"),"1.33")))))))) -> 1.33 | L30: =IF(J30>85,("A"),IF(J30>80,("A-"),IF(J30>75,("B+"),IF(J30>70,("B"),IF(J30>65,("B-"),IF(J30>60,("C+"),IF(J30>55,("C"),IF(J30>50,("C-"),"D+")))))))) -> D+ | M30: =IF(J30>80,("SB"),IF(J30>65,("B"),IF(J30>50,("C"),IF(J30>0,("K"),"0")))) -> 0 | Z30: =J36 -> 0 | AA30: =L36 -> D+
D31: 3.5 | E31: =VLOOKUP(A30,UHT_AGM,25,FALSE) -> 0 | F31: =E31*2 -> 0 | H31: =VLOOKUP(A30,an_agm,50,FALSE) -> 0 | I31: =F31+G31+H31 -> 0 | J31: =(F31+G31+H31)/4 -> 0 | K31: =IF(J31>85,("4"),IF(J31>80,("3.66"),IF(J31>75,("3.33"),IF(J31>70,("3.00"),IF(J31>65,("2.66"),IF(J31>60,("2.33"),IF(J31>55,("2"),IF(J31>50,("1.66"),"1.33")))))))) -> 1.33 | L31: =IF(J31>85,("A"),IF(J31>80,("A-"),IF(J31>75,("B+"),IF(J31>70,("B"),IF(J31>65,("B-"),IF(J31>60,("C+"),IF(J31>55,("C"),IF(J31>50,("C-"),"D+")))))))) -> D+ | M31: =IF(J31>80,("SB"),IF(J31>65,("B"),IF(J31>50,("C"),IF(J31>0,("K"),"0")))) -> 0
D32: 3.6 | E32: =VLOOKUP(A30,UHT_AGM,26,FALSE) -> 0 | F32: 0 | H32: =VLOOKUP(A30,an_agm,51,FALSE) -> 0 | I32: 0 | J32: 0 | K32: 1.33 | L32: D+ | M32: 0
D33: 3.8 | E33: =VLOOKUP(A30,UHT_AGM,27,FALSE) -> 0 | F33: 0 | H33: =VLOOKUP(A30,an_agm,52,FALSE) -> 0 | I33: 0 | J33: 0 | K33: 1.33 | L33: D+ | M33: 0
D34: 3.9 | E34: =VLOOKUP(A30,UHT_AGM,28,FALSE) -> 0 | F34: 0 | H34: =VLOOKUP(A30,an_agm,53,FALSE) -> 0 | I34: 0 | J34: 0 | K34: 1.33 | L34: D+ | M34: 0
D35: 3.10 | E35: =VLOOKUP(A30,UHT_AGM,30,FALSE) -> 0 | F35: 0 | H35: =VLOOKUP(A30,an_agm,54,FALSE) -> 0 | I35: 0 | J35: 0 | K35: 1.33 | L35: D+ | M35: 0
B36: 4 | C36: capaian rapot | E36: =AVERAGE(E30:E35) -> 0 | G36: =AVEDEV(G30:G35) ->  | H36: =AVERAGE(H30:H35) -> 0 | J36: =AVERAGE(J30:J35) -> 0 | K36: =IF(J36>85,("4"),IF(J36>80,("3.66"),IF(J36>75,("3.33"),IF(J36>70,("3.00"),IF(J36>65,("2.66"),IF(J36>60,("2.33"),IF(J36>55,("2"),IF(J36>50,("1.66"),"1.33")))))))) -> 1.33 | L36: =IF(J36>85,("A"),IF(J36>80,("A-"),IF(J36>75,("B+"),IF(J36>70,("B"),IF(J36>65,("B-"),IF(J36>60,("C+"),IF(J36>55,("C"),IF(J36>50,("C-"),"D+")))))))) -> D+ | M36: =IF(J36>85,("A"),IF(J36>80,("A-"),IF(J36>75,("B+"),IF(J36>70,("B"),IF(J36>65,("B-"),IF(J36>60,("C+"),IF(J36>55,("C"),IF(J36>50,("C-"),"D+")))))))) -> D+
A37: 5 | C37: =VLOOKUP(A37,data_siswa,4,FALSE) -> Arya Pratama G | D37: 3.2 | E37: =VLOOKUP(A37,UHT_AGM,24,FALSE) -> 0 | F37: =E37*2 -> 0 | H37: =VLOOKUP(A37,an_agm,49,FALSE) -> 0 | I37: =F37+G37+H37 -> 0 | J37: =(F37+G37+H37)/4 -> 0 | K37: =IF(J37>85,("4"),IF(J37>80,("3.66"),IF(J37>75,("3.33"),IF(J37>70,("3.00"),IF(J37>65,("2.66"),IF(J37>60,("2.33"),IF(J37>55,("2"),IF(J37>50,("1.66"),"1.33")))))))) -> 1.33 | L37: =IF(J37>85,("A"),IF(J37>80,("A-"),IF(J37>75,("B+"),IF(J37>70,("B"),IF(J37>65,("B-"),IF(J37>60,("C+"),IF(J37>55,("C"),IF(J37>50,("C-"),"D+")))))))) -> D+ | M37: =IF(J37>80,("SB"),IF(J37>65,("B"),IF(J37>50,("C"),IF(J37>0,("K"),"0")))) -> 0 | Z37: =J43 -> 0 | AA37: =L43 -> D+
D38: 3.5 | E38: =VLOOKUP(A37,UHT_AGM,25,FALSE) -> 0 | F38: =E38*2 -> 0 | H38: =VLOOKUP(A37,an_agm,50,FALSE) -> 0 | I38: =F38+G38+H38 -> 0 | J38: =(F38+G38+H38)/4 -> 0 | K38: =IF(J38>85,("4"),IF(J38>80,("3.66"),IF(J38>75,("3.33"),IF(J38>70,("3.00"),IF(J38>65,("2.66"),IF(J38>60,("2.33"),IF(J38>55,("2"),IF(J38>50,("1.66"),"1.33")))))))) -> 1.33 | L38: =IF(J38>85,("A"),IF(J38>80,("A-"),IF(J38>75,("B+"),IF(J38>70,("B"),IF(J38>65,("B-"),IF(J38>60,("C+"),IF(J38>55,("C"),IF(J38>50,("C-"),"D+")))))))) -> D+ | M38: =IF(J38>80,("SB"),IF(J38>65,("B"),IF(J38>50,("C"),IF(J38>0,("K"),"0")))) -> 0
D39: 3.6 | E39: =VLOOKUP(A37,UHT_AGM,26,FALSE) -> 0 | F39: 0 | H39: =VLOOKUP(A37,an_agm,51,FALSE) -> 0 | I39: 0 | J39: 0 | K39: 1.33 | L39: D+ | M39: 0
D40: 3.8 | E40: =VLOOKUP(A37,UHT_AGM,27,FALSE) -> 0 | F40: 0 | H40: =VLOOKUP(A37,an_agm,52,FALSE) -> 0 | I40: 0 | J40: 0 | K40: 1.33 | L40: D+ | M40: 0
D41: 3.9 | E41: =VLOOKUP(A37,UHT_AGM,28,FALSE) -> 0 | F41: 0 | H41: =VLOOKUP(A37,an_agm,53,FALSE) -> 0 | I41: 0 | J41: 0 | K41: 1.33 | L41: D+ | M41: 0
D42: 3.10 | E42: =VLOOKUP(A37,UHT_AGM,30,FALSE) -> 0 | F42: 0 | H42: =VLOOKUP(A37,an_agm,54,FALSE) -> 0 | I42: 0 | J42: 0 | K42: 1.33 | L42: D+ | M42: 0
B43: 5 | C43: capaian rapot | E43: =AVERAGE(E37:E42) -> 0 | G43: =AVEDEV(G37:G42) ->  | H43: =AVERAGE(H37:H42) -> 0 | J43: =AVERAGE(J37:J42) -> 0 | K43: =IF(J43>85,("4"),IF(J43>80,("3.66"),IF(J43>75,("3.33"),IF(J43>70,("3.00"),IF(J43>65,("2.66"),IF(J43>60,("2.33"),IF(J43>55,("2"),IF(J43>50,("1.66"),"1.33")))))))) -> 1.33 | L43: =IF(J43>85,("A"),IF(J43>80,("A-"),IF(J43>75,("B+"),IF(J43>70,("B"),IF(J43>65,("B-"),IF(J43>60,("C+"),IF(J43>55,("C"),IF(J43>50,("C-"),"D+")))))))) -> D+ | M43: =IF(J43>85,("A"),IF(J43>80,("A-"),IF(J43>75,("B+"),IF(J43>70,("B"),IF(J43>65,("B-"),IF(J43>60,("C+"),IF(J43>55,("C"),IF(J43>50,("C-"),"D+")))))))) -> D+
A44: 6 | C44: =VLOOKUP(A44,data_siswa,4,FALSE) -> Asyam Hanif Ihsan H | D44: 3.2 | E44: =VLOOKUP(A44,UHT_AGM,24,FALSE) -> 0 | F44: =E44*2 -> 0 | H44: =VLOOKUP(A44,an_agm,49,FALSE) -> 0 | I44: =F44+G44+H44 -> 0 | J44: =(F44+G44+H44)/4 -> 0 | K44: =IF(J44>85,("4"),IF(J44>80,("3.66"),IF(J44>75,("3.33"),IF(J44>70,("3.00"),IF(J44>65,("2.66"),IF(J44>60,("2.33"),IF(J44>55,("2"),IF(J44>50,("1.66"),"1.33")))))))) -> 1.33 | L44: =IF(J44>85,("A"),IF(J44>80,("A-"),IF(J44>75,("B+"),IF(J44>70,("B"),IF(J44>65,("B-"),IF(J44>60,("C+"),IF(J44>55,("C"),IF(J44>50,("C-"),"D+")))))))) -> D+ | M44: =IF(J44>80,("SB"),IF(J44>65,("B"),IF(J44>50,("C"),IF(J44>0,("K"),"0")))) -> 0 | Z44: =J50 -> 0 | AA44: =L50 -> D+
D45: 3.5 | E45: =VLOOKUP(A44,UHT_AGM,25,FALSE) -> 0 | F45: =E45*2 -> 0 | H45: =VLOOKUP(A44,an_agm,50,FALSE) -> 0 | I45: =F45+G45+H45 -> 0 | J45: =(F45+G45+H45)/4 -> 0 | K45: =IF(J45>85,("4"),IF(J45>80,("3.66"),IF(J45>75,("3.33"),IF(J45>70,("3.00"),IF(J45>65,("2.66"),IF(J45>60,("2.33"),IF(J45>55,("2"),IF(J45>50,("1.66"),"1.33")))))))) -> 1.33 | L45: =IF(J45>85,("A"),IF(J45>80,("A-"),IF(J45>75,("B+"),IF(J45>70,("B"),IF(J45>65,("B-"),IF(J45>60,("C+"),IF(J45>55,("C"),IF(J45>50,("C-"),"D+")))))))) -> D+ | M45: =IF(J45>80,("SB"),IF(J45>65,("B"),IF(J45>50,("C"),IF(J45>0,("K"),"0")))) -> 0
D46: 3.6 | E46: =VLOOKUP(A44,UHT_AGM,26,FALSE) -> 0 | F46: 0 | H46: =VLOOKUP(A44,an_agm,51,FALSE) -> 0 | I46: 0 | J46: 0 | K46: 1.33 | L46: D+ | M46: 0
D47: 3.8 | E47: =VLOOKUP(A44,UHT_AGM,27,FALSE) -> 0 | F47: 0 | H47: =VLOOKUP(A44,an_agm,52,FALSE) -> 0 | I47: 0 | J47: 0 | K47: 1.33 | L47: D+ | M47: 0
D48: 3.9 | E48: =VLOOKUP(A44,UHT_AGM,28,FALSE) -> 0 | F48: 0 | H48: =VLOOKUP(A44,an_agm,53,FALSE) -> 0 | I48: 0 | J48: 0 | K48: 1.33 | L48: D+ | M48: 0
D49: 3.10 | E49: =VLOOKUP(A44,UHT_AGM,30,FALSE) -> 0 | F49: 0 | H49: =VLOOKUP(A44,an_agm,54,FALSE) -> 0 | I49: 0 | J49: 0 | K49: 1.33 | L49: D+ | M49: 0
B50: 6 | C50: capaian rapot | E50: =AVERAGE(E44:E49) -> 0 | G50: =AVEDEV(G44:G49) ->  | H50: =AVERAGE(H44:H49) -> 0 | J50: =AVERAGE(J44:J49) -> 0 | K50: =IF(J50>85,("4"),IF(J50>80,("3.66"),IF(J50>75,("3.33"),IF(J50>70,("3.00"),IF(J50>65,("2.66"),IF(J50>60,("2.33"),IF(J50>55,("2"),IF(J50>50,("1.66"),"1.33")))))))) -> 1.33 | L50: =IF(J50>85,("A"),IF(J50>80,("A-"),IF(J50>75,("B+"),IF(J50>70,("B"),IF(J50>65,("B-"),IF(J50>60,("C+"),IF(J50>55,("C"),IF(J50>50,("C-"),"D+")))))))) -> D+ | M50: =IF(J50>85,("A"),IF(J50>80,("A-"),IF(J50>75,("B+"),IF(J50>70,("B"),IF(J50>65,("B-"),IF(J50>60,("C+"),IF(J50>55,("C"),IF(J50>50,("C-"),"D+")))))))) -> D+
A51: 7 | C51: =VLOOKUP(A51,data_siswa,4,FALSE) -> Athaya Salsabilla Z | D51: 3.2 | E51: =VLOOKUP(A51,UHT_AGM,24,FALSE) -> 0 | F51: =E51*2 -> 0 | H51: =VLOOKUP(A51,an_agm,49,FALSE) -> 0 | I51: =F51+G51+H51 -> 0 | J51: =(F51+G51+H51)/4 -> 0 | K51: =IF(J51>85,("4"),IF(J51>80,("3.66"),IF(J51>75,("3.33"),IF(J51>70,("3.00"),IF(J51>65,("2.66"),IF(J51>60,("2.33"),IF(J51>55,("2"),IF(J51>50,("1.66"),"1.33")))))))) -> 1.33 | L51: =IF(J51>85,("A"),IF(J51>80,("A-"),IF(J51>75,("B+"),IF(J51>70,("B"),IF(J51>65,("B-"),IF(J51>60,("C+"),IF(J51>55,("C"),IF(J51>50,("C-"),"D+")))))))) -> D+ | M51: =IF(J51>80,("SB"),IF(J51>65,("B"),IF(J51>50,("C"),IF(J51>0,("K"),"0")))) -> 0 | Z51: =J57 -> 0 | AA51: =L57 -> D+
D52: 3.5 | E52: =VLOOKUP(A51,UHT_AGM,25,FALSE) -> 0 | F52: =E52*2 -> 0 | H52: =VLOOKUP(A51,an_agm,50,FALSE) -> 0 | I52: =F52+G52+H52 -> 0 | J52: =(F52+G52+H52)/4 -> 0 | K52: =IF(J52>85,("4"),IF(J52>80,("3.66"),IF(J52>75,("3.33"),IF(J52>70,("3.00"),IF(J52>65,("2.66"),IF(J52>60,("2.33"),IF(J52>55,("2"),IF(J52>50,("1.66"),"1.33")))))))) -> 1.33 | L52: =IF(J52>85,("A"),IF(J52>80,("A-"),IF(J52>75,("B+"),IF(J52>70,("B"),IF(J52>65,("B-"),IF(J52>60,("C+"),IF(J52>55,("C"),IF(J52>50,("C-"),"D+")))))))) -> D+ | M52: =IF(J52>80,("SB"),IF(J52>65,("B"),IF(J52>50,("C"),IF(J52>0,("K"),"0")))) -> 0
D53: 3.6 | E53: =VLOOKUP(A51,UHT_AGM,26,FALSE) -> 0 | F53: 0 | H53: =VLOOKUP(A51,an_agm,51,FALSE) -> 0 | I53: 0 | J53: 0 | K53: 1.33 | L53: D+ | M53: 0
D54: 3.8 | E54: =VLOOKUP(A51,UHT_AGM,27,FALSE) -> 0 | F54: 0 | H54: =VLOOKUP(A51,an_agm,52,FALSE) -> 0 | I54: 0 | J54: 0 | K54: 1.33 | L54: D+ | M54: 0
D55: 3.9 | E55: =VLOOKUP(A51,UHT_AGM,28,FALSE) -> 0 | F55: 0 | H55: =VLOOKUP(A51,an_agm,53,FALSE) -> 0 | I55: 0 | J55: 0 | K55: 1.33 | L55: D+ | M55: 0
D56: 3.10 | E56: =VLOOKUP(A51,UHT_AGM,30,FALSE) -> 0 | F56: 0 | H56: =VLOOKUP(A51,an_agm,54,FALSE) -> 0 | I56: 0 | J56: 0 | K56: 1.33 | L56: D+ | M56: 0
B57: 7 | C57: capaian rapot | E57: =AVERAGE(E51:E56) -> 0 | G57: =AVEDEV(G51:G56) ->  | H57: =AVERAGE(H51:H56) -> 0 | J57: =AVERAGE(J51:J56) -> 0 | K57: =IF(J57>85,("4"),IF(J57>80,("3.66"),IF(J57>75,("3.33"),IF(J57>70,("3.00"),IF(J57>65,("2.66"),IF(J57>60,("2.33"),IF(J57>55,("2"),IF(J57>50,("1.66"),"1.33")))))))) -> 1.33 | L57: =IF(J57>85,("A"),IF(J57>80,("A-"),IF(J57>75,("B+"),IF(J57>70,("B"),IF(J57>65,("B-"),IF(J57>60,("C+"),IF(J57>55,("C"),IF(J57>50,("C-"),"D+")))))))) -> D+ | M57: =IF(J57>85,("A"),IF(J57>80,("A-"),IF(J57>75,("B+"),IF(J57>70,("B"),IF(J57>65,("B-"),IF(J57>60,("C+"),IF(J57>55,("C"),IF(J57>50,("C-"),"D+")))))))) -> D+
A58: 8 | C58: =VLOOKUP(A58,data_siswa,4,FALSE) -> Aulia Dea Rosalinda | D58: 3.2 | E58: =VLOOKUP(A58,UHT_AGM,24,FALSE) -> 0 | F58: =E58*2 -> 0 | H58: =VLOOKUP(A58,an_agm,49,FALSE) -> 0 | I58: =F58+G58+H58 -> 0 | J58: =(F58+G58+H58)/4 -> 0 | K58: =IF(J58>85,("4"),IF(J58>80,("3.66"),IF(J58>75,("3.33"),IF(J58>70,("3.00"),IF(J58>65,("2.66"),IF(J58>60,("2.33"),IF(J58>55,("2"),IF(J58>50,("1.66"),"1.33")))))))) -> 1.33 | L58: =IF(J58>85,("A"),IF(J58>80,("A-"),IF(J58>75,("B+"),IF(J58>70,("B"),IF(J58>65,("B-"),IF(J58>60,("C+"),IF(J58>55,("C"),IF(J58>50,("C-"),"D+")))))))) -> D+ | M58: =IF(J58>80,("SB"),IF(J58>65,("B"),IF(J58>50,("C"),IF(J58>0,("K"),"0")))) -> 0 | Z58: =J64 -> 0 | AA58: =L64 -> D+
D59: 3.5 | E59: =VLOOKUP(A58,UHT_AGM,25,FALSE) -> 0 | F59: =E59*2 -> 0 | H59: =VLOOKUP(A58,an_agm,50,FALSE) -> 0 | I59: =F59+G59+H59 -> 0 | J59: =(F59+G59+H59)/4 -> 0 | K59: =IF(J59>85,("4"),IF(J59>80,("3.66"),IF(J59>75,("3.33"),IF(J59>70,("3.00"),IF(J59>65,("2.66"),IF(J59>60,("2.33"),IF(J59>55,("2"),IF(J59>50,("1.66"),"1.33")))))))) -> 1.33 | L59: =IF(J59>85,("A"),IF(J59>80,("A-"),IF(J59>75,("B+"),IF(J59>70,("B"),IF(J59>65,("B-"),IF(J59>60,("C+"),IF(J59>55,("C"),IF(J59>50,("C-"),"D+")))))))) -> D+ | M59: =IF(J59>80,("SB"),IF(J59>65,("B"),IF(J59>50,("C"),IF(J59>0,("K"),"0")))) -> 0
D60: 3.6 | E60: =VLOOKUP(A58,UHT_AGM,26,FALSE) -> 0 | F60: 0 | H60: =VLOOKUP(A58,an_agm,51,FALSE) -> 0 | I60: 0 | J60: 0 | K60: 1.33 | L60: D+ | M60: 0
D61: 3.8 | E61: =VLOOKUP(A58,UHT_AGM,27,FALSE) -> 0 | F61: 0 | H61: =VLOOKUP(A58,an_agm,52,FALSE) -> 0 | I61: 0 | J61: 0 | K61: 1.33 | L61: D+ | M61: 0
D62: 3.9 | E62: =VLOOKUP(A58,UHT_AGM,28,FALSE) -> 0 | F62: 0 | H62: =VLOOKUP(A58,an_agm,53,FALSE) -> 0 | I62: 0 | J62: 0 | K62: 1.33 | L62: D+ | M62: 0
D63: 3.10 | E63: =VLOOKUP(A58,UHT_AGM,30,FALSE) -> 0 | F63: 0 | H63: =VLOOKUP(A58,an_agm,54,FALSE) -> 0 | I63: 0 | J63: 0 | K63: 1.33 | L63: D+ | M63: 0
B64: 8 | C64: capaian rapot | E64: =AVERAGE(E58:E63) -> 0 | G64: =AVEDEV(G58:G63) ->  | H64: =AVERAGE(H58:H63) -> 0 | J64: =AVERAGE(J58:J63) -> 0 | K64: =IF(J64>85,("4"),IF(J64>80,("3.66"),IF(J64>75,("3.33"),IF(J64>70,("3.00"),IF(J64>65,("2.66"),IF(J64>60,("2.33"),IF(J64>55,("2"),IF(J64>50,("1.66"),"1.33")))))))) -> 1.33 | L64: =IF(J64>85,("A"),IF(J64>80,("A-"),IF(J64>75,("B+"),IF(J64>70,("B"),IF(J64>65,("B-"),IF(J64>60,("C+"),IF(J64>55,("C"),IF(J64>50,("C-"),"D+")))))))) -> D+ | M64: =IF(J64>85,("A"),IF(J64>80,("A-"),IF(J64>75,("B+"),IF(J64>70,("B"),IF(J64>65,("B-"),IF(J64>60,("C+"),IF(J64>55,("C"),IF(J64>50,("C-"),"D+")))))))) -> D+
A65: 9 | C65: =VLOOKUP(A65,data_siswa,4,FALSE) -> Claudia Gabriella L | D65: 3.2 | E65: =VLOOKUP(A65,UHT_AGM,24,FALSE) -> 0 | F65: =E65*2 -> 0 | H65: =VLOOKUP(A65,an_agm,49,FALSE) -> 0 | I65: =F65+G65+H65 -> 0 | J65: =(F65+G65+H65)/4 -> 0 | K65: =IF(J65>85,("4"),IF(J65>80,("3.66"),IF(J65>75,("3.33"),IF(J65>70,("3.00"),IF(J65>65,("2.66"),IF(J65>60,("2.33"),IF(J65>55,("2"),IF(J65>50,("1.66"),"1.33")))))))) -> 1.33 | L65: =IF(J65>85,("A"),IF(J65>80,("A-"),IF(J65>75,("B+"),IF(J65>70,("B"),IF(J65>65,("B-"),IF(J65>60,("C+"),IF(J65>55,("C"),IF(J65>50,("C-"),"D+")))))))) -> D+ | M65: =IF(J65>80,("SB"),IF(J65>65,("B"),IF(J65>50,("C"),IF(J65>0,("K"),"0")))) -> 0 | Z65: =J71 -> 0 | AA65: =L71 -> D+
D66: 3.5 | E66: =VLOOKUP(A65,UHT_AGM,25,FALSE) -> 0 | F66: =E66*2 -> 0 | H66: =VLOOKUP(A65,an_agm,50,FALSE) -> 0 | I66: =F66+G66+H66 -> 0 | J66: =(F66+G66+H66)/4 -> 0 | K66: =IF(J66>85,("4"),IF(J66>80,("3.66"),IF(J66>75,("3.33"),IF(J66>70,("3.00"),IF(J66>65,("2.66"),IF(J66>60,("2.33"),IF(J66>55,("2"),IF(J66>50,("1.66"),"1.33")))))))) -> 1.33 | L66: =IF(J66>85,("A"),IF(J66>80,("A-"),IF(J66>75,("B+"),IF(J66>70,("B"),IF(J66>65,("B-"),IF(J66>60,("C+"),IF(J66>55,("C"),IF(J66>50,("C-"),"D+")))))))) -> D+ | M66: =IF(J66>80,("SB"),IF(J66>65,("B"),IF(J66>50,("C"),IF(J66>0,("K"),"0")))) -> 0
D67: 3.6 | E67: =VLOOKUP(A65,UHT_AGM,26,FALSE) -> 0 | F67: 0 | H67: =VLOOKUP(A65,an_agm,51,FALSE) -> 0 | I67: 0 | J67: 0 | K67: 1.33 | L67: D+ | M67: 0
D68: 3.8 | E68: =VLOOKUP(A65,UHT_AGM,27,FALSE) -> 0 | F68: 0 | H68: =VLOOKUP(A65,an_agm,52,FALSE) -> 0 | I68: 0 | J68: 0 | K68: 1.33 | L68: D+ | M68: 0
D69: 3.9 | E69: =VLOOKUP(A65,UHT_AGM,28,FALSE) -> 0 | F69: 0 | H69: =VLOOKUP(A65,an_agm,53,FALSE) -> 0 | I69: 0 | J69: 0 | K69: 1.33 | L69: D+ | M69: 0
D70: 3.10 | E70: =VLOOKUP(A65,UHT_AGM,30,FALSE) -> 0 | F70: 0 | H70: =VLOOKUP(A65,an_agm,54,FALSE) -> 0 | I70: 0 | J70: 0 | K70: 1.33 | L70: D+ | M70: 0
B71: 9 | C71: capaian rapot | E71: =AVERAGE(E65:E70) -> 0 | G71: =AVEDEV(G65:G70) ->  | H71: =AVERAGE(H65:H70) -> 0 | J71: =AVERAGE(J65:J70) -> 0 | K71: =IF(J71>85,("4"),IF(J71>80,("3.66"),IF(J71>75,("3.33"),IF(J71>70,("3.00"),IF(J71>65,("2.66"),IF(J71>60,("2.33"),IF(J71>55,("2"),IF(J71>50,("1.66"),"1.33")))))))) -> 1.33 | L71: =IF(J71>85,("A"),IF(J71>80,("A-"),IF(J71>75,("B+"),IF(J71>70,("B"),IF(J71>65,("B-"),IF(J71>60,("C+"),IF(J71>55,("C"),IF(J71>50,("C-"),"D+")))))))) -> D+ | M71: =IF(J71>85,("A"),IF(J71>80,("A-"),IF(J71>75,("B+"),IF(J71>70,("B"),IF(J71>65,("B-"),IF(J71>60,("C+"),IF(J71>55,("C"),IF(J71>50,("C-"),"D+")))))))) -> D+
A72: 10 | C72: =VLOOKUP(A72,data_siswa,4,FALSE) -> Deco Badarus Zaman | D72: 3.2 | E72: =VLOOKUP(A72,UHT_AGM,24,FALSE) -> 0 | F72: =E72*2 -> 0 | H72: =VLOOKUP(A72,an_agm,49,FALSE) -> 0 | I72: =F72+G72+H72 -> 0 | J72: =(F72+G72+H72)/4 -> 0 | K72: =IF(J72>85,("4"),IF(J72>80,("3.66"),IF(J72>75,("3.33"),IF(J72>70,("3.00"),IF(J72>65,("2.66"),IF(J72>60,("2.33"),IF(J72>55,("2"),IF(J72>50,("1.66"),"1.33")))))))) -> 1.33 | L72: =IF(J72>85,("A"),IF(J72>80,("A-"),IF(J72>75,("B+"),IF(J72>70,("B"),IF(J72>65,("B-"),IF(J72>60,("C+"),IF(J72>55,("C"),IF(J72>50,("C-"),"D+")))))))) -> D+ | M72: =IF(J72>80,("SB"),IF(J72>65,("B"),IF(J72>50,("C"),IF(J72>0,("K"),"0")))) -> 0 | Z72: =J78 -> 0 | AA72: =L78 -> D+
D73: 3.5 | E73: =VLOOKUP(A72,UHT_AGM,25,FALSE) -> 0 | F73: =E73*2 -> 0 | H73: =VLOOKUP(A72,an_agm,50,FALSE) -> 0 | I73: =F73+G73+H73 -> 0 | J73: =(F73+G73+H73)/4 -> 0 | K73: =IF(J73>85,("4"),IF(J73>80,("3.66"),IF(J73>75,("3.33"),IF(J73>70,("3.00"),IF(J73>65,("2.66"),IF(J73>60,("2.33"),IF(J73>55,("2"),IF(J73>50,("1.66"),"1.33")))))))) -> 1.33 | L73: =IF(J73>85,("A"),IF(J73>80,("A-"),IF(J73>75,("B+"),IF(J73>70,("B"),IF(J73>65,("B-"),IF(J73>60,("C+"),IF(J73>55,("C"),IF(J73>50,("C-"),"D+")))))))) -> D+ | M73: =IF(J73>80,("SB"),IF(J73>65,("B"),IF(J73>50,("C"),IF(J73>0,("K"),"0")))) -> 0
D74: 3.6 | E74: =VLOOKUP(A72,UHT_AGM,26,FALSE) -> 0 | F74: 0 | H74: =VLOOKUP(A72,an_agm,51,FALSE) -> 0 | I74: 0 | J74: 0 | K74: 1.33 | L74: D+ | M74: 0
D75: 3.8 | E75: =VLOOKUP(A72,UHT_AGM,27,FALSE) -> 0 | F75: 0 | H75: =VLOOKUP(A72,an_agm,52,FALSE) -> 0 | I75: 0 | J75: 0 | K75: 1.33 | L75: D+ | M75: 0
D76: 3.9 | E76: =VLOOKUP(A72,UHT_AGM,28,FALSE) -> 0 | F76: 0 | H76: =VLOOKUP(A72,an_agm,53,FALSE) -> 0 | I76: 0 | J76: 0 | K76: 1.33 | L76: D+ | M76: 0
D77: 3.10 | E77: =VLOOKUP(A72,UHT_AGM,30,FALSE) -> 0 | F77: 0 | H77: =VLOOKUP(A72,an_agm,54,FALSE) -> 0 | I77: 0 | J77: 0 | K77: 1.33 | L77: D+ | M77: 0
B78: 10 | C78: capaian rapot | E78: =AVERAGE(E72:E77) -> 0 | G78: =AVEDEV(G72:G77) ->  | H78: =AVERAGE(H72:H77) -> 0 | J78: =AVERAGE(J72:J77) -> 0 | K78: =IF(J78>85,("4"),IF(J78>80,("3.66"),IF(J78>75,("3.33"),IF(J78>70,("3.00"),IF(J78>65,("2.66"),IF(J78>60,("2.33"),IF(J78>55,("2"),IF(J78>50,("1.66"),"1.33")))))))) -> 1.33 | L78: =IF(J78>85,("A"),IF(J78>80,("A-"),IF(J78>75,("B+"),IF(J78>70,("B"),IF(J78>65,("B-"),IF(J78>60,("C+"),IF(J78>55,("C"),IF(J78>50,("C-"),"D+")))))))) -> D+ | M78: =IF(J78>85,("A"),IF(J78>80,("A-"),IF(J78>75,("B+"),IF(J78>70,("B"),IF(J78>65,("B-"),IF(J78>60,("C+"),IF(J78>55,("C"),IF(J78>50,("C-"),"D+")))))))) -> D+
A79: 11 | C79: =VLOOKUP(A79,data_siswa,4,FALSE) -> Fania Mutiara Felichia | D79: 3.2 | E79: =VLOOKUP(A79,UHT_AGM,24,FALSE) -> 0 | F79: =E79*2 -> 0 | H79: =VLOOKUP(A79,an_agm,49,FALSE) -> 0 | I79: =F79+G79+H79 -> 0 | J79: =(F79+G79+H79)/4 -> 0 | K79: =IF(J79>85,("4"),IF(J79>80,("3.66"),IF(J79>75,("3.33"),IF(J79>70,("3.00"),IF(J79>65,("2.66"),IF(J79>60,("2.33"),IF(J79>55,("2"),IF(J79>50,("1.66"),"1.33")))))))) -> 1.33 | L79: =IF(J79>85,("A"),IF(J79>80,("A-"),IF(J79>75,("B+"),IF(J79>70,("B"),IF(J79>65,("B-"),IF(J79>60,("C+"),IF(J79>55,("C"),IF(J79>50,("C-"),"D+")))))))) -> D+ | M79: =IF(J79>80,("SB"),IF(J79>65,("B"),IF(J79>50,("C"),IF(J79>0,("K"),"0")))) -> 0 | Z79: =J85 -> 0 | AA79: =L85 -> D+
D80: 3.5 | E80: =VLOOKUP(A79,UHT_AGM,25,FALSE) -> 0 | F80: =E80*2 -> 0 | H80: =VLOOKUP(A79,an_agm,50,FALSE) -> 0 | I80: =F80+G80+H80 -> 0 | J80: =(F80+G80+H80)/4 -> 0 | K80: =IF(J80>85,("4"),IF(J80>80,("3.66"),IF(J80>75,("3.33"),IF(J80>70,("3.00"),IF(J80>65,("2.66"),IF(J80>60,("2.33"),IF(J80>55,("2"),IF(J80>50,("1.66"),"1.33")))))))) -> 1.33 | L80: =IF(J80>85,("A"),IF(J80>80,("A-"),IF(J80>75,("B+"),IF(J80>70,("B"),IF(J80>65,("B-"),IF(J80>60,("C+"),IF(J80>55,("C"),IF(J80>50,("C-"),"D+")))))))) -> D+ | M80: =IF(J80>80,("SB"),IF(J80>65,("B"),IF(J80>50,("C"),IF(J80>0,("K"),"0")))) -> 0
D81: 3.6 | E81: =VLOOKUP(A79,UHT_AGM,26,FALSE) -> 0 | F81: 0 | H81: =VLOOKUP(A79,an_agm,51,FALSE) -> 0 | I81: 0 | J81: 0 | K81: 1.33 | L81: D+ | M81: 0
D82: 3.8 | E82: =VLOOKUP(A79,UHT_AGM,27,FALSE) -> 0 | F82: 0 | H82: =VLOOKUP(A79,an_agm,52,FALSE) -> 0 | I82: 0 | J82: 0 | K82: 1.33 | L82: D+ | M82: 0
D83: 3.9 | E83: =VLOOKUP(A79,UHT_AGM,28,FALSE) -> 0 | F83: 0 | H83: =VLOOKUP(A79,an_agm,53,FALSE) -> 0 | I83: 0 | J83: 0 | K83: 1.33 | L83: D+ | M83: 0
D84: 3.10 | E84: =VLOOKUP(A79,UHT_AGM,30,FALSE) -> 0 | F84: 0 | H84: =VLOOKUP(A79,an_agm,54,FALSE) -> 0 | I84: 0 | J84: 0 | K84: 1.33 | L84: D+ | M84: 0
B85: 11 | C85: capaian rapot | E85: =AVERAGE(E79:E84) -> 0 | G85: =AVEDEV(G79:G84) ->  | H85: =AVERAGE(H79:H84) -> 0 | J85: =AVERAGE(J79:J84) -> 0 | K85: =IF(J85>85,("4"),IF(J85>80,("3.66"),IF(J85>75,("3.33"),IF(J85>70,("3.00"),IF(J85>65,("2.66"),IF(J85>60,("2.33"),IF(J85>55,("2"),IF(J85>50,("1.66"),"1.33")))))))) -> 1.33 | L85: =IF(J85>85,("A"),IF(J85>80,("A-"),IF(J85>75,("B+"),IF(J85>70,("B"),IF(J85>65,("B-"),IF(J85>60,("C+"),IF(J85>55,("C"),IF(J85>50,("C-"),"D+")))))))) -> D+ | M85: =IF(J85>85,("A"),IF(J85>80,("A-"),IF(J85>75,("B+"),IF(J85>70,("B"),IF(J85>65,("B-"),IF(J85>60,("C+"),IF(J85>55,("C"),IF(J85>50,("C-"),"D+")))))))) -> D+
A86: 12 | C86: =VLOOKUP(A86,data_siswa,4,FALSE) -> Intan Dyah Nowari | D86: 3.2 | E86: =VLOOKUP(A86,UHT_AGM,24,FALSE) -> 0 | F86: =E86*2 -> 0 | H86: =VLOOKUP(A86,an_agm,49,FALSE) -> 0 | I86: =F86+G86+H86 -> 0 | J86: =(F86+G86+H86)/4 -> 0 | K86: =IF(J86>85,("4"),IF(J86>80,("3.66"),IF(J86>75,("3.33"),IF(J86>70,("3.00"),IF(J86>65,("2.66"),IF(J86>60,("2.33"),IF(J86>55,("2"),IF(J86>50,("1.66"),"1.33")))))))) -> 1.33 | L86: =IF(J86>85,("A"),IF(J86>80,("A-"),IF(J86>75,("B+"),IF(J86>70,("B"),IF(J86>65,("B-"),IF(J86>60,("C+"),IF(J86>55,("C"),IF(J86>50,("C-"),"D+")))))))) -> D+ | M86: =IF(J86>80,("SB"),IF(J86>65,("B"),IF(J86>50,("C"),IF(J86>0,("K"),"0")))) -> 0 | Z86: =J92 -> 0 | AA86: =L92 -> D+
D87: 3.5 | E87: =VLOOKUP(A86,UHT_AGM,25,FALSE) -> 0 | F87: =E87*2 -> 0 | H87: =VLOOKUP(A86,an_agm,50,FALSE) -> 0 | I87: =F87+G87+H87 -> 0 | J87: =(F87+G87+H87)/4 -> 0 | K87: =IF(J87>85,("4"),IF(J87>80,("3.66"),IF(J87>75,("3.33"),IF(J87>70,("3.00"),IF(J87>65,("2.66"),IF(J87>60,("2.33"),IF(J87>55,("2"),IF(J87>50,("1.66"),"1.33")))))))) -> 1.33 | L87: =IF(J87>85,("A"),IF(J87>80,("A-"),IF(J87>75,("B+"),IF(J87>70,("B"),IF(J87>65,("B-"),IF(J87>60,("C+"),IF(J87>55,("C"),IF(J87>50,("C-"),"D+")))))))) -> D+ | M87: =IF(J87>80,("SB"),IF(J87>65,("B"),IF(J87>50,("C"),IF(J87>0,("K"),"0")))) -> 0
D88: 3.6 | E88: =VLOOKUP(A86,UHT_AGM,26,FALSE) -> 0 | F88: 0 | H88: =VLOOKUP(A86,an_agm,51,FALSE) -> 0 | I88: 0 | J88: 0 | K88: 1.33 | L88: D+ | M88: 0
D89: 3.8 | E89: =VLOOKUP(A86,UHT_AGM,27,FALSE) -> 0 | F89: 0 | H89: =VLOOKUP(A86,an_agm,52,FALSE) -> 0 | I89: 0 | J89: 0 | K89: 1.33 | L89: D+ | M89: 0
D90: 3.9 | E90: =VLOOKUP(A86,UHT_AGM,28,FALSE) -> 0 | F90: 0 | H90: =VLOOKUP(A86,an_agm,53,FALSE) -> 0 | I90: 0 | J90: 0 | K90: 1.33 | L90: D+ | M90: 0
D91: 3.10 | E91: =VLOOKUP(A86,UHT_AGM,30,FALSE) -> 0 | F91: 0 | H91: =VLOOKUP(A86,an_agm,54,FALSE) -> 0 | I91: 0 | J91: 0 | K91: 1.33 | L91: D+ | M91: 0
B92: 12 | C92: capaian rapot | E92: =AVERAGE(E86:E91) -> 0 | G92: =AVEDEV(G86:G91) ->  | H92: =AVERAGE(H86:H91) -> 0 | J92: =AVERAGE(J86:J91) -> 0 | K92: =IF(J92>85,("4"),IF(J92>80,("3.66"),IF(J92>75,("3.33"),IF(J92>70,("3.00"),IF(J92>65,("2.66"),IF(J92>60,("2.33"),IF(J92>55,("2"),IF(J92>50,("1.66"),"1.33")))))))) -> 1.33 | L92: =IF(J92>85,("A"),IF(J92>80,("A-"),IF(J92>75,("B+"),IF(J92>70,("B"),IF(J92>65,("B-"),IF(J92>60,("C+"),IF(J92>55,("C"),IF(J92>50,("C-"),"D+")))))))) -> D+ | M92: =IF(J92>85,("A"),IF(J92>80,("A-"),IF(J92>75,("B+"),IF(J92>70,("B"),IF(J92>65,("B-"),IF(J92>60,("C+"),IF(J92>55,("C"),IF(J92>50,("C-"),"D+")))))))) -> D+
A93: 13 | C93: =VLOOKUP(A93,data_siswa,4,FALSE) -> Misyanita Nurfitri S | D93: 3.2 | E93: =VLOOKUP(A93,UHT_AGM,24,FALSE) -> 0 | F93: =E93*2 -> 0 | H93: =VLOOKUP(A93,an_agm,49,FALSE) -> 0 | I93: =F93+G93+H93 -> 0 | J93: =(F93+G93+H93)/4 -> 0 | K93: =IF(J93>85,("4"),IF(J93>80,("3.66"),IF(J93>75,("3.33"),IF(J93>70,("3.00"),IF(J93>65,("2.66"),IF(J93>60,("2.33"),IF(J93>55,("2"),IF(J93>50,("1.66"),"1.33")))))))) -> 1.33 | L93: =IF(J93>85,("A"),IF(J93>80,("A-"),IF(J93>75,("B+"),IF(J93>70,("B"),IF(J93>65,("B-"),IF(J93>60,("C+"),IF(J93>55,("C"),IF(J93>50,("C-"),"D+")))))))) -> D+ | M93: =IF(J93>80,("SB"),IF(J93>65,("B"),IF(J93>50,("C"),IF(J93>0,("K"),"0")))) -> 0 | Z93: =J99 -> 0 | AA93: =L99 -> D+
D94: 3.5 | E94: =VLOOKUP(A93,UHT_AGM,25,FALSE) -> 0 | F94: =E94*2 -> 0 | H94: =VLOOKUP(A93,an_agm,50,FALSE) -> 0 | I94: =F94+G94+H94 -> 0 | J94: =(F94+G94+H94)/4 -> 0 | K94: =IF(J94>85,("4"),IF(J94>80,("3.66"),IF(J94>75,("3.33"),IF(J94>70,("3.00"),IF(J94>65,("2.66"),IF(J94>60,("2.33"),IF(J94>55,("2"),IF(J94>50,("1.66"),"1.33")))))))) -> 1.33 | L94: =IF(J94>85,("A"),IF(J94>80,("A-"),IF(J94>75,("B+"),IF(J94>70,("B"),IF(J94>65,("B-"),IF(J94>60,("C+"),IF(J94>55,("C"),IF(J94>50,("C-"),"D+")))))))) -> D+ | M94: =IF(J94>80,("SB"),IF(J94>65,("B"),IF(J94>50,("C"),IF(J94>0,("K"),"0")))) -> 0
D95: 3.6 | E95: =VLOOKUP(A93,UHT_AGM,26,FALSE) -> 0 | F95: 0 | H95: =VLOOKUP(A93,an_agm,51,FALSE) -> 0 | I95: 0 | J95: 0 | K95: 1.33 | L95: D+ | M95: 0
D96: 3.8 | E96: =VLOOKUP(A93,UHT_AGM,27,FALSE) -> 0 | F96: 0 | H96: =VLOOKUP(A93,an_agm,52,FALSE) -> 0 | I96: 0 | J96: 0 | K96: 1.33 | L96: D+ | M96: 0
D97: 3.9 | E97: =VLOOKUP(A93,UHT_AGM,28,FALSE) -> 0 | F97: 0 | H97: =VLOOKUP(A93,an_agm,53,FALSE) -> 0 | I97: 0 | J97: 0 | K97: 1.33 | L97: D+ | M97: 0
D98: 3.10 | E98: =VLOOKUP(A93,UHT_AGM,30,FALSE) -> 0 | F98: 0 | H98: =VLOOKUP(A93,an_agm,54,FALSE) -> 0 | I98: 0 | J98: 0 | K98: 1.33 | L98: D+ | M98: 0
B99: 13 | C99: capaian rapot | E99: =AVERAGE(E93:E98) -> 0 | G99: =AVEDEV(G93:G98) ->  | H99: =AVERAGE(H93:H98) -> 0 | J99: =AVERAGE(J93:J98) -> 0 | K99: =IF(J99>85,("4"),IF(J99>80,("3.66"),IF(J99>75,("3.33"),IF(J99>70,("3.00"),IF(J99>65,("2.66"),IF(J99>60,("2.33"),IF(J99>55,("2"),IF(J99>50,("1.66"),"1.33")))))))) -> 1.33 | L99: =IF(J99>85,("A"),IF(J99>80,("A-"),IF(J99>75,("B+"),IF(J99>70,("B"),IF(J99>65,("B-"),IF(J99>60,("C+"),IF(J99>55,("C"),IF(J99>50,("C-"),"D+")))))))) -> D+ | M99: =IF(J99>85,("A"),IF(J99>80,("A-"),IF(J99>75,("B+"),IF(J99>70,("B"),IF(J99>65,("B-"),IF(J99>60,("C+"),IF(J99>55,("C"),IF(J99>50,("C-"),"D+")))))))) -> D+
A100: 14 | C100: =VLOOKUP(A100,data_siswa,4,FALSE) -> Moch Zidane Hita L. U | D100: 3.2 | E100: =VLOOKUP(A100,UHT_AGM,24,FALSE) -> 0 | F100: =E100*2 -> 0 | H100: =VLOOKUP(A100,an_agm,49,FALSE) -> 0 | I100: =F100+G100+H100 -> 0 | J100: =(F100+G100+H100)/4 -> 0 | K100: =IF(J100>85,("4"),IF(J100>80,("3.66"),IF(J100>75,("3.33"),IF(J100>70,("3.00"),IF(J100>65,("2.66"),IF(J100>60,("2.33"),IF(J100>55,("2"),IF(J100>50,("1.66"),"1.33")))))))) -> 1.33 | L100: =IF(J100>85,("A"),IF(J100>80,("A-"),IF(J100>75,("B+"),IF(J100>70,("B"),IF(J100>65,("B-"),IF(J100>60,("C+"),IF(J100>55,("C"),IF(J100>50,("C-"),"D+")))))))) -> D+ | M100: =IF(J100>80,("SB"),IF(J100>65,("B"),IF(J100>50,("C"),IF(J100>0,("K"),"0")))) -> 0 | Z100: =J106 -> 0 | AA100: =L106 -> D+
D101: 3.5 | E101: =VLOOKUP(A100,UHT_AGM,25,FALSE) -> 0 | F101: =E101*2 -> 0 | H101: =VLOOKUP(A100,an_agm,50,FALSE) -> 0 | I101: =F101+G101+H101 -> 0 | J101: =(F101+G101+H101)/4 -> 0 | K101: =IF(J101>85,("4"),IF(J101>80,("3.66"),IF(J101>75,("3.33"),IF(J101>70,("3.00"),IF(J101>65,("2.66"),IF(J101>60,("2.33"),IF(J101>55,("2"),IF(J101>50,("1.66"),"1.33")))))))) -> 1.33 | L101: =IF(J101>85,("A"),IF(J101>80,("A-"),IF(J101>75,("B+"),IF(J101>70,("B"),IF(J101>65,("B-"),IF(J101>60,("C+"),IF(J101>55,("C"),IF(J101>50,("C-"),"D+")))))))) -> D+ | M101: =IF(J101>80,("SB"),IF(J101>65,("B"),IF(J101>50,("C"),IF(J101>0,("K"),"0")))) -> 0
D102: 3.6 | E102: =VLOOKUP(A100,UHT_AGM,26,FALSE) -> 0 | F102: 0 | H102: =VLOOKUP(A100,an_agm,51,FALSE) -> 0 | I102: 0 | J102: 0 | K102: 1.33 | L102: D+ | M102: 0
D103: 3.8 | E103: =VLOOKUP(A100,UHT_AGM,27,FALSE) -> 0 | F103: 0 | H103: =VLOOKUP(A100,an_agm,52,FALSE) -> 0 | I103: 0 | J103: 0 | K103: 1.33 | L103: D+ | M103: 0
D104: 3.9 | E104: =VLOOKUP(A100,UHT_AGM,28,FALSE) -> 0 | F104: 0 | H104: =VLOOKUP(A100,an_agm,53,FALSE) -> 0 | I104: 0 | J104: 0 | K104: 1.33 | L104: D+ | M104: 0
D105: 3.10 | E105: =VLOOKUP(A100,UHT_AGM,30,FALSE) -> 0 | F105: 0 | H105: =VLOOKUP(A100,an_agm,54,FALSE) -> 0 | I105: 0 | J105: 0 | K105: 1.33 | L105: D+ | M105: 0
B106: 14 | C106: capaian rapot | E106: =AVERAGE(E100:E105) -> 0 | G106: =AVEDEV(G100:G105) ->  | H106: =AVERAGE(H100:H105) -> 0 | J106: =AVERAGE(J100:J105) -> 0 | K106: =IF(J106>85,("4"),IF(J106>80,("3.66"),IF(J106>75,("3.33"),IF(J106>70,("3.00"),IF(J106>65,("2.66"),IF(J106>60,("2.33"),IF(J106>55,("2"),IF(J106>50,("1.66"),"1.33")))))))) -> 1.33 | L106: =IF(J106>85,("A"),IF(J106>80,("A-"),IF(J106>75,("B+"),IF(J106>70,("B"),IF(J106>65,("B-"),IF(J106>60,("C+"),IF(J106>55,("C"),IF(J106>50,("C-"),"D+")))))))) -> D+ | M106: =IF(J106>85,("A"),IF(J106>80,("A-"),IF(J106>75,("B+"),IF(J106>70,("B"),IF(J106>65,("B-"),IF(J106>60,("C+"),IF(J106>55,("C"),IF(J106>50,("C-"),"D+")))))))) -> D+
A107: 15 | C107: =VLOOKUP(A107,data_siswa,4,FALSE) -> Muhammad Ibra Maulana | D107: 3.2 | E107: =VLOOKUP(A107,UHT_AGM,24,FALSE) -> 0 | F107: =E107*2 -> 0 | H107: =VLOOKUP(A107,an_agm,49,FALSE) -> 0 | I107: =F107+G107+H107 -> 0 | J107: =(F107+G107+H107)/4 -> 0 | K107: =IF(J107>85,("4"),IF(J107>80,("3.66"),IF(J107>75,("3.33"),IF(J107>70,("3.00"),IF(J107>65,("2.66"),IF(J107>60,("2.33"),IF(J107>55,("2"),IF(J107>50,("1.66"),"1.33")))))))) -> 1.33 | L107: =IF(J107>85,("A"),IF(J107>80,("A-"),IF(J107>75,("B+"),IF(J107>70,("B"),IF(J107>65,("B-"),IF(J107>60,("C+"),IF(J107>55,("C"),IF(J107>50,("C-"),"D+")))))))) -> D+ | M107: =IF(J107>80,("SB"),IF(J107>65,("B"),IF(J107>50,("C"),IF(J107>0,("K"),"0")))) -> 0 | Z107: =J113 -> 0 | AA107: =L113 -> D+
D108: 3.5 | E108: =VLOOKUP(A107,UHT_AGM,25,FALSE) -> 0 | F108: =E108*2 -> 0 | H108: =VLOOKUP(A107,an_agm,50,FALSE) -> 0 | I108: =F108+G108+H108 -> 0 | J108: =(F108+G108+H108)/4 -> 0 | K108: =IF(J108>85,("4"),IF(J108>80,("3.66"),IF(J108>75,("3.33"),IF(J108>70,("3.00"),IF(J108>65,("2.66"),IF(J108>60,("2.33"),IF(J108>55,("2"),IF(J108>50,("1.66"),"1.33")))))))) -> 1.33 | L108: =IF(J108>85,("A"),IF(J108>80,("A-"),IF(J108>75,("B+"),IF(J108>70,("B"),IF(J108>65,("B-"),IF(J108>60,("C+"),IF(J108>55,("C"),IF(J108>50,("C-"),"D+")))))))) -> D+ | M108: =IF(J108>80,("SB"),IF(J108>65,("B"),IF(J108>50,("C"),IF(J108>0,("K"),"0")))) -> 0
D109: 3.6 | E109: =VLOOKUP(A107,UHT_AGM,26,FALSE) -> 0 | F109: 0 | H109: =VLOOKUP(A107,an_agm,51,FALSE) -> 0 | I109: 0 | J109: 0 | K109: 1.33 | L109: D+ | M109: 0
D110: 3.8 | E110: =VLOOKUP(A107,UHT_AGM,27,FALSE) -> 0 | F110: 0 | H110: =VLOOKUP(A107,an_agm,52,FALSE) -> 0 | I110: 0 | J110: 0 | K110: 1.33 | L110: D+ | M110: 0
D111: 3.9 | E111: =VLOOKUP(A107,UHT_AGM,28,FALSE) -> 0 | F111: 0 | H111: =VLOOKUP(A107,an_agm,53,FALSE) -> 0 | I111: 0 | J111: 0 | K111: 1.33 | L111: D+ | M111: 0
D112: 3.10 | E112: =VLOOKUP(A107,UHT_AGM,30,FALSE) -> 0 | F112: 0 | H112: =VLOOKUP(A107,an_agm,54,FALSE) -> 0 | I112: 0 | J112: 0 | K112: 1.33 | L112: D+ | M112: 0
B113: 15 | C113: capaian rapot | E113: =AVERAGE(E107:E112) -> 0 | G113: =AVEDEV(G107:G112) ->  | H113: =AVERAGE(H107:H112) -> 0 | J113: =AVERAGE(J107:J112) -> 0 | K113: =IF(J113>85,("4"),IF(J113>80,("3.66"),IF(J113>75,("3.33"),IF(J113>70,("3.00"),IF(J113>65,("2.66"),IF(J113>60,("2.33"),IF(J113>55,("2"),IF(J113>50,("1.66"),"1.33")))))))) -> 1.33 | L113: =IF(J113>85,("A"),IF(J113>80,("A-"),IF(J113>75,("B+"),IF(J113>70,("B"),IF(J113>65,("B-"),IF(J113>60,("C+"),IF(J113>55,("C"),IF(J113>50,("C-"),"D+")))))))) -> D+ | M113: =IF(J113>85,("A"),IF(J113>80,("A-"),IF(J113>75,("B+"),IF(J113>70,("B"),IF(J113>65,("B-"),IF(J113>60,("C+"),IF(J113>55,("C"),IF(J113>50,("C-"),"D+")))))))) -> D+
A114: 16 | C114: =VLOOKUP(A114,data_siswa,4,FALSE) -> Nabilla Shiva Putri | D114: 3.2 | E114: =VLOOKUP(A114,UHT_AGM,24,FALSE) -> 0 | F114: =E114*2 -> 0 | H114: =VLOOKUP(A114,an_agm,49,FALSE) -> 0 | I114: =F114+G114+H114 -> 0 | J114: =(F114+G114+H114)/4 -> 0 | K114: =IF(J114>85,("4"),IF(J114>80,("3.66"),IF(J114>75,("3.33"),IF(J114>70,("3.00"),IF(J114>65,("2.66"),IF(J114>60,("2.33"),IF(J114>55,("2"),IF(J114>50,("1.66"),"1.33")))))))) -> 1.33 | L114: =IF(J114>85,("A"),IF(J114>80,("A-"),IF(J114>75,("B+"),IF(J114>70,("B"),IF(J114>65,("B-"),IF(J114>60,("C+"),IF(J114>55,("C"),IF(J114>50,("C-"),"D+")))))))) -> D+ | M114: =IF(J114>80,("SB"),IF(J114>65,("B"),IF(J114>50,("C"),IF(J114>0,("K"),"0")))) -> 0 | Z114: =J120 -> 0 | AA114: =L120 -> D+
D115: 3.5 | E115: =VLOOKUP(A114,UHT_AGM,25,FALSE) -> 0 | F115: =E115*2 -> 0 | H115: =VLOOKUP(A114,an_agm,50,FALSE) -> 0 | I115: =F115+G115+H115 -> 0 | J115: =(F115+G115+H115)/4 -> 0 | K115: =IF(J115>85,("4"),IF(J115>80,("3.66"),IF(J115>75,("3.33"),IF(J115>70,("3.00"),IF(J115>65,("2.66"),IF(J115>60,("2.33"),IF(J115>55,("2"),IF(J115>50,("1.66"),"1.33")))))))) -> 1.33 | L115: =IF(J115>85,("A"),IF(J115>80,("A-"),IF(J115>75,("B+"),IF(J115>70,("B"),IF(J115>65,("B-"),IF(J115>60,("C+"),IF(J115>55,("C"),IF(J115>50,("C-"),"D+")))))))) -> D+ | M115: =IF(J115>80,("SB"),IF(J115>65,("B"),IF(J115>50,("C"),IF(J115>0,("K"),"0")))) -> 0
D116: 3.6 | E116: =VLOOKUP(A114,UHT_AGM,26,FALSE) -> 0 | F116: 0 | H116: =VLOOKUP(A114,an_agm,51,FALSE) -> 0 | I116: 0 | J116: 0 | K116: 1.33 | L116: D+ | M116: 0
D117: 3.8 | E117: =VLOOKUP(A114,UHT_AGM,27,FALSE) -> 0 | F117: 0 | H117: =VLOOKUP(A114,an_agm,52,FALSE) -> 0 | I117: 0 | J117: 0 | K117: 1.33 | L117: D+ | M117: 0
D118: 3.9 | E118: =VLOOKUP(A114,UHT_AGM,28,FALSE) -> 0 | F118: 0 | H118: =VLOOKUP(A114,an_agm,53,FALSE) -> 0 | I118: 0 | J118: 0 | K118: 1.33 | L118: D+ | M118: 0
D119: 3.10 | E119: =VLOOKUP(A114,UHT_AGM,30,FALSE) -> 0 | F119: 0 | H119: =VLOOKUP(A114,an_agm,54,FALSE) -> 0 | I119: 0 | J119: 0 | K119: 1.33 | L119: D+ | M119: 0
B120: 16 | C120: capaian rapot | E120: =AVERAGE(E114:E119) -> 0 | G120: =AVEDEV(G114:G119) ->  | H120: =AVERAGE(H114:H119) -> 0 | J120: =AVERAGE(J114:J119) -> 0 | K120: =IF(J120>85,("4"),IF(J120>80,("3.66"),IF(J120>75,("3.33"),IF(J120>70,("3.00"),IF(J120>65,("2.66"),IF(J120>60,("2.33"),IF(J120>55,("2"),IF(J120>50,("1.66"),"1.33")))))))) -> 1.33 | L120: =IF(J120>85,("A"),IF(J120>80,("A-"),IF(J120>75,("B+"),IF(J120>70,("B"),IF(J120>65,("B-"),IF(J120>60,("C+"),IF(J120>55,("C"),IF(J120>50,("C-"),"D+")))))))) -> D+ | M120: =IF(J120>85,("A"),IF(J120>80,("A-"),IF(J120>75,("B+"),IF(J120>70,("B"),IF(J120>65,("B-"),IF(J120>60,("C+"),IF(J120>55,("C"),IF(J120>50,("C-"),"D+")))))))) -> D+
A121: 17 | C121: =VLOOKUP(A121,data_siswa,4,FALSE) -> Naufal Falih F | D121: 3.2 | E121: =VLOOKUP(A121,UHT_AGM,24,FALSE) -> 0 | F121: =E121*2 -> 0 | H121: =VLOOKUP(A121,an_agm,49,FALSE) -> 0 | I121: =F121+G121+H121 -> 0 | J121: =(F121+G121+H121)/4 -> 0 | K121: =IF(J121>85,("4"),IF(J121>80,("3.66"),IF(J121>75,("3.33"),IF(J121>70,("3.00"),IF(J121>65,("2.66"),IF(J121>60,("2.33"),IF(J121>55,("2"),IF(J121>50,("1.66"),"1.33")))))))) -> 1.33 | L121: =IF(J121>85,("A"),IF(J121>80,("A-"),IF(J121>75,("B+"),IF(J121>70,("B"),IF(J121>65,("B-"),IF(J121>60,("C+"),IF(J121>55,("C"),IF(J121>50,("C-"),"D+")))))))) -> D+ | M121: =IF(J121>80,("SB"),IF(J121>65,("B"),IF(J121>50,("C"),IF(J121>0,("K"),"0")))) -> 0 | Z121: =J127 -> 0 | AA121: =L127 -> D+
D122: 3.5 | E122: =VLOOKUP(A121,UHT_AGM,25,FALSE) -> 0 | F122: =E122*2 -> 0 | H122: =VLOOKUP(A121,an_agm,50,FALSE) -> 0 | I122: =F122+G122+H122 -> 0 | J122: =(F122+G122+H122)/4 -> 0 | K122: =IF(J122>85,("4"),IF(J122>80,("3.66"),IF(J122>75,("3.33"),IF(J122>70,("3.00"),IF(J122>65,("2.66"),IF(J122>60,("2.33"),IF(J122>55,("2"),IF(J122>50,("1.66"),"1.33")))))))) -> 1.33 | L122: =IF(J122>85,("A"),IF(J122>80,("A-"),IF(J122>75,("B+"),IF(J122>70,("B"),IF(J122>65,("B-"),IF(J122>60,("C+"),IF(J122>55,("C"),IF(J122>50,("C-"),"D+")))))))) -> D+ | M122: =IF(J122>80,("SB"),IF(J122>65,("B"),IF(J122>50,("C"),IF(J122>0,("K"),"0")))) -> 0
D123: 3.6 | E123: =VLOOKUP(A121,UHT_AGM,26,FALSE) -> 0 | F123: 0 | H123: =VLOOKUP(A121,an_agm,51,FALSE) -> 0 | I123: 0 | J123: 0 | K123: 1.33 | L123: D+ | M123: 0
D124: 3.8 | E124: =VLOOKUP(A121,UHT_AGM,27,FALSE) -> 0 | F124: 0 | H124: =VLOOKUP(A121,an_agm,52,FALSE) -> 0 | I124: 0 | J124: 0 | K124: 1.33 | L124: D+ | M124: 0
D125: 3.9 | E125: =VLOOKUP(A121,UHT_AGM,28,FALSE) -> 0 | F125: 0 | H125: =VLOOKUP(A121,an_agm,53,FALSE) -> 0 | I125: 0 | J125: 0 | K125: 1.33 | L125: D+ | M125: 0
D126: 3.10 | E126: =VLOOKUP(A121,UHT_AGM,30,FALSE) -> 0 | F126: 0 | H126: =VLOOKUP(A121,an_agm,54,FALSE) -> 0 | I126: 0 | J126: 0 | K126: 1.33 | L126: D+ | M126: 0
B127: 17 | C127: capaian rapot | E127: =AVERAGE(E121:E126) -> 0 | G127: =AVEDEV(G121:G126) ->  | H127: =AVERAGE(H121:H126) -> 0 | J127: =AVERAGE(J121:J126) -> 0 | K127: =IF(J127>85,("4"),IF(J127>80,("3.66"),IF(J127>75,("3.33"),IF(J127>70,("3.00"),IF(J127>65,("2.66"),IF(J127>60,("2.33"),IF(J127>55,("2"),IF(J127>50,("1.66"),"1.33")))))))) -> 1.33 | L127: =IF(J127>85,("A"),IF(J127>80,("A-"),IF(J127>75,("B+"),IF(J127>70,("B"),IF(J127>65,("B-"),IF(J127>60,("C+"),IF(J127>55,("C"),IF(J127>50,("C-"),"D+")))))))) -> D+ | M127: =IF(J127>85,("A"),IF(J127>80,("A-"),IF(J127>75,("B+"),IF(J127>70,("B"),IF(J127>65,("B-"),IF(J127>60,("C+"),IF(J127>55,("C"),IF(J127>50,("C-"),"D+")))))))) -> D+
A128: 18 | C128: =VLOOKUP(A128,data_siswa,4,FALSE) -> Nayla Annora Nobel W | D128: 3.2 | E128: =VLOOKUP(A128,UHT_AGM,24,FALSE) -> 0 | F128: =E128*2 -> 0 | H128: =VLOOKUP(A128,an_agm,49,FALSE) -> 0 | I128: =F128+G128+H128 -> 0 | J128: =(F128+G128+H128)/4 -> 0 | K128: =IF(J128>85,("4"),IF(J128>80,("3.66"),IF(J128>75,("3.33"),IF(J128>70,("3.00"),IF(J128>65,("2.66"),IF(J128>60,("2.33"),IF(J128>55,("2"),IF(J128>50,("1.66"),"1.33")))))))) -> 1.33 | L128: =IF(J128>85,("A"),IF(J128>80,("A-"),IF(J128>75,("B+"),IF(J128>70,("B"),IF(J128>65,("B-"),IF(J128>60,("C+"),IF(J128>55,("C"),IF(J128>50,("C-"),"D+")))))))) -> D+ | M128: =IF(J128>80,("SB"),IF(J128>65,("B"),IF(J128>50,("C"),IF(J128>0,("K"),"0")))) -> 0 | Z128: =J134 -> 0 | AA128: =L134 -> D+
D129: 3.5 | E129: =VLOOKUP(A128,UHT_AGM,25,FALSE) -> 0 | F129: =E129*2 -> 0 | H129: =VLOOKUP(A128,an_agm,50,FALSE) -> 0 | I129: =F129+G129+H129 -> 0 | J129: =(F129+G129+H129)/4 -> 0 | K129: =IF(J129>85,("4"),IF(J129>80,("3.66"),IF(J129>75,("3.33"),IF(J129>70,("3.00"),IF(J129>65,("2.66"),IF(J129>60,("2.33"),IF(J129>55,("2"),IF(J129>50,("1.66"),"1.33")))))))) -> 1.33 | L129: =IF(J129>85,("A"),IF(J129>80,("A-"),IF(J129>75,("B+"),IF(J129>70,("B"),IF(J129>65,("B-"),IF(J129>60,("C+"),IF(J129>55,("C"),IF(J129>50,("C-"),"D+")))))))) -> D+ | M129: =IF(J129>80,("SB"),IF(J129>65,("B"),IF(J129>50,("C"),IF(J129>0,("K"),"0")))) -> 0
D130: 3.6 | E130: =VLOOKUP(A128,UHT_AGM,26,FALSE) -> 0 | F130: 0 | H130: =VLOOKUP(A128,an_agm,51,FALSE) -> 0 | I130: 0 | J130: 0 | K130: 1.33 | L130: D+ | M130: 0
D131: 3.8 | E131: =VLOOKUP(A128,UHT_AGM,27,FALSE) -> 0 | F131: 0 | H131: =VLOOKUP(A128,an_agm,52,FALSE) -> 0 | I131: 0 | J131: 0 | K131: 1.33 | L131: D+ | M131: 0
D132: 3.9 | E132: =VLOOKUP(A128,UHT_AGM,28,FALSE) -> 0 | F132: 0 | H132: =VLOOKUP(A128,an_agm,53,FALSE) -> 0 | I132: 0 | J132: 0 | K132: 1.33 | L132: D+ | M132: 0
D133: 3.10 | E133: =VLOOKUP(A128,UHT_AGM,30,FALSE) -> 0 | F133: 0 | H133: =VLOOKUP(A128,an_agm,54,FALSE) -> 0 | I133: 0 | J133: 0 | K133: 1.33 | L133: D+ | M133: 0
B134: 18 | C134: capaian rapot | E134: =AVERAGE(E128:E133) -> 0 | G134: =AVEDEV(G128:G133) ->  | H134: =AVERAGE(H128:H133) -> 0 | J134: =AVERAGE(J128:J133) -> 0 | K134: =IF(J134>85,("4"),IF(J134>80,("3.66"),IF(J134>75,("3.33"),IF(J134>70,("3.00"),IF(J134>65,("2.66"),IF(J134>60,("2.33"),IF(J134>55,("2"),IF(J134>50,("1.66"),"1.33")))))))) -> 1.33 | L134: =IF(J134>85,("A"),IF(J134>80,("A-"),IF(J134>75,("B+"),IF(J134>70,("B"),IF(J134>65,("B-"),IF(J134>60,("C+"),IF(J134>55,("C"),IF(J134>50,("C-"),"D+")))))))) -> D+ | M134: =IF(J134>85,("A"),IF(J134>80,("A-"),IF(J134>75,("B+"),IF(J134>70,("B"),IF(J134>65,("B-"),IF(J134>60,("C+"),IF(J134>55,("C"),IF(J134>50,("C-"),"D+")))))))) -> D+
A135: 19 | C135: =VLOOKUP(A135,data_siswa,4,FALSE) -> Raihan Danang P | D135: 3.2 | E135: =VLOOKUP(A135,UHT_AGM,24,FALSE) -> 0 | F135: =E135*2 -> 0 | H135: =VLOOKUP(A135,an_agm,49,FALSE) -> 0 | I135: =F135+G135+H135 -> 0 | J135: =(F135+G135+H135)/4 -> 0 | K135: =IF(J135>85,("4"),IF(J135>80,("3.66"),IF(J135>75,("3.33"),IF(J135>70,("3.00"),IF(J135>65,("2.66"),IF(J135>60,("2.33"),IF(J135>55,("2"),IF(J135>50,("1.66"),"1.33")))))))) -> 1.33 | L135: =IF(J135>85,("A"),IF(J135>80,("A-"),IF(J135>75,("B+"),IF(J135>70,("B"),IF(J135>65,("B-"),IF(J135>60,("C+"),IF(J135>55,("C"),IF(J135>50,("C-"),"D+")))))))) -> D+ | M135: =IF(J135>80,("SB"),IF(J135>65,("B"),IF(J135>50,("C"),IF(J135>0,("K"),"0")))) -> 0 | Z135: =J141 -> 0 | AA135: =L141 -> D+
D136: 3.5 | E136: =VLOOKUP(A135,UHT_AGM,25,FALSE) -> 0 | F136: =E136*2 -> 0 | H136: =VLOOKUP(A135,an_agm,50,FALSE) -> 0 | I136: =F136+G136+H136 -> 0 | J136: =(F136+G136+H136)/4 -> 0 | K136: =IF(J136>85,("4"),IF(J136>80,("3.66"),IF(J136>75,("3.33"),IF(J136>70,("3.00"),IF(J136>65,("2.66"),IF(J136>60,("2.33"),IF(J136>55,("2"),IF(J136>50,("1.66"),"1.33")))))))) -> 1.33 | L136: =IF(J136>85,("A"),IF(J136>80,("A-"),IF(J136>75,("B+"),IF(J136>70,("B"),IF(J136>65,("B-"),IF(J136>60,("C+"),IF(J136>55,("C"),IF(J136>50,("C-"),"D+")))))))) -> D+ | M136: =IF(J136>80,("SB"),IF(J136>65,("B"),IF(J136>50,("C"),IF(J136>0,("K"),"0")))) -> 0
D137: 3.6 | E137: =VLOOKUP(A135,UHT_AGM,26,FALSE) -> 0 | F137: 0 | H137: =VLOOKUP(A135,an_agm,51,FALSE) -> 0 | I137: 0 | J137: 0 | K137: 1.33 | L137: D+ | M137: 0
D138: 3.8 | E138: =VLOOKUP(A135,UHT_AGM,27,FALSE) -> 0 | F138: 0 | H138: =VLOOKUP(A135,an_agm,52,FALSE) -> 0 | I138: 0 | J138: 0 | K138: 1.33 | L138: D+ | M138: 0
D139: 3.9 | E139: =VLOOKUP(A135,UHT_AGM,28,FALSE) -> 0 | F139: 0 | H139: =VLOOKUP(A135,an_agm,53,FALSE) -> 0 | I139: 0 | J139: 0 | K139: 1.33 | L139: D+ | M139: 0
D140: 3.10 | E140: =VLOOKUP(A135,UHT_AGM,30,FALSE) -> 0 | F140: 0 | H140: =VLOOKUP(A135,an_agm,54,FALSE) -> 0 | I140: 0 | J140: 0 | K140: 1.33 | L140: D+ | M140: 0
B141: 19 | C141: capaian rapot | E141: =AVERAGE(E135:E140) -> 0 | G141: =AVEDEV(G135:G140) ->  | H141: =AVERAGE(H135:H140) -> 0 | J141: =AVERAGE(J135:J140) -> 0 | K141: =IF(J141>85,("4"),IF(J141>80,("3.66"),IF(J141>75,("3.33"),IF(J141>70,("3.00"),IF(J141>65,("2.66"),IF(J141>60,("2.33"),IF(J141>55,("2"),IF(J141>50,("1.66"),"1.33")))))))) -> 1.33 | L141: =IF(J141>85,("A"),IF(J141>80,("A-"),IF(J141>75,("B+"),IF(J141>70,("B"),IF(J141>65,("B-"),IF(J141>60,("C+"),IF(J141>55,("C"),IF(J141>50,("C-"),"D+")))))))) -> D+ | M141: =IF(J141>85,("A"),IF(J141>80,("A-"),IF(J141>75,("B+"),IF(J141>70,("B"),IF(J141>65,("B-"),IF(J141>60,("C+"),IF(J141>55,("C"),IF(J141>50,("C-"),"D+")))))))) -> D+
A142: 20 | C142: =VLOOKUP(A142,data_siswa,4,FALSE) -> Roby Ardiyansyah | D142: 3.2 | E142: =VLOOKUP(A142,UHT_AGM,24,FALSE) -> 0 | F142: =E142*2 -> 0 | H142: =VLOOKUP(A142,an_agm,49,FALSE) -> 0 | I142: =F142+G142+H142 -> 0 | J142: =(F142+G142+H142)/4 -> 0 | K142: =IF(J142>85,("4"),IF(J142>80,("3.66"),IF(J142>75,("3.33"),IF(J142>70,("3.00"),IF(J142>65,("2.66"),IF(J142>60,("2.33"),IF(J142>55,("2"),IF(J142>50,("1.66"),"1.33")))))))) -> 1.33 | L142: =IF(J142>85,("A"),IF(J142>80,("A-"),IF(J142>75,("B+"),IF(J142>70,("B"),IF(J142>65,("B-"),IF(J142>60,("C+"),IF(J142>55,("C"),IF(J142>50,("C-"),"D+")))))))) -> D+ | M142: =IF(J142>80,("SB"),IF(J142>65,("B"),IF(J142>50,("C"),IF(J142>0,("K"),"0")))) -> 0 | Z142: =J148 -> 0 | AA142: =L148 -> D+
D143: 3.5 | E143: =VLOOKUP(A142,UHT_AGM,25,FALSE) -> 0 | F143: =E143*2 -> 0 | H143: =VLOOKUP(A142,an_agm,50,FALSE) -> 0 | I143: =F143+G143+H143 -> 0 | J143: =(F143+G143+H143)/4 -> 0 | K143: =IF(J143>85,("4"),IF(J143>80,("3.66"),IF(J143>75,("3.33"),IF(J143>70,("3.00"),IF(J143>65,("2.66"),IF(J143>60,("2.33"),IF(J143>55,("2"),IF(J143>50,("1.66"),"1.33")))))))) -> 1.33 | L143: =IF(J143>85,("A"),IF(J143>80,("A-"),IF(J143>75,("B+"),IF(J143>70,("B"),IF(J143>65,("B-"),IF(J143>60,("C+"),IF(J143>55,("C"),IF(J143>50,("C-"),"D+")))))))) -> D+ | M143: =IF(J143>80,("SB"),IF(J143>65,("B"),IF(J143>50,("C"),IF(J143>0,("K"),"0")))) -> 0
D144: 3.6 | E144: =VLOOKUP(A142,UHT_AGM,26,FALSE) -> 0 | F144: 0 | H144: =VLOOKUP(A142,an_agm,51,FALSE) -> 0 | I144: 0 | J144: 0 | K144: 1.33 | L144: D+ | M144: 0
D145: 3.8 | E145: =VLOOKUP(A142,UHT_AGM,27,FALSE) -> 0 | F145: 0 | H145: =VLOOKUP(A142,an_agm,52,FALSE) -> 0 | I145: 0 | J145: 0 | K145: 1.33 | L145: D+ | M145: 0
D146: 3.9 | E146: =VLOOKUP(A142,UHT_AGM,28,FALSE) -> 0 | F146: 0 | H146: =VLOOKUP(A142,an_agm,53,FALSE) -> 0 | I146: 0 | J146: 0 | K146: 1.33 | L146: D+ | M146: 0
D147: 3.10 | E147: =VLOOKUP(A142,UHT_AGM,30,FALSE) -> 0 | F147: 0 | H147: =VLOOKUP(A142,an_agm,54,FALSE) -> 0 | I147: 0 | J147: 0 | K147: 1.33 | L147: D+ | M147: 0
B148: 20 | C148: capaian rapot | E148: =AVERAGE(E142:E147) -> 0 | G148: =AVEDEV(G142:G147) ->  | H148: =AVERAGE(H142:H147) -> 0 | J148: =AVERAGE(J142:J147) -> 0 | K148: =IF(J148>85,("4"),IF(J148>80,("3.66"),IF(J148>75,("3.33"),IF(J148>70,("3.00"),IF(J148>65,("2.66"),IF(J148>60,("2.33"),IF(J148>55,("2"),IF(J148>50,("1.66"),"1.33")))))))) -> 1.33 | L148: =IF(J148>85,("A"),IF(J148>80,("A-"),IF(J148>75,("B+"),IF(J148>70,("B"),IF(J148>65,("B-"),IF(J148>60,("C+"),IF(J148>55,("C"),IF(J148>50,("C-"),"D+")))))))) -> D+ | M148: =IF(J148>85,("A"),IF(J148>80,("A-"),IF(J148>75,("B+"),IF(J148>70,("B"),IF(J148>65,("B-"),IF(J148>60,("C+"),IF(J148>55,("C"),IF(J148>50,("C-"),"D+")))))))) -> D+
A149: 21 | C149: =VLOOKUP(A149,data_siswa,4,FALSE) -> Rojalingga Prana A | D149: 3.2 | E149: =VLOOKUP(A149,UHT_AGM,24,FALSE) -> 0 | F149: =E149*2 -> 0 | H149: =VLOOKUP(A149,an_agm,49,FALSE) -> 0 | I149: =F149+G149+H149 -> 0 | J149: =(F149+G149+H149)/4 -> 0 | K149: =IF(J149>85,("4"),IF(J149>80,("3.66"),IF(J149>75,("3.33"),IF(J149>70,("3.00"),IF(J149>65,("2.66"),IF(J149>60,("2.33"),IF(J149>55,("2"),IF(J149>50,("1.66"),"1.33")))))))) -> 1.33 | L149: =IF(J149>85,("A"),IF(J149>80,("A-"),IF(J149>75,("B+"),IF(J149>70,("B"),IF(J149>65,("B-"),IF(J149>60,("C+"),IF(J149>55,("C"),IF(J149>50,("C-"),"D+")))))))) -> D+ | M149: =IF(J149>80,("SB"),IF(J149>65,("B"),IF(J149>50,("C"),IF(J149>0,("K"),"0")))) -> 0 | Z149: =J155 -> 0 | AA149: =L155 -> D+
D150: 3.5 | E150: =VLOOKUP(A149,UHT_AGM,25,FALSE) -> 0 | F150: =E150*2 -> 0 | H150: =VLOOKUP(A149,an_agm,50,FALSE) -> 0 | I150: =F150+G150+H150 -> 0 | J150: =(F150+G150+H150)/4 -> 0 | K150: =IF(J150>85,("4"),IF(J150>80,("3.66"),IF(J150>75,("3.33"),IF(J150>70,("3.00"),IF(J150>65,("2.66"),IF(J150>60,("2.33"),IF(J150>55,("2"),IF(J150>50,("1.66"),"1.33")))))))) -> 1.33 | L150: =IF(J150>85,("A"),IF(J150>80,("A-"),IF(J150>75,("B+"),IF(J150>70,("B"),IF(J150>65,("B-"),IF(J150>60,("C+"),IF(J150>55,("C"),IF(J150>50,("C-"),"D+")))))))) -> D+ | M150: =IF(J150>80,("SB"),IF(J150>65,("B"),IF(J150>50,("C"),IF(J150>0,("K"),"0")))) -> 0
D151: 3.6 | E151: =VLOOKUP(A149,UHT_AGM,26,FALSE) -> 0 | F151: 0 | H151: =VLOOKUP(A149,an_agm,51,FALSE) -> 0 | I151: 0 | J151: 0 | K151: 1.33 | L151: D+ | M151: 0
D152: 3.8 | E152: =VLOOKUP(A149,UHT_AGM,27,FALSE) -> 0 | F152: 0 | H152: =VLOOKUP(A149,an_agm,52,FALSE) -> 0 | I152: 0 | J152: 0 | K152: 1.33 | L152: D+ | M152: 0
D153: 3.9 | E153: =VLOOKUP(A149,UHT_AGM,28,FALSE) -> 0 | F153: 0 | H153: =VLOOKUP(A149,an_agm,53,FALSE) -> 0 | I153: 0 | J153: 0 | K153: 1.33 | L153: D+ | M153: 0
D154: 3.10 | E154: =VLOOKUP(A149,UHT_AGM,30,FALSE) -> 0 | F154: 0 | H154: =VLOOKUP(A149,an_agm,54,FALSE) -> 0 | I154: 0 | J154: 0 | K154: 1.33 | L154: D+ | M154: 0
B155: 21 | C155: capaian rapot | E155: =AVERAGE(E149:E154) -> 0 | G155: =AVEDEV(G149:G154) ->  | H155: =AVERAGE(H149:H154) -> 0 | J155: =AVERAGE(J149:J154) -> 0 | K155: =IF(J155>85,("4"),IF(J155>80,("3.66"),IF(J155>75,("3.33"),IF(J155>70,("3.00"),IF(J155>65,("2.66"),IF(J155>60,("2.33"),IF(J155>55,("2"),IF(J155>50,("1.66"),"1.33")))))))) -> 1.33 | L155: =IF(J155>85,("A"),IF(J155>80,("A-"),IF(J155>75,("B+"),IF(J155>70,("B"),IF(J155>65,("B-"),IF(J155>60,("C+"),IF(J155>55,("C"),IF(J155>50,("C-"),"D+")))))))) -> D+ | M155: =IF(J155>85,("A"),IF(J155>80,("A-"),IF(J155>75,("B+"),IF(J155>70,("B"),IF(J155>65,("B-"),IF(J155>60,("C+"),IF(J155>55,("C"),IF(J155>50,("C-"),"D+")))))))) -> D+
A156: 22 | C156: =VLOOKUP(A156,data_siswa,4,FALSE) -> Sally Savista A | D156: 3.2 | E156: =VLOOKUP(A156,UHT_AGM,24,FALSE) -> 0 | F156: =E156*2 -> 0 | H156: =VLOOKUP(A156,an_agm,49,FALSE) -> 0 | I156: =F156+G156+H156 -> 0 | J156: =(F156+G156+H156)/4 -> 0 | K156: =IF(J156>85,("4"),IF(J156>80,("3.66"),IF(J156>75,("3.33"),IF(J156>70,("3.00"),IF(J156>65,("2.66"),IF(J156>60,("2.33"),IF(J156>55,("2"),IF(J156>50,("1.66"),"1.33")))))))) -> 1.33 | L156: =IF(J156>85,("A"),IF(J156>80,("A-"),IF(J156>75,("B+"),IF(J156>70,("B"),IF(J156>65,("B-"),IF(J156>60,("C+"),IF(J156>55,("C"),IF(J156>50,("C-"),"D+")))))))) -> D+ | M156: =IF(J156>80,("SB"),IF(J156>65,("B"),IF(J156>50,("C"),IF(J156>0,("K"),"0")))) -> 0 | Z156: =J162 -> 0 | AA156: =L162 -> D+
D157: 3.5 | E157: =VLOOKUP(A156,UHT_AGM,25,FALSE) -> 0 | F157: =E157*2 -> 0 | H157: =VLOOKUP(A156,an_agm,50,FALSE) -> 0 | I157: =F157+G157+H157 -> 0 | J157: =(F157+G157+H157)/4 -> 0 | K157: =IF(J157>85,("4"),IF(J157>80,("3.66"),IF(J157>75,("3.33"),IF(J157>70,("3.00"),IF(J157>65,("2.66"),IF(J157>60,("2.33"),IF(J157>55,("2"),IF(J157>50,("1.66"),"1.33")))))))) -> 1.33 | L157: =IF(J157>85,("A"),IF(J157>80,("A-"),IF(J157>75,("B+"),IF(J157>70,("B"),IF(J157>65,("B-"),IF(J157>60,("C+"),IF(J157>55,("C"),IF(J157>50,("C-"),"D+")))))))) -> D+ | M157: =IF(J157>80,("SB"),IF(J157>65,("B"),IF(J157>50,("C"),IF(J157>0,("K"),"0")))) -> 0
D158: 3.6 | E158: =VLOOKUP(A156,UHT_AGM,26,FALSE) -> 0 | F158: 0 | H158: =VLOOKUP(A156,an_agm,51,FALSE) -> 0 | I158: 0 | J158: 0 | K158: 1.33 | L158: D+ | M158: 0
D159: 3.8 | E159: =VLOOKUP(A156,UHT_AGM,27,FALSE) -> 0 | F159: 0 | H159: =VLOOKUP(A156,an_agm,52,FALSE) -> 0 | I159: 0 | J159: 0 | K159: 1.33 | L159: D+ | M159: 0
D160: 3.9 | E160: =VLOOKUP(A156,UHT_AGM,28,FALSE) -> 0 | F160: 0 | H160: =VLOOKUP(A156,an_agm,53,FALSE) -> 0 | I160: 0 | J160: 0 | K160: 1.33 | L160: D+ | M160: 0
D161: 3.10 | E161: =VLOOKUP(A156,UHT_AGM,30,FALSE) -> 0 | F161: 0 | H161: =VLOOKUP(A156,an_agm,54,FALSE) -> 0 | I161: 0 | J161: 0 | K161: 1.33 | L161: D+ | M161: 0
B162: 22 | C162: capaian rapot | E162: =AVERAGE(E156:E161) -> 0 | G162: =AVEDEV(G156:G161) ->  | H162: =AVERAGE(H156:H161) -> 0 | J162: =AVERAGE(J156:J161) -> 0 | K162: =IF(J162>85,("4"),IF(J162>80,("3.66"),IF(J162>75,("3.33"),IF(J162>70,("3.00"),IF(J162>65,("2.66"),IF(J162>60,("2.33"),IF(J162>55,("2"),IF(J162>50,("1.66"),"1.33")))))))) -> 1.33 | L162: =IF(J162>85,("A"),IF(J162>80,("A-"),IF(J162>75,("B+"),IF(J162>70,("B"),IF(J162>65,("B-"),IF(J162>60,("C+"),IF(J162>55,("C"),IF(J162>50,("C-"),"D+")))))))) -> D+ | M162: =IF(J162>85,("A"),IF(J162>80,("A-"),IF(J162>75,("B+"),IF(J162>70,("B"),IF(J162>65,("B-"),IF(J162>60,("C+"),IF(J162>55,("C"),IF(J162>50,("C-"),"D+")))))))) -> D+
A163: 23 | C163: =VLOOKUP(A163,data_siswa,4,FALSE) -> Tania Kaori Angelita | D163: 3.2 | E163: =VLOOKUP(A163,UHT_AGM,24,FALSE) -> 0 | F163: =E163*2 -> 0 | H163: =VLOOKUP(A163,an_agm,49,FALSE) -> 0 | I163: =F163+G163+H163 -> 0 | J163: =(F163+G163+H163)/4 -> 0 | K163: =IF(J163>85,("4"),IF(J163>80,("3.66"),IF(J163>75,("3.33"),IF(J163>70,("3.00"),IF(J163>65,("2.66"),IF(J163>60,("2.33"),IF(J163>55,("2"),IF(J163>50,("1.66"),"1.33")))))))) -> 1.33 | L163: =IF(J163>85,("A"),IF(J163>80,("A-"),IF(J163>75,("B+"),IF(J163>70,("B"),IF(J163>65,("B-"),IF(J163>60,("C+"),IF(J163>55,("C"),IF(J163>50,("C-"),"D+")))))))) -> D+ | M163: =IF(J163>80,("SB"),IF(J163>65,("B"),IF(J163>50,("C"),IF(J163>0,("K"),"0")))) -> 0 | Z163: =J169 -> 0 | AA163: =L169 -> D+
D164: 3.5 | E164: =VLOOKUP(A163,UHT_AGM,25,FALSE) -> 0 | F164: =E164*2 -> 0 | H164: =VLOOKUP(A163,an_agm,50,FALSE) -> 0 | I164: =F164+G164+H164 -> 0 | J164: =(F164+G164+H164)/4 -> 0 | K164: =IF(J164>85,("4"),IF(J164>80,("3.66"),IF(J164>75,("3.33"),IF(J164>70,("3.00"),IF(J164>65,("2.66"),IF(J164>60,("2.33"),IF(J164>55,("2"),IF(J164>50,("1.66"),"1.33")))))))) -> 1.33 | L164: =IF(J164>85,("A"),IF(J164>80,("A-"),IF(J164>75,("B+"),IF(J164>70,("B"),IF(J164>65,("B-"),IF(J164>60,("C+"),IF(J164>55,("C"),IF(J164>50,("C-"),"D+")))))))) -> D+ | M164: =IF(J164>80,("SB"),IF(J164>65,("B"),IF(J164>50,("C"),IF(J164>0,("K"),"0")))) -> 0
D165: 3.6 | E165: =VLOOKUP(A163,UHT_AGM,26,FALSE) -> 0 | F165: 0 | H165: =VLOOKUP(A163,an_agm,51,FALSE) -> 0 | I165: 0 | J165: 0 | K165: 1.33 | L165: D+ | M165: 0
D166: 3.8 | E166: =VLOOKUP(A163,UHT_AGM,27,FALSE) -> 0 | F166: 0 | H166: =VLOOKUP(A163,an_agm,52,FALSE) -> 0 | I166: 0 | J166: 0 | K166: 1.33 | L166: D+ | M166: 0
D167: 3.9 | E167: =VLOOKUP(A163,UHT_AGM,28,FALSE) -> 0 | F167: 0 | H167: =VLOOKUP(A163,an_agm,53,FALSE) -> 0 | I167: 0 | J167: 0 | K167: 1.33 | L167: D+ | M167: 0
D168: 3.10 | E168: =VLOOKUP(A163,UHT_AGM,30,FALSE) -> 0 | F168: 0 | H168: =VLOOKUP(A163,an_agm,54,FALSE) -> 0 | I168: 0 | J168: 0 | K168: 1.33 | L168: D+ | M168: 0
B169: 23 | C169: capaian rapot | E169: =AVERAGE(E163:E168) -> 0 | G169: =AVEDEV(G163:G168) ->  | H169: =AVERAGE(H163:H168) -> 0 | J169: =AVERAGE(J163:J168) -> 0 | K169: =IF(J169>85,("4"),IF(J169>80,("3.66"),IF(J169>75,("3.33"),IF(J169>70,("3.00"),IF(J169>65,("2.66"),IF(J169>60,("2.33"),IF(J169>55,("2"),IF(J169>50,("1.66"),"1.33")))))))) -> 1.33 | L169: =IF(J169>85,("A"),IF(J169>80,("A-"),IF(J169>75,("B+"),IF(J169>70,("B"),IF(J169>65,("B-"),IF(J169>60,("C+"),IF(J169>55,("C"),IF(J169>50,("C-"),"D+")))))))) -> D+ | M169: =IF(J169>85,("A"),IF(J169>80,("A-"),IF(J169>75,("B+"),IF(J169>70,("B"),IF(J169>65,("B-"),IF(J169>60,("C+"),IF(J169>55,("C"),IF(J169>50,("C-"),"D+")))))))) -> D+
A170: 24 | C170: =VLOOKUP(A170,data_siswa,4,FALSE) -> Romzy Oka Ramadhani P | D170: 3.2 | E170: =VLOOKUP(A170,UHT_AGM,24,FALSE) -> 0 | F170: =E170*2 -> 0 | H170: =VLOOKUP(A170,an_agm,49,FALSE) -> 0 | I170: =F170+G170+H170 -> 0 | J170: =(F170+G170+H170)/4 -> 0 | K170: =IF(J170>85,("4"),IF(J170>80,("3.66"),IF(J170>75,("3.33"),IF(J170>70,("3.00"),IF(J170>65,("2.66"),IF(J170>60,("2.33"),IF(J170>55,("2"),IF(J170>50,("1.66"),"1.33")))))))) -> 1.33 | L170: =IF(J170>85,("A"),IF(J170>80,("A-"),IF(J170>75,("B+"),IF(J170>70,("B"),IF(J170>65,("B-"),IF(J170>60,("C+"),IF(J170>55,("C"),IF(J170>50,("C-"),"D+")))))))) -> D+ | M170: =IF(J170>80,("SB"),IF(J170>65,("B"),IF(J170>50,("C"),IF(J170>0,("K"),"0")))) -> 0 | Z170: =J176 -> 0 | AA170: =L176 -> D+
D171: 3.5 | E171: =VLOOKUP(A170,UHT_AGM,25,FALSE) -> 0 | F171: =E171*2 -> 0 | H171: =VLOOKUP(A170,an_agm,50,FALSE) -> 0 | I171: =F171+G171+H171 -> 0 | J171: =(F171+G171+H171)/4 -> 0 | K171: =IF(J171>85,("4"),IF(J171>80,("3.66"),IF(J171>75,("3.33"),IF(J171>70,("3.00"),IF(J171>65,("2.66"),IF(J171>60,("2.33"),IF(J171>55,("2"),IF(J171>50,("1.66"),"1.33")))))))) -> 1.33 | L171: =IF(J171>85,("A"),IF(J171>80,("A-"),IF(J171>75,("B+"),IF(J171>70,("B"),IF(J171>65,("B-"),IF(J171>60,("C+"),IF(J171>55,("C"),IF(J171>50,("C-"),"D+")))))))) -> D+ | M171: =IF(J171>80,("SB"),IF(J171>65,("B"),IF(J171>50,("C"),IF(J171>0,("K"),"0")))) -> 0
D172: 3.6 | E172: =VLOOKUP(A170,UHT_AGM,26,FALSE) -> 0 | F172: 0 | H172: =VLOOKUP(A170,an_agm,51,FALSE) -> 0 | I172: 0 | J172: 0 | K172: 1.33 | L172: D+ | M172: 0
D173: 3.8 | E173: =VLOOKUP(A170,UHT_AGM,27,FALSE) -> 0 | F173: 0 | H173: =VLOOKUP(A170,an_agm,52,FALSE) -> 0 | I173: 0 | J173: 0 | K173: 1.33 | L173: D+ | M173: 0
D174: 3.9 | E174: =VLOOKUP(A170,UHT_AGM,28,FALSE) -> 0 | F174: 0 | H174: =VLOOKUP(A170,an_agm,53,FALSE) -> 0 | I174: 0 | J174: 0 | K174: 1.33 | L174: D+ | M174: 0
D175: 3.10 | E175: =VLOOKUP(A170,UHT_AGM,30,FALSE) -> 0 | F175: 0 | H175: =VLOOKUP(A170,an_agm,54,FALSE) -> 0 | I175: 0 | J175: 0 | K175: 1.33 | L175: D+ | M175: 0
B176: 24 | C176: capaian rapot | E176: =AVERAGE(E170:E175) -> 0 | G176: =AVEDEV(G170:G175) ->  | H176: =AVERAGE(H170:H175) -> 0 | J176: =AVERAGE(J170:J175) -> 0 | K176: =IF(J176>85,("4"),IF(J176>80,("3.66"),IF(J176>75,("3.33"),IF(J176>70,("3.00"),IF(J176>65,("2.66"),IF(J176>60,("2.33"),IF(J176>55,("2"),IF(J176>50,("1.66"),"1.33")))))))) -> 1.33 | L176: =IF(J176>85,("A"),IF(J176>80,("A-"),IF(J176>75,("B+"),IF(J176>70,("B"),IF(J176>65,("B-"),IF(J176>60,("C+"),IF(J176>55,("C"),IF(J176>50,("C-"),"D+")))))))) -> D+ | M176: =IF(J176>85,("A"),IF(J176>80,("A-"),IF(J176>75,("B+"),IF(J176>70,("B"),IF(J176>65,("B-"),IF(J176>60,("C+"),IF(J176>55,("C"),IF(J176>50,("C-"),"D+")))))))) -> D+
A177: 25 | C177: =VLOOKUP(A177,data_siswa,4,FALSE) -> Larasati Jagadhita P | D177: 3.2 | E177: =VLOOKUP(A177,UHT_AGM,24,FALSE) -> 0 | F177: =E177*2 -> 0 | H177: =VLOOKUP(A177,an_agm,49,FALSE) -> 0 | I177: =F177+G177+H177 -> 0 | J177: =(F177+G177+H177)/4 -> 0 | K177: =IF(J177>85,("4"),IF(J177>80,("3.66"),IF(J177>75,("3.33"),IF(J177>70,("3.00"),IF(J177>65,("2.66"),IF(J177>60,("2.33"),IF(J177>55,("2"),IF(J177>50,("1.66"),"1.33")))))))) -> 1.33 | L177: =IF(J177>85,("A"),IF(J177>80,("A-"),IF(J177>75,("B+"),IF(J177>70,("B"),IF(J177>65,("B-"),IF(J177>60,("C+"),IF(J177>55,("C"),IF(J177>50,("C-"),"D+")))))))) -> D+ | M177: =IF(J177>80,("SB"),IF(J177>65,("B"),IF(J177>50,("C"),IF(J177>0,("K"),"0")))) -> 0 | Z177: =J183 -> 0 | AA177: =L183 -> D+
D178: 3.5 | E178: =VLOOKUP(A177,UHT_AGM,25,FALSE) -> 0 | F178: =E178*2 -> 0 | H178: =VLOOKUP(A177,an_agm,50,FALSE) -> 0 | I178: =F178+G178+H178 -> 0 | J178: =(F178+G178+H178)/4 -> 0 | K178: =IF(J178>85,("4"),IF(J178>80,("3.66"),IF(J178>75,("3.33"),IF(J178>70,("3.00"),IF(J178>65,("2.66"),IF(J178>60,("2.33"),IF(J178>55,("2"),IF(J178>50,("1.66"),"1.33")))))))) -> 1.33 | L178: =IF(J178>85,("A"),IF(J178>80,("A-"),IF(J178>75,("B+"),IF(J178>70,("B"),IF(J178>65,("B-"),IF(J178>60,("C+"),IF(J178>55,("C"),IF(J178>50,("C-"),"D+")))))))) -> D+ | M178: =IF(J178>80,("SB"),IF(J178>65,("B"),IF(J178>50,("C"),IF(J178>0,("K"),"0")))) -> 0
D179: 3.6 | E179: =VLOOKUP(A177,UHT_AGM,26,FALSE) -> 0 | F179: 0 | H179: =VLOOKUP(A177,an_agm,51,FALSE) -> 0 | I179: 0 | J179: 0 | K179: 1.33 | L179: D+ | M179: 0
D180: 3.8 | E180: =VLOOKUP(A177,UHT_AGM,27,FALSE) -> 0 | F180: 0 | H180: =VLOOKUP(A177,an_agm,52,FALSE) -> 0 | I180: 0 | J180: 0 | K180: 1.33 | L180: D+ | M180: 0
D181: 3.9 | E181: =VLOOKUP(A177,UHT_AGM,28,FALSE) -> 0 | F181: 0 | H181: =VLOOKUP(A177,an_agm,53,FALSE) -> 0 | I181: 0 | J181: 0 | K181: 1.33 | L181: D+ | M181: 0
D182: 3.10 | E182: =VLOOKUP(A177,UHT_AGM,30,FALSE) -> 0 | F182: 0 | H182: =VLOOKUP(A177,an_agm,54,FALSE) -> 0 | I182: 0 | J182: 0 | K182: 1.33 | L182: D+ | M182: 0
B183: 25 | C183: capaian rapot | E183: =AVERAGE(E177:E182) -> 0 | G183: =AVEDEV(G177:G182) ->  | H183: =AVERAGE(H177:H182) -> 0 | J183: =AVERAGE(J177:J182) -> 0 | K183: =IF(J183>85,("4"),IF(J183>80,("3.66"),IF(J183>75,("3.33"),IF(J183>70,("3.00"),IF(J183>65,("2.66"),IF(J183>60,("2.33"),IF(J183>55,("2"),IF(J183>50,("1.66"),"1.33")))))))) -> 1.33 | L183: =IF(J183>85,("A"),IF(J183>80,("A-"),IF(J183>75,("B+"),IF(J183>70,("B"),IF(J183>65,("B-"),IF(J183>60,("C+"),IF(J183>55,("C"),IF(J183>50,("C-"),"D+")))))))) -> D+ | M183: =IF(J183>85,("A"),IF(J183>80,("A-"),IF(J183>75,("B+"),IF(J183>70,("B"),IF(J183>65,("B-"),IF(J183>60,("C+"),IF(J183>55,("C"),IF(J183>50,("C-"),"D+")))))))) -> D+
A184: 26 | C184: =VLOOKUP(A184,data_siswa,4,FALSE) -> Meliana Citra A | D184: 3.2 | E184: =VLOOKUP(A184,UHT_AGM,24,FALSE) -> 0 | F184: =E184*2 -> 0 | H184: =VLOOKUP(A184,an_agm,49,FALSE) -> 0 | I184: =F184+G184+H184 -> 0 | J184: =(F184+G184+H184)/4 -> 0 | K184: =IF(J184>85,("4"),IF(J184>80,("3.66"),IF(J184>75,("3.33"),IF(J184>70,("3.00"),IF(J184>65,("2.66"),IF(J184>60,("2.33"),IF(J184>55,("2"),IF(J184>50,("1.66"),"1.33")))))))) -> 1.33 | L184: =IF(J184>85,("A"),IF(J184>80,("A-"),IF(J184>75,("B+"),IF(J184>70,("B"),IF(J184>65,("B-"),IF(J184>60,("C+"),IF(J184>55,("C"),IF(J184>50,("C-"),"D+")))))))) -> D+ | M184: =IF(J184>80,("SB"),IF(J184>65,("B"),IF(J184>50,("C"),IF(J184>0,("K"),"0")))) -> 0 | Z184: =J190 -> 0 | AA184: =L190 -> D+
D185: 3.5 | E185: =VLOOKUP(A184,UHT_AGM,25,FALSE) -> 0 | F185: =E185*2 -> 0 | H185: =VLOOKUP(A184,an_agm,50,FALSE) -> 0 | I185: =F185+G185+H185 -> 0 | J185: =(F185+G185+H185)/4 -> 0 | K185: =IF(J185>85,("4"),IF(J185>80,("3.66"),IF(J185>75,("3.33"),IF(J185>70,("3.00"),IF(J185>65,("2.66"),IF(J185>60,("2.33"),IF(J185>55,("2"),IF(J185>50,("1.66"),"1.33")))))))) -> 1.33 | L185: =IF(J185>85,("A"),IF(J185>80,("A-"),IF(J185>75,("B+"),IF(J185>70,("B"),IF(J185>65,("B-"),IF(J185>60,("C+"),IF(J185>55,("C"),IF(J185>50,("C-"),"D+")))))))) -> D+ | M185: =IF(J185>80,("SB"),IF(J185>65,("B"),IF(J185>50,("C"),IF(J185>0,("K"),"0")))) -> 0
D186: 3.6 | E186: =VLOOKUP(A184,UHT_AGM,26,FALSE) -> 0 | F186: 0 | H186: =VLOOKUP(A184,an_agm,51,FALSE) -> 0 | I186: 0 | J186: 0 | K186: 1.33 | L186: D+ | M186: 0
D187: 3.8 | E187: =VLOOKUP(A184,UHT_AGM,27,FALSE) -> 0 | F187: 0 | H187: =VLOOKUP(A184,an_agm,52,FALSE) -> 0 | I187: 0 | J187: 0 | K187: 1.33 | L187: D+ | M187: 0
D188: 3.9 | E188: =VLOOKUP(A184,UHT_AGM,28,FALSE) -> 0 | F188: 0 | H188: =VLOOKUP(A184,an_agm,53,FALSE) -> 0 | I188: 0 | J188: 0 | K188: 1.33 | L188: D+ | M188: 0
D189: 3.10 | E189: =VLOOKUP(A184,UHT_AGM,30,FALSE) -> 0 | F189: 0 | H189: =VLOOKUP(A184,an_agm,54,FALSE) -> 0 | I189: 0 | J189: 0 | K189: 1.33 | L189: D+ | M189: 0
B190: 26 | C190: capaian rapot | E190: =AVERAGE(E184:E189) -> 0 | G190: =AVEDEV(G184:G189) ->  | H190: =AVERAGE(H184:H189) -> 0 | J190: =AVERAGE(J184:J189) -> 0 | K190: =IF(J190>85,("4"),IF(J190>80,("3.66"),IF(J190>75,("3.33"),IF(J190>70,("3.00"),IF(J190>65,("2.66"),IF(J190>60,("2.33"),IF(J190>55,("2"),IF(J190>50,("1.66"),"1.33")))))))) -> 1.33 | L190: =IF(J190>85,("A"),IF(J190>80,("A-"),IF(J190>75,("B+"),IF(J190>70,("B"),IF(J190>65,("B-"),IF(J190>60,("C+"),IF(J190>55,("C"),IF(J190>50,("C-"),"D+")))))))) -> D+ | M190: =IF(J190>85,("A"),IF(J190>80,("A-"),IF(J190>75,("B+"),IF(J190>70,("B"),IF(J190>65,("B-"),IF(J190>60,("C+"),IF(J190>55,("C"),IF(J190>50,("C-"),"D+")))))))) -> D+
A191: 27 | C191: =VLOOKUP(A191,data_siswa,4,FALSE) -> Mohammad Rizky | D191: 3.2 | E191: =VLOOKUP(A191,UHT_AGM,24,FALSE) -> 0 | F191: =E191*2 -> 0 | H191: =VLOOKUP(A191,an_agm,49,FALSE) -> 0 | I191: =F191+G191+H191 -> 0 | J191: =(F191+G191+H191)/4 -> 0 | K191: =IF(J191>85,("4"),IF(J191>80,("3.66"),IF(J191>75,("3.33"),IF(J191>70,("3.00"),IF(J191>65,("2.66"),IF(J191>60,("2.33"),IF(J191>55,("2"),IF(J191>50,("1.66"),"1.33")))))))) -> 1.33 | L191: =IF(J191>85,("A"),IF(J191>80,("A-"),IF(J191>75,("B+"),IF(J191>70,("B"),IF(J191>65,("B-"),IF(J191>60,("C+"),IF(J191>55,("C"),IF(J191>50,("C-"),"D+")))))))) -> D+ | M191: =IF(J191>80,("SB"),IF(J191>65,("B"),IF(J191>50,("C"),IF(J191>0,("K"),"0")))) -> 0 | Z191: =J197 -> 0 | AA191: =L197 -> D+
D192: 3.5 | E192: =VLOOKUP(A191,UHT_AGM,25,FALSE) -> 0 | F192: =E192*2 -> 0 | H192: =VLOOKUP(A191,an_agm,50,FALSE) -> 0 | I192: =F192+G192+H192 -> 0 | J192: =(F192+G192+H192)/4 -> 0 | K192: =IF(J192>85,("4"),IF(J192>80,("3.66"),IF(J192>75,("3.33"),IF(J192>70,("3.00"),IF(J192>65,("2.66"),IF(J192>60,("2.33"),IF(J192>55,("2"),IF(J192>50,("1.66"),"1.33")))))))) -> 1.33 | L192: =IF(J192>85,("A"),IF(J192>80,("A-"),IF(J192>75,("B+"),IF(J192>70,("B"),IF(J192>65,("B-"),IF(J192>60,("C+"),IF(J192>55,("C"),IF(J192>50,("C-"),"D+")))))))) -> D+ | M192: =IF(J192>80,("SB"),IF(J192>65,("B"),IF(J192>50,("C"),IF(J192>0,("K"),"0")))) -> 0
D193: 3.6 | E193: =VLOOKUP(A191,UHT_AGM,26,FALSE) -> 0 | F193: 0 | H193: =VLOOKUP(A191,an_agm,51,FALSE) -> 0 | I193: 0 | J193: 0 | K193: 1.33 | L193: D+ | M193: 0
D194: 3.8 | E194: =VLOOKUP(A191,UHT_AGM,27,FALSE) -> 0 | F194: 0 | H194: =VLOOKUP(A191,an_agm,52,FALSE) -> 0 | I194: 0 | J194: 0 | K194: 1.33 | L194: D+ | M194: 0
D195: 3.9 | E195: =VLOOKUP(A191,UHT_AGM,28,FALSE) -> 0 | F195: 0 | H195: =VLOOKUP(A191,an_agm,53,FALSE) -> 0 | I195: 0 | J195: 0 | K195: 1.33 | L195: D+ | M195: 0
D196: 3.10 | E196: =VLOOKUP(A191,UHT_AGM,30,FALSE) -> 0 | F196: 0 | H196: =VLOOKUP(A191,an_agm,54,FALSE) -> 0 | I196: 0 | J196: 0 | K196: 1.33 | L196: D+ | M196: 0
B197: 27 | C197: capaian rapot | E197: =AVERAGE(E191:E196) -> 0 | G197: =AVEDEV(G191:G196) ->  | H197: =AVERAGE(H191:H196) -> 0 | J197: =AVERAGE(J191:J196) -> 0 | K197: =IF(J197>85,("4"),IF(J197>80,("3.66"),IF(J197>75,("3.33"),IF(J197>70,("3.00"),IF(J197>65,("2.66"),IF(J197>60,("2.33"),IF(J197>55,("2"),IF(J197>50,("1.66"),"1.33")))))))) -> 1.33 | L197: =IF(J197>85,("A"),IF(J197>80,("A-"),IF(J197>75,("B+"),IF(J197>70,("B"),IF(J197>65,("B-"),IF(J197>60,("C+"),IF(J197>55,("C"),IF(J197>50,("C-"),"D+")))))))) -> D+ | M197: =IF(J197>85,("A"),IF(J197>80,("A-"),IF(J197>75,("B+"),IF(J197>70,("B"),IF(J197>65,("B-"),IF(J197>60,("C+"),IF(J197>55,("C"),IF(J197>50,("C-"),"D+")))))))) -> D+
A198: 28 | C198: =VLOOKUP(A198,data_siswa,4,FALSE) ->  | D198: 3.2 | E198: =VLOOKUP(A198,UHT_AGM,24,FALSE) -> 0 | F198: =E198*2 -> 0 | H198: =VLOOKUP(A198,an_agm,49,FALSE) -> 0 | I198: =F198+G198+H198 -> 0 | J198: =(F198+G198+H198)/4 -> 0 | K198: =IF(J198>85,("4"),IF(J198>80,("3.66"),IF(J198>75,("3.33"),IF(J198>70,("3.00"),IF(J198>65,("2.66"),IF(J198>60,("2.33"),IF(J198>55,("2"),IF(J198>50,("1.66"),"1.33")))))))) -> 1.33 | L198: =IF(J198>85,("A"),IF(J198>80,("A-"),IF(J198>75,("B+"),IF(J198>70,("B"),IF(J198>65,("B-"),IF(J198>60,("C+"),IF(J198>55,("C"),IF(J198>50,("C-"),"D+")))))))) -> D+ | M198: =IF(J198>80,("SB"),IF(J198>65,("B"),IF(J198>50,("C"),IF(J198>0,("K"),"0")))) -> 0 | Z198: =J204 -> 0 | AA198: =L204 -> D+
D199: 3.5 | E199: =VLOOKUP(A198,UHT_AGM,25,FALSE) -> 0 | F199: =E199*2 -> 0 | H199: =VLOOKUP(A198,an_agm,50,FALSE) -> 0 | I199: =F199+G199+H199 -> 0 | J199: =(F199+G199+H199)/4 -> 0 | K199: =IF(J199>85,("4"),IF(J199>80,("3.66"),IF(J199>75,("3.33"),IF(J199>70,("3.00"),IF(J199>65,("2.66"),IF(J199>60,("2.33"),IF(J199>55,("2"),IF(J199>50,("1.66"),"1.33")))))))) -> 1.33 | L199: =IF(J199>85,("A"),IF(J199>80,("A-"),IF(J199>75,("B+"),IF(J199>70,("B"),IF(J199>65,("B-"),IF(J199>60,("C+"),IF(J199>55,("C"),IF(J199>50,("C-"),"D+")))))))) -> D+ | M199: =IF(J199>80,("SB"),IF(J199>65,("B"),IF(J199>50,("C"),IF(J199>0,("K"),"0")))) -> 0
D200: 3.6 | E200: =VLOOKUP(A198,UHT_AGM,26,FALSE) -> 0 | F200: 0 | H200: =VLOOKUP(A198,an_agm,51,FALSE) -> 0 | I200: 0 | J200: 0 | K200: 1.33 | L200: D+ | M200: 0
D201: 3.8 | E201: =VLOOKUP(A198,UHT_AGM,27,FALSE) -> 0 | F201: 0 | H201: =VLOOKUP(A198,an_agm,52,FALSE) -> 0 | I201: 0 | J201: 0 | K201: 1.33 | L201: D+ | M201: 0
D202: 3.9 | E202: =VLOOKUP(A198,UHT_AGM,28,FALSE) -> 0 | F202: 0 | H202: =VLOOKUP(A198,an_agm,53,FALSE) -> 0 | I202: 0 | J202: 0 | K202: 1.33 | L202: D+ | M202: 0
... 86 more rows

Sheet pknki_3
A1: Nilai Rapot Pelajaran Pkn
A2: Tahun Pelajaran 2015/2016
A3: kelas : 4
A4: 1 | B4: 2 | C4: 3 | D4: 4 | E4: 5 | F4: 6 | G4: 7 | H4: 8 | I4: 9 | J4: 10 | K4: 11 | L4: 12 | M4: 13 | N4: 14 | O4: 15 | P4: 16 | Q4: 17 | R4: 18 | S4: 19 | T4: 20 | U4: 21
A5: NO | B5: NIS | C5: NAMA | D5: KD | E5: NILAI | I5: JML | J5: NA | K5: NILAI KONVERSI | L5: PREDIKAT | M5: KLASIFIKASI | N5: Deskripsi Positif ( 3/4 ) | Q5: Deskripsi Negatif ( 2/3 ) | T5: NA | U5: p
E6: Rt.NH | F6: 2x NH | G6: UTS | H6: UAS | N6: 3.1 | O6: 3.2 | P6: 3.3 | Q6: 3.1 | R6: 3.2 | S6: 3.3
A7: 1 | B7: 1 | C7: =VLOOKUP(A7,data_siswa,4,FALSE) -> Achmad Zacky | D7: 3.1 | E7: 76 | F7: =E7*2 -> 152 | G7: 78 | H7: =VLOOKUP(B7,REKAP_NILAI,4,FALSE) -> 83.33333333 | I7: =F7+G7+H7 -> 313.3333333 | J7: =(F7+G7+H7)/4 -> 78.33333333 | K7: =IF(J7>85,("4"),IF(J7>80,("3.66"),IF(J7>75,("3.33"),IF(J7>70,("3.00"),IF(J7>65,("2.66"),IF(J7>60,("2.33"),IF(J7>55,("2"),IF(J7>50,("1.66"),"1.33")))))))) -> 3.33 | L7: =IF(J7>85,("A"),IF(J7>80,("A-"),IF(J7>75,("B+"),IF(J7>70,("B"),IF(J7>65,("B-"),IF(J7>60,("C+"),IF(J7>55,("C"),IF(J7>50,("C-"),"D+")))))))) -> B+ | M7: =IF(J7>80,("SB"),IF(J7>65,("B"),IF(J7>50,("C"),IF(J7>0,("K"),"0")))) -> B | O7: 4 | T7: =J10 -> 75.71260684 | U7: =IF(T7>85,("A"),IF(T7>80,("A-"),IF(T7>75,("B+"),IF(T7>70,("B"),IF(T7>65,("B-"),IF(T7>60,("C+"),IF(T7>55,("C"),IF(T7>50,("C-"),"D+")))))))) -> B+
B8: 1 | D8: 3.2 | E8: 80 | F8: =E8*2 -> 160 | G8: 89 | H8: =VLOOKUP(B7,REKAP_NILAI,5,FALSE) -> 81.41025641 | I8: =F8+G8+H8 -> 330.4102564 | J8: =(F8+G8+H8)/4 -> 82.6025641 | K8: =IF(J8>85,("4"),IF(J8>80,("3.66"),IF(J8>75,("3.33"),IF(J8>70,("3.00"),IF(J8>65,("2.66"),IF(J8>60,("2.33"),IF(J8>55,("2"),IF(J8>50,("1.66"),"1.33")))))))) -> 3.66 | L8: =IF(J8>85,("A"),IF(J8>80,("A-"),IF(J8>75,("B+"),IF(J8>70,("B"),IF(J8>65,("B-"),IF(J8>60,("C+"),IF(J8>55,("C"),IF(J8>50,("C-"),"D+")))))))) -> A- | M8: =IF(J8>80,("SB"),IF(J8>65,("B"),IF(J8>50,("C"),IF(J8>0,("K"),"0")))) -> SB
B9: 1 | D9: 3.3 | E9: 70 | F9: 140 | G9: 45 | H9: =VLOOKUP(B7,REKAP_NILAI,6,FALSE) -> 79.80769231 | I9: 264.8076923 | J9: 66.20192308 | K9: 2.66 | L9: B- | M9: B
B10: 1 | C10: capaian raport | D10: 1 | H10: =AVERAGE(H7:H9) -> 81.51709402 | J10: =AVERAGE(J7:J9) -> 75.71260684 | K10: 3.33 | L10: B+ | M10: B
A11: 2 | B11: 2 | C11: =VLOOKUP(A11,data_siswa,4,FALSE) -> Angelia Vabel R | D11: 3.1 | F11: =E11*2 -> 0 | H11: 0 | I11: =F11+G11+H11 -> 0 | J11: =(F11+G11+H11)/4 -> 0 | K11: =IF(J11>85,("4"),IF(J11>80,("3.66"),IF(J11>75,("3.33"),IF(J11>70,("3.00"),IF(J11>65,("2.66"),IF(J11>60,("2.33"),IF(J11>55,("2"),IF(J11>50,("1.66"),"1.33")))))))) -> 1.33 | L11: =IF(J11>85,("A"),IF(J11>80,("A-"),IF(J11>75,("B+"),IF(J11>70,("B"),IF(J11>65,("B-"),IF(J11>60,("C+"),IF(J11>55,("C"),IF(J11>50,("C-"),"D+")))))))) -> D+ | M11: =IF(J11>80,("SB"),IF(J11>65,("B"),IF(J11>50,("C"),IF(J11>0,("K"),"0")))) -> 0 | T11: =J14 -> 0 | U11: =IF(T11>85,("A"),IF(T11>80,("A-"),IF(T11>75,("B+"),IF(T11>70,("B"),IF(T11>65,("B-"),IF(T11>60,("C+"),IF(T11>55,("C"),IF(T11>50,("C-"),"D+")))))))) -> D+
B12: 2 | D12: 3.2 | F12: =E12*2 -> 0 | H12: 0 | I12: =F12+G12+H12 -> 0 | J12: =(F12+G12+H12)/4 -> 0 | K12: =IF(J12>85,("4"),IF(J12>80,("3.66"),IF(J12>75,("3.33"),IF(J12>70,("3.00"),IF(J12>65,("2.66"),IF(J12>60,("2.33"),IF(J12>55,("2"),IF(J12>50,("1.66"),"1.33")))))))) -> 1.33 | L12: =IF(J12>85,("A"),IF(J12>80,("A-"),IF(J12>75,("B+"),IF(J12>70,("B"),IF(J12>65,("B-"),IF(J12>60,("C+"),IF(J12>55,("C"),IF(J12>50,("C-"),"D+")))))))) -> D+ | M12: =IF(J12>80,("SB"),IF(J12>65,("B"),IF(J12>50,("C"),IF(J12>0,("K"),"0")))) -> 0
B13: 2 | D13: 3.3 | F13: 0 | H13: 0 | I13: 0 | J13: 0 | K13: 1.33 | L13: D+ | M13: 0
B14: 2 | C14: capaian raport | D14: 2 | H14: =AVERAGE(H11:H13) -> 0 | J14: =AVERAGE(J11:J13) -> 0 | K14: 1.33 | L14: D+ | M14: 0
A15: 3 | B15: 3 | C15: =VLOOKUP(A15,data_siswa,4,FALSE) -> Anggun Dwi P.I | D15: 3.1 | F15: =E15*2 -> 0 | H15: =VLOOKUP(B15,REKAP_NILAI,4,FALSE) -> 0 | I15: =F15+G15+H15 -> 0 | J15: =(F15+G15+H15)/4 -> 0 | K15: =IF(J15>85,("4"),IF(J15>80,("3.66"),IF(J15>75,("3.33"),IF(J15>70,("3.00"),IF(J15>65,("2.66"),IF(J15>60,("2.33"),IF(J15>55,("2"),IF(J15>50,("1.66"),"1.33")))))))) -> 1.33 | L15: =IF(J15>85,("A"),IF(J15>80,("A-"),IF(J15>75,("B+"),IF(J15>70,("B"),IF(J15>65,("B-"),IF(J15>60,("C+"),IF(J15>55,("C"),IF(J15>50,("C-"),"D+")))))))) -> D+ | M15: =IF(J15>80,("SB"),IF(J15>65,("B"),IF(J15>50,("C"),IF(J15>0,("K"),"0")))) -> 0 | T15: =J18 -> 0 | U15: =IF(T15>85,("A"),IF(T15>80,("A-"),IF(T15>75,("B+"),IF(T15>70,("B"),IF(T15>65,("B-"),IF(T15>60,("C+"),IF(T15>55,("C"),IF(T15>50,("C-"),"D+")))))))) -> D+
B16: 3 | D16: 3.2 | F16: =E16*2 -> 0 | H16: =VLOOKUP(B15,REKAP_NILAI,5,FALSE) -> 0 | I16: =F16+G16+H16 -> 0 | J16: =(F16+G16+H16)/4 -> 0 | K16: =IF(J16>85,("4"),IF(J16>80,("3.66"),IF(J16>75,("3.33"),IF(J16>70,("3.00"),IF(J16>65,("2.66"),IF(J16>60,("2.33"),IF(J16>55,("2"),IF(J16>50,("1.66"),"1.33")))))))) -> 1.33 | L16: =IF(J16>85,("A"),IF(J16>80,("A-"),IF(J16>75,("B+"),IF(J16>70,("B"),IF(J16>65,("B-"),IF(J16>60,("C+"),IF(J16>55,("C"),IF(J16>50,("C-"),"D+")))))))) -> D+ | M16: =IF(J16>80,("SB"),IF(J16>65,("B"),IF(J16>50,("C"),IF(J16>0,("K"),"0")))) -> 0
B17: 3 | D17: 3.2 | F17: 0 | H17: =VLOOKUP(B15,REKAP_NILAI,6,FALSE) -> 0 | I17: 0 | J17: 0 | K17: 1.33 | L17: D+ | M17: 0
C18: capaian raport | D18: 3 | H18: =AVERAGE(H15:H17) -> 0 | J18: =AVERAGE(J15:J17) -> 0 | K18: 1.33 | L18: D+ | M18: 0
A19: 4 | B19: 4 | C19: =VLOOKUP(A19,data_siswa,4,FALSE) -> Antonio Permata A | D19: 3.1 | F19: =E19*2 -> 0 | H19: =VLOOKUP(B19,REKAP_NILAI,4,FALSE) -> 0 | I19: =F19+G19+H19 -> 0 | J19: =(F19+G19+H19)/4 -> 0 | K19: =IF(J19>85,("4"),IF(J19>80,("3.66"),IF(J19>75,("3.33"),IF(J19>70,("3.00"),IF(J19>65,("2.66"),IF(J19>60,("2.33"),IF(J19>55,("2"),IF(J19>50,("1.66"),"1.33")))))))) -> 1.33 | L19: =IF(J19>85,("A"),IF(J19>80,("A-"),IF(J19>75,("B+"),IF(J19>70,("B"),IF(J19>65,("B-"),IF(J19>60,("C+"),IF(J19>55,("C"),IF(J19>50,("C-"),"D+")))))))) -> D+ | M19: =IF(J19>80,("SB"),IF(J19>65,("B"),IF(J19>50,("C"),IF(J19>0,("K"),"0")))) -> 0 | T19: =J22 -> 0 | U19: =IF(T19>85,("A"),IF(T19>80,("A-"),IF(T19>75,("B+"),IF(T19>70,("B"),IF(T19>65,("B-"),IF(T19>60,("C+"),IF(T19>55,("C"),IF(T19>50,("C-"),"D+")))))))) -> D+
B20: 4 | D20: 3.2 | F20: =E20*2 -> 0 | H20: =VLOOKUP(B19,REKAP_NILAI,5,FALSE) -> 0 | I20: =F20+G20+H20 -> 0 | J20: =(F20+G20+H20)/4 -> 0 | K20: =IF(J20>85,("4"),IF(J20>80,("3.66"),IF(J20>75,("3.33"),IF(J20>70,("3.00"),IF(J20>65,("2.66"),IF(J20>60,("2.33"),IF(J20>55,("2"),IF(J20>50,("1.66"),"1.33")))))))) -> 1.33 | L20: =IF(J20>85,("A"),IF(J20>80,("A-"),IF(J20>75,("B+"),IF(J20>70,("B"),IF(J20>65,("B-"),IF(J20>60,("C+"),IF(J20>55,("C"),IF(J20>50,("C-"),"D+")))))))) -> D+ | M20: =IF(J20>80,("SB"),IF(J20>65,("B"),IF(J20>50,("C"),IF(J20>0,("K"),"0")))) -> 0
B21: 4 | D21: 3.3 | F21: 0 | H21: =VLOOKUP(B19,REKAP_NILAI,6,FALSE) -> 0 | I21: 0 | J21: 0 | K21: 1.33 | L21: D+ | M21: 0
C22: capaian raport | D22: 4 | H22: =AVERAGE(H19:H21) -> 0 | J22: =AVERAGE(J19:J21) -> 0 | K22: 1.33 | L22: D+ | M22: 0
A23: 5 | B23: 5 | C23: =VLOOKUP(A23,data_siswa,4,FALSE) -> Arya Pratama G | D23: 3.1 | F23: =E23*2 -> 0 | H23: =VLOOKUP(B23,REKAP_NILAI,4,FALSE) -> 0 | I23: =F23+G23+H23 -> 0 | J23: =(F23+G23+H23)/4 -> 0 | K23: =IF(J23>85,("4"),IF(J23>80,("3.66"),IF(J23>75,("3.33"),IF(J23>70,("3.00"),IF(J23>65,("2.66"),IF(J23>60,("2.33"),IF(J23>55,("2"),IF(J23>50,("1.66"),"1.33")))))))) -> 1.33 | L23: =IF(J23>85,("A"),IF(J23>80,("A-"),IF(J23>75,("B+"),IF(J23>70,("B"),IF(J23>65,("B-"),IF(J23>60,("C+"),IF(J23>55,("C"),IF(J23>50,("C-"),"D+")))))))) -> D+ | M23: =IF(J23>80,("SB"),IF(J23>65,("B"),IF(J23>50,("C"),IF(J23>0,("K"),"0")))) -> 0 | T23: =J26 -> 0 | U23: =IF(T23>85,("A"),IF(T23>80,("A-"),IF(T23>75,("B+"),IF(T23>70,("B"),IF(T23>65,("B-"),IF(T23>60,("C+"),IF(T23>55,("C"),IF(T23>50,("C-"),"D+")))))))) -> D+
B24: 5 | D24: 3.2 | F24: =E24*2 -> 0 | H24: =VLOOKUP(B23,REKAP_NILAI,5,FALSE) -> 0 | I24: =F24+G24+H24 -> 0 | J24: =(F24+G24+H24)/4 -> 0 | K24: =IF(J24>85,("4"),IF(J24>80,("3.66"),IF(J24>75,("3.33"),IF(J24>70,("3.00"),IF(J24>65,("2.66"),IF(J24>60,("2.33"),IF(J24>55,("2"),IF(J24>50,("1.66"),"1.33")))))))) -> 1.33 | L24: =IF(J24>85,("A"),IF(J24>80,("A-"),IF(J24>75,("B+"),IF(J24>70,("B"),IF(J24>65,("B-"),IF(J24>60,("C+"),IF(J24>55,("C"),IF(J24>50,("C-"),"D+")))))))) -> D+ | M24: =IF(J24>80,("SB"),IF(J24>65,("B"),IF(J24>50,("C"),IF(J24>0,("K"),"0")))) -> 0
B25: 5 | D25: 3.3 | F25: 0 | H25: =VLOOKUP(B23,REKAP_NILAI,6,FALSE) -> 0 | I25: 0 | J25: 0 | K25: 1.33 | L25: D+ | M25: 0
C26: capaian raport | D26: 5 | H26: =AVERAGE(H23:H25) -> 0 | J26: =AVERAGE(J23:J25) -> 0 | K26: 1.33 | L26: D+ | M26: 0
A27: 6 | B27: 6 | C27: =VLOOKUP(A27,data_siswa,4,FALSE) -> Asyam Hanif Ihsan H | D27: 3.1 | F27: =E27*2 -> 0 | H27: =VLOOKUP(B27,REKAP_NILAI,4,FALSE) -> 0 | I27: =F27+G27+H27 -> 0 | J27: =(F27+G27+H27)/4 -> 0 | K27: =IF(J27>85,("4"),IF(J27>80,("3.66"),IF(J27>75,("3.33"),IF(J27>70,("3.00"),IF(J27>65,("2.66"),IF(J27>60,("2.33"),IF(J27>55,("2"),IF(J27>50,("1.66"),"1.33")))))))) -> 1.33 | L27: =IF(J27>85,("A"),IF(J27>80,("A-"),IF(J27>75,("B+"),IF(J27>70,("B"),IF(J27>65,("B-"),IF(J27>60,("C+"),IF(J27>55,("C"),IF(J27>50,("C-"),"D+")))))))) -> D+ | M27: =IF(J27>80,("SB"),IF(J27>65,("B"),IF(J27>50,("C"),IF(J27>0,("K"),"0")))) -> 0 | T27: =J30 -> 0 | U27: =IF(T27>85,("A"),IF(T27>80,("A-"),IF(T27>75,("B+"),IF(T27>70,("B"),IF(T27>65,("B-"),IF(T27>60,("C+"),IF(T27>55,("C"),IF(T27>50,("C-"),"D+")))))))) -> D+
B28: 6 | D28: 3.2 | F28: =E28*2 -> 0 | H28: =VLOOKUP(B27,REKAP_NILAI,5,FALSE) -> 0 | I28: =F28+G28+H28 -> 0 | J28: =(F28+G28+H28)/4 -> 0 | K28: =IF(J28>85,("4"),IF(J28>80,("3.66"),IF(J28>75,("3.33"),IF(J28>70,("3.00"),IF(J28>65,("2.66"),IF(J28>60,("2.33"),IF(J28>55,("2"),IF(J28>50,("1.66"),"1.33")))))))) -> 1.33 | L28: =IF(J28>85,("A"),IF(J28>80,("A-"),IF(J28>75,("B+"),IF(J28>70,("B"),IF(J28>65,("B-"),IF(J28>60,("C+"),IF(J28>55,("C"),IF(J28>50,("C-"),"D+")))))))) -> D+ | M28: =IF(J28>80,("SB"),IF(J28>65,("B"),IF(J28>50,("C"),IF(J28>0,("K"),"0")))) -> 0
B29: 6 | D29: 3.3 | F29: 0 | H29: =VLOOKUP(B27,REKAP_NILAI,6,FALSE) -> 0 | I29: 0 | J29: 0 | K29: 1.33 | L29: D+ | M29: 0
C30: capaian raport | D30: 6 | H30: =AVERAGE(H27:H29) -> 0 | J30: =AVERAGE(J27:J29) -> 0 | K30: 1.33 | L30: D+ | M30: 0
A31: 7 | B31: 7 | C31: =VLOOKUP(A31,data_siswa,4,FALSE) -> Athaya Salsabilla Z | D31: 3.1 | F31: =E31*2 -> 0 | H31: =VLOOKUP(B31,REKAP_NILAI,4,FALSE) -> 0 | I31: =F31+G31+H31 -> 0 | J31: =(F31+G31+H31)/4 -> 0 | K31: =IF(J31>85,("4"),IF(J31>80,("3.66"),IF(J31>75,("3.33"),IF(J31>70,("3.00"),IF(J31>65,("2.66"),IF(J31>60,("2.33"),IF(J31>55,("2"),IF(J31>50,("1.66"),"1.33")))))))) -> 1.33 | L31: =IF(J31>85,("A"),IF(J31>80,("A-"),IF(J31>75,("B+"),IF(J31>70,("B"),IF(J31>65,("B-"),IF(J31>60,("C+"),IF(J31>55,("C"),IF(J31>50,("C-"),"D+")))))))) -> D+ | M31: =IF(J31>80,("SB"),IF(J31>65,("B"),IF(J31>50,("C"),IF(J31>0,("K"),"0")))) -> 0 | T31: =J34 -> 0 | U31: =IF(T31>85,("A"),IF(T31>80,("A-"),IF(T31>75,("B+"),IF(T31>70,("B"),IF(T31>65,("B-"),IF(T31>60,("C+"),IF(T31>55,("C"),IF(T31>50,("C-"),"D+")))))))) -> D+
B32: 7 | D32: 3.2 | F32: =E32*2 -> 0 | H32: =VLOOKUP(B31,REKAP_NILAI,5,FALSE) -> 0 | I32: =F32+G32+H32 -> 0 | J32: =(F32+G32+H32)/4 -> 0 | K32: =IF(J32>85,("4"),IF(J32>80,("3.66"),IF(J32>75,("3.33"),IF(J32>70,("3.00"),IF(J32>65,("2.66"),IF(J32>60,("2.33"),IF(J32>55,("2"),IF(J32>50,("1.66"),"1.33")))))))) -> 1.33 | L32: =IF(J32>85,("A"),IF(J32>80,("A-"),IF(J32>75,("B+"),IF(J32>70,("B"),IF(J32>65,("B-"),IF(J32>60,("C+"),IF(J32>55,("C"),IF(J32>50,("C-"),"D+")))))))) -> D+ | M32: =IF(J32>80,("SB"),IF(J32>65,("B"),IF(J32>50,("C"),IF(J32>0,("K"),"0")))) -> 0
B33: 7 | D33: 3.3 | F33: 0 | H33: =VLOOKUP(B31,REKAP_NILAI,6,FALSE) -> 0 | I33: 0 | J33: 0 | K33: 1.33 | L33: D+ | M33: 0
C34: capaian raport | D34: 7 | H34: =AVERAGE(H31:H33) -> 0 | J34: =AVERAGE(J31:J33) -> 0 | K34: 1.33 | L34: D+ | M34: 0
A35: 8 | B35: 8 | C35: =VLOOKUP(A35,data_siswa,4,FALSE) -> Aulia Dea Rosalinda | D35: 3.1 | F35: =E35*2 -> 0 | H35: =VLOOKUP(B35,REKAP_NILAI,4,FALSE) -> 0 | I35: =F35+G35+H35 -> 0 | J35: =(F35+G35+H35)/4 -> 0 | K35: =IF(J35>85,("4"),IF(J35>80,("3.66"),IF(J35>75,("3.33"),IF(J35>70,("3.00"),IF(J35>65,("2.66"),IF(J35>60,("2.33"),IF(J35>55,("2"),IF(J35>50,("1.66"),"1.33")))))))) -> 1.33 | L35: =IF(J35>85,("A"),IF(J35>80,("A-"),IF(J35>75,("B+"),IF(J35>70,("B"),IF(J35>65,("B-"),IF(J35>60,("C+"),IF(J35>55,("C"),IF(J35>50,("C-"),"D+")))))))) -> D+ | M35: =IF(J35>80,("SB"),IF(J35>65,("B"),IF(J35>50,("C"),IF(J35>0,("K"),"0")))) -> 0 | T35: =J38 -> 0 | U35: =IF(T35>85,("A"),IF(T35>80,("A-"),IF(T35>75,("B+"),IF(T35>70,("B"),IF(T35>65,("B-"),IF(T35>60,("C+"),IF(T35>55,("C"),IF(T35>50,("C-"),"D+")))))))) -> D+
B36: 8 | D36: 3.2 | F36: =E36*2 -> 0 | H36: =VLOOKUP(B35,REKAP_NILAI,5,FALSE) -> 0 | I36: =F36+G36+H36 -> 0 | J36: =(F36+G36+H36)/4 -> 0 | K36: =IF(J36>85,("4"),IF(J36>80,("3.66"),IF(J36>75,("3.33"),IF(J36>70,("3.00"),IF(J36>65,("2.66"),IF(J36>60,("2.33"),IF(J36>55,("2"),IF(J36>50,("1.66"),"1.33")))))))) -> 1.33 | L36: =IF(J36>85,("A"),IF(J36>80,("A-"),IF(J36>75,("B+"),IF(J36>70,("B"),IF(J36>65,("B-"),IF(J36>60,("C+"),IF(J36>55,("C"),IF(J36>50,("C-"),"D+")))))))) -> D+ | M36: =IF(J36>80,("SB"),IF(J36>65,("B"),IF(J36>50,("C"),IF(J36>0,("K"),"0")))) -> 0
B37: 8 | D37: 3.3 | F37: 0 | H37: =VLOOKUP(B35,REKAP_NILAI,6,FALSE) -> 0 | I37: 0 | J37: 0 | K37: 1.33 | L37: D+ | M37: 0
C38: capaian raport | D38: 8 | H38: =AVERAGE(H35:H37) -> 0 | J38: =AVERAGE(J35:J37) -> 0 | K38: 1.33 | L38: D+ | M38: 0
A39: 9 | B39: 9 | C39: =VLOOKUP(A39,data_siswa,4,FALSE) -> Claudia Gabriella L | D39: 3.1 | F39: =E39*2 -> 0 | H39: =VLOOKUP(B39,REKAP_NILAI,4,FALSE) -> 0 | I39: =F39+G39+H39 -> 0 | J39: =(F39+G39+H39)/4 -> 0 | K39: =IF(J39>85,("4"),IF(J39>80,("3.66"),IF(J39>75,("3.33"),IF(J39>70,("3.00"),IF(J39>65,("2.66"),IF(J39>60,("2.33"),IF(J39>55,("2"),IF(J39>50,("1.66"),"1.33")))))))) -> 1.33 | L39: =IF(J39>85,("A"),IF(J39>80,("A-"),IF(J39>75,("B+"),IF(J39>70,("B"),IF(J39>65,("B-"),IF(J39>60,("C+"),IF(J39>55,("C"),IF(J39>50,("C-"),"D+")))))))) -> D+ | M39: =IF(J39>80,("SB"),IF(J39>65,("B"),IF(J39>50,("C"),IF(J39>0,("K"),"0")))) -> 0 | T39: =J42 -> 0 | U39: =IF(T39>85,("A"),IF(T39>80,("A-"),IF(T39>75,("B+"),IF(T39>70,("B"),IF(T39>65,("B-"),IF(T39>60,("C+"),IF(T39>55,("C"),IF(T39>50,("C-"),"D+")))))))) -> D+
B40: 9 | D40: 3.2 | F40: =E40*2 -> 0 | H40: =VLOOKUP(B39,REKAP_NILAI,5,FALSE) -> 0 | I40: =F40+G40+H40 -> 0 | J40: =(F40+G40+H40)/4 -> 0 | K40: =IF(J40>85,("4"),IF(J40>80,("3.66"),IF(J40>75,("3.33"),IF(J40>70,("3.00"),IF(J40>65,("2.66"),IF(J40>60,("2.33"),IF(J40>55,("2"),IF(J40>50,("1.66"),"1.33")))))))) -> 1.33 | L40: =IF(J40>85,("A"),IF(J40>80,("A-"),IF(J40>75,("B+"),IF(J40>70,("B"),IF(J40>65,("B-"),IF(J40>60,("C+"),IF(J40>55,("C"),IF(J40>50,("C-"),"D+")))))))) -> D+ | M40: =IF(J40>80,("SB"),IF(J40>65,("B"),IF(J40>50,("C"),IF(J40>0,("K"),"0")))) -> 0
B41: 9 | D41: 3.3 | F41: 0 | H41: =VLOOKUP(B39,REKAP_NILAI,6,FALSE) -> 0 | I41: 0 | J41: 0 | K41: 1.33 | L41: D+ | M41: 0
C42: capaian raport | D42: 9 | H42: =AVERAGE(H39:H41) -> 0 | J42: =AVERAGE(J39:J41) -> 0 | K42: 1.33 | L42: D+ | M42: 0
A43: 10 | B43: 10 | C43: =VLOOKUP(A43,data_siswa,4,FALSE) -> Deco Badarus Zaman | D43: 3.1 | F43: =E43*2 -> 0 | H43: =VLOOKUP(B43,REKAP_NILAI,4,FALSE) -> 0 | I43: =F43+G43+H43 -> 0 | J43: =(F43+G43+H43)/4 -> 0 | K43: =IF(J43>85,("4"),IF(J43>80,("3.66"),IF(J43>75,("3.33"),IF(J43>70,("3.00"),IF(J43>65,("2.66"),IF(J43>60,("2.33"),IF(J43>55,("2"),IF(J43>50,("1.66"),"1.33")))))))) -> 1.33 | L43: =IF(J43>85,("A"),IF(J43>80,("A-"),IF(J43>75,("B+"),IF(J43>70,("B"),IF(J43>65,("B-"),IF(J43>60,("C+"),IF(J43>55,("C"),IF(J43>50,("C-"),"D+")))))))) -> D+ | M43: =IF(J43>80,("SB"),IF(J43>65,("B"),IF(J43>50,("C"),IF(J43>0,("K"),"0")))) -> 0 | T43: =J46 -> 0 | U43: =IF(T43>85,("A"),IF(T43>80,("A-"),IF(T43>75,("B+"),IF(T43>70,("B"),IF(T43>65,("B-"),IF(T43>60,("C+"),IF(T43>55,("C"),IF(T43>50,("C-"),"D+")))))))) -> D+
B44: 10 | D44: 3.2 | F44: =E44*2 -> 0 | H44: =VLOOKUP(B43,REKAP_NILAI,5,FALSE) -> 0 | I44: =F44+G44+H44 -> 0 | J44: =(F44+G44+H44)/4 -> 0 | K44: =IF(J44>85,("4"),IF(J44>80,("3.66"),IF(J44>75,("3.33"),IF(J44>70,("3.00"),IF(J44>65,("2.66"),IF(J44>60,("2.33"),IF(J44>55,("2"),IF(J44>50,("1.66"),"1.33")))))))) -> 1.33 | L44: =IF(J44>85,("A"),IF(J44>80,("A-"),IF(J44>75,("B+"),IF(J44>70,("B"),IF(J44>65,("B-"),IF(J44>60,("C+"),IF(J44>55,("C"),IF(J44>50,("C-"),"D+")))))))) -> D+ | M44: =IF(J44>80,("SB"),IF(J44>65,("B"),IF(J44>50,("C"),IF(J44>0,("K"),"0")))) -> 0
B45: 10 | D45: 3.3 | F45: 0 | H45: =VLOOKUP(B43,REKAP_NILAI,6,FALSE) -> 0 | I45: 0 | J45: 0 | K45: 1.33 | L45: D+ | M45: 0
C46: capaian raport | D46: 10 | H46: =AVERAGE(H43:H45) -> 0 | J46: =AVERAGE(J43:J45) -> 0 | K46: 1.33 | L46: D+ | M46: 0
A47: 11 | B47: 11 | C47: =VLOOKUP(A47,data_siswa,4,FALSE) -> Fania Mutiara Felichia | D47: 3.1 | F47: =E47*2 -> 0 | H47: =VLOOKUP(B47,REKAP_NILAI,4,FALSE) -> 0 | I47: =F47+G47+H47 -> 0 | J47: =(F47+G47+H47)/4 -> 0 | K47: =IF(J47>85,("4"),IF(J47>80,("3.66"),IF(J47>75,("3.33"),IF(J47>70,("3.00"),IF(J47>65,("2.66"),IF(J47>60,("2.33"),IF(J47>55,("2"),IF(J47>50,("1.66"),"1.33")))))))) -> 1.33 | L47: =IF(J47>85,("A"),IF(J47>80,("A-"),IF(J47>75,("B+"),IF(J47>70,("B"),IF(J47>65,("B-"),IF(J47>60,("C+"),IF(J47>55,("C"),IF(J47>50,("C-"),"D+")))))))) -> D+ | M47: =IF(J47>80,("SB"),IF(J47>65,("B"),IF(J47>50,("C"),IF(J47>0,("K"),"0")))) -> 0 | T47: =J50 -> 0 | U47: =IF(T47>85,("A"),IF(T47>80,("A-"),IF(T47>75,("B+"),IF(T47>70,("B"),IF(T47>65,("B-"),IF(T47>60,("C+"),IF(T47>55,("C"),IF(T47>50,("C-"),"D+")))))))) -> D+
B48: 11 | D48: 3.2 | F48: =E48*2 -> 0 | H48: =VLOOKUP(B47,REKAP_NILAI,5,FALSE) -> 0 | I48: =F48+G48+H48 -> 0 | J48: =(F48+G48+H48)/4 -> 0 | K48: =IF(J48>85,("4"),IF(J48>80,("3.66"),IF(J48>75,("3.33"),IF(J48>70,("3.00"),IF(J48>65,("2.66"),IF(J48>60,("2.33"),IF(J48>55,("2"),IF(J48>50,("1.66"),"1.33")))))))) -> 1.33 | L48: =IF(J48>85,("A"),IF(J48>80,("A-"),IF(J48>75,("B+"),IF(J48>70,("B"),IF(J48>65,("B-"),IF(J48>60,("C+"),IF(J48>55,("C"),IF(J48>50,("C-"),"D+")))))))) -> D+ | M48: =IF(J48>80,("SB"),IF(J48>65,("B"),IF(J48>50,("C"),IF(J48>0,("K"),"0")))) -> 0
B49: 11 | D49: 3.3 | F49: 0 | H49: =VLOOKUP(B47,REKAP_NILAI,6,FALSE) -> 0 | I49: 0 | J49: 0 | K49: 1.33 | L49: D+ | M49: 0
C50: capaian raport | D50: 11 | H50: =AVERAGE(H47:H49) -> 0 | J50: =AVERAGE(J47:J49) -> 0 | K50: 1.33 | L50: D+ | M50: 0
A51: 12 | B51: 12 | C51: =VLOOKUP(A51,data_siswa,4,FALSE) -> Intan Dyah Nowari | D51: 3.1 | F51: =E51*2 -> 0 | H51: =VLOOKUP(B51,REKAP_NILAI,4,FALSE) -> 0 | I51: =F51+G51+H51 -> 0 | J51: =(F51+G51+H51)/4 -> 0 | K51: =IF(J51>85,("4"),IF(J51>80,("3.66"),IF(J51>75,("3.33"),IF(J51>70,("3.00"),IF(J51>65,("2.66"),IF(J51>60,("2.33"),IF(J51>55,("2"),IF(J51>50,("1.66"),"1.33")))))))) -> 1.33 | L51: =IF(J51>85,("A"),IF(J51>80,("A-"),IF(J51>75,("B+"),IF(J51>70,("B"),IF(J51>65,("B-"),IF(J51>60,("C+"),IF(J51>55,("C"),IF(J51>50,("C-"),"D+")))))))) -> D+ | M51: =IF(J51>80,("SB"),IF(J51>65,("B"),IF(J51>50,("C"),IF(J51>0,("K"),"0")))) -> 0 | T51: =J54 -> 0 | U51: =IF(T51>85,("A"),IF(T51>80,("A-"),IF(T51>75,("B+"),IF(T51>70,("B"),IF(T51>65,("B-"),IF(T51>60,("C+"),IF(T51>55,("C"),IF(T51>50,("C-"),"D+")))))))) -> D+
B52: 12 | D52: 3.2 | F52: =E52*2 -> 0 | H52: =VLOOKUP(B51,REKAP_NILAI,5,FALSE) -> 0 | I52: =F52+G52+H52 -> 0 | J52: =(F52+G52+H52)/4 -> 0 | K52: =IF(J52>85,("4"),IF(J52>80,("3.66"),IF(J52>75,("3.33"),IF(J52>70,("3.00"),IF(J52>65,("2.66"),IF(J52>60,("2.33"),IF(J52>55,("2"),IF(J52>50,("1.66"),"1.33")))))))) -> 1.33 | L52: =IF(J52>85,("A"),IF(J52>80,("A-"),IF(J52>75,("B+"),IF(J52>70,("B"),IF(J52>65,("B-"),IF(J52>60,("C+"),IF(J52>55,("C"),IF(J52>50,("C-"),"D+")))))))) -> D+ | M52: =IF(J52>80,("SB"),IF(J52>65,("B"),IF(J52>50,("C"),IF(J52>0,("K"),"0")))) -> 0
B53: 12 | D53: 3.3 | F53: 0 | H53: =VLOOKUP(B51,REKAP_NILAI,6,FALSE) -> 0 | I53: 0 | J53: 0 | K53: 1.33 | L53: D+ | M53: 0
C54: capaian raport | D54: 12 | H54: =AVERAGE(H51:H53) -> 0 | J54: =AVERAGE(J51:J53) -> 0 | K54: 1.33 | L54: D+ | M54: 0
A55: 13 | B55: 13 | C55: =VLOOKUP(A55,data_siswa,4,FALSE) -> Misyanita Nurfitri S | D55: 3.1 | F55: =E55*2 -> 0 | H55: =VLOOKUP(B55,REKAP_NILAI,4,FALSE) -> 0 | I55: =F55+G55+H55 -> 0 | J55: =(F55+G55+H55)/4 -> 0 | K55: =IF(J55>85,("4"),IF(J55>80,("3.66"),IF(J55>75,("3.33"),IF(J55>70,("3.00"),IF(J55>65,("2.66"),IF(J55>60,("2.33"),IF(J55>55,("2"),IF(J55>50,("1.66"),"1.33")))))))) -> 1.33 | L55: =IF(J55>85,("A"),IF(J55>80,("A-"),IF(J55>75,("B+"),IF(J55>70,("B"),IF(J55>65,("B-"),IF(J55>60,("C+"),IF(J55>55,("C"),IF(J55>50,("C-"),"D+")))))))) -> D+ | M55: =IF(J55>80,("SB"),IF(J55>65,("B"),IF(J55>50,("C"),IF(J55>0,("K"),"0")))) -> 0 | T55: =J58 -> 0 | U55: =IF(T55>85,("A"),IF(T55>80,("A-"),IF(T55>75,("B+"),IF(T55>70,("B"),IF(T55>65,("B-"),IF(T55>60,("C+"),IF(T55>55,("C"),IF(T55>50,("C-"),"D+")))))))) -> D+
B56: 13 | D56: 3.2 | F56: =E56*2 -> 0 | H56: =VLOOKUP(B55,REKAP_NILAI,5,FALSE) -> 0 | I56: =F56+G56+H56 -> 0 | J56: =(F56+G56+H56)/4 -> 0 | K56: =IF(J56>85,("4"),IF(J56>80,("3.66"),IF(J56>75,("3.33"),IF(J56>70,("3.00"),IF(J56>65,("2.66"),IF(J56>60,("2.33"),IF(J56>55,("2"),IF(J56>50,("1.66"),"1.33")))))))) -> 1.33 | L56: =IF(J56>85,("A"),IF(J56>80,("A-"),IF(J56>75,("B+"),IF(J56>70,("B"),IF(J56>65,("B-"),IF(J56>60,("C+"),IF(J56>55,("C"),IF(J56>50,("C-"),"D+")))))))) -> D+ | M56: =IF(J56>80,("SB"),IF(J56>65,("B"),IF(J56>50,("C"),IF(J56>0,("K"),"0")))) -> 0
B57: 13 | D57: 3.3 | F57: 0 | H57: =VLOOKUP(B55,REKAP_NILAI,6,FALSE) -> 0 | I57: 0 | J57: 0 | K57: 1.33 | L57: D+ | M57: 0
C58: capaian raport | D58: 13 | H58: =AVERAGE(H55:H57) -> 0 | J58: =AVERAGE(J55:J57) -> 0 | K58: 1.33 | L58: D+ | M58: 0
A59: 14 | B59: 14 | C59: =VLOOKUP(A59,data_siswa,4,FALSE) -> Moch Zidane Hita L. U | D59: 3.1 | F59: =E59*2 -> 0 | H59: =VLOOKUP(B59,REKAP_NILAI,4,FALSE) -> 0 | I59: =F59+G59+H59 -> 0 | J59: =(F59+G59+H59)/4 -> 0 | K59: =IF(J59>85,("4"),IF(J59>80,("3.66"),IF(J59>75,("3.33"),IF(J59>70,("3.00"),IF(J59>65,("2.66"),IF(J59>60,("2.33"),IF(J59>55,("2"),IF(J59>50,("1.66"),"1.33")))))))) -> 1.33 | L59: =IF(J59>85,("A"),IF(J59>80,("A-"),IF(J59>75,("B+"),IF(J59>70,("B"),IF(J59>65,("B-"),IF(J59>60,("C+"),IF(J59>55,("C"),IF(J59>50,("C-"),"D+")))))))) -> D+ | M59: =IF(J59>80,("SB"),IF(J59>65,("B"),IF(J59>50,("C"),IF(J59>0,("K"),"0")))) -> 0 | T59: =J62 -> 0 | U59: =IF(T59>85,("A"),IF(T59>80,("A-"),IF(T59>75,("B+"),IF(T59>70,("B"),IF(T59>65,("B-"),IF(T59>60,("C+"),IF(T59>55,("C"),IF(T59>50,("C-"),"D+")))))))) -> D+
B60: 14 | D60: 3.2 | F60: =E60*2 -> 0 | H60: =VLOOKUP(B59,REKAP_NILAI,5,FALSE) -> 0 | I60: =F60+G60+H60 -> 0 | J60: =(F60+G60+H60)/4 -> 0 | K60: =IF(J60>85,("4"),IF(J60>80,("3.66"),IF(J60>75,("3.33"),IF(J60>70,("3.00"),IF(J60>65,("2.66"),IF(J60>60,("2.33"),IF(J60>55,("2"),IF(J60>50,("1.66"),"1.33")))))))) -> 1.33 | L60: =IF(J60>85,("A"),IF(J60>80,("A-"),IF(J60>75,("B+"),IF(J60>70,("B"),IF(J60>65,("B-"),IF(J60>60,("C+"),IF(J60>55,("C"),IF(J60>50,("C-"),"D+")))))))) -> D+ | M60: =IF(J60>80,("SB"),IF(J60>65,("B"),IF(J60>50,("C"),IF(J60>0,("K"),"0")))) -> 0
B61: 14 | D61: 3.3 | F61: 0 | H61: =VLOOKUP(B59,REKAP_NILAI,6,FALSE) -> 0 | I61: 0 | J61: 0 | K61: 1.33 | L61: D+ | M61: 0
C62: capaian raport | D62: 14 | H62: =AVERAGE(H59:H61) -> 0 | J62: =AVERAGE(J59:J61) -> 0 | K62: 1.33 | L62: D+ | M62: 0
A63: 15 | B63: 15 | C63: =VLOOKUP(A63,data_siswa,4,FALSE) -> Muhammad Ibra Maulana | D63: 3.1 | F63: =E63*2 -> 0 | H63: =VLOOKUP(B63,REKAP_NILAI,4,FALSE) -> 0 | I63: =F63+G63+H63 -> 0 | J63: =(F63+G63+H63)/4 -> 0 | K63: =IF(J63>85,("4"),IF(J63>80,("3.66"),IF(J63>75,("3.33"),IF(J63>70,("3.00"),IF(J63>65,("2.66"),IF(J63>60,("2.33"),IF(J63>55,("2"),IF(J63>50,("1.66"),"1.33")))))))) -> 1.33 | L63: =IF(J63>85,("A"),IF(J63>80,("A-"),IF(J63>75,("B+"),IF(J63>70,("B"),IF(J63>65,("B-"),IF(J63>60,("C+"),IF(J63>55,("C"),IF(J63>50,("C-"),"D+")))))))) -> D+ | M63: =IF(J63>80,("SB"),IF(J63>65,("B"),IF(J63>50,("C"),IF(J63>0,("K"),"0")))) -> 0 | T63: =J66 -> 0 | U63: =IF(T63>85,("A"),IF(T63>80,("A-"),IF(T63>75,("B+"),IF(T63>70,("B"),IF(T63>65,("B-"),IF(T63>60,("C+"),IF(T63>55,("C"),IF(T63>50,("C-"),"D+")))))))) -> D+
B64: 15 | D64: 3.2 | F64: =E64*2 -> 0 | H64: =VLOOKUP(B63,REKAP_NILAI,5,FALSE) -> 0 | I64: =F64+G64+H64 -> 0 | J64: =(F64+G64+H64)/4 -> 0 | K64: =IF(J64>85,("4"),IF(J64>80,("3.66"),IF(J64>75,("3.33"),IF(J64>70,("3.00"),IF(J64>65,("2.66"),IF(J64>60,("2.33"),IF(J64>55,("2"),IF(J64>50,("1.66"),"1.33")))))))) -> 1.33 | L64: =IF(J64>85,("A"),IF(J64>80,("A-"),IF(J64>75,("B+"),IF(J64>70,("B"),IF(J64>65,("B-"),IF(J64>60,("C+"),IF(J64>55,("C"),IF(J64>50,("C-"),"D+")))))))) -> D+ | M64: =IF(J64>80,("SB"),IF(J64>65,("B"),IF(J64>50,("C"),IF(J64>0,("K"),"0")))) -> 0
B65: 15 | D65: 3.3 | F65: 0 | H65: =VLOOKUP(B63,REKAP_NILAI,6,FALSE) -> 0 | I65: 0 | J65: 0 | K65: 1.33 | L65: D+ | M65: 0
C66: capaian raport | D66: 15 | H66: =AVERAGE(H63:H65) -> 0 | J66: =AVERAGE(J63:J65) -> 0 | K66: 1.33 | L66: D+ | M66: 0
A67: 16 | B67: 16 | C67: =VLOOKUP(A67,data_siswa,4,FALSE) -> Nabilla Shiva Putri | D67: 3.1 | F67: =E67*2 -> 0 | H67: =VLOOKUP(B67,REKAP_NILAI,4,FALSE) -> 0 | I67: =F67+G67+H67 -> 0 | J67: =(F67+G67+H67)/4 -> 0 | K67: =IF(J67>85,("4"),IF(J67>80,("3.66"),IF(J67>75,("3.33"),IF(J67>70,("3.00"),IF(J67>65,("2.66"),IF(J67>60,("2.33"),IF(J67>55,("2"),IF(J67>50,("1.66"),"1.33")))))))) -> 1.33 | L67: =IF(J67>85,("A"),IF(J67>80,("A-"),IF(J67>75,("B+"),IF(J67>70,("B"),IF(J67>65,("B-"),IF(J67>60,("C+"),IF(J67>55,("C"),IF(J67>50,("C-"),"D+")))))))) -> D+ | M67: =IF(J67>80,("SB"),IF(J67>65,("B"),IF(J67>50,("C"),IF(J67>0,("K"),"0")))) -> 0 | T67: =J70 -> 0 | U67: =IF(T67>85,("A"),IF(T67>80,("A-"),IF(T67>75,("B+"),IF(T67>70,("B"),IF(T67>65,("B-"),IF(T67>60,("C+"),IF(T67>55,("C"),IF(T67>50,("C-"),"D+")))))))) -> D+
B68: 16 | D68: 3.2 | F68: =E68*2 -> 0 | H68: =VLOOKUP(B67,REKAP_NILAI,5,FALSE) -> 0 | I68: =F68+G68+H68 -> 0 | J68: =(F68+G68+H68)/4 -> 0 | K68: =IF(J68>85,("4"),IF(J68>80,("3.66"),IF(J68>75,("3.33"),IF(J68>70,("3.00"),IF(J68>65,("2.66"),IF(J68>60,("2.33"),IF(J68>55,("2"),IF(J68>50,("1.66"),"1.33")))))))) -> 1.33 | L68: =IF(J68>85,("A"),IF(J68>80,("A-"),IF(J68>75,("B+"),IF(J68>70,("B"),IF(J68>65,("B-"),IF(J68>60,("C+"),IF(J68>55,("C"),IF(J68>50,("C-"),"D+")))))))) -> D+ | M68: =IF(J68>80,("SB"),IF(J68>65,("B"),IF(J68>50,("C"),IF(J68>0,("K"),"0")))) -> 0
B69: 16 | D69: 3.3 | F69: 0 | H69: =VLOOKUP(B67,REKAP_NILAI,6,FALSE) -> 0 | I69: 0 | J69: 0 | K69: 1.33 | L69: D+ | M69: 0
C70: capaian raport | D70: 16 | H70: =AVERAGE(H67:H69) -> 0 | J70: =AVERAGE(J67:J69) -> 0 | K70: 1.33 | L70: D+ | M70: 0
